Workbook

Sheet Worksheet
B2: Recipe | D2: Brew Date | F2: Assistant | J2: Time | K2: Cost | M2: Fermenter Clear | S2: Drink Date | AD2: Batch Size, Volumes, Losses & Infusions/Decotions
J3: =(SUM(TIME)+TimeMashStep1+TimeMashStep2+TimeMashStep3+TimeBoil)/60 -> 7.75 | K3: =CostGrains+CostHops+CostYeast+CostGrainsPG+CostHopsPG+CostYeastPG -> 0 | M3: =IF(BrewDate="","",IF(SUM(FERMENTER_DAYS)=0,"",BrewDate+SUM(FERMENTER_DAYS))) ->  | S3: =IF(BrewDate="","",IF(SUM(FERMENTATION_DAYS)=0,"",BrewDate+SUM(FERMENTATION_DAYS)+1)) ->  | AD3: Packaged Beer Volume | AG3: 5 | AH3: 0.25 | AI3: Fermenter Transfer & Trub Losses
AD4: Fermentation Volume | AG4: =IF(VolumeFinal="","",IF(TrubLoss="","",VolumeFinal+TrubLoss)) -> 5.25 | AH4: 0.125 | AI4: Transfer Losses from Kettle
B5: Style & Beer Properties | D5: OG | F5: FG | H5: OG ºP | K5: FG ºP | M5: ABV% | O5: IBU | S5: ºSRM | U5: CO2 | W5: BUGU/BV | AD5: Post Boil Volume | AG5: =IF(VolumeFermentation="","",IF(KettleTransferLosses="","",VolumeFermentation+KettleTransferLosses+HopsAbsorption+KettleDeadSpace)) -> 5.625 | AH5: =IF(VolumePostBoil="","",IF(BoilOffRate="","",IF(TimeBoil="","",IF(ContractionLoss="","",VolumePostBoil+(TimeBoil*BoilOffRate)+ContractionLoss)))) -> 7.2 | AI5: Pre Boil Volume
B6: Primary Style Dropdown | D6: =VLOOKUP(StylePrimary,STYLE_ATTRIBUTES,3,0) -> ∞ | E6: =VLOOKUP(StylePrimary,STYLE_ATTRIBUTES,4,0) -> ∞ | F6: =VLOOKUP(StylePrimary,STYLE_ATTRIBUTES,5,0) -> ∞ | G6: =VLOOKUP(StylePrimary,STYLE_ATTRIBUTES,6,0) -> ∞ | H6: =VLOOKUP(StylePrimary,STYLE_ATTRIBUTES,7,0) -> ∞ | J6: =VLOOKUP(StylePrimary,STYLE_ATTRIBUTES,8,0) -> ∞ | K6: =VLOOKUP(StylePrimary,STYLE_ATTRIBUTES,9,0) -> ∞ | L6: =VLOOKUP(StylePrimary,STYLE_ATTRIBUTES,10,0) -> ∞ | M6: =VLOOKUP(StylePrimary,STYLE_ATTRIBUTES,11,0) -> ∞ | N6: =VLOOKUP(StylePrimary,STYLE_ATTRIBUTES,12,0) -> ∞ | O6: =VLOOKUP(StylePrimary,STYLE_ATTRIBUTES,13,0) -> ∞ | Q6: =VLOOKUP(StylePrimary,STYLE_ATTRIBUTES,14,0) -> ∞ | S6: =VLOOKUP(StylePrimary,STYLE_ATTRIBUTES,15,0) -> ∞ | T6: =VLOOKUP(StylePrimary,STYLE_ATTRIBUTES,16,0) -> ∞ | U6: =VLOOKUP(StylePrimary,STYLE_ATTRIBUTES,17,0) -> ∞ | V6: =VLOOKUP(StylePrimary,STYLE_ATTRIBUTES,18,0) -> ∞ | W6: =VLOOKUP(StylePrimary,STYLE_ATTRIBUTES,19,0) -> ∞ | Z6: =VLOOKUP(StylePrimary,STYLE_ATTRIBUTES,23,0) -> ∞ | AD6: =IF(MashType="Infusion Mash","Unused Space ",IF(MashType="Decoction Mash","Decoction Volume 3 ","No Infusion/Decoction")) -> Unused Space | AG6: =IF(MashType="Decoction Mash",TotalMashVolumePlusGrains*(MashOutTemp-IF(MashSteps<2,TempMashStep1,IF(MashSteps<3,TempMashStep2,TempMashStep3)))/(TempStrikeWater2-IF(MashSteps<2,TempMashStep1,IF(MashSteps<3,TempMashStep2,TempMashStep3))),"-") -> - | AH6: =IF(f3Runnings="No","-",IF(VolumePreBoil="","",IF((IF(fPartigyle="No",VolumePreBoil,VolumePreBoil+VolumePreBoilPG)-VolumeMashTotal-IF(MashType="Infusion Mash",VolumeMashOut,0)+GrainAbsorption)/2>0,(IF(fPartigyle="No",VolumePreBoil,VolumePreBoil+VolumePreBoilPG)-VolumeMashTotal-IF(MashType="Infusion Mash",VolumeMashOut,0)+GrainAbsorption)/2,0))) -> - | AI6: Sparge Water 2 Volume
B7: Estimated | D7: =IF(GravityUnitsAdjusted="","",IF(VolumePostBoil="","",IF(GravityUnitsAdjusted=0,"",((GravityUnitsAdjusted/VolumePostBoil)+1000)/1000))) ->  | F7: =IF(GravityEstimatedOriginal="","",IF(YeastStrain2="",IF(YeastStrain1="","",((GravityEstimatedOriginal*1000-1000)*(((100-(YeastAttenuation1L+YeastAttenuation1H)*50)/100))+1000)/1000),IF(YeastStrain1="",((GravityEstimatedOriginal*1000-1000)*(((100-(YeastAttenuation2L+YeastAttenuation2H)*50)/100))+1000)/1000,IF(YeastAttenuation2L+YeastAttenuation2H>YeastAttenuation1L+YeastAttenuation1H,((GravityEstimatedOriginal*1000-1000)*(((100-(YeastAttenuation2L+YeastAttenuation2H)*50)/100))+1000)/1000,((GravityEstimatedOriginal*1000-1000)*(((100-(YeastAttenuation1L+YeastAttenuation1H)*50)/100))+1000)/1000)))) ->  | H7: =IF(GravityEstimatedOriginal="","",(668.72*GravityEstimatedOriginal)-463.37-(205.347*GravityEstimatedOriginal^2)) ->  | K7: =IF(GravityEstimatedFinal="","",(668.72*GravityEstimatedFinal)-463.37-(205.347*GravityEstimatedFinal^2)) ->  | M7: =IF(GravityEstimatedFinal="","",IF(GravityEstimatedOriginal="","",(GravityEstimatedOriginal-GravityEstimatedFinal)/0.806)) ->  | O7: =IF(HopsMeasurement="Ounces",SumIBUorOunces,SumOuncesorIBU) ->  | S7: =IF(FinalMCU="","",IF(FinalMCU=0,"",1.4922*(FinalMCU^0.6859))) ->  | U7: =IF(CO2Volumes="","",CO2Volumes) ->  | W7: =IF(TotalIBU="","",IF(GravityEstimatedOriginal="","",TotalIBU/((GravityEstimatedOriginal-1)*1000))) ->  | Z7: =IF(TotalIBU="","",IF(GravityEstimatedFinal="","",IF(GravityEstimatedOriginal="","",0.8*TotalIBU/((820*(GravityEstimatedFinal-1))+(180*(GravityEstimatedOriginal-1)))))) ->  | AD7: =IF(MashType="Infusion Mash","Strike Water 3 Volume ",IF(MashType="Decoction Mash","Decoction Volume 2 ","No Infusion/Decoction")) -> Strike Water 3 Volume | AG7: =IF(MashType="Infusion Mash",IF(MashSteps<3,"-",IF(TempMashStep3="","",IF(TempMashStep2="","",IF(MashThickness="","",IF(TotalGrainWeight="","",IF(TempStrikeWater2="","",0.25*(TempMashStep3-TempMashStep2)*(0.2*TotalGrainWeight+(MashThickness*TotalGrainWeight))/(TempStrikeWater2-TempMashStep3))))))),IF(MashType="Decoction Mash",IF(MashSteps>2,TotalMashVolumePlusGrains*(TempMashStep3-TempMashStep2)/(TempStrikeWater2-TempMashStep2),0),"-")) -> - | AH7: =IF(VolumePreBoil="","",IF(IF(f3Runnings="No",IF(fPartigyle="No",VolumePreBoil,VolumePreBoil+VolumePreBoilPG)-VolumeMashTotal-IF(MashType="Infusion Mash",VolumeMashOut,0)+GrainAbsorption,(IF(fPartigyle="No",VolumePreBoil,VolumePreBoil+VolumePreBoilPG)-VolumeMashTotal-IF(MashType="Infusion Mash",VolumeMashOut,0)+GrainAbsorption)/2)>0,IF(f3Runnings="No",IF(fPartigyle="No",VolumePreBoil,VolumePreBoil+VolumePreBoilPG)-VolumeMashTotal-IF(MashType="Infusion Mash",VolumeMashOut,0)+GrainAbsorption,(IF(fPartigyle="No",VolumePreBoil,VolumePreBoil+VolumePreBoilPG)-VolumeMashTotal-IF(MashType="Infusion Mash",VolumeMashOut,0)+GrainAbsorption)/2),0)) -> 3.475 | AI7: Sparge Water 1 Volume
B8: Measured | H8: =IF(GravityMeasuredOriginal="","",(668.72*GravityMeasuredOriginal)-463.37-(205.347*GravityMeasuredOriginal^2)) ->  | K8: =IF(GravityMeasuredFinal="","",(668.72*GravityMeasuredFinal)-463.37-(205.347*GravityMeasuredFinal^2)) ->  | M8: =IF(GravityMeasuredOriginal="","",IF(GravityMeasuredFinal="","",(GravityMeasuredOriginal-GravityMeasuredFinal)/0.806)) ->  | O8: Calories per 12oz: | U8: =IF(ABV="","",IF(GravityMeasuredFinal="","",IF(PlatoMeasuredOriginal="","",IF(PlatoMeasuredFinal="","",((100*6.9*((0.79*ABV)/GravityMeasuredFinal))+4*(((0.1808*PlatoMeasuredOriginal)+(0.8192*PlatoMeasuredFinal))-0.1))*GravityMeasuredFinal*3.55)))) ->  | W8: =IF(TotalIBU="","",IF(GravityMeasuredOriginal="","",TotalIBU/((GravityMeasuredOriginal-1)*1000))) ->  | Z8: =IF(TotalIBU="","",IF(GravityMeasuredFinal="","",IF(GravityMeasuredOriginal="","",0.8*TotalIBU/((820*(GravityMeasuredFinal-1))+(180*(GravityMeasuredOriginal-1)))))) ->  | AD8: =IF(MashType="Infusion Mash","Strike Water 2 Volume ",IF(MashType="Decoction Mash","Decoction Volume 1 ","No Infusion/Decoction")) -> Strike Water 2 Volume | AG8: =IF(MashType="Infusion Mash",IF(MashSteps<2,"-",IF(TempMashStep2="","",IF(TempMashStep1="","",IF(MashThickness="","",IF(TotalGrainWeight="","",IF(TempStrikeWater2="","",0.25*(TempMashStep2-TempMashStep1)*(0.2*TotalGrainWeight+(MashThickness*TotalGrainWeight))/(TempStrikeWater2-TempMashStep2))))))),IF(MashType="Decoction Mash",IF(MashSteps>1,TotalMashVolumePlusGrains*(TempMashStep2-TempMashStep1)/(TempStrikeWater2-TempMashStep1),0),"-")) -> - | AH8: =IF(VolumeMashTotal="","",IF(VolumePreBoil="","",IF(GrainAbsorption="","",IF(VolumeStrikeWater1="","",IF(LauterTunDeadSpace="","",IF(IF(f3Runnings="No",IF(fPartigyle="No",VolumePreBoil,VolumePreBoil+VolumePreBoilPG)/2-VolumeMashTotal+GrainAbsorption+LauterTunDeadSpace,IF(fPartigyle="No",VolumePreBoil,VolumePreBoil+VolumePreBoilPG)/3-VolumeMashTotal+GrainAbsorption+LauterTunDeadSpace)>0,IF(f3Runnings="No",IF(fPartigyle="No",VolumePreBoil,VolumePreBoil+VolumePreBoilPG)/2-VolumeMashTotal+GrainAbsorption+LauterTunDeadSpace,IF(fPartigyle="No",VolumePreBoil,VolumePreBoil+VolumePreBoilPG)/3-VolumeMashTotal+GrainAbsorption+LauterTunDeadSpace),0)))))) -> 3.725 | AI8: Mash Out Volume
B9: Secondary Style Dropdown | D9: =VLOOKUP(StyleSecondary,STYLE_ATTRIBUTES,3,0) -> ∞ | E9: =VLOOKUP(StyleSecondary,STYLE_ATTRIBUTES,4,0) -> ∞ | F9: =VLOOKUP(StyleSecondary,STYLE_ATTRIBUTES,5,0) -> ∞ | G9: =VLOOKUP(StyleSecondary,STYLE_ATTRIBUTES,6,0) -> ∞ | H9: =VLOOKUP(StyleSecondary,STYLE_ATTRIBUTES,7,0) -> ∞ | J9: =VLOOKUP(StyleSecondary,STYLE_ATTRIBUTES,8,0) -> ∞ | K9: =VLOOKUP(StyleSecondary,STYLE_ATTRIBUTES,9,0) -> ∞ | L9: =VLOOKUP(StyleSecondary,STYLE_ATTRIBUTES,10,0) -> ∞ | M9: =VLOOKUP(StyleSecondary,STYLE_ATTRIBUTES,11,0) -> ∞ | N9: =VLOOKUP(StyleSecondary,STYLE_ATTRIBUTES,12,0) -> ∞ | O9: =VLOOKUP(StyleSecondary,STYLE_ATTRIBUTES,13,0) -> ∞ | Q9: =VLOOKUP(StyleSecondary,STYLE_ATTRIBUTES,14,0) -> ∞ | S9: =VLOOKUP(StyleSecondary,STYLE_ATTRIBUTES,15,0) -> ∞ | T9: =VLOOKUP(StyleSecondary,STYLE_ATTRIBUTES,16,0) -> ∞ | U9: =VLOOKUP(StyleSecondary,STYLE_ATTRIBUTES,17,0) -> ∞ | V9: =VLOOKUP(StyleSecondary,STYLE_ATTRIBUTES,18,0) -> ∞ | W9: =VLOOKUP(StyleSecondary,STYLE_ATTRIBUTES,19,0) -> ∞ | Z9: =VLOOKUP(StyleSecondary,STYLE_ATTRIBUTES,23,0) -> ∞ | AD9: Strike Water 1 Volume | AG9: =IF(TotalGrainWeight="","",IF(MashThickness="","",TotalGrainWeight*MashThickness/4)) -> 0 | AH9: =IF(TempInfusionFactor="","",IF(MashThickness="","",IF(TempMashStep1="","",IF(TempGrain="","",(TempInfusionFactor/MashThickness)*(TempMashStep1-TempGrain)+TempMashStep1+MashTunTempLoss)))) -> 171.9090909 | AI9: Strike Water Temperature ºF
B11: Fermentation Schedule | D11: Temp ºF | F11: Days | I11: Carbonation | R11: Measurements: Efficiency, Temp & Volume | AG11: Mash Effeciency, pH, Temperatures & Timing
B12: Primary Fermentation | I12: CO2 Volumes | R12: Total Runoff Volume | AE12: Mash Temp 1 ºF | AG12: Mash Step Time 1 | AJ12: 152 | AL12: Step Temperature ºF
B13: Diacetyl Rest | I13: Serving Temp ºF | R13: Total Runoff Gravity | AE13: Mash Temp 2 ºF | AG13: Mash Step Time 2 | AL13: Step Temperature ºF
B14: Cold Crash | I14: Beer Temperature ºF | N14: =MAX(D12:E16) -> 0 | R14: Mash Efficiency | Y14: =IF(GravityUnits=0,"",IF(VolumeRunoffMeasured="","",IF(GravityRunoffMeasured="","",(GravityRunoffMeasured-1)*1000*VolumeRunoffMeasured/GravityUnits))) ->  | AE14: Mash Temp 3 ºF | AG14: Mash Step Time 3 | AL14: Step Temperature ºF
B15: Secondary Conditioning | I15: Priming Sugar | N15: =IF(PrimingSugar="Priming Sugar ","grams",IF(VolumeFinal="","",IF(CO2Volumes="","",IF(VLOOKUP(PrimingSugar,Grains!A175:J187,10,0)="glucose",VolumeFinal*3.785*(CO2Volumes-VLOOKUP((BeerTemperature-32)*5/9,RESIDUAL_CO2,2,TRUE))/0.27027,VolumeFinal*3.785*(CO2Volumes-VLOOKUP((BeerTemperature-32)*5/9,RESIDUAL_CO2,2,TRUE))/0.286)))) -> grams | R15: Fermenter Volume | AE15: Kettle Volume | AG15: Mash Efficiency | AI15: 0.75 | AJ15: =IF(TotalGrainWeight="","",IF(MashThickness="","",IF(MashType="Infusion Mash",IF(MashSteps<2,TotalGrainWeight*(0.08+MashThickness/4),IF(MashSteps<3,IF(MashThickness2="","",TotalGrainWeight*(0.08+MashThickness2/4)),IF(MashThickness3="","",TotalGrainWeight*(0.08+MashThickness3/4)))),TotalGrainWeight*(0.08+MashThickness/4)))) -> 0 | AL15: Tun Space Required
B16: Aging (includes carbonating) | I16: %CO2 of Beer Gas | M16: 1 | N16: =IF(TempServing="","PSI",IF(CO2Volumes="","PSI",IF(BeerGasPercentage="",-16.6999-0.0101059*TempServing+0.00116512*TempServing^2+0.173354*TempServing*CO2Volumes+4.24267*CO2Volumes-0.0684226*CO2Volumes^2,(-16.6999-0.0101059*TempServing+0.00116512*TempServing^2+0.173354*TempServing*CO2Volumes+4.24267*CO2Volumes-0.0684226*CO2Volumes^2)/BeerGasPercentage))) -> PSI | R16: Brewhouse Efficiency | Y16: =IF(VolumeBeerFinalMeasured="","",IF(GravityUnits=0,"",IF(GravityMeasuredOriginal="","",(GravityMeasuredOriginal-1)*1000*VolumeBeerFinalMeasured/GravityUnits))) ->  | AE16: Final Beer Volume | AG16: Boil Time | AI16: 90 | AL16: Measured Mash pH
B18: Malt, Extract & Adjuncts | D18: Maltster | G18: Origin | J18: Pounds | K18: %Weight | M18: ºL / MCU | O18: Potential | S18: GU (Adj.) | U18: Late? | Y18: Hops | AG18: % AA | AH18: Ounces | AI18: Time | AK18: =IF(HopsMeasurement="Ounces","IBU","Ounces") -> IBU | AM18: Utilization | AR18: AGUPG | AS18: MCUMash | AT18: MCUPG1 | AU18: AWGUPG
D19: =IF(B19=""," ",VLOOKUP(B19,GRAINS_ATTRIBUTES,2,0)) ->  | G19: =IF(B19=""," ",VLOOKUP(B19,GRAINS_ATTRIBUTES,3,0)) ->  | K19: =IF(B19="","",IF(J19="","",IF(TotalGrainWeight=0,"",IF(U19="Mash",J19/TotalGrainWeight,"--")))) ->  | M19: =IF(B19="","",VLOOKUP(B19,GRAINS_ATTRIBUTES,4,0)) ->  | N19: =IF(J19="","",IF(B19="","",IF(VolumePostBoil="","",J19*M19/VolumePostBoil))) ->  | O19: =IF(B19=""," ",VLOOKUP(B19,GRAINS_ATTRIBUTES,6,0)) ->  | S19: =IF(B19="","",IF(J19="","",J19*((O19*1000)-1000))) ->  | T19: =IF(MashEfficiencyPredicted="","",IF(B19="","",IF(J19="","",IF(VLOOKUP(B19,GRAINS_ATTRIBUTES,9,0)="SUGARS",S19,IF(U19="Steep",0,S19*MashEfficiencyPredicted))))) ->  | U19: Mash | W19: =IF(T19="","",IF(U19="Mash",T19,0)) ->  | X19: =IF(T19="","",IF(U19="Skip",0,IF(U19="Yes",T19*ExtractGUFactor,T19))) ->  | AG19: =IF(Y19="","",IF(fHopsAging="Yes",IF(HopsTemperature="","",IF(VLOOKUP(Y19,HOPS_ATTRIBUTES,11,0)="","",IF(VLOOKUP(Y19,HOPS_ATTRIBUTES,10,0)="","",VLOOKUP(Y19,HOPS_ATTRIBUTES,2,0)*1/(EXP(VLOOKUP(VLOOKUP(Y19,HOPS_ATTRIBUTES,10,0)*100,Tables!$P$16:$Q$66,2,0)*VLOOKUP(ROUND((HopsTemperature-32)*5/9,0),Tables!$L$16:$N$65,3,0)*VLOOKUP(HopsStorage,Tables!$C$32:$J$34,8,0)*(BrewDate-VLOOKUP(Y19,HOPS_ATTRIBUTES,11,0))))))),VLOOKUP(Y19,HOPS_ATTRIBUTES,2,0))) ->  | AK19: =IF(AM19="","",IF(AH19="","",IF(AG19="","",IF(VolumePostBoil="","",IF(HopsMeasurement="Ounces",IF(fIBU="Tinseth",AH19*AG19*AM19*7490/((VolumePreBoil+VolumePostBoil)/2),AH19*AM19*AG19*7462/((VolumePreBoil+VolumePostBoil)/2)),IF(fIBU="Tinseth", ((VolumePreBoil+VolumePostBoil)/2)*AH19/(AG19*AM19*7490), ((VolumePreBoil+VolumePostBoil)/2)*AH19/(AM19*AG19*7462))))))) ->  | AM19: =IF(Y19="","",IF(AI19="","",IF(GravityPreBoil="","",IF(GravityEstimatedOriginal="","",IF(TimeBoil="","",IF(FWHFactor="","",IF(PelletHopFactor="","",IF(LeafHopFactor="","",IF(AI19="dry hop",0,IF(fIBU="Tinseth",((1-EXP(-0.04*IF(AI19="FWH",TimeBoil,AI19)))/4.15)*1.65*0.000125^(((GravityPreBoil+GravityEstimatedOriginal)/2)-1),18.11+13.86*TANH((AI19-31.32)/18.27)/100)*IF(AI19="FWH",FWHFactor,1)*IF(VLOOKUP(Y19,HOPS_ATTRIBUTES,8,0)="Pellet",PelletHopFactor,LeafHopFactor)))))))))) ->  | AR19: =IF(T19="","",IF(U19="Yes",T19,IF(U19="No",T19,0))) ->  | AS19: =IF(J19="","",IF(B19="","",IF(VolumePostBoil="","",IF(U19="Mash",J19*M19/VolumePostBoil,0)))) ->  | AT19: =IF(J19="","",IF(B19="","",IF(VolumePostBoil="","",IF(U19="Yes",J19*M19/VolumePostBoil,IF(U19="No",J19*M19/VolumePostBoil,0))))) ->  | AU19: =IF(T19="","",IF(U19="Skip",0,IF(U19="Mash",0,IF(U19="Yes",T19*ExtractGUFactor,T19)))) -> 
S20: =IF(B20="","",IF(J20="","",J20*((O20*1000)-1000))) ->  | U20: Mash | W20: =IF(T20="","",IF(U20="Mash",T20,0)) ->  | AG20: =IF(Y20="","",IF(fHopsAging="Yes",IF(HopsTemperature="","",IF(VLOOKUP(Y20,HOPS_ATTRIBUTES,11,0)="","",IF(VLOOKUP(Y20,HOPS_ATTRIBUTES,10,0)="","",VLOOKUP(Y20,HOPS_ATTRIBUTES,2,0)*1/(EXP(VLOOKUP(VLOOKUP(Y20,HOPS_ATTRIBUTES,10,0)*100,Tables!$P$16:$Q$66,2,0)*VLOOKUP(ROUND((HopsTemperature-32)*5/9,0),Tables!$L$16:$N$65,3,0)*VLOOKUP(HopsStorage,Tables!$C$32:$J$34,8,0)*(BrewDate-VLOOKUP(Y20,HOPS_ATTRIBUTES,11,0))))))),VLOOKUP(Y20,HOPS_ATTRIBUTES,2,0))) ->  | AR20: =IF(T20="","",IF(U20="Yes",T20,IF(U20="No",T20,0))) -> 
U21: Mash | AG21: =IF(Y21="","",IF(fHopsAging="Yes",IF(HopsTemperature="","",IF(VLOOKUP(Y21,HOPS_ATTRIBUTES,11,0)="","",IF(VLOOKUP(Y21,HOPS_ATTRIBUTES,10,0)="","",VLOOKUP(Y21,HOPS_ATTRIBUTES,2,0)*1/(EXP(VLOOKUP(VLOOKUP(Y21,HOPS_ATTRIBUTES,10,0)*100,Tables!$P$16:$Q$66,2,0)*VLOOKUP(ROUND((HopsTemperature-32)*5/9,0),Tables!$L$16:$N$65,3,0)*VLOOKUP(HopsStorage,Tables!$C$32:$J$34,8,0)*(BrewDate-VLOOKUP(Y21,HOPS_ATTRIBUTES,11,0))))))),VLOOKUP(Y21,HOPS_ATTRIBUTES,2,0))) -> 
U22: Mash | AG22: =IF(Y22="","",IF(fHopsAging="Yes",IF(HopsTemperature="","",IF(VLOOKUP(Y22,HOPS_ATTRIBUTES,11,0)="","",IF(VLOOKUP(Y22,HOPS_ATTRIBUTES,10,0)="","",VLOOKUP(Y22,HOPS_ATTRIBUTES,2,0)*1/(EXP(VLOOKUP(VLOOKUP(Y22,HOPS_ATTRIBUTES,10,0)*100,Tables!$P$16:$Q$66,2,0)*VLOOKUP(ROUND((HopsTemperature-32)*5/9,0),Tables!$L$16:$N$65,3,0)*VLOOKUP(HopsStorage,Tables!$C$32:$J$34,8,0)*(BrewDate-VLOOKUP(Y22,HOPS_ATTRIBUTES,11,0))))))),VLOOKUP(Y22,HOPS_ATTRIBUTES,2,0))) -> 
U23: Mash | AG23: =IF(Y23="","",IF(fHopsAging="Yes",IF(HopsTemperature="","",IF(VLOOKUP(Y23,HOPS_ATTRIBUTES,11,0)="","",IF(VLOOKUP(Y23,HOPS_ATTRIBUTES,10,0)="","",VLOOKUP(Y23,HOPS_ATTRIBUTES,2,0)*1/(EXP(VLOOKUP(VLOOKUP(Y23,HOPS_ATTRIBUTES,10,0)*100,Tables!$P$16:$Q$66,2,0)*VLOOKUP(ROUND((HopsTemperature-32)*5/9,0),Tables!$L$16:$N$65,3,0)*VLOOKUP(HopsStorage,Tables!$C$32:$J$34,8,0)*(BrewDate-VLOOKUP(Y23,HOPS_ATTRIBUTES,11,0))))))),VLOOKUP(Y23,HOPS_ATTRIBUTES,2,0))) -> 
U24: Mash | AG24: =IF(Y24="","",IF(fHopsAging="Yes",IF(HopsTemperature="","",IF(VLOOKUP(Y24,HOPS_ATTRIBUTES,11,0)="","",IF(VLOOKUP(Y24,HOPS_ATTRIBUTES,10,0)="","",VLOOKUP(Y24,HOPS_ATTRIBUTES,2,0)*1/(EXP(VLOOKUP(VLOOKUP(Y24,HOPS_ATTRIBUTES,10,0)*100,Tables!$P$16:$Q$66,2,0)*VLOOKUP(ROUND((HopsTemperature-32)*5/9,0),Tables!$L$16:$N$65,3,0)*VLOOKUP(HopsStorage,Tables!$C$32:$J$34,8,0)*(BrewDate-VLOOKUP(Y24,HOPS_ATTRIBUTES,11,0))))))),VLOOKUP(Y24,HOPS_ATTRIBUTES,2,0))) -> 
U25: Mash | AG25: =IF(Y25="","",IF(fHopsAging="Yes",IF(HopsTemperature="","",IF(VLOOKUP(Y25,HOPS_ATTRIBUTES,11,0)="","",IF(VLOOKUP(Y25,HOPS_ATTRIBUTES,10,0)="","",VLOOKUP(Y25,HOPS_ATTRIBUTES,2,0)*1/(EXP(VLOOKUP(VLOOKUP(Y25,HOPS_ATTRIBUTES,10,0)*100,Tables!$P$16:$Q$66,2,0)*VLOOKUP(ROUND((HopsTemperature-32)*5/9,0),Tables!$L$16:$N$65,3,0)*VLOOKUP(HopsStorage,Tables!$C$32:$J$34,8,0)*(BrewDate-VLOOKUP(Y25,HOPS_ATTRIBUTES,11,0))))))),VLOOKUP(Y25,HOPS_ATTRIBUTES,2,0))) ->  | AO25: Equation Factors
U26: Mash | AG26: =IF(Y26="","",IF(fHopsAging="Yes",IF(HopsTemperature="","",IF(VLOOKUP(Y26,HOPS_ATTRIBUTES,11,0)="","",IF(VLOOKUP(Y26,HOPS_ATTRIBUTES,10,0)="","",VLOOKUP(Y26,HOPS_ATTRIBUTES,2,0)*1/(EXP(VLOOKUP(VLOOKUP(Y26,HOPS_ATTRIBUTES,10,0)*100,Tables!$P$16:$Q$66,2,0)*VLOOKUP(ROUND((HopsTemperature-32)*5/9,0),Tables!$L$16:$N$65,3,0)*VLOOKUP(HopsStorage,Tables!$C$32:$J$34,8,0)*(BrewDate-VLOOKUP(Y26,HOPS_ATTRIBUTES,11,0))))))),VLOOKUP(Y26,HOPS_ATTRIBUTES,2,0))) ->  | AO26: 0.04 | AP26: Wort Contraction
U27: Mash | AG27: =IF(Y27="","",IF(fHopsAging="Yes",IF(HopsTemperature="","",IF(VLOOKUP(Y27,HOPS_ATTRIBUTES,11,0)="","",IF(VLOOKUP(Y27,HOPS_ATTRIBUTES,10,0)="","",VLOOKUP(Y27,HOPS_ATTRIBUTES,2,0)*1/(EXP(VLOOKUP(VLOOKUP(Y27,HOPS_ATTRIBUTES,10,0)*100,Tables!$P$16:$Q$66,2,0)*VLOOKUP(ROUND((HopsTemperature-32)*5/9,0),Tables!$L$16:$N$65,3,0)*VLOOKUP(HopsStorage,Tables!$C$32:$J$34,8,0)*(BrewDate-VLOOKUP(Y27,HOPS_ATTRIBUTES,11,0))))))),VLOOKUP(Y27,HOPS_ATTRIBUTES,2,0))) ->  | AO27: =IF(WortContraction="","",IF(VolumePostBoil="","",VolumePostBoil*WortContraction)) -> 0.225 | AP27: Contraction Losses
U28: Mash | AG28: =IF(Y28="","",IF(fHopsAging="Yes",IF(HopsTemperature="","",IF(VLOOKUP(Y28,HOPS_ATTRIBUTES,11,0)="","",IF(VLOOKUP(Y28,HOPS_ATTRIBUTES,10,0)="","",VLOOKUP(Y28,HOPS_ATTRIBUTES,2,0)*1/(EXP(VLOOKUP(VLOOKUP(Y28,HOPS_ATTRIBUTES,10,0)*100,Tables!$P$16:$Q$66,2,0)*VLOOKUP(ROUND((HopsTemperature-32)*5/9,0),Tables!$L$16:$N$65,3,0)*VLOOKUP(HopsStorage,Tables!$C$32:$J$34,8,0)*(BrewDate-VLOOKUP(Y28,HOPS_ATTRIBUTES,11,0))))))),VLOOKUP(Y28,HOPS_ATTRIBUTES,2,0))) ->  | AO28: 0.015 | AP28: Boil Off Rate
U29: Mash | AG29: =IF(Y29="","",IF(fHopsAging="Yes",IF(HopsTemperature="","",IF(VLOOKUP(Y29,HOPS_ATTRIBUTES,11,0)="","",IF(VLOOKUP(Y29,HOPS_ATTRIBUTES,10,0)="","",VLOOKUP(Y29,HOPS_ATTRIBUTES,2,0)*1/(EXP(VLOOKUP(VLOOKUP(Y29,HOPS_ATTRIBUTES,10,0)*100,Tables!$P$16:$Q$66,2,0)*VLOOKUP(ROUND((HopsTemperature-32)*5/9,0),Tables!$L$16:$N$65,3,0)*VLOOKUP(HopsStorage,Tables!$C$32:$J$34,8,0)*(BrewDate-VLOOKUP(Y29,HOPS_ATTRIBUTES,11,0))))))),VLOOKUP(Y29,HOPS_ATTRIBUTES,2,0))) ->  | AO29: 0.2 | AP29: Grain Factor
B30: Cost: | C30: =IF(B19="",0,J19*VLOOKUP(B19,Grains!$A$2:$L$188,8,0))+IF(B20="",0,J20*VLOOKUP(B20,Grains!$A$2:$L$188,8,0))+IF(B21="",0,J21*VLOOKUP(B21,Grains!$A$2:$L$188,8,0))+IF(B22="",0,J22*VLOOKUP(B22,Grains!$A$2:$L$188,8,0))+IF(B23="",0,J23*VLOOKUP(B23,Grains!$A$2:$L$188,8,0))+IF(B24="",0,J24*VLOOKUP(B24,Grains!$A$2:$L$188,8,0))+IF(B25="",0,J25*VLOOKUP(B25,Grains!$A$2:$L$188,8,0))+IF(B26="",0,J26*VLOOKUP(B26,Grains!$A$2:$L$188,8,0))+IF(B27="",0,J27*VLOOKUP(B27,Grains!$A$2:$L$188,8,0))+IF(B28="",0,J28*VLOOKUP(B28,Grains!$A$2:$L$188,8,0))+IF(B29="",0,J29*VLOOKUP(B29,Grains!$A$2:$L$188,8,0)) -> 0 | D30: =IF(fPartigyle="Yes","Parti-gyle Session Enabled","") ->  | J30: =IF(B19="",0,IF(U19="Mash",J19,0))+IF(B20="",0,IF(U20="Mash",J20,0))+IF(B21="",0,IF(U21="Mash",J21,0))+IF(B22="",0,IF(U22="Mash",J22,0))+IF(B23="",0,IF(U23="Mash",J23,0))+IF(B24="",0,IF(U24="Mash",J24,0))+IF(B25="",0,IF(U25="Mash",J25,0))+IF(B26="",0,IF(U26="Mash",J26,0))+IF(B27="",0,IF(U27="Mash",J27,0))+IF(B28="",0,IF(U28="Mash",J28,0))+IF(B29="",0,IF(U29="Mash",J29,0)) -> 0 | M30: =IF(fPartigyle="No",SUM(MCU),SUM(MCUPG1)+FirstBeerMCU) -> 0 | S30: =IF(SUM(GU)=0,"",SUM(GU)) ->  | T30: =IF(fPartigyle="No",IF(SUM(AGU)=0,"",SUM(AGU)),FirstBeerMashGU+SUM(AGUPG)) ->  | U30: =IF(fPartigyle="No",SUM(AWGU),GravityUnitsAdjusted+SUM(AWGUPG)) -> 0 | Y30: Cost: | AE30: =IF(HopsMeasurement="Ounces",IF(Y19="",0,AH19*VLOOKUP(Y19,Hops!$A$2:$J$124,9,0))+IF(Y20="",0,AH20*VLOOKUP(Y20,Hops!$A$2:$J$124,9,0))+IF(Y21="",0,AH21*VLOOKUP(Y21,Hops!$A$2:$J$124,9,0))+IF(Y22="",0,AH22*VLOOKUP(Y22,Hops!$A$2:$J$124,9,0))+IF(Y23="",0,AH23*VLOOKUP(Y23,Hops!$A$2:$J$124,9,0))+IF(Y24="",0,AH24*VLOOKUP(Y24,Hops!$A$2:$J$124,9,0))+IF(Y25="",0,AH25*VLOOKUP(Y25,Hops!$A$2:$J$124,9,0))+IF(Y26="",0,AH26*VLOOKUP(Y26,Hops!$A$2:$J$124,9,0))+IF(Y27="",0,AH27*VLOOKUP(Y27,Hops!$A$2:$J$124,9,0))+IF(Y28="",0,AH28*VLOOKUP(Y28,Hops!$A$2:$J$124,9,0))+IF(Y29="",0,AH29*VLOOKUP(Y29,Hops!$A$2:$J$124,9,0)),IF(Y19="",0,AK19*VLOOKUP(Y19,Hops!$A$2:$J$124,9,0))+IF(Y20="",0,AK20*VLOOKUP(Y20,Hops!$A$2:$J$124,9,0))+IF(Y21="",0,AK21*VLOOKUP(Y21,Hops!$A$2:$J$124,9,0))+IF(Y22="",0,AK22*VLOOKUP(Y22,Hops!$A$2:$J$124,9,0))+IF(Y23="",0,AK23*VLOOKUP(Y23,Hops!$A$2:$J$124,9,0))+IF(Y24="",0,AK24*VLOOKUP(Y24,Hops!$A$2:$J$124,9,0))+IF(Y25="",0,AK25*VLOOKUP(Y25,Hops!$A$2:$J$124,9,0))+IF(Y26="",0,AK26*VLOOKUP(Y26,Hops!$A$2:$J$124,9,0))+IF(Y27="",0,AK27*VLOOKUP(Y27,Hops!$A$2:$J$124,9,0))+IF(Y28="",0,AK28*VLOOKUP(Y28,Hops!$A$2:$J$124,9,0))+IF(Y29="",0,AK29*VLOOKUP(Y29,Hops!$A$2:$J$124,9,0))) -> 0 | AH30: =IF(SUM(OuncesorIBU)=0,"",SUM(OuncesorIBU)) ->  | AI30: =IF(HopsMeasurement="Ounces",IF(Y19="",0,IF(VLOOKUP(Y19,Hops!$A$2:$J$124,8,0)="Pellet",0,AH19))+IF(Y20="",0,IF(VLOOKUP(Y20,Hops!$A$2:$J$124,8,0)="Pellet",0,AH20))+IF(Y21="",0,IF(VLOOKUP(Y21,Hops!$A$2:$J$124,8,0)="Pellet",0,AH21))+IF(Y22="",0,IF(VLOOKUP(Y22,Hops!$A$2:$J$124,8,0)="Pellet",0,AH22))+IF(Y23="",0,IF(VLOOKUP(Y23,Hops!$A$2:$J$124,8,0)="Pellet",0,AH23))+IF(Y24="",0,IF(VLOOKUP(Y24,Hops!$A$2:$J$124,8,0)="Pellet",0,AH24))+IF(Y25="",0,IF(VLOOKUP(Y25,Hops!$A$2:$J$124,8,0)="Pellet",0,AH25))+IF(Y26="",0,IF(VLOOKUP(Y26,Hops!$A$2:$J$124,8,0)="Pellet",0,AH26))+IF(Y27="",0,IF(VLOOKUP(Y27,Hops!$A$2:$J$124,8,0)="Pellet",0,AH27))+IF(Y28="",0,IF(VLOOKUP(Y28,Hops!$A$2:$J$124,8,0)="Pellet",0,AH28))+IF(Y29="",0,IF(VLOOKUP(Y29,Hops!$A$2:$J$124,8,0)="Pellet",0,AH29)),IF(Y19="",0,IF(VLOOKUP(Y19,Hops!$A$2:$J$124,8,0)="Pellet",0,AK19))+IF(Y20="",0,IF(VLOOKUP(Y20,Hops!$A$2:$J$124,8,0)="Pellet",0,AK20))+IF(Y21="",0,IF(VLOOKUP(Y21,Hops!$A$2:$J$124,8,0)="Pellet",0,AK21))+IF(Y22="",0,IF(VLOOKUP(Y22,Hops!$A$2:$J$124,8,0)="Pellet",0,AK22))+IF(Y23="",0,IF(VLOOKUP(Y23,Hops!$A$2:$J$124,8,0)="Pellet",0,AK23))+IF(Y24="",0,IF(VLOOKUP(Y24,Hops!$A$2:$J$124,8,0)="Pellet",0,AK24))+IF(Y25="",0,IF(VLOOKUP(Y25,Hops!$A$2:$J$124,8,0)="Pellet",0,AK25))+IF(Y26="",0,IF(VLOOKUP(Y26,Hops!$A$2:$J$124,8,0)="Pellet",0,AK26))+IF(Y27="",0,IF(VLOOKUP(Y27,Hops!$A$2:$J$124,8,0)="Pellet",0,AK27))+IF(Y28="",0,IF(VLOOKUP(Y28,Hops!$A$2:$J$124,8,0)="Pellet",0,AK28))+IF(Y29="",0,IF(VLOOKUP(Y29,Hops!$A$2:$J$124,8,0)="Pellet",0,AK29))) -> 0 | AK30: =IF(SUM(IBUorOunces)=0,"",SUM(IBUorOunces)) ->  | AM30: Tinseth | AO30: =IF(GrainFactor="","",IF(TotalGrainWeight="","",TotalGrainWeight*GrainFactor)) -> 0 | AP30: Grain Absorption
AO31: 11.25 | AP31: HopAbsorptionFact.
B32: Yeast | D32: Temperature | F32: Attenuation | I32: Flocculation | L32: Styles & Notes | AL32: Name | AO32: =IF(AO31="",0,IF(LeafHopsOunces="",0,LeafHopsOunces*AO31/128)) -> 0 | AP32: Hops Absorbtion
D33: =IF(YeastStrain1="","",VLOOKUP(YeastStrain1,YEAST_ATTRIBUTES,3,0)) ->  | E33: =IF(YeastStrain1="","",VLOOKUP(YeastStrain1,YEAST_ATTRIBUTES,4,0)) ->  | F33: =IF(YeastStrain1="","",VLOOKUP(YeastStrain1,YEAST_ATTRIBUTES,5,0)) ->  | G33: =IF(YeastStrain1="","",VLOOKUP(YeastStrain1,YEAST_ATTRIBUTES,6,0)) ->  | I33: =IF(YeastStrain1="","",VLOOKUP(YeastStrain1,YEAST_ATTRIBUTES,7,0)) ->  | L33: =IF(YeastStrain1="","",VLOOKUP(YeastStrain1,YEAST_ATTRIBUTES,9,0)) ->  | AL33: =IF(YeastStrain1="","",VLOOKUP(YeastStrain1,YEAST_ATTRIBUTES,2,0)) ->  | AO33: 0.125 | AP33: LT Dead Space
D34: =IF(YeastStrain2="","",VLOOKUP(YeastStrain2,YEAST_ATTRIBUTES,3,0)) ->  | E34: =IF(YeastStrain2="","",VLOOKUP(YeastStrain2,YEAST_ATTRIBUTES,4,0)) ->  | F34: =IF(YeastStrain2="","",VLOOKUP(YeastStrain2,YEAST_ATTRIBUTES,5,0)) ->  | G34: =IF(YeastStrain2="","",VLOOKUP(YeastStrain2,YEAST_ATTRIBUTES,5,0)) ->  | I34: =IF(YeastStrain2="","",VLOOKUP(YeastStrain2,YEAST_ATTRIBUTES,7,0)) ->  | L34: =IF(YeastStrain2="","",VLOOKUP(YeastStrain2,YEAST_ATTRIBUTES,9,0)) ->  | AL34: =IF(YeastStrain2="","",VLOOKUP(YeastStrain2,YEAST_ATTRIBUTES,2,0)) ->  | AO34: 0.25 | AP34: Kettle Dead Space
B35: Ale | C35: Required Cell Count: | D35: =IF(PlatoEstimatedOriginal="","",IF(AleOrLager="Ale ",IF(PitchingRateAle="","",1000000*PitchingRateAle*VolumeFermentation*3785*PlatoEstimatedOriginal),IF(PitchingRateLager="","",1000000*PitchingRateLager*VolumeFermentation*3785*PlatoEstimatedOriginal))) ->  | G35: Yeast Preparation: | L35: Stirplate Starter | T35: # of Packages: | AC35: Starter Volume (mL/vials): | AF35: =IF(RequiredCellCount="","",RequiredCellCount/(VLOOKUP(YeastPreparation,Tables!$C$15:$F$20,4,0)*1000000)) ->  | AI35: Dry Yeast (grams): | AM35: =IF(RequiredCellCount="","",RequiredCellCount/(CellsPerDryGram*1000000000)) ->  | AO35: Infusion Mash
B36: Cost: | C36: =IF(YeastStrain1="",0,YeastPackages/2*VLOOKUP(YeastStrain1,Yeast!$A$2:$L$168,12,0))+IF(YeastStrain2="",IF(YeastStrain1="",0,YeastPackages/2*VLOOKUP(YeastStrain1,Yeast!$A$2:$L$168,12,0)),YeastPackages/2*VLOOKUP(YeastStrain2,Yeast!$A$2:$L$168,12,0)) -> 0 | AO36: 1 | AP36: # of Mash Steps
AO37: No | AP37: 3 Runnings?
B38: Notes | AO38: 70 | AP38: Grain Temp
AO39: 5 | AP39: Temp Loss to Tun
AO40: 0.2 | AP40: InfusionTempFactor
AO41: 200 | AP41: =IF(MashType="Infusion Mash","Infusion Temperature",IF(MashType="Decoction Mash","Decoction Temp","Factor Not Used")) -> Infusion Temperature
AO42: 170 | AP42: Mash Out Temp
AO43: 1.1 | AP43: Mash Thickness
AO44: =IF(MashType="Infusion Mash",IF(MashSteps<2,"-",IF(TotalGrainWeight="","",IF(MashThickness="","",IF(VolumeStrikeWater2="","",((MashThickness*TotalGrainWeight)+4*VolumeStrikeWater2)/TotalGrainWeight)))),MashThickness) -> - | AP44: Mash 2 Thickness
AO45: =IF(MashType="Infusion Mash",IF(MashSteps<3,"-",IF(TotalGrainWeight="","",IF(MashThickness2="","",IF(VolumeStrikeWater3="","",((MashThickness2*TotalGrainWeight)+4*VolumeStrikeWater3)/TotalGrainWeight)))),MashThickness) -> - | AP45: Mash 3 Thickness
AO46: =IF(VolumeStrikeWater1="","",IF(MashType="Infusion Mash",IF(MashSteps<2,VolumeStrikeWater1,IF(VolumeStrikeWater2="","",IF(MashSteps<3,VolumeStrikeWater1+VolumeStrikeWater2,IF(VolumeStrikeWater3="","",VolumeStrikeWater1+VolumeStrikeWater2+VolumeStrikeWater3)))),VolumeStrikeWater1)) -> 0 | AP46: Total Mash Volume
B47: Mash Water Chemistry Adjustments - Replicating Salt Profiles and Controlling Mash pH through Residual Alkalinity | AO47: =IF(GravityRunoffMeasured="",IF(GravityUnitsWeightedAdjusted="","",IF(VolumePreBoil="","",((GravityUnitsWeightedAdjusted/VolumePreBoil)+1000)/1000)),GravityRunoffMeasured) -> 1 | AP47: Pre-Boil Gravity
B48: Source | C48: Water Attributes | G48: Target | J48: Diluted | L48: Final | S48: Added | W48: Chalk CaCO3 | AF48: =IF(RAFinal="","",IF(RATarget="","",IF(RAFinal>RATargetHigh,0,""))) ->  | AH48: Salt & Acid Additions | AO48: 1.1 | AP48: FWH Adjustment
B49: =Water!D4 -> 6.7 | C49: Calcium (ppm) (50-150) | J49: =IF(CalciumSource="","",IF(DilutionPercentage="",CalciumSource,(1-DilutionPercentage)*CalciumSource)) -> 6.7 | L49: =IF(CalciumDiluted="","",CalciumDiluted+CalciumAdded) -> 6.7 | N49: =IF(N48="","",HLOOKUP($N$48,Water!$E$1:$V$14,4,0)) ->  | S49: =IF(VolumeMashTotal="",0,IF(VolumeMashTotal=0,0,(ChalkAddition*105.89+GypsumAddition*60+CalciumChlorideAddition*72)/VolumeMashTotal)) -> 0 | W49: Gypsum CaSO4*2H2O | AF49: =IF(VolumeMashTotal="","",IF(RAFinal="","",IF(RATargetHigh="","",IF(VolumeMashTotal*(RAFinal-RATargetHigh)*1.4/60>0,VolumeMashTotal*(RAFinal-RATargetHigh)*1.4/60,"")))) ->  | AH49: Conc. % | AI49: Used | AK49: Estimated | AM49: Acid Type | AO49: 1 | AP49: Leaf Hop Factor
B50: =Water!D7 -> 2 | C50: Magnesium (ppm) (10-30) | J50: =IF(MagnesiumSource="","",IF(DilutionPercentage="",MagnesiumSource,(1-DilutionPercentage)*MagnesiumSource)) -> 2 | L50: =IF(MagnesiumDiluted="","",MagnesiumDiluted+MagnesiumAdded) -> 2 | N50: =IF(N48="","",HLOOKUP($N$48,Water!$E$1:$V$14,7,0)) ->  | S50: =IF(VolumeMashTotal="",0,IF(VolumeMashTotal=0,0,EpsomSaltAddition*24.6/VolumeMashTotal)) -> 0 | W50: Calcium Chloride CaCl2*2H2O | AF50: =IF(VolumeMashTotal="","",IF(RAFinal="","",IF(RATargetHigh="","",IF(VolumeMashTotal*(RAFinal-RATargetHigh)*1.4/60>0,VolumeMashTotal*(RAFinal-RATargetHigh)*1.4/72,"")))) ->  | AH50: 0.37 | AK50: =IF(HydrochloricConcentration="","",IF(RAFinal>RATargetHigh,3.785*VolumeMashTotal*MissingAdditionalEffectiveHardnessHigh/50/((13.927*(HydrochloricConcentration)^2)+(27.319*HydrochloricConcentration)),0)) -> 0 | AM50: Hydrochloric | AO50: 0.92 | AP50: Pellet Hop Factor
B51: =IF(C51="Bicarbonate (ppm)",Water!D14,Water!D2) -> 13.15 | C51: Alkalinity as CaCO3 | J51: =IF(AlkalinitySource="","",IF(DilutionPercentage="",AlkalinitySource,(1-DilutionPercentage)*AlkalinitySource)) -> 13.15 | L51: =IF(AlkalinityDiluted="","",IF(AlkalinityType="Bicarbonate (ppm)", 50/61*AlkalinityDiluted+AlkalinityAdded,AlkalinityDiluted+AlkalinityAdded)) -> 13.15 | N51: =IF(N48="","",IF(C51="Bicarbonate (ppm)",HLOOKUP($N$48,Water!$E$1:$V$14,14,0),HLOOKUP($N$48,Water!$E$1:$V$14,2,0))) ->  | S51: =BicarbontesAdded*50/61 -> 0 | W51: Epsom Salt MgSO4*7H2O | AF51: =IF(MagnesiumFinal>50,0,IF(VolumeMashTotal="","",IF(MagnesiumFinal="","",IF(VolumeMashTotal*(10-MagnesiumFinal)/24.6>0,VolumeMashTotal*(10-MagnesiumFinal)/24.6,"")))) ->  | AH51: 0.88 | AK51: =IF(LacticConcentration="","",IF(RAFinal>RATargetHigh,0.88/(LacticConcentration)*3.785*(LacticConcentration)*VolumeMashTotal/50/11.8,0)) -> 0 | AM51: Lactic | AO51: No | AP51: Use Hops Aging
B52: =Water!D14 -> 16 | C52: Sodium (ppm) (0-150) | J52: =IF(SodiumSource="","",IF(DilutionPercentage="",SodiumSource,(1-DilutionPercentage)*SodiumSource)) -> 16 | L52: =IF(SodiumDiluted="","",SodiumDiluted+SodiumAdded) -> 16 | N52: =IF(N48="","",HLOOKUP($N$48,Water!$E$1:$V$14,8,0)) ->  | S52: =IF(VolumeMashTotal="",0,IF(VolumeMashTotal=0,0,(BakingSodaAddition*72.3/VolumeMashTotal)+(TableSaltAddition*104/VolumeMashTotal))) -> 0 | W52: Baking Soda NaHCO3 | AF52: =IF(RAFinal="","",IF(RATarget="","",IF(RAFinal>RATargetHigh,0,""))) ->  | AH52: acid additions are in mL | AO52: Sealed in barrier, no O2
B53: =Water!D5 -> 14 | C53: Chloride (ppm) (0-250) | J53: =IF(ChlorideSource="","",IF(DilutionPercentage="",ChlorideSource,(1-DilutionPercentage)*ChlorideSource)) -> 14 | L53: =IF(ChlorideDiluted="","",IF(VolumeMashTotal="","",IF(HydrochloricUsed="",ChlorideDiluted+ChlorideAdded,ChlorideDiluted+ChlorideAdded+(HydrochloricUsed*12*HydrochloricConcentration/0.37*35.4/(VolumeMashTotal*3.785))))) -> 14 | N53: =IF(N48="","",HLOOKUP($N$48,Water!$E$1:$V$14,5,0)) ->  | S53: =IF(VolumeMashTotal="",0,IF(VolumeMashTotal=0,0,(160*TableSaltAddition/VolumeMashTotal)+(CalciumChlorideAddition*127.47/VolumeMashTotal))) -> 0 | W53: Table Salt NaCl | AF53: =IF(SodiumFinal>150,0,IF(ChlorideFinal>250,0,"")) ->  | AH53: salt additions are in grams | AO53: 20 | AP53: Hops Temperature
B54: =Water!D12 -> 5 | C54: Sulfate (ppm) (bitter 50-150, 150-350 very bitter) | J54: =IF(SulfateSource="","",IF(DilutionPercentage="",SulfateSource,(1-DilutionPercentage)*SulfateSource)) -> 5 | L54: =IF(SulfateDiluted="","",SulfateDiluted+SulfateAdded) -> 5 | N54: =IF(N48="","",HLOOKUP($N$48,Water!$E$1:$V$14,12,0)) ->  | S54: =IF(VolumeMashTotal="",0,IF(VolumeMashTotal=0,0,(GypsumAddition*147.4+EpsomSaltAddition*103)/VolumeMashTotal)) -> 0 | U54: =IF(VolumeMashTotal="",0,IF(VolumeMashTotal=0,0,(ChalkAddition*158+BakingSodaAddition*191.88)/VolumeMashTotal)) -> 0 | W54: Added Bicarbonates HCO3 | AF54: =CONCATENATE(IF(MagnesiumFinal<10,"Add some epsom salt for magnesium.",IF(MagnesiumFinal>50,"High magnesium might cause sour-bitter taste, dilute.",""))," ",IF(CalciumFinal<50,"Add gypsum or calcium chloride to assist mash enzymes but watch Cl/SO4 balance, or use chalk if pH is low.",IF(CalciumFinal>150,"Excessive calcium, dilute.",""))," ",IF(SulfateFinal>750,"Sulfate far too high, reduce gypsum, epsom or dilute.",IF(SulfateFinal>400,"High sulfate may cause astringincy, reduce gypsum, epsom or dilute.",""))," ",IF(SodiumFinal>200,"Sodium too high, reduce baking soda, table salt or dilute.","")," ",IF(ChlorideFinal>300,"Chloride too high, reduce table salt, calcium chloride or dilute.","")) -> Add some epsom salt for magnesium. Add gypsum or calcium chloride to assist mash enzymes but watch Cl/SO4 balance, or use chalk if pH is low. | AO54: 0.2 | AP54: Extract GU Factor
B55: =Water!D13 -> 7.85 | C55: Water pH | G55: Distilled Dilution: | K55: 0 | L55: =IF(AlkalinityFinal="","",IF(IF(AlkalinityType="Bicarbonate (ppm)",AlkalinityFinal,61*AlkalinityFinal/50)>250,CONCATENATE("High bicarbonates should be diluted."," ",ROUND((1-(250/AlkalinityFinal))*100,2),"%"),"")) ->  | U55: =(CalciumAdded/1.4)+(MagnesiumAdded/1.7) -> 0 | W55: Contributed Hardness | AO55: 60 | AP55: Preparation Time
B56: =IF(CalciumSource="","",IF(MagnesiumSource="","",(CalciumSource/1.4)+(MagnesiumSource/1.7))) -> 5.962184874 | C56: Effective Hardness | G56: =IF(CalciumTarget="","",IF(MagnesiumTarget="","",(CalciumTarget/1.4)+(MagnesiumTarget/1.7))) ->  | J56: =IF(CalciumDiluted="","",IF(MagnesiumDiluted="","",(CalciumDiluted/1.4)+(MagnesiumDiluted/1.7))) -> 5.962184874 | L56: =IF(CalciumFinal="","",IF(MagnesiumFinal="","",(CalciumFinal/1.4)+(MagnesiumFinal/1.7))) -> 5.962184874 | N56: =IF(CalciumCity="","",IF(MagnesiumCity="","",(CalciumCity/1.4)+(MagnesiumCity/1.7))) ->  | S56: =IF(CalciumAdded="","",IF(MagnesiumAdded="","",(CalciumAdded/1.4)+(MagnesiumAdded/1.7))) -> 0 | U56: =IF(TotalAdditionalRANeededLow=0,0,IF(TotalAdditionalRANeededLow="","",TotalAdditionalRANeededLow-RAAdded)) ->  | W56: (low) Missing Additional Residual Alkalinity (high) | AI56: =IF(TotalAdditionalRANeedeHigh=0,0,IF(TotalAdditionalRANeedeHigh="","",TotalAdditionalRANeedeHigh-RAAdded)) ->  | AJ56: =IF(RATargetHigh="","",IF(RAFinal="","",IF(RAFinal>RATargetHigh,CONCATENATE("Mash pH too high. Lower with calcium chloride or gypsum. Do not use chalk even if calcium levels are low. Gypsum is better for bitter beers, calcium chloride for malty beers."),IF(RAFinal<RATargetLow,"Mash pH too low. Use baking soda and chalk additions to adjust, or reduce gypsum or calcium chloride. Watch the calcium and effective hardness when adding chalk, and the sodium levels from baking soda.","Mash pH within range for target SRM.")))) ->  | AO56: 25 | AP56: Milling Time
B57: =IF(AlkalinitySource="","",IF(EffectiveHardnessSource="","",IF(AlkalinityType="Bicarbonate (ppm)",(AlkalinitySource*50/61)-EffectiveHardnessSource,AlkalinitySource-EffectiveHardnessSource))) -> 7.187815126 | C57: Residual Alkalinity as CaCO3 | G57: =IF(AlkalinityTarget="","",IF(EffectiveHardnessTarget="","",IF(AlkalinityType="Bicarbonate (ppm)",(AlkalinityTarget*50/61)-EffectiveHardnessTarget,AlkalinityTarget-EffectiveHardnessTarget))) ->  | J57: =IF(AlkalinityDiluted="","",IF(EffectiveHardnessDiluted="","",IF(AlkalinityType="Bicarbonate (ppm)",(AlkalinityDiluted*50/61)-EffectiveHardnessDiluted,AlkalinityDiluted-EffectiveHardnessDiluted))) -> 7.187815126 | L57: =IF(AlkalinityFinal="","",IF(EffectiveHardnessFinal="","",IF(AlkalinityType="Bicarbonate (ppm)",(AlkalinityFinal*50/61)-EffectiveHardnessFinal,AlkalinityFinal-EffectiveHardnessFinal))) -> 7.187815126 | N57: =IF(AlkalinityCity="","",IF(EffectiveHardnessCity="","",IF(AlkalinityType="Bicarbonate (ppm)",(AlkalinityCity*50/61)-EffectiveHardnessCity,AlkalinityCity-EffectiveHardnessCity))) ->  | S57: =IF(AlkalinityAdded="","",IF(EffectiveHardnessAdded="","",IF(AlkalinityType="Bicarbonate (ppm)",(AlkalinityAdded*50/61)-EffectiveHardnessAdded,AlkalinityAdded-EffectiveHardnessAdded))) -> 0 | U57: =IF(RADiluted="","",IF(RATargetLow="","",IF(RADiluted<RATargetLow,RATargetLow-RADiluted,0))) ->  | W57: (low) Total Additional Residual Alkalinity Needed (high) | AI57: =IF(RADiluted="","",IF(RATargetHigh="","",IF(RADiluted<RATargetHigh,RATargetHigh-RADiluted,0))) ->  | AO57: 60 | AP57: Strike Heating Time
B58: =IF(RASource="","",IF(RASource<-69,0,RASource*0.082+5.2)) -> 5.78940084 | C58: Estimated Low SRM | G58: =IF(RATarget="","",IF(RATarget<-69,0,RATarget*0.082+5.2)) ->  | J58: =IF(RADiluted="","",IF(RADiluted<-69,0,RADiluted*0.082+5.2)) -> 5.78940084 | L58: =IF(RAFinal="","",IF(RAFinal<-69,0,RAFinal*0.082+5.2)) -> 5.78940084 | N58: =IF(RACity="","",IF(RACity<-69,0,RACity*0.082+5.2)) ->  | S58: =IF(CSBalanceFinal="Very Malty","Add gypsum or epsom salt for a more bitter balance.",IF(CSBalanceFinal="Malty","Add gypsum or epsom salt for a more bitter balance.",IF(CSBalanceFinal="Bitter","Add calcium chloride for a more malty balance.",IF(CSBalanceFinal="Very Bitter","Add calcium chloride or table salt for a more malty balance.","CaCl2 or NaCL for malty, for bitter MgSO4 or CaSO4")))) -> Add gypsum or epsom salt for a more bitter balance. | U58: =IF(TotalEffectiveHardnessNeededLow=0,0,IF(TotalEffectiveHardnessNeededLow="","",TotalEffectiveHardnessNeededLow-EffectiveHardnessAdded)) ->  | W58: (low) Missing Additional Effective Hardness (high) | AI58: =IF(TotalEffectiveHardnessNeededHigh=0,0,IF(TotalEffectiveHardnessNeededHigh="","",TotalEffectiveHardnessNeededHigh-EffectiveHardnessAdded)) ->  | AO58: 15 | AP58: Dough In Time
B59: =IF(RASource="","",IF(RASource<-128,0,(RASource+122.4)/12.2)) -> 10.62195206 | C59: Estimated High SRM | G59: =IF(RATarget="","",IF(RATarget<-128,0,(RATarget+122.4)/12.2)) ->  | J59: =IF(RADiluted="","",IF(RADiluted<-128,0,(RADiluted+122.4)/12.2)) -> 10.62195206 | L59: =IF(RAFinal="","",IF(RAFinal<-128,0,(RAFinal+122.4)/12.2)) -> 10.62195206 | N59: =IF(RACity="","",IF(RACity<-128,0,(RACity+122.4)/12.2)) ->  | U59: =IF(RADiluted="","",IF(EffectiveHardnessDiluted="","",IF(AlkalinityType="","",IF(AlkalinitySource="","",IF(RATargetLow="","",IF(RADiluted>EffectiveHardnessDiluted,IF(AlkalinityType="Bicarbonate (ppm)",50*AlkalinitySource/61,AlkalinityDiluted)-RATargetLow-EffectiveHardnessDiluted,0)))))) ->  | W59: (low) Total Additional Effective Hardness Needed (high) | AI59: =IF(RADiluted="","",IF(EffectiveHardnessDiluted="","",IF(AlkalinityType="","",IF(AlkalinitySource="","",IF(RATargetHigh="","",IF(RADiluted>EffectiveHardnessDiluted,IF(AlkalinityType="Bicarbonate (ppm)",50*AlkalinitySource/61,AlkalinityDiluted)-RATargetHigh-EffectiveHardnessDiluted,0)))))) ->  | AO59: 60 | AP59: Sparge Time
B60: =IF(ChlorideSource="","",IF(SulfateSource="","",VLOOKUP(ChlorideSource/SulfateSource,Tables!$C$25:$G$29,3,TRUE))) -> Very Malty | C60: Chloride to Sulfate Balance | G60: =IF(ChlorideTarget="","",IF(SulfateTarget="","",VLOOKUP(ChlorideTarget/SulfateTarget,Tables!$C$25:$G$29,3,TRUE))) ->  | J60: =IF(ChlorideDiluted="","",IF(SulfateDiluted="","",VLOOKUP(ChlorideDiluted/SulfateDiluted,Tables!$C$25:$G$29,3,TRUE))) -> Very Malty | L60: =IF(ChlorideFinal="","",IF(SulfateFinal="","",VLOOKUP(ChlorideFinal/SulfateFinal,Tables!$C$25:$G$29,3,TRUE))) -> Very Malty | N60: =IF(ChlorideCity="","",IF(SulateCity="","",VLOOKUP(ChlorideCity/SulateCity,Tables!$C$25:$G$29,3,TRUE))) ->  | U60: =IF(fPartigyle="No",IF(TargetSRM="","",12.2*(1.4922*(SUM(MCUMash)^0.6859))-122.4),12.2*(1.4922*(TotalMashMCU^0.6859))-122.4) ->  | W60: Target Low RA | AF60: Target High RA | AI60: =IF(fPartigyle="No",IF(TargetSRM="","",((1.4922*(SUM(MCUMash)^0.6859))-5.2)*12.2),((1.4922*(TotalMashMCU^0.6859))-5.2)*12.2) ->  | AP60: Sparge 2 Time
AP61: Sparge 3 Time
AO62: 20 | AP62: Chill Time
B63: Notes | AO63: 15 | AP63: Transfer Time
AO64: 30 | AP64: Aeration Time
AO65: 90 | AP65: Cleaning Time
AO66: 100 | AP66: Yeast Cells per Vial (billions of cells)
AO68: 0.75 | AP68: Ale Pitch Rate
AO69: 1.5 | AP69: Lager Pitch Rate
AO70: 20 | AP70: Dry Yeast Cell Count (billions/gram)
B72: Parti-gyle Second Runnings Beer | AO72: Oz | AP72: Hops Ounces/IBU
B73: Recipe | D73: Cost | F73: Fermenter Clear | J73: Drink Date | L73: Packaged Volume | R73: =IF(VolumeFermentationPG="","",VolumeFermentationPG-FermenterLossesPG) ->  | T73: =IF(fPartigyle="No","",IF(PartigyleRatio="1:1",VolumePreBoil,VolumePreBoil*2)) ->  | U73: Pre Boil Volume | AC73: Parti-gyle Volume Ratio | AG73: 1:2 | AH73: No | AI73: Enable Parti-gyle Brewing? | AO73: SG | AP73: Gravity Mode
D74: =CostGrains+CostHops+CostYeast+CostGrainsPG+CostHopsPG+CostYeastPG -> 0 | F74: =IF(BrewDate="","",IF(SUM(FERMENTATION_DAYS_PG)=0,"",BrewDate+SUM(FERMENTATION_DAYS_PG))) ->  | J74: =IF(BrewDate="","",IF(SUM(FERMENTATION_DAYS_PG)=0,"",BrewDate+SUM(FERMENTATION_DAYS_PG)+1)) ->  | L74: Fermentation Volume | R74: =IF(VolumePostBoilPG="","",VolumePostBoilPG-KettleDeadSpacePG-KettleTransferLossesPG-HopsAbsorptionPG) ->  | T74: =IF(VolumePreBoilPG="","",IF(BoilOffRatePG="","",IF(TimeBoilPG="","",IF(ContractionLossPG="","",VolumePreBoilPG-(TimeBoilPG*BoilOffRatePG)-ContractionLossPG)))) ->  | U74: Post Boil Volume | AC74: Carbonation | AH74: Temp ºF | AI74: Days | AJ74: Fermentation
B75: Style & Beer Properties | D75: OG | F75: FG | H75: OG ºP | K75: FG ºP | M75: ABV% | O75: IBU | S75: ºSRM | U75: CO2 | W75: BUGU/BV | AC75: CO2 Volumes | AJ75: Primary Fermentation | AO75: Parti-gyle Factors
B76: Primary Style Dropdown | D76: =VLOOKUP(StylePrimaryPG,Styles!$A$2:$S$268,3,0) -> ∞ | E76: =VLOOKUP(StylePrimaryPG,Styles!$A$2:$S$268,4,0) -> ∞ | F76: =VLOOKUP(StylePrimaryPG,Styles!$A$2:$S$268,5,0) -> ∞ | G76: =VLOOKUP(StylePrimaryPG,Styles!$A$2:$S$268,6,0) -> ∞ | H76: =IF(D76="","",IF(D76="∞","∞",(668.72*D76)-463.37-(205.347*D76^2))) -> ∞ | J76: =IF(E76="","",IF(E76="∞","∞",(668.72*E76)-463.37-(205.347*E76^2))) -> ∞ | K76: =IF(F76="","",IF(F76="∞","∞",(668.72*F76)-463.37-(205.347*F76^2))) -> ∞ | L76: =IF(G76="","",IF(G76="∞","∞",(668.72*G76)-463.37-(205.347*G76^2))) -> ∞ | M76: =VLOOKUP(StylePrimaryPG,Styles!$A$2:$S$268,11,0) -> ∞ | N76: =VLOOKUP(StylePrimaryPG,Styles!$A$2:$S$268,12,0) -> ∞ | O76: =VLOOKUP(StylePrimaryPG,Styles!$A$2:$S$268,13,0) -> ∞ | Q76: =VLOOKUP(StylePrimaryPG,Styles!$A$2:$S$268,14,0) -> ∞ | S76: =VLOOKUP(StylePrimaryPG,Styles!$A$2:$S$268,15,0) -> ∞ | T76: =VLOOKUP(StylePrimaryPG,Styles!$A$2:$S$268,16,0) -> ∞ | U76: =VLOOKUP(StylePrimaryPG,Styles!$A$2:$S$268,17,0) -> ∞ | V76: =VLOOKUP(StylePrimaryPG,Styles!$A$2:$S$268,18,0) -> ∞ | W76: =VLOOKUP(StylePrimaryPG,Styles!$A$2:$S$268,19,0) -> ∞ | Z76: =VLOOKUP(StylePrimaryPG,Styles!$A$2:$W$268,23,0) -> ∞ | AC76: Serving Temp ºF | AJ76: Diacetyl Rest | AO76: =IF(VolumeStrikeWater1="",0,VolumeStrikeWater1)+IF(VolumeStrikeWater2="",0,IF(VolumeStrikeWater2="-",0,IF(MashType="Infusion Mash",VolumeStrikeWater2,0)))+IF(VolumeMashOut="",0,IF(MashType="Infusion Mash",VolumeMashOut,0))+IF(VolumeSpargeWater1="",0,VolumeSpargeWater1)+IF(VolumeSpargeWater2="",0,IF(VolumeSpargeWater2="-",0,VolumeSpargeWater2))-IF(GrainAbsorption="",0,GrainAbsorption)-IF(LauterTunDeadSpace="",0,) -> 7.2 | AP76: Total Runoff Volume
B77: Estimated | D77: =IF(GravityUnitsAdjustedPG="","",IF(VolumePostBoilPG="","",IF(GravityUnitsAdjustedPG=0,"",((GravityUnitsAdjustedPG/VolumePostBoilPG)+1000)/1000))) ->  | F77: =IF(GravityEstimatedOriginalPG="","",IF(YeastStrain2PG="",IF(YeastStrain1PG="","",((GravityEstimatedOriginalPG*1000-1000)*(((100-(YeastAttenuation1LPG+YeastAttenuation1HPG)*50)/100))+1000)/1000),IF(YeastStrain1PG="",((GravityEstimatedOriginalPG*1000-1000)*(((100-(YeastAttenuation2LPG+YeastAttenuation2HPG)*50)/100))+1000)/1000,IF(YeastAttenuation2LPG+YeastAttenuation2HPG>YeastAttenuation1LPG+YeastAttenuation1HPG, ((GravityEstimatedOriginalPG*1000-1000)*(((100-(YeastAttenuation2LPG+YeastAttenuation2HPG)*50)/100))+1000)/1000, ((GravityEstimatedOriginalPG*1000-1000)*(((100-(YeastAttenuation1LPG+YeastAttenuation1HPG)*50)/100))+1000)/1000) ))) ->  | H77: =IF(GravityEstimatedOriginalPG="","",(668.72*GravityEstimatedOriginalPG)-463.37-(205.347*GravityEstimatedOriginalPG^2)) ->  | K77: =IF(GravityEstimatedFinalPG="","",(668.72*GravityEstimatedFinalPG)-463.37-(205.347*GravityEstimatedFinalPG^2)) ->  | M77: =IF(GravityEstimatedFinalPG="","",IF(GravityEstimatedOriginalPG="","",(GravityEstimatedOriginalPG-GravityEstimatedFinalPG)/0.806)) ->  | O77: =IF(HopsMeasurementPG="Ounces",AK92,AH92) ->  | S77: =IF(FinalMCUPG="","",IF(FinalMCUPG=0,"",1.4922*(FinalMCUPG^0.6859))) ->  | U77: =IF(CO2VolumesPG="","",CO2VolumesPG) ->  | W77: =IF(TotalIBUPG="","",IF(GravityEstimatedOriginalPG="","",TotalIBUPG/((GravityEstimatedOriginalPG-1)*1000))) ->  | Z77: =IF(TotalIBUPG="","",IF(GravityEstimatedFinalPG="","",IF(GravityEstimatedOriginalPG="","",0.8*TotalIBUPG/((820*(GravityEstimatedFinalPG-1))+(180*(GravityEstimatedOriginalPG-1)))))) ->  | AC77: Beer Temperature ºF | AF77: =MAX(AH75:AH79) -> 0 | AJ77: Cold Crash | AO77: =SUM(MCUMash) -> 0 | AP77: Total Mash Color
B78: Measured | H78: =IF(GravityMeasuredOriginalPG="","",(668.72*GravityMeasuredOriginalPG)-463.37-(205.347*GravityMeasuredOriginalPG^2)) ->  | K78: =IF(GravityMeasuredFinalPG="","",(668.72*GravityMeasuredFinalPG)-463.37-(205.347*GravityMeasuredFinalPG^2)) ->  | M78: =IF(GravityMeasuredOriginalPG="","",IF(GravityMeasuredFinalPG="","",(GravityMeasuredOriginalPG-GravityMeasuredFinalPG)/0.806)) ->  | O78: Calories per 12oz: | U78: =IF(ABVPG="","",IF(GravityMeasuredFinalPG="","",IF(PlatoMeasuredOriginalPG="","",IF(PlatoMeasuredFinalPG="","",((100*6.9*((0.79*ABVPG)/GravityMeasuredFinalPG))+4*(((0.1808*PlatoMeasuredOriginalPG)+(0.8192*PlatoMeasuredFinalPG))-0.1))*GravityMeasuredFinalPG*3.55)))) ->  | W78: =IF(TotalIBU="","",IF(GravityMeasuredOriginal="","",TotalIBU/((GravityMeasuredOriginal-1)*1000))) ->  | Z78: =IF(TotalIBU="","",IF(GravityMeasuredFinal="","",IF(GravityMeasuredOriginal="","",0.8*TotalIBU/((820*(GravityMeasuredFinal-1))+(180*(GravityMeasuredOriginal-1)))))) ->  | AC78: Priming Sugar | AF78: =IF(PrimingSugarPG="Priming Sugar ","grams",IF(VolumeFinalPG="","",IF(CO2VolumesPG="","",IF(VLOOKUP(PrimingSugarPG,Grains!U210:AD221,10,0)="glucose",VolumeFinalPG*3.785*(CO2VolumesPG-VLOOKUP((BeerTemperaturePG-32)*5/9,RESIDUAL_CO2,2,TRUE))/0.27027,VolumeFinalPG*3.785*(CO2VolumesPG-VLOOKUP((BeerTemperaturePG-32)*5/9,RESIDUAL_CO2,2,TRUE))/0.286)))) -> grams | AJ78: Secondary Conditioning | AO78: =IF(TotalMashMCU<3,0,VLOOKUP(TotalMashMCU,Tables!O75:S110,IF(PartigyleRatio="1:1",4,2),TRUE)) -> 0 | AP78: First Beer MCU
B79: Secondary Style Dropdown | D79: =VLOOKUP(StyleSecondaryPG,Styles!$A$2:$S$268,3,0) -> ∞ | E79: =VLOOKUP(StyleSecondaryPG,Styles!$A$2:$S$268,4,0) -> ∞ | F79: =VLOOKUP(StyleSecondaryPG,Styles!$A$2:$S$268,5,0) -> ∞ | G79: =VLOOKUP(StyleSecondaryPG,Styles!$A$2:$S$268,6,0) -> ∞ | H79: =IF(D79="","",IF(D79="∞","∞",(668.72*D79)-463.37-(205.347*D79^2))) -> ∞ | J79: =IF(E79="","",IF(E79="∞","∞",(668.72*E79)-463.37-(205.347*E79^2))) -> ∞ | K79: =IF(F79="","",IF(F79="∞","∞",(668.72*F79)-463.37-(205.347*F79^2))) -> ∞ | L79: =IF(G79="","",IF(G79="∞","∞",(668.72*G79)-463.37-(205.347*G79^2))) -> ∞ | M79: =VLOOKUP(StyleSecondaryPG,Styles!$A$2:$S$268,11,0) -> ∞ | N79: =VLOOKUP(StyleSecondaryPG,Styles!$A$2:$S$268,12,0) -> ∞ | O79: =VLOOKUP(StyleSecondaryPG,Styles!$A$2:$S$268,13,0) -> ∞ | Q79: =VLOOKUP(StyleSecondaryPG,Styles!$A$2:$S$268,14,0) -> ∞ | S79: =VLOOKUP(StyleSecondaryPG,Styles!$A$2:$S$268,15,0) -> ∞ | T79: =VLOOKUP(StyleSecondaryPG,Styles!$A$2:$S$268,16,0) -> ∞ | U79: =VLOOKUP(StyleSecondaryPG,Styles!$A$2:$S$268,17,0) -> ∞ | V79: =VLOOKUP(StyleSecondaryPG,Styles!$A$2:$S$268,18,0) -> ∞ | W79: =VLOOKUP(StyleSecondaryPG,Styles!$A$2:$S$268,19,0) -> ∞ | Z79: =VLOOKUP(StyleSecondaryPG,Styles!$A$2:$W$268,23,0) -> ∞ | AC79: Force Carb Pressure (PSI) | AF79: =IF(TempServingPG="","",IF(CO2VolumesPG="","",-16.6999-0.0101059*TempServingPG+0.00116512*TempServingPG^2+0.173354*TempServingPG*CO2VolumesPG+4.24267*CO2VolumesPG-0.0684226*CO2VolumesPG^2)) ->  | AJ79: Aging (including carbonation) | AO79: =IF(TotalMashMCU<3,0,VLOOKUP(TotalMashMCU,Tables!O75:S110,IF(PartigyleRatio="1:1",5,3),TRUE)) -> 0 | AP79: Second Beer MCU
B80: Malt, Extract & Adjuncts | D80: Maltster | G80: Origin | J80: Pounds | K80: %Weight | M80: ºL / MCU | O80: Potential | S80: GU (Adj.) | U80: Late? | Y80: Hops | AG80: % AA | AH80: Ounces | AI80: Time | AK80: =IF(HopsMeasurementPG="Ounces","IBU","Ounces") -> IBU | AM80: Utilization | AO80: =IF(fPartigyle="Yes",SUM(AGUMash)/VolumeRunoffTotal/1000+1,"") ->  | AP80: Total Mash Gravity
D81: =IF(B81=""," ",VLOOKUP(B81,GRAINS_ATTRIBUTES,2,0)) ->  | G81: =IF(B81=""," ",VLOOKUP(B81,GRAINS_ATTRIBUTES,3,0)) ->  | K81: =IF(B81="","",IF(J81="","",IF(TotalGrainWeightPG=0,"",IF(U81="Skip","--",J81/TotalGrainWeightPG)))) ->  | M81: =IF(B81="","",VLOOKUP(B81,GRAINS_ATTRIBUTES,4,0)) ->  | N81: =IF(J81="","",IF(B81="","",IF(VolumePostBoilPG="","",J81*M81/VolumePostBoilPG))) ->  | O81: =IF(B81=""," ",VLOOKUP(B81,GRAINS_ATTRIBUTES,6,0)) ->  | S81: =IF(B81="","",IF(J81="","",J81*((O81*1000)-1000))) ->  | T81: =IF(EncoreEfficiency="","",IF(B81="","",IF(J81="","",IF(VLOOKUP(B81,GRAINS_ATTRIBUTES,9,0)="SUGARS",S81,S81*EncoreEfficiency)))) ->  | U81: Mash | X81: =IF(T81="","",IF(U81="Yes",T81*ExtractGUFactor,IF(U81="Skip",0,T81))) ->  | AG81: =IF(Y81="","",IF(fHopsAging="Yes",IF(HopsTemperature="","",IF(VLOOKUP(Y81,HOPS_ATTRIBUTES,11,0)="","",IF(VLOOKUP(Y81,HOPS_ATTRIBUTES,10,0)="","",VLOOKUP(Y81,HOPS_ATTRIBUTES,2,0)*1/(EXP(VLOOKUP(VLOOKUP(Y81,HOPS_ATTRIBUTES,10,0)*100,Tables!$P$16:$Q$66,2,0)*VLOOKUP(ROUND((HopsTemperature-32)*5/9,0),Tables!$L$16:$N$65,3,0)*VLOOKUP(HopsStorage,Tables!$C$32:$J$34,8,0)*(BrewDate-VLOOKUP(Y81,HOPS_ATTRIBUTES,11,0))))))),VLOOKUP(Y81,HOPS_ATTRIBUTES,2,0))) ->  | AK81: =IF(AM81="","",IF(AH81="","",IF(AG81="","",IF(VolumePreBoilPG="","",IF(VolumePostBoilPG="","",IF(HopsMeasurementPG="Ounces",IF(fIBUPG="Tinseth",AH81*AG81*AM81*7490/((VolumePreBoilPG+VolumePostBoilPG)/2),AH81*AM81*AG81*7462/((VolumePreBoilPG+VolumePostBoilPG)/2)),IF(fIBUPG="Tinseth", ((VolumePreBoilPG+VolumePostBoilPG)/2)*AH81/(AG81*AM81*7490), ((VolumePreBoilPG+VolumePostBoilPG)/2)*AH81/(AM81*AG81*7462)))))))) ->  | AM81: =IF(Y81="","",IF(AI81="","",IF(GravityPreBoilPG="","",IF(GravityEstimatedOriginalPG="","",IF(TimeBoilPG="","",IF(FWHFactor="","",IF(PelletHopFactor="","",IF(LeafHopFactor="","",IF(AI81="dry hop",0,IF(fIBUPG="Tinseth",((1-EXP(-0.04*IF(AI81="FWH",TimeBoilPG,AI81)))/4.15)*1.65*0.000125^(((GravityPreBoilPG+GravityEstimatedOriginalPG)/2)-1),18.11+13.86*TANH((AI81-31.32)/18.27)/100)*IF(AI81="FWH",FWHFactor,1)*IF(VLOOKUP(Y81,HOPS_ATTRIBUTES,8,0)="Pellet",PelletHopFactor,LeafHopFactor)))))))))) ->  | AO81: =IF(GravityPreBoilPG="",0,IF(GravityPreBoilPG<1.05,0,VolumePreBoil*(VLOOKUP(GravityPreBoilPG,Tables!$C$75:$G$122,IF(PartigyleRatio="1:1",4,2),TRUE)*1000-1000))) -> 0 | AP81: First Beer Mash GU
S82: =IF(B82="","",IF(J82="","",J82*((O82*1000)-1000))) ->  | U82: Mash | AG82: =IF(Y82="","",IF(fHopsAging="Yes",IF(HopsTemperature="","",IF(VLOOKUP(Y82,HOPS_ATTRIBUTES,11,0)="","",IF(VLOOKUP(Y82,HOPS_ATTRIBUTES,10,0)="","",VLOOKUP(Y82,HOPS_ATTRIBUTES,2,0)*1/(EXP(VLOOKUP(VLOOKUP(Y82,HOPS_ATTRIBUTES,10,0)*100,Tables!$P$16:$Q$66,2,0)*VLOOKUP(ROUND((HopsTemperature-32)*5/9,0),Tables!$L$16:$N$65,3,0)*VLOOKUP(HopsStorage,Tables!$C$32:$J$34,8,0)*(BrewDate-VLOOKUP(Y82,HOPS_ATTRIBUTES,11,0))))))),VLOOKUP(Y82,HOPS_ATTRIBUTES,2,0))) ->  | AK82: =IF(AM82="","",IF(AH82="","",IF(AG82="","",IF(VolumePreBoilPG="","",IF(VolumePostBoilPG="","",IF(HopsMeasurementPG="Ounces",IF(fIBUPG="Tinseth",AH82*AG82*AM82*7490/((VolumePreBoilPG+VolumePostBoilPG)/2),AH82*AM82*AG82*7462/((VolumePreBoilPG+VolumePostBoilPG)/2)),IF(fIBUPG="Tinseth", ((VolumePreBoilPG+VolumePostBoilPG)/2)*AH82/(AG82*AM82*7490), ((VolumePreBoilPG+VolumePostBoilPG)/2)*AH82/(AM82*AG82*7462)))))))) ->  | AO82: =IF(GravityPreBoilPG="",0,IF(GravityPreBoilPG<1.05,0,(VLOOKUP(GravityPreBoilPG,Tables!$C$75:$G$122,IF(PartigyleRatio="1:1",5,3),TRUE)*1000-1000)*VolumePreBoilPG)) -> 0 | AP82: Second Beer Mash GU
U83: Mash | AG83: =IF(Y83="","",IF(fHopsAging="Yes",IF(HopsTemperature="","",IF(VLOOKUP(Y83,HOPS_ATTRIBUTES,11,0)="","",IF(VLOOKUP(Y83,HOPS_ATTRIBUTES,10,0)="","",VLOOKUP(Y83,HOPS_ATTRIBUTES,2,0)*1/(EXP(VLOOKUP(VLOOKUP(Y83,HOPS_ATTRIBUTES,10,0)*100,Tables!$P$16:$Q$66,2,0)*VLOOKUP(ROUND((HopsTemperature-32)*5/9,0),Tables!$L$16:$N$65,3,0)*VLOOKUP(HopsStorage,Tables!$C$32:$J$34,8,0)*(BrewDate-VLOOKUP(Y83,HOPS_ATTRIBUTES,11,0))))))),VLOOKUP(Y83,HOPS_ATTRIBUTES,2,0))) ->  | AP83: Pre Boil Gravity PG
U84: Mash | AG84: =IF(Y84="","",IF(fHopsAging="Yes",IF(HopsTemperature="","",IF(VLOOKUP(Y84,HOPS_ATTRIBUTES,11,0)="","",IF(VLOOKUP(Y84,HOPS_ATTRIBUTES,10,0)="","",VLOOKUP(Y84,HOPS_ATTRIBUTES,2,0)*1/(EXP(VLOOKUP(VLOOKUP(Y84,HOPS_ATTRIBUTES,10,0)*100,Tables!$P$16:$Q$66,2,0)*VLOOKUP(ROUND((HopsTemperature-32)*5/9,0),Tables!$L$16:$N$65,3,0)*VLOOKUP(HopsStorage,Tables!$C$32:$J$34,8,0)*(BrewDate-VLOOKUP(Y84,HOPS_ATTRIBUTES,11,0))))))),VLOOKUP(Y84,HOPS_ATTRIBUTES,2,0))) ->  | AO84: 0.15 | AP84: Encore Efficiency
U85: Mash | AG85: =IF(Y85="","",IF(fHopsAging="Yes",IF(HopsTemperature="","",IF(VLOOKUP(Y85,HOPS_ATTRIBUTES,11,0)="","",IF(VLOOKUP(Y85,HOPS_ATTRIBUTES,10,0)="","",VLOOKUP(Y85,HOPS_ATTRIBUTES,2,0)*1/(EXP(VLOOKUP(VLOOKUP(Y85,HOPS_ATTRIBUTES,10,0)*100,Tables!$P$16:$Q$66,2,0)*VLOOKUP(ROUND((HopsTemperature-32)*5/9,0),Tables!$L$16:$N$65,3,0)*VLOOKUP(HopsStorage,Tables!$C$32:$J$34,8,0)*(BrewDate-VLOOKUP(Y85,HOPS_ATTRIBUTES,11,0))))))),VLOOKUP(Y85,HOPS_ATTRIBUTES,2,0))) ->  | AO85: =IF(WortContraction="","",IF(VolumePreBoilPG="","",VolumePreBoilPG*WortContraction)) ->  | AP85: ContractionLossesPG
U86: Mash | AG86: =IF(Y86="","",IF(fHopsAging="Yes",IF(HopsTemperature="","",IF(VLOOKUP(Y86,HOPS_ATTRIBUTES,11,0)="","",IF(VLOOKUP(Y86,HOPS_ATTRIBUTES,10,0)="","",VLOOKUP(Y86,HOPS_ATTRIBUTES,2,0)*1/(EXP(VLOOKUP(VLOOKUP(Y86,HOPS_ATTRIBUTES,10,0)*100,Tables!$P$16:$Q$66,2,0)*VLOOKUP(ROUND((HopsTemperature-32)*5/9,0),Tables!$L$16:$N$65,3,0)*VLOOKUP(HopsStorage,Tables!$C$32:$J$34,8,0)*(BrewDate-VLOOKUP(Y86,HOPS_ATTRIBUTES,11,0))))))),VLOOKUP(Y86,HOPS_ATTRIBUTES,2,0))) ->  | AO86: =IF(AO31="",0,IF(LeafHopsOuncesPG="",0,LeafHopsOuncesPG*AO31/128)) -> 0 | AP86: HopsAbsorptionPG
U87: Mash | AG87: =IF(Y87="","",IF(fHopsAging="Yes",IF(HopsTemperature="","",IF(VLOOKUP(Y87,HOPS_ATTRIBUTES,11,0)="","",IF(VLOOKUP(Y87,HOPS_ATTRIBUTES,10,0)="","",VLOOKUP(Y87,HOPS_ATTRIBUTES,2,0)*1/(EXP(VLOOKUP(VLOOKUP(Y87,HOPS_ATTRIBUTES,10,0)*100,Tables!$P$16:$Q$66,2,0)*VLOOKUP(ROUND((HopsTemperature-32)*5/9,0),Tables!$L$16:$N$65,3,0)*VLOOKUP(HopsStorage,Tables!$C$32:$J$34,8,0)*(BrewDate-VLOOKUP(Y87,HOPS_ATTRIBUTES,11,0))))))),VLOOKUP(Y87,HOPS_ATTRIBUTES,2,0))) ->  | AO87: 0.015 | AP87: Boil Off Rate PG
U88: Mash | AG88: =IF(Y88="","",IF(fHopsAging="Yes",IF(HopsTemperature="","",IF(VLOOKUP(Y88,HOPS_ATTRIBUTES,11,0)="","",IF(VLOOKUP(Y88,HOPS_ATTRIBUTES,10,0)="","",VLOOKUP(Y88,HOPS_ATTRIBUTES,2,0)*1/(EXP(VLOOKUP(VLOOKUP(Y88,HOPS_ATTRIBUTES,10,0)*100,Tables!$P$16:$Q$66,2,0)*VLOOKUP(ROUND((HopsTemperature-32)*5/9,0),Tables!$L$16:$N$65,3,0)*VLOOKUP(HopsStorage,Tables!$C$32:$J$34,8,0)*(BrewDate-VLOOKUP(Y88,HOPS_ATTRIBUTES,11,0))))))),VLOOKUP(Y88,HOPS_ATTRIBUTES,2,0))) ->  | AO88: 0.25 | AP88: Kettle Dead Space PG
U89: Mash | AG89: =IF(Y89="","",IF(fHopsAging="Yes",IF(HopsTemperature="","",IF(VLOOKUP(Y89,HOPS_ATTRIBUTES,11,0)="","",IF(VLOOKUP(Y89,HOPS_ATTRIBUTES,10,0)="","",VLOOKUP(Y89,HOPS_ATTRIBUTES,2,0)*1/(EXP(VLOOKUP(VLOOKUP(Y89,HOPS_ATTRIBUTES,10,0)*100,Tables!$P$16:$Q$66,2,0)*VLOOKUP(ROUND((HopsTemperature-32)*5/9,0),Tables!$L$16:$N$65,3,0)*VLOOKUP(HopsStorage,Tables!$C$32:$J$34,8,0)*(BrewDate-VLOOKUP(Y89,HOPS_ATTRIBUTES,11,0))))))),VLOOKUP(Y89,HOPS_ATTRIBUTES,2,0))) ->  | AO89: 0.25 | AP89: Kettle Transfer Losses
U90: Mash | AG90: =IF(Y90="","",IF(fHopsAging="Yes",IF(HopsTemperature="","",IF(VLOOKUP(Y90,HOPS_ATTRIBUTES,11,0)="","",IF(VLOOKUP(Y90,HOPS_ATTRIBUTES,10,0)="","",VLOOKUP(Y90,HOPS_ATTRIBUTES,2,0)*1/(EXP(VLOOKUP(VLOOKUP(Y90,HOPS_ATTRIBUTES,10,0)*100,Tables!$P$16:$Q$66,2,0)*VLOOKUP(ROUND((HopsTemperature-32)*5/9,0),Tables!$L$16:$N$65,3,0)*VLOOKUP(HopsStorage,Tables!$C$32:$J$34,8,0)*(BrewDate-VLOOKUP(Y90,HOPS_ATTRIBUTES,11,0))))))),VLOOKUP(Y90,HOPS_ATTRIBUTES,2,0))) ->  | AO90: 0.25 | AP90: Fermenter Losses
U91: Mash | AG91: =IF(Y91="","",IF(fHopsAging="Yes",IF(HopsTemperature="","",IF(VLOOKUP(Y91,HOPS_ATTRIBUTES,11,0)="","",IF(VLOOKUP(Y91,HOPS_ATTRIBUTES,10,0)="","",VLOOKUP(Y91,HOPS_ATTRIBUTES,2,0)*1/(EXP(VLOOKUP(VLOOKUP(Y91,HOPS_ATTRIBUTES,10,0)*100,Tables!$P$16:$Q$66,2,0)*VLOOKUP(ROUND((HopsTemperature-32)*5/9,0),Tables!$L$16:$N$65,3,0)*VLOOKUP(HopsStorage,Tables!$C$32:$J$34,8,0)*(BrewDate-VLOOKUP(Y91,HOPS_ATTRIBUTES,11,0))))))),VLOOKUP(Y91,HOPS_ATTRIBUTES,2,0))) ->  | AO91: 90 | AP91: Total Boil Time PG
B92: Cost: | C92: =IF(B81="",0,J81*VLOOKUP(B81,Grains!$A$53:$L$188,8,0))+IF(B82="",0,J82*VLOOKUP(B82,Grains!$A$53:$L$188,8,0))+IF(B83="",0,J83*VLOOKUP(B83,Grains!$A$53:$L$188,8,0))+IF(B84="",0,J84*VLOOKUP(B84,Grains!$A$53:$L$188,8,0))+IF(B85="",0,J85*VLOOKUP(B85,Grains!$A$53:$L$188,8,0))+IF(B86="",0,J86*VLOOKUP(B86,Grains!$A$53:$L$188,8,0))+IF(B87="",0,J87*VLOOKUP(B87,Grains!$A$53:$L$188,8,0))+IF(B88="",0,J88*VLOOKUP(B88,Grains!$A$53:$L$188,8,0))+IF(B89="",0,J89*VLOOKUP(B89,Grains!$A$53:$L$188,8,0))+IF(B90="",0,J90*VLOOKUP(B90,Grains!$A$53:$L$188,8,0))+IF(B91="",0,J91*VLOOKUP(B91,Grains!$A$53:$L$188,8,0)) -> 0 | J92: =IF(B81="",0,IF(U81="Skip",0,J81))+IF(B82="",0,IF(U82="Skip",0,J82))+IF(B83="",0,IF(U83="Skip",0,J83))+IF(B84="",0,IF(U84="Skip",0,J84))+IF(B85="",0,IF(U85="Skip",0,J85))+IF(B86="",0,IF(U86="Skip",0,J86))+IF(B87="",0,IF(U87="Skip",0,J87))+IF(B88="",0,IF(U88="Skip",0,J88))+IF(B89="",0,IF(U89="Skip",0,J89))+IF(B90="",0,IF(U90="Skip",0,J90))+IF(B91="",0,IF(U91="Skip",0,J91)) -> 0 | M92: =SUM(MCUPG)+SecondBeerMCU -> 0 | S92: =IF(SUM(GUPG)=0,"",SUM(GUPG)) ->  | T92: =SUM(AGUPG2)+SecondBeerMashGU -> 0 | U92: =SUM(AWGUPG2)+SecondBeerMashGU -> 0 | Y92: Cost: | AE92: =IF(HopsMeasurementPG="Ounces",IF(Y81="",0,AH81*VLOOKUP(Y81,Hops!$A$2:$J$124,9,0))+IF(Y82="",0,AH82*VLOOKUP(Y82,Hops!$A$2:$J$124,9,0))+IF(Y83="",0,AH83*VLOOKUP(Y83,Hops!$A$2:$J$124,9,0))+IF(Y84="",0,AH84*VLOOKUP(Y84,Hops!$A$2:$J$124,9,0))+IF(Y85="",0,AH85*VLOOKUP(Y85,Hops!$A$2:$J$124,9,0))+IF(Y86="",0,AH86*VLOOKUP(Y86,Hops!$A$2:$J$124,9,0))+IF(Y87="",0,AH87*VLOOKUP(Y87,Hops!$A$2:$J$124,9,0))+IF(Y88="",0,AH88*VLOOKUP(Y88,Hops!$A$2:$J$124,9,0))+IF(Y89="",0,AH89*VLOOKUP(Y89,Hops!$A$2:$J$124,9,0))+IF(Y90="",0,AH90*VLOOKUP(Y90,Hops!$A$2:$J$124,9,0))+IF(Y91="",0,AH91*VLOOKUP(Y91,Hops!$A$2:$J$124,9,0)),IF(Y81="",0,AK81*VLOOKUP(Y81,Hops!$A$2:$J$124,9,0))+IF(Y82="",0,AK82*VLOOKUP(Y82,Hops!$A$2:$J$124,9,0))+IF(Y83="",0,AK83*VLOOKUP(Y83,Hops!$A$2:$J$124,9,0))+IF(Y84="",0,AK84*VLOOKUP(Y84,Hops!$A$2:$J$124,9,0))+IF(Y85="",0,AK85*VLOOKUP(Y85,Hops!$A$2:$J$124,9,0))+IF(Y86="",0,AK86*VLOOKUP(Y86,Hops!$A$2:$J$124,9,0))+IF(Y87="",0,AK87*VLOOKUP(Y87,Hops!$A$2:$J$124,9,0))+IF(Y88="",0,AK88*VLOOKUP(Y88,Hops!$A$2:$J$124,9,0))+IF(Y89="",0,AK89*VLOOKUP(Y89,Hops!$A$2:$J$124,9,0))+IF(Y90="",0,AK90*VLOOKUP(Y90,Hops!$A$2:$J$124,9,0))+IF(Y91="",0,AK91*VLOOKUP(Y91,Hops!$A$2:$J$124,9,0))) -> 0 | AH92: =IF(SUM(OuncesorIBUPG)=0,"",SUM(OuncesorIBUPG)) ->  | AI92: =IF(HopsMeasurement="Ounces",IF(Y81="",0,IF(VLOOKUP(Y81,Hops!$A$2:$J$124,8,0)="Pellet",0,AH81))+IF(Y82="",0,IF(VLOOKUP(Y82,Hops!$A$2:$J$124,8,0)="Pellet",0,AH82))+IF(Y83="",0,IF(VLOOKUP(Y83,Hops!$A$2:$J$124,8,0)="Pellet",0,AH83))+IF(Y84="",0,IF(VLOOKUP(Y84,Hops!$A$2:$J$124,8,0)="Pellet",0,AH84))+IF(Y85="",0,IF(VLOOKUP(Y85,Hops!$A$2:$J$124,8,0)="Pellet",0,AH85))+IF(Y86="",0,IF(VLOOKUP(Y86,Hops!$A$2:$J$124,8,0)="Pellet",0,AH86))+IF(Y87="",0,IF(VLOOKUP(Y87,Hops!$A$2:$J$124,8,0)="Pellet",0,AH87))+IF(Y88="",0,IF(VLOOKUP(Y88,Hops!$A$2:$J$124,8,0)="Pellet",0,AH88))+IF(Y89="",0,IF(VLOOKUP(Y89,Hops!$A$2:$J$124,8,0)="Pellet",0,AH89))+IF(Y90="",0,IF(VLOOKUP(Y90,Hops!$A$2:$J$124,8,0)="Pellet",0,AH90))+IF(Y91="",0,IF(VLOOKUP(Y91,Hops!$A$2:$J$124,8,0)="Pellet",0,AH91)),IF(Y81="",0,IF(VLOOKUP(Y81,Hops!$A$2:$J$124,8,0)="Pellet",0,AK81))+IF(Y82="",0,IF(VLOOKUP(Y82,Hops!$A$2:$J$124,8,0)="Pellet",0,AK82))+IF(Y83="",0,IF(VLOOKUP(Y83,Hops!$A$2:$J$124,8,0)="Pellet",0,AK83))+IF(Y84="",0,IF(VLOOKUP(Y84,Hops!$A$2:$J$124,8,0)="Pellet",0,AK84))+IF(Y85="",0,IF(VLOOKUP(Y85,Hops!$A$2:$J$124,8,0)="Pellet",0,AK85))+IF(Y86="",0,IF(VLOOKUP(Y86,Hops!$A$2:$J$124,8,0)="Pellet",0,AK86))+IF(Y87="",0,IF(VLOOKUP(Y87,Hops!$A$2:$J$124,8,0)="Pellet",0,AK87))+IF(Y88="",0,IF(VLOOKUP(Y88,Hops!$A$2:$J$124,8,0)="Pellet",0,AK88))+IF(Y89="",0,IF(VLOOKUP(Y89,Hops!$A$2:$J$124,8,0)="Pellet",0,AK89))+IF(Y90="",0,IF(VLOOKUP(Y90,Hops!$A$2:$J$124,8,0)="Pellet",0,AK90))+IF(Y91="",0,IF(VLOOKUP(Y91,Hops!$A$2:$J$124,8,0)="Pellet",0,AK91))) -> 0 | AK92: =IF(SUM(IBUorOuncesPG)=0,"",SUM(IBUorOuncesPG)) ->  | AM92: Tinseth | AP92: Chill Time PG
B93: Yeast | D93: Temperature | F93: Attenuation | I93: Flocculation | L93: Styles & Notes | AL93: Name | AP93: Transfer Time PG
D94: =IF(YeastStrain1PG="","",VLOOKUP(YeastStrain1PG,YEAST_ATTRIBUTES,3,0)) ->  | E94: =IF(YeastStrain1PG="","",VLOOKUP(YeastStrain1PG,YEAST_ATTRIBUTES,4,0)) ->  | F94: =IF(YeastStrain1PG="","",VLOOKUP(YeastStrain1PG,YEAST_ATTRIBUTES,5,0)) ->  | G94: =IF(YeastStrain1PG="","",VLOOKUP(YeastStrain1PG,YEAST_ATTRIBUTES,6,0)) ->  | I94: =IF(YeastStrain1PG="","",VLOOKUP(YeastStrain1PG,YEAST_ATTRIBUTES,7,0)) ->  | L94: =IF(YeastStrain1PG="","",VLOOKUP(YeastStrain1PG,YEAST_ATTRIBUTES,9,0)) ->  | AL94: =IF(YeastStrain1PG="","",VLOOKUP(YeastStrain1PG,YEAST_ATTRIBUTES,2,0)) ->  | AP94: Aeration Time PG
D95: =IF(YeastStrain2PG="","",VLOOKUP(YeastStrain2PG,YEAST_ATTRIBUTES,3,0)) ->  | E95: =IF(YeastStrain2PG="","",VLOOKUP(YeastStrain2PG,YEAST_ATTRIBUTES,4,0)) ->  | F95: =IF(YeastStrain2PG="","",VLOOKUP(YeastStrain2PG,YEAST_ATTRIBUTES,5,0)) ->  | G95: =IF(YeastStrain2PG="","",VLOOKUP(YeastStrain2PG,YEAST_ATTRIBUTES,6,0)) ->  | I95: =IF(YeastStrain2PG="","",VLOOKUP(YeastStrain2PG,YEAST_ATTRIBUTES,7,0)) ->  | L95: =IF(YeastStrain2PG="","",VLOOKUP(YeastStrain2PG,YEAST_ATTRIBUTES,9,0)) ->  | AL95: =IF(YeastStrain2PG="","",VLOOKUP(YeastStrain2PG,YEAST_ATTRIBUTES,2,0)) -> 
B96: Lager | C96: Required Cell Count: | D96: =IF(PlatoEstimatedOriginalPG="","",IF(VolumeFermentationPG="","",IF(AleOrLagerPG="Ale ",IF(PitchingRateAle="","",1000000*PitchingRateAle*VolumeFermentationPG*3785*PlatoEstimatedOriginalPG),IF(PitchingRateLager="","",1000000*PitchingRateLager*VolumeFermentationPG*3785*PlatoEstimatedOriginalPG)))) ->  | G96: Yeast Preparation: | L96: Stirplate Starter | T96: # of Packages: | AC96: Starter Volume (mL/vials): | AF96: =IF(RequiredCellCountPG="","",RequiredCellCountPG/(VLOOKUP(YeastPreparationPG,Tables!$C$15:$F$20,4,0)*1000000)) ->  | AI96: Dry Yeast (grams): | AM96: =IF(RequiredCellCountPG="","",RequiredCellCountPG/(CellsPerDryGram*1000000000)) -> 
B97: Cost: | C97: =IF(YeastStrain1PG="",0,YeastPackagesPG/2*VLOOKUP(YeastStrain1PG,Yeast!$A$2:$L$168,12,0))+IF(YeastStrain2PG="",IF(YeastStrain1PG="",0,YeastPackagesPG/2*VLOOKUP(YeastStrain1PG,Yeast!$A$2:$L$168,12,0)),YeastPackagesPG/2*VLOOKUP(YeastStrain2PG,Yeast!$A$2:$L$168,12,0)) -> 0
B99: Notes
B125: Printable Report
B126: Recipe: | C126: =IF(RecipeName="","",RecipeName) ->  | F126: Brew Date: | I126: =BrewDate -> 00:00:00 | L126: Time: | N126: =WorkTime -> 7.75 | P126: Cost: | T126: =TotalCost -> 0 | V126: Primary Style: | AD126: =StylePrimary -> Primary Style Dropdown | AH126: Secondary Style: | AK126: =StyleSecondary -> Secondary Style Dropdown
D128: Original Gravity | G128: Final Gravity | K128: Original Extract | O128: Final Extract | T128: IBU | V128: SRM | Y128: % ABV | AD128: Calories per 12 oz | AF128: BU:GU | AH128: BV | AI128: CO2 Volumes
B129: Estimated Beer Properties: | D129: =GravityEstimatedOriginal ->  | G129: =GravityEstimatedFinal ->  | K129: =PlatoEstimatedOriginal ->  | O129: =PlatoEstimatedFinal ->  | T129: =TotalIBU ->  | V129: =TargetSRM ->  | Y129: =ABVEstimated ->  | AD129: =IF(ABVEstimated="","",IF(GravityEstimatedFinal="","",IF(PlatoEstimatedOriginal="","",IF(PlatoEstimatedFinal="","",((100*6.9*((0.79*ABVEstimated)/GravityEstimatedFinal))+4*(((0.1808*PlatoEstimatedOriginal)+(0.8192*PlatoEstimatedFinal))-0.1))*GravityEstimatedFinal*3.55)))) ->  | AF129: =BUGUEstimated ->  | AH129: =BVEstimated ->  | AI129: =IF(CO2Volumes="","",CO2Volumes) -> 
B130: Measured Beer Properties:
C132: Packaged Volume: | D132: =VolumeFinal -> 5 | E132: Fermentation Volume: | J132: =VolumeFermentation -> 5.25 | K132: Post Boil Volume: | O132: =VolumePostBoil -> 5.625 | R132: Pre Boil Volume: | V132: =VolumePreBoil -> 7.2 | AG132: Pre Boil Gravity: | AI132: =IF(GravityPreBoil="","",GravityPreBoil) -> 1
C133: Measured:
AG134: Mash Step 1: | AI134: =TempMashStep1 -> 152 | AJ134: =MashThickness -> 1.1 | AL134: =TimeMashStep1 -> 0 | AM134: minutes
B135: Grains, Extract & Adjuncts | D135: Weight | F135: % | G135: ºL | H135: MCU | J135: Late? | M135: Hops | U135: AA% | W135: Ounces | AC135: IBU | AE135: Utilization | AG135: Mash Step 2: | AI135: =IF(AJ135="-","-",TempMashStep2) -> - | AJ135: =MashThickness2 -> - | AL135: =IF(TimeMashStep2="","",TimeMashStep2) ->  | AM135: =IF(AL135="","","minutes") -> 
B136: =IF(B19="","",B19) ->  | D136: =IF(J19="","",J19) ->  | F136: =IF(K19="","",K19) ->  | G136: =IF(M19="","",M19) ->  | H136: =IF(N19="","",N19) ->  | J136: =IF(B19="","",U19) ->  | L136: =IF(Y19="","",Y19) ->  | U136: =IF(AG19="","",AG19) ->  | W136: =IF(Y19="","",IF(HopsMeasurement="Ounces",IF(AH19="","",AH19),IF(AH19="","",AK19))) ->  | AC136: =IF(Y19="","",IF(HopsMeasurement="Ounces",IF(AH19="","",AK19),IF(AH19="","",AH19))) ->  | AE136: =IF(Y19="","",AM19) ->  | AG136: Mash Step 3: | AI136: =IF(AJ136="-","-",TempMashStep3) -> - | AJ136: =MashThickness3 -> - | AL136: =IF(TimeMashStep3="","",TimeMashStep3) ->  | AM136: =IF(AL136="","","minutes") -> 
B137: =IF(B20="","",B20) ->  | D137: =IF(J20="","",J20) ->  | F137: =IF(K20="","",K20) ->  | G137: =IF(M20="","",M20) ->  | H137: =IF(N20="","",N20) ->  | J137: =IF(B20="","",U20) ->  | L137: =IF(Y20="","",Y20) ->  | U137: =IF(AG20="","",AG20) ->  | AE137: =IF(Y20="","",AM20) -> 
AG138: Strike Water Volume: | AJ138: =VolumeStrikeWater1 -> 0 | AL138: =TempStrikeWater1 -> 171.9090909 | AM138: Temp ºF
AG139: =IF(MashType="Infusion Mash","Strike Water Volume 2:",IF(MashType="Decoction Mash","Decoction Volume 1:","")) -> Strike Water Volume 2: | AJ139: =IF(VolumeStrikeWater2="","",VolumeStrikeWater2) -> - | AL139: =IF(AJ139="","",IF(AJ139="-","-",TempStrikeWater2)) -> - | AM139: Temp ºF
AG140: =IF(MashType="Infusion Mash","Strike Water Volume 3:",IF(MashType="Decoction Mash","Decoction Volume 2:","")) -> Strike Water Volume 3: | AJ140: =IF(VolumeStrikeWater3="","",VolumeStrikeWater3) -> - | AL140: =IF(AJ140="","",IF(AJ140="-","-",TempStrikeWater2)) -> - | AM140: Temp ºF
AG141: =IF(MashType="Infusion Mash","",IF(MashType="Decoction Mash","Decoction Volume 3:","")) ->  | AJ141: =IF(VolumeDecoction3="-","",IF(VolumeDecoction3="","",VolumeDecoction3)) ->  | AL141: =IF(AJ141="","",TempStrikeWater2) ->  | AM141: Temp ºF
AG142: Mash Out Volume: | AJ142: =VolumeMashOut -> 3.725 | AL142: =MashOutTemp -> 170 | AM142: Temp ºF
AG143: Sparge Volume 1: | AJ143: =VolumeSpargeWater1 -> 3.475 | AL143: =MashOutTemp -> 170 | AM143: Temp ºF
AG144: Sparge Volume 2: | AJ144: =VolumeSpargeWater2 -> - | AL144: =IF(AJ144="","",IF(AJ144="-","-",TempStrikeWater2)) -> - | AM144: Temp ºF
B146: Total Grain Weight: | D146: =IF(J30="","",J30) -> 0 | T146: Totals: | W146: =SUM(W136:AB145) -> 0 | AC146: =TotalIBU ->  | AG146: Mash Efficiency: | AI146: =MashEfficiencyPredicted -> 0.75 | AJ146: Measured:
AG147: Mash pH: | AJ147: Measured:
D148: Calcium | F148: Magnesium | H148: Sodium | K148: Chloride | M148: Sulfates | O148: Effective Hardness | U148: Residual Alkalinity | AD148: Cl/SO4 Balance
B149: Source Water | D149: =IF(CalciumSource="","",CalciumSource) -> 6.7 | F149: =IF(MagnesiumSource="","",MagnesiumSource) -> 2 | H149: =IF(SodiumSource="","",SodiumSource) -> 16 | K149: =IF(ChlorideSource="","",ChlorideSource) -> 14 | M149: =IF(SulfateSource="","",SulfateSource) -> 5 | O149: =IF(EffectiveHardnessSource="","",EffectiveHardnessSource) -> 5.962184874 | U149: =IF(RASource="","",RASource) -> 7.187815126 | AD149: =IF(CSBalanceSource="","",CSBalanceSource) -> Very Malty | AG149: =YeastPreparation -> Stirplate Starter | AJ149: =IF(AF35="","",AF35) ->  | AL149: mL Starter Needed
B150: Added to Water | D150: =IF(CalciumAdded="","",CalciumAdded) -> 0 | F150: =IF(MagnesiumAdded="","",MagnesiumAdded) -> 0 | H150: =IF(SodiumAdded="","",SodiumAdded) -> 0 | K150: =IF(ChlorideAdded="","",ChlorideAdded) -> 0 | M150: =IF(SulfateAdded="","",SulfateAdded) -> 0 | O150: =IF(EffectiveHardnessAdded="","",EffectiveHardnessAdded) -> 0 | U150: =IF(RAAdded="","",RAAdded) -> 0 | AG150: =IF(YeastStrain1="","",YeastStrain1) ->  | AJ150: =IF(AL33="","",AL33) -> 
B151: Resulting Water | D151: =IF(CalciumFinal="","",CalciumFinal) -> 6.7 | F151: =IF(MagnesiumFinal="","",MagnesiumFinal) -> 2 | H151: =IF(SodiumFinal="","",SodiumFinal) -> 16 | K151: =IF(ChlorideFinal="","",ChlorideFinal) -> 14 | M151: =IF(SulfateFinal="","",SulfateFinal) -> 5 | O151: =IF(EffectiveHardnessFinal="","",EffectiveHardnessFinal) -> 5.962184874 | U151: =IF(RAFinal="","",RAFinal) -> 7.187815126 | AD151: =IF(CSBalanceFinal="","",CSBalanceFinal) -> Very Malty | AG151: =IF(YeastStrain1="","",D33) ->  | AH151: =IF(YeastStrain1="","",E33) ->  | AI151: =IF(YeastStrain1="","",F33) ->  | AJ151: =IF(YeastStrain1="","",G33) ->  | AL151: =IF(YeastStrain1="","",I33) -> 
AG152: =IF(YeastStrain2="","",YeastStrain2) ->  | AJ152: =IF(AL34="","",AL34) -> 
D153: Chalk | E153: Gypsum | G153: Calcium Chloride | K153: Epsom Salt | N153: Baking Soda | S153: Table Salt | U153: Hydrochloric Acid | AD153: Lactic Acid | AG153: =IF(YeastStrain2="","",D34) ->  | AH153: =IF(YeastStrain2="","",E34) ->  | AI153: =IF(YeastStrain2="","",F34) ->  | AJ153: =IF(YeastStrain2="","",G34) ->  | AL153: =IF(YeastStrain2="","",I34) -> 
C154: Mash Additions: | D154: =IF(ChalkAddition="","",ChalkAddition) ->  | E154: =IF(GypsumAddition="","",GypsumAddition) ->  | G154: =IF(CalciumChlorideAddition="","",CalciumChlorideAddition) ->  | K154: =IF(EpsomSaltAddition="","",EpsomSaltAddition) ->  | N154: =IF(BakingSodaAddition="","",BakingSodaAddition) ->  | S154: =IF(TableSaltAddition="","",TableSaltAddition) ->  | U154: =IF(HydrochloricUsed="","",HydrochloricUsed) ->  | AD154: =IF(LacticUsed="","",LacticUsed) -> 
B156: Recipe: | C156: =RecipeNamePG -> 0 | F156: Brew Date: | I156: =BrewDate -> 00:00:00 | L156: Time: | N156: =WorkTime -> 7.75 | P156: Cost: | T156: =TotalCost -> 0 | V156: Primary Style: | AD156: =StylePrimaryPG -> Primary Style Dropdown | AH156: Secondary Style: | AK156: =StyleSecondaryPG -> Secondary Style Dropdown
D158: Original Gravity | G158: Final Gravity | K158: Original Extract | O158: Final Extract | T158: IBU | V158: SRM | Y158: % ABV | AD158: Calories per 12 oz | AF158: BU:GU | AH158: BV | AI158: CO2 Volumes
B159: Estimated Beer Properties: | D159: =GravityEstimatedOriginalPG ->  | G159: =GravityEstimatedFinalPG ->  | K159: =PlatoEstimatedOriginalPG ->  | O159: =PlatoEstimatedFinalPG ->  | T159: =TotalIBUPG ->  | V159: =TargetSRMPG ->  | Y159: =ABVEstimatedPG ->  | AD159: =IF(ABVEstimatedPG="","",IF(GravityEstimatedFinalPG="","",IF(PlatoEstimatedOriginalPG="","",IF(PlatoEstimatedFinalPG="","",((100*6.9*((0.79*ABVEstimatedPG)/GravityEstimatedFinalPG))+4*(((0.1808*PlatoEstimatedOriginalPG)+(0.8192*PlatoEstimatedFinalPG))-0.1))*GravityEstimatedFinalPG*3.55)))) ->  | AF159: =BUGUEstimatedPG ->  | AH159: =BVEstimatedPG ->  | AI159: =CO2VolumesPG -> 0
B160: Measured Beer Properties:
C162: Packaged Volume: | D162: =VolumeFinalPG ->  | E162: Fermentation Volume: | J162: =VolumeFermentationPG ->  | K162: Post Boil Volume: | O162: =VolumePostBoilPG ->  | R162: Pre Boil Volume: | V162: =VolumePreBoilPG ->  | AG162: =YeastPreparation -> Stirplate Starter | AJ162: =IF(AF47="","",AF47) ->  | AL162: mL Starter Needed
C163: Measured: | AG163: =IF(YeastStrain1PG="","",YeastStrain1PG) ->  | AJ163: =IF(AL94="","",AL94) -> 
AG164: =IF(YeastStrain1PG="","",D94) ->  | AH164: =IF(YeastStrain1PG="","",E94) ->  | AI164: =IF(YeastStrain1PG="","",YeastAttenuation1LPG) ->  | AJ164: =IF(YeastStrain1PG="","",YeastAttenuation1HPG) ->  | AL164: =IF(YeastStrain1PG="","",I94) -> 
B165: Grains, Extract & Adjuncts | D165: Weight | F165: % | G165: ºL | H165: MCU | J165: Late? | M165: Hops | U165: AA% | W165: Ounces | AC165: IBU | AE165: Utilization | AG165: =IF(YeastStrain2PG="","",YeastStrain2PG) ->  | AJ165: =IF(AL95="","",AL95) -> 
B166: =IF(B81="","",B81) ->  | D166: =IF(J81="","",J81) ->  | F166: =IF(K81="","",K81) ->  | G166: =IF(M81="","",M81) ->  | H166: =IF(N81="","",N81) ->  | J166: =IF(B81="","",U81) ->  | L166: =IF(Y81="","",Y81) ->  | U166: =IF(AG81="","",AG81) ->  | W166: =IF(Y81="","",IF(HopsMeasurement="Ounces",IF(AH81="","",AH81),IF(AH81="","",AK81))) ->  | AC166: =IF(Y81="","",IF(HopsMeasurement="Ounces",IF(AH81="","",AK81),IF(AH81="","",AH81))) ->  | AE166: =IF(Y81="","",AM81) ->  | AG166: =IF(YeastStrain2PG="","",D95) ->  | AH166: =IF(YeastStrain2PG="","",E95) ->  | AI166: =IF(YeastStrain2PG="","",YeastAttenuation2LPG) ->  | AJ166: =IF(YeastStrain2PG="","",YeastAttenuation2HPG) ->  | AL166: =IF(YeastStrain2PG="","",E95) -> 
B167: =IF(B82="","",B82) ->  | D167: =IF(J82="","",J82) ->  | F167: =IF(K82="","",K82) ->  | G167: =IF(M82="","",M82) ->  | H167: =IF(N82="","",N82) ->  | J167: =IF(B82="","",U82) ->  | L167: =IF(Y82="","",Y82) ->  | U167: =IF(AG82="","",AG82) ->  | AE167: =IF(Y82="","",AM82) -> 
AG168: Parti-gyle Fermenation | AK168: Fermentation Schedule
AG169: Primary | AI169: =IF(DaysFermentationPG="","",DaysFermentationPG) ->  | AK169: =IF(DaysFermentation="","",DaysFermentation) ->  | AM169: Primary
AG170: Diacetyl Rest | AI170: =IF(DaysDiacetylRestPG="","",DaysDiacetylRestPG) ->  | AK170: =IF(DaysDiacetylRest="","",DaysDiacetylRest) ->  | AM170: Diacetyl Rest
AG171: Cold Crash | AI171: =IF(DaysColdCrashPG="","",DaysColdCrashPG) ->  | AK171: =IF(DaysColdCrash="","",DaysColdCrash) ->  | AM171: Cold Crash
AG172: Conditioning | AI172: =IF(DaysConditioningPG="","",DaysConditioningPG) ->  | AK172: =IF(DaysConditioning="","",DaysConditioning) ->  | AM172: Conditioning
AG173: Aging | AI173: =IF(DaysAgingPG="","",DaysAgingPG) ->  | AK173: =IF(DaysAging="","",DaysAging) ->  | AM173: Aging
AG174: Rest Date | AM174: Rest Date
AG175: Crash Date | AM175: Crash Date
B176: Total Grain Weight: | D176: =IF(TotalGrainWeightPG="","",TotalGrainWeightPG) -> 0 | T176: Totals: | W176: =SUM(W166:AB175) -> 0 | AC176: =TotalIBUPG ->  | AG176: Transfer Date | AM176: Transfer Date
AG177: Transfer Date | AM177: Transfer Date
AG178: Packaging Date | AM178: Packaging

Sheet Calculators
B2: Temperature Conversions | G2: Specific Gravity ↔ Plato | L2: Yeast Pitching Rate | Q2: Yeast Propagation
B3: Farenhieght | C3: is equal to | D3: Celsius | E3: Kelvin | G3: SG | H3: converts to | J3: ºP | L3: Yeast Preparation | N3: Stirplate Starter | Q3: Required Cell Count | S3: 800 | T3: billion | U3: =IF(Y3="","",IF(Y3="--","--",1000*Y3/(VLOOKUP($S$4,Tables!$C$15:$F$20,4,0)))) -> 1600 | W3: Step | Y3: =IF(S3="","",IF(Z3="","",IF(T6="","",IF(S3/Z3<=T6,"--",S3/Z3)))) -> 400 | Z3: 2 | AA3: Growth Factors for each step affect growth to the next step.
B4: 72 | C4: = | D4: =IF(B4="","",(B4-32)*5/9) -> 22.22222222 | E4: =IF(B4="","",(B4+459.67)*5/9) -> 295.3722222 | G4: 1.022 | H4: = | J4: =IF(G4="","",ROUND((668.72*G4)-463.37-(205.347*G4^2),1)) -> 5.6 | L4: Wort OG in ºPlato | N4: 14.1 | Q4: Yeast Preparation | S4: Stirplate Starter | U4: =IF(Y4="","",IF(Y4="--","--",1000*Y4/(VLOOKUP($S$4,Tables!$C$15:$F$20,4,0)))) -> 800 | W4: Step | Y4: =IF(Z4="","",IF(Y3="","",IF($T$6="","",IF(Y3="--","--",IF(Y3/Z4<=$T$6,"--",Y3/Z4))))) -> 200 | Z4: 2
B5: Celsius | C5: is equal to | D5: Farenhieght | E5: Kelvin | G5: ºP | H5: converts to | J5: SG | L5: Wort Volume (gal) | N5: 10.5 | Q5: Pitch Volume | S5: =IF(S3="","",1000*S3/(VLOOKUP(S4,Tables!$C$15:$F$20,4,0))) -> 3200 | T5: mL | U5: =IF(Y5="","",IF(Y5="--","--",1000*Y5/(VLOOKUP($S$4,Tables!$C$15:$F$20,4,0)))) -> -- | W5: Step | Y5: =IF(Z5="","",IF(Y4="","",IF($T$6="","",IF(Y4="--","--",IF(Y4/Z5<=$T$6,"--",Y4/Z5))))) -> -- | Z5: 2
B6: 121 | C6: = | D6: =IF(B6="","",B6/5*9+32) -> 249.8 | E6: =IF(B6="","",B6+273.15) -> 394.15 | G6: 19 | H6: = | J6: =IF(G6="","",ROUND(1+((0.082636+(3.848*G6)+(0.014563*G6^2))/1000),3)) -> 1.078 | L6: Ale or Lager? | N6: Lager (1.5 mcpmLpdP) | Q6: Culture Size (bil cells) | S6: 1 | T6: =IF(S6="","",ROUND(S6*VLOOKUP(S7,Tables!$C$15:$F$20,4,0)/1000,0)) -> 100 | U6: =IF(Y6="","",IF(Y6="--","--",1000*Y6/(VLOOKUP($S$4,Tables!$C$15:$F$20,4,0)))) ->  | W6: Step | Y6: =IF(Z6="","",IF(Y5="","",IF($T$6="","",IF(Y5="--","--",IF(Y5/Z6<=$T$6,"--",Y5/Z6))))) -> 
B7: Kelvin | C7: is equal to | D7: Celsius | E7: Farenhieght | L7: Desired Cell Count | N7: =IF(N4="","",IF(N5="","",(IF(N6="Ale (.75 mcpmLpdP)",(0.00075)*N5*3785*N4,(0.0015)*N5*3785*N4)))) -> 840.553875 | O7: =IF(N7="",""," billion") -> billion | Q7: Starting Culture | S7: White Labs Vials | U7: =IF(Y7="","",IF(Y7="--","--",1000*Y7/(VLOOKUP($S$4,Tables!$C$15:$F$20,4,0)))) ->  | W7: Step | Y7: =IF(Z7="","",IF(Y6="","",IF($T$6="","",IF(Y6="--","--",IF(Y6/Z7<=$T$6,"--",Y6/Z7))))) -> 
B8: 373.15 | C8: = | D8: =IF(B8="","",B8-273.15) -> 100 | E8: =IF(B8="","",B8*9/5-459.67) -> 212 | L8: Pitch Volume (mL) | N8: =IF(N4="","",IF(N5="","",(IF(N6="Ale (.75 mcpmLpdP)",N5*3785*N4*(750000),N5*3785*N4*(1500000)))/(VLOOKUP(N3,Tables!$C$15:$F$20,4,0)*1000000))) -> 3362.2155 | Q8: calculates backwards from required cell count | U8: mL | Y8: bil cells
G9: Refractometer Correction | L9: White Labs/Wyeast, enter # of packages for Volume | Q9: Culture Size (bil cells) | S9: 1 | T9: =IF(S9="","",ROUND(S9*VLOOKUP(S10,Tables!$C$15:$F$20,4,0)/1000,0)) -> 100 | U9: =IF(Y9="","",IF(Y9="--","--",1000*Y9/(VLOOKUP($S$12,Tables!$C$15:$F$20,4,0)))) -> 1600 | W9: Step | Y9: =IF(Z9="","",IF(T9="","",IF(T9>=$S$11,"--""",T9*Z9))) -> 400 | Z9: 4 | AA9: Growth Factors for each step affect growth to the next step.
G10: Starting Brix Reading | J10: 14.3 | Q10: Starting Culture | S10: White Labs Vials | U10: =IF(Y10="","",IF(Y10="--","--",1000*Y10/(VLOOKUP($S$12,Tables!$C$15:$F$20,4,0)))) -> 3200 | W10: Step | Y10: =IF(Z10="","",IF(Y9="","",IF(Y9="--","--",IF(Y9>=$S$11,"--",Y9*Z10)))) -> 800 | Z10: 2
B11: Volume Conversions | G11: Starting Gravity | J11: =IF(J10="","",ROUND(1+((0.082636+(3.848*(J10*J18))+(0.014563*(J10*J18)^2))/1000),3)) -> 1.058 | L11: Weight of a Volume of Liquid | Q11: Required Cell Count | S11: 841 | T11: billion | U11: =IF(Y11="","",IF(Y11="--","--",1000*Y11/(VLOOKUP($S$12,Tables!$C$15:$F$20,4,0)))) ->  | W11: Step | Y11: =IF(Z11="","",IF(Y10="","",IF(Y10="--","--",IF(Y10>=$S$11,"--",Y10*Z11)))) -> 
B12: Gallons | C12: Liters | D12: Barrels | E12: fl. Oz | G12: Ending Brix Reading | J12: 6.5 | L12: fl. Oz | M12: SG | N12: gives us | O12: Ounces | Q12: Yeast Preparation | S12: Stirplate Starter | U12: =IF(Y12="","",IF(Y12="--","--",1000*Y12/(VLOOKUP($S$12,Tables!$C$15:$F$20,4,0)))) ->  | W12: Step | Y12: =IF(Z12="","",IF(Y11="","",IF(Y11="--","--",IF(Y11>=$S$11,"--",Y11*Z12)))) -> 
B13: 1 | C13: =IF(B13="","",B13*3.785) -> 3.785 | D13: =IF(B13="","",B13/31) -> 0.03225806452 | E13: =IF(B13="","",B13*128) -> 128 | G13: Ending Gravity | J13: =IF(J10="","",IF(J12="","",(1.001843-(0.002318474*(J10*J18))-(0.000007775*(J10*J18)^2)-(0.000000034*(J10*J18)^3)+(0.00574*(J12*J18))+(0.00003344*(J12*J18)^2)+(0.000000086*(J12*J18)^3)) )) -> 1.005745947 | L13: 512 | M13: 1.093 | N13: → | O13: =IF(L13="","",IF(M13="","",PRODUCT(1.04,L13,M13))) -> 582.00064 | Q13: Pitch Volume | S13: =IF(S11="","",1000*S11/(VLOOKUP(S12,Tables!$C$15:$F$20,4,0))) -> 3364 | T13: mL | U13: =IF(Y13="","",IF(Y13="--","--",1000*Y13/(VLOOKUP($S$12,Tables!$C$15:$F$20,4,0)))) ->  | W13: Step | Y13: =IF(Z13="","",IF(Y12="","",IF(Y12="--","--",IF(Y12>=$S$11,"--",Y12*Z13)))) -> 
B14: Liters | C14: Gallons | D14: fl. Oz | E14: Pints | G14: Apparent Extract | J14: =IF(J13="","",ROUND((668.72*J13)-463.37-(205.347*J13^2),2)) -> 1.48 | L14: Gallons | M14: SG | N14: gives us | O14: Pounds | Q14: calculates forwards from starting culture | U14: culture size/pitch volume = WL/WY vials/packs, wort mL, slurry grams
B15: 1 | C15: =IF(B15="","",B15/3.785) -> 0.2642007926 | D15: =IF(B15="","",C15*128) -> 33.81770145 | E15: =IF(B15="","",C15*8) -> 2.113606341 | G15: Refractometer Calibration | L15: 11 | M15: 1.093 | N15: → | O15: =IF(L15="","",IF(M15="","",PRODUCT(8.32,L15,M15))) -> 100.03136
B16: fl. Oz | C16: mL | D16: Gallons | E16: Liters | G16: Calibrated Hydrometer SG | Q16: Beer Properties
B17: 25.4 | C17: =IF(B17="","",B17*29.5735 ) -> 751.1669 | D17: =IF(B17="","",B17/128) -> 0.1984375 | E17: =IF(B17="","",D17*3.785) -> 0.7510859375 | G17: Refractometer Brix Reading | Q17: OG ºP | R17: FG ºP | S17: AA | T17: RA | U17: RE ºP | W17: ABV | Y17: ABW | Z17: Calories
B18: mL | C18: fl. Oz | D18: Gallons | E18: Pints | G18: Refractometer Correction Value | J18: =IF(J16="","1",IF(J17="","1",J17/(ROUND((668.72*J16)-463.37-(205.347*G4^2),2)))) -> 1 | L18: AAUs to Ounces of Hops | Q18: 19 | R18: 5.6 | S18: =IF(Q18="","",IF(R18="","",1-(R18/Q18))) -> 0.7052631579 | T18: =IF(Q18="","",IF(R18="","",1-(((0.1808*Q18)+(0.8192*R18))/Q18))) -> 0.5777515789 | U18: =IF(Q18="","",IF(R18="","",((0.1808*Q18)+(0.8192*R18)))) -> 8.02272 | W18: =IF(Q18="","",IF(R18="","",((ROUND(1+((0.082636+(3.848*Q18)+(0.014563*Q18^2))/1000),3))-(ROUND(1+((0.082636+(3.848*R18)+(0.014563*R18^2))/1000),3)))*1.3125)) -> 0.0735 | Y18: =IF(Q18="","",IF(R18="","",((Q18-((0.1808*Q18)+(0.8192*R18)))/(2.0665-(0.010665*Q18)))/100)) -> 0.05889525261 | Z18: =IF(Q18="","",IF(R18="","",(6.9*Y18*100 + 4*(((0.1808*Q18)+(0.8192*R18))-0.1))*3.55*(ROUND(1+((0.082636+(3.848*R18)+(0.014563*R18^2))/1000),3)))) -> 262.4154093
B19: 750 | C19: =IF(B19="","",B19*0.03381) -> 25.3575 | D19: =IF(B19="","",C19/128) -> 0.1981054687 | E19: =IF(B19="","",C19/16) -> 1.58484375 | G19: blank the values if you don't perform calibration | L19: AAUs | M19: AA% | N19: requires | O19: Ounces | Q19: FG Hyrdro | R19: FG Refrax | S19: OG ºP | T19: OG SG | U19: RE ºP | W19: ABV | Y19: ABW | Z19: Calories
B20: Barrels | C20: Gallons | D20: Liters | E20: Pints | L20: 15 | M20: 0.089 | N20: → | O20: =IF(L20="","",IF(M20="","",L20/(M20*100))) -> 1.685393258 | Q20: 1.007 | R20: 6.5 | S20: =IF(T20="","",ROUND((668.72*T20)-463.37-(205.347*T20^2),1)) -> 14.3 | T20: =IF(Q20="","",IF(R20="","",ROUND((((U20-(0.8192*R20))/0.01808)+1000)/1000,3))) -> 1.058 | U20: =IF(Q20="","",IF(R20="","",(194.5935+(129.8*Q20)+((1.33302+(0.1427193*R20)+(0.000005791157*R20^2))*((410.8815*(1.33302+(0.1427193*R20)+(0.000005791157*R20^2)))-790.8732)))/100)) -> 6.375498478 | W20: =IF(Q20="","",IF(R20="","",(277.8851-(277.4*Q20)+(0.9956*R20)+(0.00523*R20^2)+(0.000013*R20^3))*(Q20/79))) -> 0.06678369985 | Y20: =IF(Q20="","",IF(R20="","",(1017.5596-(277.4*Q20)+((1.33302+(0.001427193*R20)+(0.000005791157*R20^2))*((937.8135*(1.33302+(0.001427193*R20)+(0.000005791157*R20^2)))-1805.1228)))/100)) -> 0.05097111338 | Z20: =IF(Q20="","",IF(R20="","",((690*Y20)+(4*(U20-0.1)))*Q20*3.55)) -> 215.4635814
B21: 1 | C21: =IF(B21="","",B21*31) -> 31 | D21: =IF(B21="","",C21*3.785) -> 117.335 | E21: =IF(B21="","",C21*8) -> 248 | G21: Hydrometer Correction | L21: IBU Calculators | Q21: calories are per 12 fluid ounces, lower calculators needs verification fudging was done
G22: Sample Temp | I22: 40 | J22: Fahrenheit | L22: AA% | M22: Time | N22: Ounces | O22: IBU
G23: Calibration Temp | I23: 59 | J23: Fahrenheit | L23: 8.9 | M23: 60 | N23: 2 | O23: =IF(L23="","",IF(M23="","",IF(L25="","",IF(M25="","",IF(N23="","",(((1.65*0.000125^((L25)-1)))*((1-EXP(-0.04*M23))/4.15))*L23*N23*74.9/M25))))) -> 25.1706458 | Q23: Hops Aging
B24: Mass / Weight Conversions | G24: Measured Gravity | I24: 1.056 | J24: SG | L24: Gravity | M24: Volume | N24: IBU | O24: Ounces | Q24: AA% | R24: % Lost | S24: Days | T24: Temp | U24: ºF | V24: Storage Methods | AA24: AA% Now
B25: Ounces | C25: Grams | D25: Pounds | E25: Kilograms | G25: Actual Gravity | I25: =IF(I22="","",IF(I24="","",I24+((1.313454-(0.132674*I22)+(0.002057793*(I22^2))-(0.000002627634*(I22^3)))/1000))) -> 1.055130794 | J25: SG | L25: 1.052 | M25: 12 | N25: 25.2 | O25: =IF(L23="","",IF(M23="","",IF(L25="","",IF(M25="","",IF(N25="","",M25*N25/((((1.65*0.000125^((L25)-1)))*((1-EXP(-0.04*M23))/4.15))*L23*74.9)))))) -> 2.002332415 | Q25: 0.048 | R25: 0.5 | S25: 1850 | T25: 10 | V25: Sealed in barrier, O2 present | AA25: =IF(Q25="","",IF(R25="","",IF(S25="","",IF(T25="","",Q25*1/((EXP(VLOOKUP(R25*100,Tables!$P$16:$Q$66,2,0)*(IF(U24="ºF",VLOOKUP(ROUND((T25-32)*5/9,0),Tables!$L$16:$N$65,3,0),VLOOKUP(T25,Tables!$L$16:$N$65,3,0)))*VLOOKUP(V25,Tables!$C$32:$J$34,8,0)*S25))))))) -> 0.01420016396
B26: 88 | C26: =IF(B26="","",B26*28.34952 ) -> 2494.75776 | D26: =IF(B26="","",B26/16) -> 5.5 | E26: =IF(B26="","",D26*0.45359) -> 2.494745 | G26: multiple calibrations not yet supported, only 59 ºF | L26: HBUs = AAUs | N26: Tinseth used for IBUs | Q26: if % left is given subtract it from 100 for % lost, if HSI is given use converter below
B27: Pounds | C27: Kilograms | D27: Ounces | E27: Grams | Q27: Hops Variety | S27: AA% | T27: Temp | U27: ºF | V27: Days | W27: Storage Methods | AA27: AA% Now
B28: 1 | C28: =IF(B28="","",B28*0.45359) -> 0.45359 | D28: =IF(B28="","",B28*16) -> 16 | E28: =IF(B28="","",D28*28.34952 ) -> 453.59232 | G28: White Labs ↔ Wyeast | L28: Boiloff in Gallons/Minute | Q28: East Kent Goldings | S28: 0.048 | T28: 20 | V28: 420 | W28: Sealed in barrier, no O2 | AA28: =IF(S28="","",IF(T28="","",IF(V28="","",S28*1/(EXP(VLOOKUP(VLOOKUP(Q28,Tables!$T$15:$Y$42,6,0),Tables!$P$16:$Q$66,2,0)*(IF(U27="ºF",VLOOKUP(ROUND((T28-32)*5/9,0),Tables!$L$16:$N$65,3,0),VLOOKUP(T28,Tables!$L$16:$N$65,3,0)))*VLOOKUP(W28,Tables!$C$32:$J$34,8,0)*V28)) ))) -> 0.0392952879
B29: Grams | C29: Ounces | D29: Kilograms | E29: Pounds | G29: Yeast Strain | I29: Counterpart | L29: Starting Volume | M29: Ending Volume | N29: Boil Time | O29: Boiloff Rate | Q29: if hops stability is unknown use this calculator for generic varietal values
B30: 50 | C30: =IF(B30="","",B30/28.4) -> 1.76056338 | D30: =IF(B30="","",B30/1000) -> 0.05 | E30: =IF(B30="","",B30/28.4/16) -> 0.1100352113 | G30: White Labs WLP001 | I30: =IF(G30="","",VLOOKUP(G30,Yeast!A2:K130,11,0)) -> Wyeast 1056
B31: Kilograms | C31: Pounds | D31: Ounces | E31: Grams | L31: 6.5 | M31: 5.5 | N31: 60 | O31: =IF(L31="","",IF(M31="","",IF(N31="","",(L31-M31)/N31))) -> 0.01666666667 | Q31: Dilution | Y31: HSI to % Lost
B32: 1 | C32: =IF(B32="","",B32*2.2) -> 2.2 | D32: =IF(B32="","",B32*35.2) -> 35.2 | E32: =IF(B32="","",B32*1000) -> 1000 | Q32: Volume 1 | R32: Gravity 1 | S32: Volume 2 | T32: Gravity 2 | U32: Volume | W32: Gravity | Y32: HSI | Z32: equals | AB32: % Lost
G33: Unit Prefix Converters | Q33: 3 | R33: 1.05 | S33: 4 | T33: 1.014 | U33: =IF(Q33="","",IF(S33="","",Q33+S33)) -> 7 | W33: =IF(Q33="","",IF(R33="","",IF(S33="","",IF(T33="","",IF(U33="","",1+((((R33-1)*Q33)+((T33-1)*T33))/U33)))))) -> 1.023456571 | Y33: 0.7 | Z33: = | AB33: =IF(Y33="","",LOG(Y33/0.25)*1.1) -> 0.4918738345
G34: Prefixed | H34: Remove Unit Prefix | J34: Base Units | L34: Grain Color | Q34: volumes in gallons, gravities in specific gravity, 1.000 for water | Y34: converter needs verification
B35: Pressure Conversions | G35: 15 | H35: kilo | J35: =IF(G35="","",IF(H35="","",G35*(10^(VLOOKUP(H35,Calculators!$AB$37:$AC$56,2,0))))) -> 15000 | L35: EBC | M35: converts to | O35: ASBC
B36: PSI | C36: atm | D36: kPa | E36: bars | G36: Base Units | H36: Add Unit Prefix | J36: Prefixed | L36: 8 | M36: = | O36: =L36/1.97 -> 4.060913706 | Q36: Area & Perimeter | AA36: Unit Powers
B37: 14.7 | C37: =IF(B37="","",B37*0.068046) -> 1.0002762 | D37: =IF(B37="","",B37*6.8927) -> 101.32269 | E37: =IF(B37="","",B37*0.068948) -> 1.0135356 | G37: 3785 | H37: kilo | J37: =IF(G37="","",IF(H37="","",G37/(10^(VLOOKUP(H37,Calculators!$AB$37:$AC$56,2,0))))) -> 3.785 | L37: ASBC | M37: converts to | O37: EBC | Q37: Shape | S37: Height or Radius | T37: Width or Base | U37: Third Side | W37: Area (unit²) | X37: Perim. (unit) | AA37: Y | AB37: yotta | AC37: 24
B38: atm | C38: PSI | D38: kPa | E38: bars | G38: top calculator multiplies by 10^power, bottom divides | L38: 47 | M38: = | O38: =L38*1.97 -> 92.59 | AA38: Z | AB38: zetta | AC38: 21
B39: 1 | C39: =IF(B39="","",B39*14.696) -> 14.696 | D39: =IF(B39="","",B39*101.295) -> 101.295 | E39: =IF(B39="","",B39*1.01295) -> 1.01295 | L39: IOB | M39: converts to | O39: ASBC | Q39: Rectangle for squares | S39: 1 | T39: 2 | U39: N/A | W39: =IF(S39="","",IF(T39="","",S39*T39)) -> 2 | X39: =IF(S39="","",IF(T39="","",(2*S39)+(2*T39))) -> 6 | AA39: E | AB39: exa | AC39: 18
B40: kPa | C40: PSI | D40: atm | E40: bars | G40: Grain Extract / Dry Yield | L40: 60 | M40: = | O40: =((L40/0.8)+1.2)/2.65 -> 28.75471698 | Q40: Circle | S40: 1 | T40: N/A | U40: N/A | W40: =IF(S40="","",PI()*S40^2) -> 3.141592654 | X40: =IF(S40="","",2*PI()*S40) -> 6.283185307 | AA40: P | AB40: peta | AC40: 15
B41: 1000 | C41: =IF(B41="","",B41*0.14508) -> 145.08 | D41: =IF(B41="","",B41*0.009869) -> 9.869 | E41: =IF(B41="","",B41*0.01) -> 10 | G41: Hot Water Extract | I41: Dry Yield | L41: EBC (old) | M41: converts to | O41: ASBC | Q41: Triangle use side lengths | S41: 3 | T41: 2 | U41: 2 | W41: =IF(S41="","",IF(T41="","",IF(U41="","",IF(S41>=X41/2,"N/A",IF(T41>=X41/2,"N/A",IF(U41>=X41/2,"N/A",SQRT((((S41^2)+(T41^2)+(U41^2))^2)-(2*((S41^4)+(T41^4)+(U41^4))))/4)))))) -> 1.984313483 | X41: =IF(S41="","",IF(T41="","",IF(U41="","",S41+T41+U41))) -> 7 | AA41: T | AB41: tera | AC41: 12
B42: bars | C42: PSI | D42: atm | E42: kPa | G42: 305 | I42: = | J42: =IF(G42="","",G42/386.5) -> 0.7891332471 | L42: 17.5 | M42: = | O42: =(L42+1.2)/2.65 -> 7.056603774 | Q42: if triangle area reads N/A the triangle dimensions are not possible | AA42: G | AB42: giga | AC42: 9
B43: 25 | C43: =IF(B43="","",B43*14.503861) -> 362.596525 | D43: =IF(B43="","",B43*0.9872) -> 24.68 | E43: =IF(B43="","",B43*100) -> 2500 | G43: Dry Yield | I43: Hot Water Extract | L43: ASBC | M43: converts to | O43: EBC (old) | AA43: M | AB43: mega | AC43: 6
G44: 0.79 | I44: = | J44: =IF(G44="","",G44*386.5) -> 305.335 | L44: 8.4 | M44: = | O44: =(L44*2.65)-1.2 -> 21.06 | Q44: Surface Area & Volume | AA44: k | AB44: kilo | AC44: 3
L45: use old EBC for references prior to 1991 | Q45: Shape | S45: Height | T45: Width or Base | U45: Length or Radius | W45: Surface Area | X45: Volume | AA45: h | AB45: hecto | AC45: 2
AA46: da | AB46: deka | AC46: 1
B47: Water Chemistry - Big Ups to John Palmer | Q47: Rectangular Prism | S47: 1 | T47: 2 | U47: 3 | W47: =IF(S47="","",IF(T47="","",IF(U47="","",(2*S47*T47)+(2*S47*U47)+(2*T47*U47)))) -> 22 | X47: =IF(S47="","",IF(T47="","",IF(U47="","",S47*T47*U47))) -> 6 | AA47: da | AB47: deci | AC47: -1
B48: 8 | C48: Target SRM | E48: Target Low RA | H48: =IF(B48="","",12.2*B48-122.4) -> -24.8 | I48: =IF(B48="","",(B48-5.2)*12.2) -> 34.16 | J48: Target High RA | M48: Dilution | O48: 0 | Q48: Sphere | S48: enter radius: | U48: 1 | W48: =IF(U48="","",4*PI()*U48^2) -> 12.56637061 | X48: =IF(U48="","",4/3*PI()*U48^3) -> 4.188790205 | AA48: c | AB48: centi | AC48: -2
B49: Source | C49: Target | D49: Water Attributes | H49: Diluted | I49: Final | J49: Additions | K49: Chalk CaCO3 | Q49: Cylinder | S49: 5 | T49: N/A | U49: 2 | W49: =IF(S49="","",IF(U49="","",(2*PI()*U49^2)+(2*PI()*U49*S49))) -> 87.9645943 | X49: =IF(S49="","",IF(U49="","",PI()*S49*U49^2)) -> 62.83185307 | AA49: m | AB49: milli | AC49: -3
B50: 6.7 | C50: 250 | D50: Calcium (ppm) (50-150) | H50: =IF(B50="","",IF($O$48="",B50,(1-$O$48)*B50)) -> 6.7 | I50: =H50+J50 -> 6.7 | J50: =IF(B62="",0,(O49*105.89+O50*60+O51*72)/B62) -> 0 | K50: Gypsum CaSO4*2H2O | Q50: Cone (right circular) | S50: 4 | T50: N/A | U50: 3 | W50: =IF(S50="","",IF(U50="","",(PI()*U50^2)+(PI()*U50*SQRT((S50^2)+(U50^2))))) -> 75.39822369 | X50: =IF(S50="","",IF(S50="","",(PI()*S50*U50^2)/3)) -> 37.69911184 | AA50: μ | AB50: micro | AC50: -6
B51: 2 | C51: 25 | D51: Magnesium (ppm) (10-30) | H51: 2 | I51: =H51+J51 -> 2 | J51: =IF(B62="",0,O52*24.6/B62) -> 0 | K51: Calcium Chloride CaCl2*2H2O | Q51: Dome radius of curvature | S51: 1 | T51: N/A | U51: 2 | W51: =IF(S51="","",IF(U51="","",2*PI()*S51*U51)) -> 12.56637061 | X51: =IF(S51="","",IF(U51="","",(PI()*U51*S51^2)-((PI()*S51^3)/3))) -> 5.235987756 | AA51: n | AB51: nano | AC51: -9
B52: 13 | C52: 451 | D52: Alkalinity as CaCO3 | H52: 13 | I52: =IF(D52="Bicarbonate (ppm)", 50/61*H52+J52,H52+J52) -> 288.2377049 | J52: =O56*50/61 -> 275.2377049 | K52: Epsom Salt MgSO4*7H2O | Q52: Pyramid (4 sided) | S52: 5 | T52: 4 | U52: 4 | W52: not done | X52: =IF(S52="","",IF(T52="","",IF(U52="","",S52*T52*U52/3))) -> 26.66666667 | AA52: p | AB52: pico | AC52: -12
B53: 9 | C53: 70 | D53: Sodium (ppm) (0-150) | H53: 9 | I53: =H53+J53 -> 135.525 | J53: =IF(B62="",0,(O53*72.3/B62)+(O54*104/B62)) -> 126.525 | K53: Baking Soda NaHCO3 | O53: 14 | Q53: Pyramid (3 sided) | S53: 6 | T53: 3 | U53: 3 | W53: not done | X53: =IF(S53="","",IF(T53="","",IF(U53="","",S53*T53*U53/6))) -> 9 | AA53: f | AB53: femto | AC53: -15
B54: 14 | C54: 100 | D54: Chloride (ppm) (0-250) | H54: 14 | I54: =IF(B62="","",IF(N59="",H54+J54,H54+J54+(N59*12*M59/0.37*35.4/(B62*3.785)))) -> 14 | J54: =IF(B62="",0,(160*O54/B62)+(O51*127.47/B62)) -> 0 | K54: Table Salt NaCl | Q54: use consistent units, surface area is unit squared, volume is unit cubed | AA54: a | AB54: atta | AC54: -18
B55: 5 | C55: 280 | D55: Sulfate (ppm) (bitter 50-150, -350 very bitter) | H55: 5 | I55: =H55+J55 -> 5 | J55: =IF(B62="",0,(O50*147.4+O52*103)/B62) -> 0 | K55: Contributed Hardness | O55: =(J50/1.4)+(J51/1.7) -> 0 | AA55: z | AB55: zepto | AC55: -21
B56: 7.3 | C56: Water pH | K56: Added Bicarbonates (HCO3) | O56: =IF(B62="","",(O49*158+O53*191.88)/B62) -> 335.79 | AA56: y | AB56: yocto | AC56: -24
B57: =IF(B50="","",IF(B51="","",(B50/1.4)+(B51/1.7))) -> 5.962184874 | C57: =IF(C50="","",IF(C51="","",(C50/1.4)+(C51/1.7))) -> 193.2773109 | D57: Effective Hardness | H57: =IF(H50="","",IF(H51="","",(H50/1.4)+(H51/1.7))) -> 5.962184874 | I57: =IF(I50="","",IF(I51="","",(I50/1.4)+(I51/1.7))) -> 5.962184874 | J57: Target Residual Alkalinity | K57: Acid Additions | AA57: unit = x 10^power
B58: =IF(B52="","",IF(B57="","",IF($D$52="Bicarbonate (ppm)",(B52*50/61)-B57,B52-B57))) -> 7.037815126 | C58: =IF(C52="","",IF(C57="","",IF($D$52="Bicarbonate (ppm)",(C52*50/61)-C57,C52-C57))) -> 257.7226891 | D58: Residual Alkalinity as CaCO3 | H58: =IF(H52="","",IF(H57="","",IF($D$52="Bicarbonate (ppm)",(H52*50/61)-H57,H52-H57))) -> 7.037815126 | I58: =IF(I52="","",IF(I57="","",IF($D$52="Bicarbonate (ppm)",(I52*50/61)-I57,I52-I57))) -> 282.27552 | K58: Acid Type | M58: Conc. | N58: Used | O58: Estimated
B59: =IF(B58="","",IF(B58<-69,0,B58*0.082+5.2)) -> 5.77710084 | C59: =IF(C58="","",IF(C58<-69,0,C58*0.082+5.2)) -> 26.3332605 | D59: Estimated Low SRM | H59: =IF(H58="","",IF(H58<-69,0,H58*0.082+5.2)) -> 5.77710084 | I59: =IF(I58="","",IF(I58<-69,0,I58*0.082+5.2)) -> 28.34659264 | K59: Hydrochloric | M59: 33 | O59: =IF(M59="","",IF(H58>J60,3.785*B62*O62/50/((13.927*M59^2)+(27.319*M59)),0)) -> 0 | Q59: Efficiencies
B60: =IF(B58="","",IF(B58<-128,0,(B58+122.4)/12.2)) -> 10.60965698 | C60: =IF(C58="","",IF(C58<-128,0,(C58+122.4)/12.2)) -> 31.15759747 | D60: Estimated High SRM | H60: =IF(H58="","",IF(H58<-128,0,(H58+122.4)/12.2)) -> 10.60965698 | I60: =IF(I58="","",IF(I58<-128,0,(I58+122.4)/12.2)) -> 33.17012459 | J60: 256 | K60: Lactic | M60: 88 | O60: =IF(M60="","",IF(B58>J60,0.88/M60*3.785*M60*B62/50/11.8,0)) -> 0 | Q60: Grain | S60: Pounds | T60: Potential | U60: GU | W60: PreBoil Gravity | Z60: 1.048 | AB60: Volume | AC60: 10
B61: =IF(B54="","",IF(B55="","",VLOOKUP(B54/B55,Tables!$C$25:$G$29,3,TRUE))) -> Very Malty | C61: =IF(C54="","",IF(C55="","",VLOOKUP(C54/C55,Tables!$C$25:$G$29,3,TRUE))) -> Very Bitter | D61: Chloride to Sulfate Balance | H61: =IF(H54="","",IF(H55="","",VLOOKUP(H54/H55,Tables!$C$25:$G$29,3,TRUE))) -> Very Malty | I61: =IF(I54="","",IF(I55="","",VLOOKUP(I54/I55,Tables!$C$25:$G$29,3,TRUE))) -> Very Malty | K61: used & estimated volumes are in mL | Q61: Pilsner (Best) | S61: 14 | T61: =IF(Q61=""," ",VLOOKUP(Q61,Grains!$A$53:$I$188,6,0)) ->  | U61: =IF(Q61="","",IF(S61="","",IF(VLOOKUP(Q61,Grains!$A$53:$I$188,9,0)="SUGARS",S61*((T61*1000)-1000),S61*((T61*1000)-1000)))) ->  | W61: Original Gravity | Z61: 1.052 | AB61: Volume | AC61: 9
B62: 8 | C62: Mash Volume (gallons) | E62: Additional Alkalinity Needed | I62: =IF(H58="","",IF(J60="","",IF(H58<J60,J60-H58,0))) -> 248.9621849 | J62: Additional Effective Hardness Needed | O62: =IF(H52="","",IF(B52="","",IF(H58="","",IF(J60="","",IF(H58>J60,IF($D$52="Bicarbonate (ppm)",50*B52/61,H52)-J60-H57,0))))) -> 0 | T62: =IF(Q62=""," ",VLOOKUP(Q62,Grains!$A$53:$I$188,6,0)) ->  | U62: =IF(Q62="","",IF(S62="","",IF(VLOOKUP(Q62,Grains!$A$53:$I$188,9,0)="SUGARS",S62*((T62*1000)-1000),S62*((T62*1000)-1000)))) ->  | W62: Mash Efficiency | AA62: =IF(Z60="","",IF(AC60="","",IF($U$70=0,"",(Z60-1)*1000*AC60/$U$70))) -> 
B63: to set target RA, use the target water profile to calculate target RA when trying to replicate a city, or use a number in the RA range when brewing a specific SRM beer | T63: =IF(Q63=""," ",VLOOKUP(Q63,Grains!$A$53:$I$188,6,0)) ->  | U63: =IF(Q63="","",IF(S63="","",IF(VLOOKUP(Q63,Grains!$A$53:$I$188,9,0)="SUGARS",S63*((T63*1000)-1000),S63*((T63*1000)-1000)))) ->  | W63: Brewhouse Efficiency | AA63: =IF(Z61="","",IF(AC61="","",IF($U$70=0,"",(Z61-1)*1000*AC61/$U$70))) -> 
B64: Converters: | C64: Alkalinity as CaCO3 → Bicarbonate as ppm | H64: 17.6 | I64: =IF(H64="","",61*H64/50) -> 21.472 | J64: Bicarbonate as ppm → Alkalinity | N64: 550 | O64: =IF(N64="","",(50*N64/61)) -> 450.8196721 | T64: =IF(Q64=""," ",VLOOKUP(Q64,Grains!$A$53:$I$188,6,0)) ->  | U64: =IF(Q64="","",IF(S64="","",IF(VLOOKUP(Q64,Grains!$A$53:$I$188,9,0)="SUGARS",S64*((T64*1000)-1000),S64*((T64*1000)-1000)))) ->  | W64: calculators below do not rely on the grain selections
B65: double check that all "target" references are correct in these calculators | T65: =IF(Q65=""," ",VLOOKUP(Q65,Grains!$A$53:$I$188,6,0)) ->  | U65: =IF(Q65="","",IF(S65="","",IF(VLOOKUP(Q65,Grains!$A$53:$I$188,9,0)="SUGARS",S65*((T65*1000)-1000),S65*((T65*1000)-1000)))) ->  | W65: PreBoil Gravity | Z65: 1.048 | AB65: Volume | AC65: 10
T66: =IF(Q66=""," ",VLOOKUP(Q66,Grains!$A$53:$I$188,6,0)) ->  | U66: =IF(Q66="","",IF(S66="","",IF(VLOOKUP(Q66,Grains!$A$53:$I$188,9,0)="SUGARS",S66*((T66*1000)-1000),S66*((T66*1000)-1000)))) ->  | W66: Original Gravity | Z66: 1.052 | AB66: Volume | AC66: 9
B67: Recipe Scaling | T67: =IF(Q67=""," ",VLOOKUP(Q67,Grains!$A$53:$I$188,6,0)) ->  | U67: =IF(Q67="","",IF(S67="","",IF(VLOOKUP(Q67,Grains!$A$53:$I$188,9,0)="SUGARS",S67*((T67*1000)-1000),S67*((T67*1000)-1000)))) ->  | W67: Total Potential Gravity Units | AC67: 522
B68: Grains | D68: Pounds | E68: Potential | F68: Late? | G68: GU | H68: Adj. GU | I68: Weighted Adj. GU | J68: % Adj. GU | K68: New Adj. GU | M68: New GU | N68: New % Weight | O68: New Pounds | T68: =IF(Q68=""," ",VLOOKUP(Q68,Grains!$A$53:$I$188,6,0)) ->  | U68: =IF(Q68="","",IF(S68="","",IF(VLOOKUP(Q68,Grains!$A$53:$I$188,9,0)="SUGARS",S68*((T68*1000)-1000),S68*((T68*1000)-1000)))) ->  | W68: Mash Efficiency | AA68: =IF(Z65="","",IF(AC65="","",IF(AC67="","",(Z65-1)*1000*AC65/AC67))) -> 0.9195402299
T69: =IF(Q69=""," ",VLOOKUP(Q69,Grains!$A$53:$I$188,6,0)) ->  | U69: =IF(Q69="","",IF(S69="","",IF(VLOOKUP(Q69,Grains!$A$53:$I$188,9,0)="SUGARS",S69*((T69*1000)-1000),S69*((T69*1000)-1000)))) ->  | W69: Brewhouse Efficiency | AA69: =IF(Z66="","",IF(AC66="","",IF(AC67="","",(Z66-1)*1000*AC66/AC67))) -> 0.8965517241
B70: Aromatic | D70: 14 | E70: =IF(B70=""," ",VLOOKUP(B70,Grains!$A$53:$I$188,6,0)) ->  | F70: N | G70: =IF(B70="","",IF(D70="","",(E70-1)*1000*D70)) ->  | H70: =IF(G70="","",IF($D$80="","",G70*$D$80)) ->  | I70: =IF(H70="","",IF(F70="N",H70,IF(F70="S",0,H70*Worksheet!ExtractGUFactor))) ->  | J70: =IF(H70="","",H70/SUM($H$70:$H$79)) ->  | K70: =IF(L70="","",IF(F70="N",L70,IF(F70="S",0,L70*Worksheet!ExtractGUFactor))) ->  | L70: =IF($H$81="","",IF(J70="","",IF($O$81="","",J70*($O$81-1)*1000*$H$81))) ->  | M70: =IF($H$80="","",IF(L70="","",L70/$H$80)) ->  | N70: =IF(O70="","",O70/SUM($O$70:$O$79)) ->  | O70: =IF(M70="","",IF(E70="","",M70/((E70-1)*1000))) ->  | Q70: potential GUs = weight of grains x potential of grain | U70: =SUM(U61:U69) ->  | W70: volumes in gallons, package volume for brewhouse eff.
D71: 6 | E71: =IF(B71=""," ",VLOOKUP(B71,Grains!$A$53:$I$188,6,0)) ->  | F71: N | G71: =IF(B71="","",IF(D71="","",(E71-1)*1000*D71)) ->  | H71: =IF(G71="","",IF($D$80="","",G71*$D$80)) ->  | I71: =IF(H71="","",IF(F71="N",H71,IF(F71="S",0,H71*Worksheet!ExtractGUFactor))) ->  | K71: =IF(L71="","",IF(F71="N",L71,IF(F71="S",0,L71*Worksheet!ExtractGUFactor))) ->  | L71: =IF($H$81="","",IF(J71="","",IF($O$81="","",J71*($O$81-1)*1000*$H$81))) ->  | M71: =IF($H$80="","",IF(L71="","",L71/$H$80)) ->  | N71: =IF(O71="","",O71/SUM($O$70:$O$79)) ->  | O71: =IF(M71="","",IF(E71="","",M71/((E71-1)*1000))) -> 
D72: 2 | E72: =IF(B72=""," ",VLOOKUP(B72,Grains!$A$53:$I$188,6,0)) ->  | F72: N | I72: =IF(H72="","",IF(F72="N",H72,IF(F72="S",0,H72*Worksheet!ExtractGUFactor))) ->  | K72: =IF(L72="","",IF(F72="N",L72,IF(F72="S",0,L72*Worksheet!ExtractGUFactor))) ->  | Q72: Carbonation & Priming
D73: 1 | E73: =IF(B73=""," ",VLOOKUP(B73,Grains!$A$53:$I$188,6,0)) ->  | F73: Y | I73: =IF(H73="","",IF(F73="N",H73,IF(F73="S",0,H73*Worksheet!ExtractGUFactor))) ->  | K73: =IF(L73="","",IF(F73="N",L73,IF(F73="S",0,L73*Worksheet!ExtractGUFactor))) ->  | Q73: Volume of Beer | S73: gallons | T73: 5 | U73: Serving Temperature | Z73: 39 | AB73: %CO2 of Gas
E74: =IF(B74=""," ",VLOOKUP(B74,Grains!$A$53:$I$188,6,0)) ->  | F74: N | I74: =IF(H74="","",IF(F74="N",H74,IF(F74="S",0,H74*Worksheet!ExtractGUFactor))) ->  | K74: =IF(L74="","",IF(F74="N",L74,IF(F74="S",0,L74*Worksheet!ExtractGUFactor))) ->  | Q74: Temperature of Beer | S74: ºF | T74: 65 | U74: Desired CO2 Volumes | Z74: 3 | AB74: 1
E75: =IF(B75=""," ",VLOOKUP(B75,Grains!$A$53:$I$188,6,0)) ->  | F75: N | I75: =IF(H75="","",IF(F75="N",H75,IF(F75="S",0,H75*Worksheet!ExtractGUFactor))) ->  | K75: =IF(L75="","",IF(F75="N",L75,IF(F75="S",0,L75*Worksheet!ExtractGUFactor))) ->  | Q75: Cane Sugar (sucrose) | T75: =IF(T73="","",IF(T74="","",IF(Z74="","",IF(VLOOKUP(Q75,Grains!A175:J187,10,0)="glucose",IF(S73="gallons",T73*3.785,T73)*(Z74-VLOOKUP(IF(S74="ºF",(T74-32)*5/9,T74),Tables!RESIDUAL_CO2,2,TRUE))/0.27027,IF(S73="gallons",T73*3.785,T73)*(Z74-VLOOKUP(IF(S74="ºF",(T74-32)*5/9,T74),Tables!RESIDUAL_CO2,2,TRUE))/0.286)))) -> 136.9746503 | U75: Force Carbonation Pressure | Z75: =IF(Z73="","",IF(Z74="","",(-16.6999-0.0101059*Z73+0.00116512*Z73^2+0.173354*Z73*Z74+4.24267*Z74-0.0684226*Z74^2)/(1-AB75))) -> 17.07274202 | AB75: =IF(AB74="",0,1-AB74) -> 0 | AC75: N2
E76: =IF(B76=""," ",VLOOKUP(B76,Grains!$A$53:$I$188,6,0)) ->  | F76: N | I76: =IF(H76="","",IF(F76="N",H76,IF(F76="S",0,H76*Worksheet!ExtractGUFactor))) ->  | K76: =IF(L76="","",IF(F76="N",L76,IF(F76="S",0,L76*Worksheet!ExtractGUFactor))) ->  | Q76: use grams for sugar, and PSI for pressure, only works if priming factor is set for sugar
E77: =IF(B77=""," ",VLOOKUP(B77,Grains!$A$53:$I$188,6,0)) ->  | F77: N | I77: =IF(H77="","",IF(F77="N",H77,IF(F77="S",0,H77*Worksheet!ExtractGUFactor))) ->  | K77: =IF(L77="","",IF(F77="N",L77,IF(F77="S",0,L77*Worksheet!ExtractGUFactor))) -> 
E78: =IF(B78=""," ",VLOOKUP(B78,Grains!$A$53:$I$188,6,0)) ->  | F78: N | I78: =IF(H78="","",IF(F78="N",H78,IF(F78="S",0,H78*Worksheet!ExtractGUFactor))) ->  | K78: =IF(L78="","",IF(F78="N",L78,IF(F78="S",0,L78*Worksheet!ExtractGUFactor))) ->  | Q78: Electrical Heating
E79: =IF(B79=""," ",VLOOKUP(B79,Grains!$A$53:$I$188,6,0)) ->  | F79: N | I79: =IF(H79="","",IF(F79="N",H79,IF(F79="S",0,H79*Worksheet!ExtractGUFactor))) ->  | K79: =IF(L79="","",IF(F79="N",L79,IF(F79="S",0,L79*Worksheet!ExtractGUFactor))) ->  | Q79: 6 | R79: Gallons | S79: 50 | T79: Starting Temp | W79: System Efficiency | Z79: 0.95
B80: Recipe Mash Efficiency | D80: 0.75 | E80: New Mash Effeciency | H80: 0.75 | I80: Original Pre-Boil Volume | L80: 12 | M80: Total Pounds | O80: =SUM(O70:O79) ->  | Q80: 1500 | R80: Watts | S80: 212 | T80: Target Temp | W80: Time to Temp (min) | Z80: =IF(Q79="","",IF(Q80="","",IF(S79="","",IF(S80="","",IF(Z79="","",+((Q79*8.33*453.59237)*(((5/9)*(S80-32))-((5/9)*(S79-32)))/(Q80*0.238845896628*Z79))/60))))) -> 99.91267866
B81: Original Volume | D81: 10.5 | E81: Target Volume | H81: 5.5 | I81: New Pre-Boil Volume | L81: 7 | M81: Original Gravity | O81: =IF(D81="","",((SUM(H70:H79)/D81)/1000)+1) ->  | Q81: Wattage Correction | U81: Minimum Breaker | Y81: Cost
B82: volumes are post-boil, set pre-boil volumes above for utilitization calculations | J82: New Boil Time | L82: 90 | M82: Recipe Boil Time | O82: 90 | Q82: 1500 | R82: Element Rated Watts | U82: Watts | W82: 1500 | Y82: Watts | Z82: 1500
B83: Hops | D83: Tinseth | E83: Ounces | F83: Time | H83: AA% | I83: =IF(E83="Ounces","IBU","Ounces") -> IBU | J83: Utilization | L83: New Utilization | N83: New Ounces | Q83: 120 | R83: Element Rated Voltage | U83: Voltage | W83: 120 | Y83: Minutes | Z83: 12
H84: =IF(B84="","",IF(Worksheet!fHopsAging="Yes",IF(Worksheet!HopsTemperature="","",IF(VLOOKUP(B84,Hops!$A$2:$K$124,11,0)="","",IF(VLOOKUP(B84,Hops!$A$2:$K$124,10,0)="","",VLOOKUP(B84,Hops!$A$2:$J$124,2,0)*1/(EXP(VLOOKUP(VLOOKUP(B84,Hops!$A$2:$J$124,10,0)*100,Tables!$P$16:$Q$66,2,0)*VLOOKUP(ROUND((Worksheet!HopsTemperature-32)*5/9,0),Tables!$L$16:$N$65,3,0)*VLOOKUP(Worksheet!HopsStorage,Tables!$C$32:$J$34,8,0)*(TODAY()-VLOOKUP(B84,Hops!$A$2:$K$124,11,0))))))),VLOOKUP(B84,Hops!$A$2:$J$124,2,0))) ->  | I84: =IF(J84="","",IF(E84="","",IF(H84="","",IF($L$80="","",IF($D$81="","",IF($E$83="Ounces",IF($D$83="Tinseth",E84*H84*J84*7490/(($L$80+$D$81)/2),E84*J84*H84*7462/(($L$80+$D$81)/2)),IF($D$83="Tinseth",(($L$80+$D$81)/2)*E84/(H84*J84*7490),(($L$80+$D$81)/2)*E84/(J84*H84*7462)))))))) ->  | J84: =IF(B84="","",IF(F84="","",IF($O$81="","",IF($O$82="","",IF(Worksheet!FWHFactor="","",IF(Worksheet!PelletHopFactor="","",IF(Worksheet!LeafHopFactor="","",IF(F84="dry hop",0,IF($D$83="Tinseth",((1-EXP(-0.04*IF(F84="FWH",$O$82,F84)))/4.15)*1.65*0.000125^((((((SUM($I$70:$I$79)/$L$80)+1000)/1000)+$O$81)/2)-1),18.11+13.86*TANH((F84-31.32)/18.27)/100)*IF(F84="FWH",Worksheet!FWHFactor,1)*IF(VLOOKUP(B84,Hops!$A$2:$J$124,8,0)="Pellet",Worksheet!PelletHopFactor,Worksheet!LeafHopFactor))))))))) ->  | L84: =IF(B84="","",IF(F84="","",IF($O$81="","",IF($L$82="","",IF(Worksheet!FWHFactor="","",IF(Worksheet!PelletHopFactor="","",IF(Worksheet!LeafHopFactor="","",IF(F84="dry hop",0,IF($D$83="Tinseth",((1-EXP(-0.04*IF(F84="FWH",$L$82,F84)))/4.15)*1.65*0.000125^((((((SUM($K$70:$K$79)/$L$81)+1000)/1000)+$O$81)/2)-1),18.11+13.86*TANH((F84-31.32)/18.27)/100)*IF(F84="FWH",Worksheet!FWHFactor,1)*IF(VLOOKUP(B84,Hops!$A$2:$J$124,8,0)="Pellet",Worksheet!PelletHopFactor,Worksheet!LeafHopFactor))))))))) ->  | N84: =IF(L84="","",IF(I84="","",IF(H84="","",IF($L$81="","",IF($H$81="","",IF($D$83="Tinseth",(($L$81+$H$81)/2)*I84/(H84*L84*7490),(($L$81+$H$81)/2)*I84/(L84*H84*7462))))))) ->  | Q84: 100 | R84: Actual Voltage | U84: Minimum Breaker | W84: =IF(W82="","",IF(W83="","",ROUNDUP(((W82/W83)*1.2)/5,0)*5)) -> 15 | Y84: $/kWh | Z84: 0.06
H85: =IF(B85="","",IF(Worksheet!fHopsAging="Yes",IF(Worksheet!HopsTemperature="","",IF(VLOOKUP(B85,Hops!$A$2:$K$124,11,0)="","",IF(VLOOKUP(B85,Hops!$A$2:$K$124,10,0)="","",VLOOKUP(B85,Hops!$A$2:$J$124,2,0)*1/(EXP(VLOOKUP(VLOOKUP(B85,Hops!$A$2:$J$124,10,0)*100,Tables!$P$16:$Q$66,2,0)*VLOOKUP(ROUND((Worksheet!HopsTemperature-32)*5/9,0),Tables!$L$16:$N$65,3,0)*VLOOKUP(Worksheet!HopsStorage,Tables!$C$32:$J$34,8,0)*(TODAY()-VLOOKUP(B85,Hops!$A$2:$K$124,11,0))))))),VLOOKUP(B85,Hops!$A$2:$J$124,2,0))) ->  | I85: =IF(J85="","",IF(E85="","",IF(H85="","",IF($L$80="","",IF($D$81="","",IF($E$83="Ounces",IF($D$83="Tinseth",E85*H85*J85*7490/(($L$80+$D$81)/2),E85*J85*H85*7462/(($L$80+$D$81)/2)),IF($D$83="Tinseth",(($L$80+$D$81)/2)*E85/(H85*J85*7490),(($L$80+$D$81)/2)*E85/(J85*H85*7462)))))))) ->  | J85: =IF(B85="","",IF(F85="","",IF($O$81="","",IF($O$82="","",IF(Worksheet!FWHFactor="","",IF(Worksheet!PelletHopFactor="","",IF(Worksheet!LeafHopFactor="","",IF(F85="dry hop",0,IF($D$83="Tinseth",((1-EXP(-0.04*IF(F85="FWH",$O$82,F85)))/4.15)*1.65*0.000125^((((((SUM($I$70:$I$79)/$L$80)+1000)/1000)+$O$81)/2)-1),18.11+13.86*TANH((F85-31.32)/18.27)/100)*IF(F85="FWH",Worksheet!FWHFactor,1)*IF(VLOOKUP(B85,Hops!$A$2:$J$124,8,0)="Pellet",Worksheet!PelletHopFactor,Worksheet!LeafHopFactor))))))))) ->  | L85: =IF(B85="","",IF(F85="","",IF($O$81="","",IF($L$82="","",IF(Worksheet!FWHFactor="","",IF(Worksheet!PelletHopFactor="","",IF(Worksheet!LeafHopFactor="","",IF(F85="dry hop",0,IF($D$83="Tinseth",((1-EXP(-0.04*IF(F85="FWH",$L$82,F85)))/4.15)*1.65*0.000125^((((((SUM($K$70:$K$79)/$L$81)+1000)/1000)+$O$81)/2)-1),18.11+13.86*TANH((F85-31.32)/18.27)/100)*IF(F85="FWH",Worksheet!FWHFactor,1)*IF(VLOOKUP(B85,Hops!$A$2:$J$124,8,0)="Pellet",Worksheet!PelletHopFactor,Worksheet!LeafHopFactor))))))))) ->  | N85: =IF(L85="","",IF(I85="","",IF(H85="","",IF($L$81="","",IF($H$81="","",IF($D$83="Tinseth",(($L$81+$H$81)/2)*I85/(H85*L85*7490),(($L$81+$H$81)/2)*I85/(L85*H85*7462))))))) ->  | Q85: =IF(Q82="","",IF(Q83="","",IF(Q84="","",+(Q84^2)/((Q83^2)/Q82)))) -> 1041.666667 | R85: Actual Wattage | Y85: Cost | Z85: =IF(Z82="","",IF(Z83="","",IF(Z84="","",Z82*Z83*Z84/6000))) -> 0.18
H86: =IF(B86="","",IF(Worksheet!fHopsAging="Yes",IF(Worksheet!HopsTemperature="","",IF(VLOOKUP(B86,Hops!$A$2:$K$124,11,0)="","",IF(VLOOKUP(B86,Hops!$A$2:$K$124,10,0)="","",VLOOKUP(B86,Hops!$A$2:$J$124,2,0)*1/(EXP(VLOOKUP(VLOOKUP(B86,Hops!$A$2:$J$124,10,0)*100,Tables!$P$16:$Q$66,2,0)*VLOOKUP(ROUND((Worksheet!HopsTemperature-32)*5/9,0),Tables!$L$16:$N$65,3,0)*VLOOKUP(Worksheet!HopsStorage,Tables!$C$32:$J$34,8,0)*(TODAY()-VLOOKUP(B86,Hops!$A$2:$K$124,11,0))))))),VLOOKUP(B86,Hops!$A$2:$J$124,2,0))) ->  | J86: =IF(B86="","",IF(F86="","",IF($O$81="","",IF($O$82="","",IF(Worksheet!FWHFactor="","",IF(Worksheet!PelletHopFactor="","",IF(Worksheet!LeafHopFactor="","",IF(F86="dry hop",0,IF($D$83="Tinseth",((1-EXP(-0.04*IF(F86="FWH",$O$82,F86)))/4.15)*1.65*0.000125^((((((SUM($I$70:$I$79)/$L$80)+1000)/1000)+$O$81)/2)-1),18.11+13.86*TANH((F86-31.32)/18.27)/100)*IF(F86="FWH",Worksheet!FWHFactor,1)*IF(VLOOKUP(B86,Hops!$A$2:$J$124,8,0)="Pellet",Worksheet!PelletHopFactor,Worksheet!LeafHopFactor))))))))) ->  | L86: =IF(B86="","",IF(F86="","",IF($O$81="","",IF($L$82="","",IF(Worksheet!FWHFactor="","",IF(Worksheet!PelletHopFactor="","",IF(Worksheet!LeafHopFactor="","",IF(F86="dry hop",0,IF($D$83="Tinseth",((1-EXP(-0.04*IF(F86="FWH",$L$82,F86)))/4.15)*1.65*0.000125^((((((SUM($K$70:$K$79)/$L$81)+1000)/1000)+$O$81)/2)-1),18.11+13.86*TANH((F86-31.32)/18.27)/100)*IF(F86="FWH",Worksheet!FWHFactor,1)*IF(VLOOKUP(B86,Hops!$A$2:$J$124,8,0)="Pellet",Worksheet!PelletHopFactor,Worksheet!LeafHopFactor))))))))) ->  | Q86: CAUTION: Formulas were taken from another spreadsheet and have not been verified as safe
H87: =IF(B87="","",IF(Worksheet!fHopsAging="Yes",IF(Worksheet!HopsTemperature="","",IF(VLOOKUP(B87,Hops!$A$2:$K$124,11,0)="","",IF(VLOOKUP(B87,Hops!$A$2:$K$124,10,0)="","",VLOOKUP(B87,Hops!$A$2:$J$124,2,0)*1/(EXP(VLOOKUP(VLOOKUP(B87,Hops!$A$2:$J$124,10,0)*100,Tables!$P$16:$Q$66,2,0)*VLOOKUP(ROUND((Worksheet!HopsTemperature-32)*5/9,0),Tables!$L$16:$N$65,3,0)*VLOOKUP(Worksheet!HopsStorage,Tables!$C$32:$J$34,8,0)*(TODAY()-VLOOKUP(B87,Hops!$A$2:$K$124,11,0))))))),VLOOKUP(B87,Hops!$A$2:$J$124,2,0))) ->  | J87: =IF(B87="","",IF(F87="","",IF($O$81="","",IF($O$82="","",IF(Worksheet!FWHFactor="","",IF(Worksheet!PelletHopFactor="","",IF(Worksheet!LeafHopFactor="","",IF(F87="dry hop",0,IF($D$83="Tinseth",((1-EXP(-0.04*IF(F87="FWH",$O$82,F87)))/4.15)*1.65*0.000125^((((((SUM($I$70:$I$79)/$L$80)+1000)/1000)+$O$81)/2)-1),18.11+13.86*TANH((F87-31.32)/18.27)/100)*IF(F87="FWH",Worksheet!FWHFactor,1)*IF(VLOOKUP(B87,Hops!$A$2:$J$124,8,0)="Pellet",Worksheet!PelletHopFactor,Worksheet!LeafHopFactor))))))))) ->  | L87: =IF(B87="","",IF(F87="","",IF($O$81="","",IF($L$82="","",IF(Worksheet!FWHFactor="","",IF(Worksheet!PelletHopFactor="","",IF(Worksheet!LeafHopFactor="","",IF(F87="dry hop",0,IF($D$83="Tinseth",((1-EXP(-0.04*IF(F87="FWH",$L$82,F87)))/4.15)*1.65*0.000125^((((((SUM($K$70:$K$79)/$L$81)+1000)/1000)+$O$81)/2)-1),18.11+13.86*TANH((F87-31.32)/18.27)/100)*IF(F87="FWH",Worksheet!FWHFactor,1)*IF(VLOOKUP(B87,Hops!$A$2:$J$124,8,0)="Pellet",Worksheet!PelletHopFactor,Worksheet!LeafHopFactor))))))))) -> 
H88: =IF(B88="","",IF(Worksheet!fHopsAging="Yes",IF(Worksheet!HopsTemperature="","",IF(VLOOKUP(B88,Hops!$A$2:$K$124,11,0)="","",IF(VLOOKUP(B88,Hops!$A$2:$K$124,10,0)="","",VLOOKUP(B88,Hops!$A$2:$J$124,2,0)*1/(EXP(VLOOKUP(VLOOKUP(B88,Hops!$A$2:$J$124,10,0)*100,Tables!$P$16:$Q$66,2,0)*VLOOKUP(ROUND((Worksheet!HopsTemperature-32)*5/9,0),Tables!$L$16:$N$65,3,0)*VLOOKUP(Worksheet!HopsStorage,Tables!$C$32:$J$34,8,0)*(TODAY()-VLOOKUP(B88,Hops!$A$2:$K$124,11,0))))))),VLOOKUP(B88,Hops!$A$2:$J$124,2,0))) ->  | J88: =IF(B88="","",IF(F88="","",IF($O$81="","",IF($O$82="","",IF(Worksheet!FWHFactor="","",IF(Worksheet!PelletHopFactor="","",IF(Worksheet!LeafHopFactor="","",IF(F88="dry hop",0,IF($D$83="Tinseth",((1-EXP(-0.04*IF(F88="FWH",$O$82,F88)))/4.15)*1.65*0.000125^((((((SUM($I$70:$I$79)/$L$80)+1000)/1000)+$O$81)/2)-1),18.11+13.86*TANH((F88-31.32)/18.27)/100)*IF(F88="FWH",Worksheet!FWHFactor,1)*IF(VLOOKUP(B88,Hops!$A$2:$J$124,8,0)="Pellet",Worksheet!PelletHopFactor,Worksheet!LeafHopFactor))))))))) ->  | L88: =IF(B88="","",IF(F88="","",IF($O$81="","",IF($L$82="","",IF(Worksheet!FWHFactor="","",IF(Worksheet!PelletHopFactor="","",IF(Worksheet!LeafHopFactor="","",IF(F88="dry hop",0,IF($D$83="Tinseth",((1-EXP(-0.04*IF(F88="FWH",$L$82,F88)))/4.15)*1.65*0.000125^((((((SUM($K$70:$K$79)/$L$81)+1000)/1000)+$O$81)/2)-1),18.11+13.86*TANH((F88-31.32)/18.27)/100)*IF(F88="FWH",Worksheet!FWHFactor,1)*IF(VLOOKUP(B88,Hops!$A$2:$J$124,8,0)="Pellet",Worksheet!PelletHopFactor,Worksheet!LeafHopFactor))))))))) ->  | Q88: Predicting BU based upon BU:GU or BV
H89: =IF(B89="","",IF(Worksheet!fHopsAging="Yes",IF(Worksheet!HopsTemperature="","",IF(VLOOKUP(B89,Hops!$A$2:$K$124,11,0)="","",IF(VLOOKUP(B89,Hops!$A$2:$K$124,10,0)="","",VLOOKUP(B89,Hops!$A$2:$J$124,2,0)*1/(EXP(VLOOKUP(VLOOKUP(B89,Hops!$A$2:$J$124,10,0)*100,Tables!$P$16:$Q$66,2,0)*VLOOKUP(ROUND((Worksheet!HopsTemperature-32)*5/9,0),Tables!$L$16:$N$65,3,0)*VLOOKUP(Worksheet!HopsStorage,Tables!$C$32:$J$34,8,0)*(TODAY()-VLOOKUP(B89,Hops!$A$2:$K$124,11,0))))))),VLOOKUP(B89,Hops!$A$2:$J$124,2,0))) ->  | J89: =IF(B89="","",IF(F89="","",IF($O$81="","",IF($O$82="","",IF(Worksheet!FWHFactor="","",IF(Worksheet!PelletHopFactor="","",IF(Worksheet!LeafHopFactor="","",IF(F89="dry hop",0,IF($D$83="Tinseth",((1-EXP(-0.04*IF(F89="FWH",$O$82,F89)))/4.15)*1.65*0.000125^((((((SUM($I$70:$I$79)/$L$80)+1000)/1000)+$O$81)/2)-1),18.11+13.86*TANH((F89-31.32)/18.27)/100)*IF(F89="FWH",Worksheet!FWHFactor,1)*IF(VLOOKUP(B89,Hops!$A$2:$J$124,8,0)="Pellet",Worksheet!PelletHopFactor,Worksheet!LeafHopFactor))))))))) ->  | L89: =IF(B89="","",IF(F89="","",IF($O$81="","",IF($L$82="","",IF(Worksheet!FWHFactor="","",IF(Worksheet!PelletHopFactor="","",IF(Worksheet!LeafHopFactor="","",IF(F89="dry hop",0,IF($D$83="Tinseth",((1-EXP(-0.04*IF(F89="FWH",$L$82,F89)))/4.15)*1.65*0.000125^((((((SUM($K$70:$K$79)/$L$81)+1000)/1000)+$O$81)/2)-1),18.11+13.86*TANH((F89-31.32)/18.27)/100)*IF(F89="FWH",Worksheet!FWHFactor,1)*IF(VLOOKUP(B89,Hops!$A$2:$J$124,8,0)="Pellet",Worksheet!PelletHopFactor,Worksheet!LeafHopFactor))))))))) ->  | Q89: 1.057 | R89: Original Gravity (SG) | T89: 0.9 | U89: BU:GU Value | X89: IBU | Z89: =IF(Q89="","",IF(T89="","",((Q89-1)*1000)*T89)) -> 51.3
H90: =IF(B90="","",IF(Worksheet!fHopsAging="Yes",IF(Worksheet!HopsTemperature="","",IF(VLOOKUP(B90,Hops!$A$2:$K$124,11,0)="","",IF(VLOOKUP(B90,Hops!$A$2:$K$124,10,0)="","",VLOOKUP(B90,Hops!$A$2:$J$124,2,0)*1/(EXP(VLOOKUP(VLOOKUP(B90,Hops!$A$2:$J$124,10,0)*100,Tables!$P$16:$Q$66,2,0)*VLOOKUP(ROUND((Worksheet!HopsTemperature-32)*5/9,0),Tables!$L$16:$N$65,3,0)*VLOOKUP(Worksheet!HopsStorage,Tables!$C$32:$J$34,8,0)*(TODAY()-VLOOKUP(B90,Hops!$A$2:$K$124,11,0))))))),VLOOKUP(B90,Hops!$A$2:$J$124,2,0))) ->  | J90: =IF(B90="","",IF(F90="","",IF($O$81="","",IF($O$82="","",IF(Worksheet!FWHFactor="","",IF(Worksheet!PelletHopFactor="","",IF(Worksheet!LeafHopFactor="","",IF(F90="dry hop",0,IF($D$83="Tinseth",((1-EXP(-0.04*IF(F90="FWH",$O$82,F90)))/4.15)*1.65*0.000125^((((((SUM($I$70:$I$79)/$L$80)+1000)/1000)+$O$81)/2)-1),18.11+13.86*TANH((F90-31.32)/18.27)/100)*IF(F90="FWH",Worksheet!FWHFactor,1)*IF(VLOOKUP(B90,Hops!$A$2:$J$124,8,0)="Pellet",Worksheet!PelletHopFactor,Worksheet!LeafHopFactor))))))))) ->  | L90: =IF(B90="","",IF(F90="","",IF($O$81="","",IF($L$82="","",IF(Worksheet!FWHFactor="","",IF(Worksheet!PelletHopFactor="","",IF(Worksheet!LeafHopFactor="","",IF(F90="dry hop",0,IF($D$83="Tinseth",((1-EXP(-0.04*IF(F90="FWH",$L$82,F90)))/4.15)*1.65*0.000125^((((((SUM($K$70:$K$79)/$L$81)+1000)/1000)+$O$81)/2)-1),18.11+13.86*TANH((F90-31.32)/18.27)/100)*IF(F90="FWH",Worksheet!FWHFactor,1)*IF(VLOOKUP(B90,Hops!$A$2:$J$124,8,0)="Pellet",Worksheet!PelletHopFactor,Worksheet!LeafHopFactor))))))))) ->  | Q90: 1.007 | R90: Final Gravity (SG) | T90: 1.5 | U90: Balance Value | X90: IBU | Z90: =IF(Q90="","",IF(T90="","",IF(Q89="","",((820*(Q90-1))+(180*(Q89-1)))*T90/0.8))) -> 30
H91: =IF(B91="","",IF(Worksheet!fHopsAging="Yes",IF(Worksheet!HopsTemperature="","",IF(VLOOKUP(B91,Hops!$A$2:$K$124,11,0)="","",IF(VLOOKUP(B91,Hops!$A$2:$K$124,10,0)="","",VLOOKUP(B91,Hops!$A$2:$J$124,2,0)*1/(EXP(VLOOKUP(VLOOKUP(B91,Hops!$A$2:$J$124,10,0)*100,Tables!$P$16:$Q$66,2,0)*VLOOKUP(ROUND((Worksheet!HopsTemperature-32)*5/9,0),Tables!$L$16:$N$65,3,0)*VLOOKUP(Worksheet!HopsStorage,Tables!$C$32:$J$34,8,0)*(TODAY()-VLOOKUP(B91,Hops!$A$2:$K$124,11,0))))))),VLOOKUP(B91,Hops!$A$2:$J$124,2,0))) ->  | J91: =IF(B91="","",IF(F91="","",IF($O$81="","",IF($O$82="","",IF(Worksheet!FWHFactor="","",IF(Worksheet!PelletHopFactor="","",IF(Worksheet!LeafHopFactor="","",IF(F91="dry hop",0,IF($D$83="Tinseth",((1-EXP(-0.04*IF(F91="FWH",$O$82,F91)))/4.15)*1.65*0.000125^((((((SUM($I$70:$I$79)/$L$80)+1000)/1000)+$O$81)/2)-1),18.11+13.86*TANH((F91-31.32)/18.27)/100)*IF(F91="FWH",Worksheet!FWHFactor,1)*IF(VLOOKUP(B91,Hops!$A$2:$J$124,8,0)="Pellet",Worksheet!PelletHopFactor,Worksheet!LeafHopFactor))))))))) ->  | L91: =IF(B91="","",IF(F91="","",IF($O$81="","",IF($L$82="","",IF(Worksheet!FWHFactor="","",IF(Worksheet!PelletHopFactor="","",IF(Worksheet!LeafHopFactor="","",IF(F91="dry hop",0,IF($D$83="Tinseth",((1-EXP(-0.04*IF(F91="FWH",$L$82,F91)))/4.15)*1.65*0.000125^((((((SUM($K$70:$K$79)/$L$81)+1000)/1000)+$O$81)/2)-1),18.11+13.86*TANH((F91-31.32)/18.27)/100)*IF(F91="FWH",Worksheet!FWHFactor,1)*IF(VLOOKUP(B91,Hops!$A$2:$J$124,8,0)="Pellet",Worksheet!PelletHopFactor,Worksheet!LeafHopFactor))))))))) ->  | Q91: BU:GU is dependent upon OG, BV is dependent upon OG & FG
H92: =IF(B92="","",IF(Worksheet!fHopsAging="Yes",IF(Worksheet!HopsTemperature="","",IF(VLOOKUP(B92,Hops!$A$2:$K$124,11,0)="","",IF(VLOOKUP(B92,Hops!$A$2:$K$124,10,0)="","",VLOOKUP(B92,Hops!$A$2:$J$124,2,0)*1/(EXP(VLOOKUP(VLOOKUP(B92,Hops!$A$2:$J$124,10,0)*100,Tables!$P$16:$Q$66,2,0)*VLOOKUP(ROUND((Worksheet!HopsTemperature-32)*5/9,0),Tables!$L$16:$N$65,3,0)*VLOOKUP(Worksheet!HopsStorage,Tables!$C$32:$J$34,8,0)*(TODAY()-VLOOKUP(B92,Hops!$A$2:$K$124,11,0))))))),VLOOKUP(B92,Hops!$A$2:$J$124,2,0))) ->  | J92: =IF(B92="","",IF(F92="","",IF($O$81="","",IF($O$82="","",IF(Worksheet!FWHFactor="","",IF(Worksheet!PelletHopFactor="","",IF(Worksheet!LeafHopFactor="","",IF(F92="dry hop",0,IF($D$83="Tinseth",((1-EXP(-0.04*IF(F92="FWH",$O$82,F92)))/4.15)*1.65*0.000125^((((((SUM($I$70:$I$79)/$L$80)+1000)/1000)+$O$81)/2)-1),18.11+13.86*TANH((F92-31.32)/18.27)/100)*IF(F92="FWH",Worksheet!FWHFactor,1)*IF(VLOOKUP(B92,Hops!$A$2:$J$124,8,0)="Pellet",Worksheet!PelletHopFactor,Worksheet!LeafHopFactor))))))))) ->  | L92: =IF(B92="","",IF(F92="","",IF($O$81="","",IF($L$82="","",IF(Worksheet!FWHFactor="","",IF(Worksheet!PelletHopFactor="","",IF(Worksheet!LeafHopFactor="","",IF(F92="dry hop",0,IF($D$83="Tinseth",((1-EXP(-0.04*IF(F92="FWH",$L$82,F92)))/4.15)*1.65*0.000125^((((((SUM($K$70:$K$79)/$L$81)+1000)/1000)+$O$81)/2)-1),18.11+13.86*TANH((F92-31.32)/18.27)/100)*IF(F92="FWH",Worksheet!FWHFactor,1)*IF(VLOOKUP(B92,Hops!$A$2:$J$124,8,0)="Pellet",Worksheet!PelletHopFactor,Worksheet!LeafHopFactor))))))))) -> 
H93: =IF(B93="","",IF(Worksheet!fHopsAging="Yes",IF(Worksheet!HopsTemperature="","",IF(VLOOKUP(B93,Hops!$A$2:$K$124,11,0)="","",IF(VLOOKUP(B93,Hops!$A$2:$K$124,10,0)="","",VLOOKUP(B93,Hops!$A$2:$J$124,2,0)*1/(EXP(VLOOKUP(VLOOKUP(B93,Hops!$A$2:$J$124,10,0)*100,Tables!$P$16:$Q$66,2,0)*VLOOKUP(ROUND((Worksheet!HopsTemperature-32)*5/9,0),Tables!$L$16:$N$65,3,0)*VLOOKUP(Worksheet!HopsStorage,Tables!$C$32:$J$34,8,0)*(TODAY()-VLOOKUP(B93,Hops!$A$2:$K$124,11,0))))))),VLOOKUP(B93,Hops!$A$2:$J$124,2,0))) ->  | J93: =IF(B93="","",IF(F93="","",IF($O$81="","",IF($O$82="","",IF(Worksheet!FWHFactor="","",IF(Worksheet!PelletHopFactor="","",IF(Worksheet!LeafHopFactor="","",IF(F93="dry hop",0,IF($D$83="Tinseth",((1-EXP(-0.04*IF(F93="FWH",$O$82,F93)))/4.15)*1.65*0.000125^((((((SUM($I$70:$I$79)/$L$80)+1000)/1000)+$O$81)/2)-1),18.11+13.86*TANH((F93-31.32)/18.27)/100)*IF(F93="FWH",Worksheet!FWHFactor,1)*IF(VLOOKUP(B93,Hops!$A$2:$J$124,8,0)="Pellet",Worksheet!PelletHopFactor,Worksheet!LeafHopFactor))))))))) ->  | L93: =IF(B93="","",IF(F93="","",IF($O$81="","",IF($L$82="","",IF(Worksheet!FWHFactor="","",IF(Worksheet!PelletHopFactor="","",IF(Worksheet!LeafHopFactor="","",IF(F93="dry hop",0,IF($D$83="Tinseth",((1-EXP(-0.04*IF(F93="FWH",$L$82,F93)))/4.15)*1.65*0.000125^((((((SUM($K$70:$K$79)/$L$81)+1000)/1000)+$O$81)/2)-1),18.11+13.86*TANH((F93-31.32)/18.27)/100)*IF(F93="FWH",Worksheet!FWHFactor,1)*IF(VLOOKUP(B93,Hops!$A$2:$J$124,8,0)="Pellet",Worksheet!PelletHopFactor,Worksheet!LeafHopFactor))))))))) ->  | Q93: Mash Tun Space Required
B94: scaling calculators rely upon equation factors in the worksheet including ExtractGU, FWH, Leaf & Pellet hops, fHopsAging, hops storage, hops temperature | Q94: Weight of Grains (lbs) | T94: =IF(Q94="Weight of Grains (lbs)","Mash Thickness (qts/lb)","Mash Thickness (L/kg)") -> Mash Thickness (qts/lb) | X94: =IF(Q94="Weight of Grains (lbs)","Volume (gals)","Volume (L)") -> Volume (gals)
Q95: 14 | T95: 1.1 | X95: =IF(Q95="","",IF(T95="","",IF(Q94="Weight of Grains (lbs)",Q95*(0.08+T95/4),Q95*(0.67+T95)))) -> 4.97
B96: Parti-gyle Adjustments | L96: Extract & Grain | Q96: remember to add dead space to results
B97: First Beer Target Volume | E97: 5.59 | F97: Swap an equal volume of wort from each beer. | L97: DME | M97: 0.8 | N97: LME | O97: =IF(M97="","",(M97*0.25)+M97) -> 1
B98: First Beer Measured Volume | E98: 5.6 | F98: Gallons of wort to swap: | J98: =IF((E99-1)*1000*E97>(E100-1)*1000*E98,"",(((E100-1)*1000*E98)-((E99-1)*1000*E97))/((E100-E104)*1000)) -> 1.156296296 | L98: LME | M98: 1 | N98: DME | O98: =IF(M98="","",M98-(M98*0.2)) -> 0.8
B99: First Beer Target Gravity | E99: 1.084 | F99: Transfer wort from second beer to first. | L99: Grain | M99: 1 | N99: LME | O99: =IF(M99="","",M99*0.75) -> 0.75
B100: First Beer Measured Gravity | E100: 1.095 | F100: Gallons of wort to transfer: | J100: =IF((E99-1)*1000*E97>(E100-1)*1000*E98,(((E99-1)*1000*E97)-((E100-1)*1000*E98))/((E104-1)*1000),"") ->  | L100: Specialty | M100: 1 | N100: Extract | O100: =IF(M100="","",M100*0.89) -> 0.89
B101: Second Beer Target Volume | E101: 5.59 | F101: =IF(I103<E97,"top-off first beer with water to reach targets","boil-off first beer to reach targets") -> boil-off first beer to reach targets | L101: converters need verification
B102: Second Beer Measured Volume | E102: 5.65 | F102: volume: | H102: =IF(I103<E97,E97-I103,"") ->  | I102: Gallons | J102: Gravity
B103: Second Beer Target Gravity | E103: 1.052 | F103: Final First Beer: | I103: =IF((E99-1)*1000*E97>(E100-1)*1000*E98,E98+J100,E98) -> 5.6 | J103: =IF((E99-1)*1000*E97>(E100-1)*1000*E98,1+((E99-1)*1000*E97)/I103/1000,1+((E98-J98)*(E100-1)*1000+J98*(E104-1)*1000)/E98/1000) -> 1.08385
B104: Second Beer Measured Gravity | E104: 1.041 | F104: Final Second Beer: | I104: =IF((E99-1)*1000*E97>(E100-1)*1000*E98,E102-J100,E102) -> 5.65 | J104: =IF((E99-1)*1000*E97>(E100-1)*1000*E98,E104,1+(((E104-1)*1000*E102)+(E100-E104)*1000*J98)/E102/1000) -> 1.052051327
B105: the goal of adjustments is to hit first beer target pre-boil gravity

Sheet Calendar
C1: Month: | D1: March | E1: Year: | F1: 2009
B2: Sunday | C2: Monday | D2: Tuesday | E2: Wednesday | F2: Thursday | G2: Friday | H2: Saturday
B3: =IF(WEEKDAY(DATEVALUE(CONCATENATE($D$1, " 1, ",$F$1)))>1,"",IF($D$1="","",IF($F$1="","",DATEVALUE(CONCATENATE($D$1," ",2-(WEEKDAY(DATEVALUE(CONCATENATE($D$1, " 1, ",$F$1)))),", ",$F$1))))) -> 2009-03-01 | C3: =IF(WEEKDAY(DATEVALUE(CONCATENATE($D$1, " 1, ",$F$1)))>2,"",IF($D$1="","",IF($F$1="","",DATEVALUE(CONCATENATE($D$1," ",3-(WEEKDAY(DATEVALUE(CONCATENATE($D$1, " 1, ",$F$1)))),", ",$F$1))))) -> 2009-03-02 | D3: =IF(WEEKDAY(DATEVALUE(CONCATENATE($D$1, " 1, ",$F$1)))>3,"",IF($D$1="","",IF($F$1="","",DATEVALUE(CONCATENATE($D$1," ",4-(WEEKDAY(DATEVALUE(CONCATENATE($D$1, " 1, ",$F$1)))),", ",$F$1))))) -> 2009-03-03 | E3: =IF(WEEKDAY(DATEVALUE(CONCATENATE($D$1, " 1, ",$F$1)))>4,"",IF($D$1="","",IF($F$1="","",DATEVALUE(CONCATENATE($D$1," ",5-(WEEKDAY(DATEVALUE(CONCATENATE($D$1, " 1, ",$F$1)))),", ",$F$1))))) -> 2009-03-04 | F3: =IF(WEEKDAY(DATEVALUE(CONCATENATE($D$1, " 1, ",$F$1)))>5,"",IF($D$1="","",IF($F$1="","",DATEVALUE(CONCATENATE($D$1," ",6-(WEEKDAY(DATEVALUE(CONCATENATE($D$1, " 1, ",$F$1)))),", ",$F$1))))) -> 2009-03-05 | G3: =IF(WEEKDAY(DATEVALUE(CONCATENATE($D$1, " 1, ",$F$1)))>6,"",IF($D$1="","",IF($F$1="","",DATEVALUE(CONCATENATE($D$1," ",7-(WEEKDAY(DATEVALUE(CONCATENATE($D$1, " 1, ",$F$1)))),", ",$F$1))))) -> 2009-03-06 | H3: =IF($D$1="","",IF($F$1="","",DATEVALUE(CONCATENATE($D$1," ",8-(WEEKDAY(DATEVALUE(CONCATENATE($D$1," 1, ",$F$1)))),", ",$F$1)))) -> 2009-03-07
B4: =IF(B3="","",IF(B3<Worksheet!BrewDate,"",IF(B3=Worksheet!BrewDate,"Brew Day",IF(B3<=Worksheet!BrewDate+Worksheet!DaysFermentation,"Primary Fermentation",IF(B3<=Worksheet!BrewDate+Worksheet!DaysFermentation+Worksheet!DaysDiacetylRest,"Diacetyl Rest",IF(B3<=Worksheet!BrewDate+Worksheet!DaysFermentation+Worksheet!DaysDiacetylRest+Worksheet!DaysColdCrash,"Cold Crash",IF(B3<=Worksheet!BrewDate+Worksheet!DaysFermentation+Worksheet!DaysDiacetylRest+Worksheet!DaysColdCrash+Worksheet!DaysConditioning,"Secondary Conditioning",IF(B3<=Worksheet!BrewDate+Worksheet!DaysFermentation+Worksheet!DaysDiacetylRest+Worksheet!DaysColdCrash+Worksheet!DaysConditioning+Worksheet!DaysAging,"Aging (including carbing)",IF(B3=Worksheet!DrinkDate,"Tap Date",""))))))))) ->  | C4: =IF(C3="","",IF(C3<Worksheet!BrewDate,"",IF(C3=Worksheet!BrewDate,"Brew Day",IF(C3<=Worksheet!BrewDate+Worksheet!DaysFermentation,"Primary Fermentation",IF(C3<=Worksheet!BrewDate+Worksheet!DaysFermentation+Worksheet!DaysDiacetylRest,"Diacetyl Rest",IF(C3<=Worksheet!BrewDate+Worksheet!DaysFermentation+Worksheet!DaysDiacetylRest+Worksheet!DaysColdCrash,"Cold Crash",IF(C3<=Worksheet!BrewDate+Worksheet!DaysFermentation+Worksheet!DaysDiacetylRest+Worksheet!DaysColdCrash+Worksheet!DaysConditioning,"Secondary Conditioning",IF(C3<=Worksheet!BrewDate+Worksheet!DaysFermentation+Worksheet!DaysDiacetylRest+Worksheet!DaysColdCrash+Worksheet!DaysConditioning+Worksheet!DaysAging,"Aging (including carbing)",IF(C3=Worksheet!DrinkDate,"Tap Date",""))))))))) ->  | D4: =IF(D3="","",IF(D3<Worksheet!BrewDate,"",IF(D3=Worksheet!BrewDate,"Brew Day",IF(D3<=Worksheet!BrewDate+Worksheet!DaysFermentation,"Primary Fermentation",IF(D3<=Worksheet!BrewDate+Worksheet!DaysFermentation+Worksheet!DaysDiacetylRest,"Diacetyl Rest",IF(D3<=Worksheet!BrewDate+Worksheet!DaysFermentation+Worksheet!DaysDiacetylRest+Worksheet!DaysColdCrash,"Cold Crash",IF(D3<=Worksheet!BrewDate+Worksheet!DaysFermentation+Worksheet!DaysDiacetylRest+Worksheet!DaysColdCrash+Worksheet!DaysConditioning,"Secondary Conditioning",IF(D3<=Worksheet!BrewDate+Worksheet!DaysFermentation+Worksheet!DaysDiacetylRest+Worksheet!DaysColdCrash+Worksheet!DaysConditioning+Worksheet!DaysAging,"Aging (including carbing)",IF(D3=Worksheet!DrinkDate,"Tap Date",""))))))))) ->  | E4: =IF(E3="","",IF(E3<Worksheet!BrewDate,"",IF(E3=Worksheet!BrewDate,"Brew Day",IF(E3<=Worksheet!BrewDate+Worksheet!DaysFermentation,"Primary Fermentation",IF(E3<=Worksheet!BrewDate+Worksheet!DaysFermentation+Worksheet!DaysDiacetylRest,"Diacetyl Rest",IF(E3<=Worksheet!BrewDate+Worksheet!DaysFermentation+Worksheet!DaysDiacetylRest+Worksheet!DaysColdCrash,"Cold Crash",IF(E3<=Worksheet!BrewDate+Worksheet!DaysFermentation+Worksheet!DaysDiacetylRest+Worksheet!DaysColdCrash+Worksheet!DaysConditioning,"Secondary Conditioning",IF(E3<=Worksheet!BrewDate+Worksheet!DaysFermentation+Worksheet!DaysDiacetylRest+Worksheet!DaysColdCrash+Worksheet!DaysConditioning+Worksheet!DaysAging,"Aging (including carbing)",IF(E3=Worksheet!DrinkDate,"Tap Date",""))))))))) ->  | F4: =IF(F3="","",IF(F3<Worksheet!BrewDate,"",IF(F3=Worksheet!BrewDate,"Brew Day",IF(F3<=Worksheet!BrewDate+Worksheet!DaysFermentation,"Primary Fermentation",IF(F3<=Worksheet!BrewDate+Worksheet!DaysFermentation+Worksheet!DaysDiacetylRest,"Diacetyl Rest",IF(F3<=Worksheet!BrewDate+Worksheet!DaysFermentation+Worksheet!DaysDiacetylRest+Worksheet!DaysColdCrash,"Cold Crash",IF(F3<=Worksheet!BrewDate+Worksheet!DaysFermentation+Worksheet!DaysDiacetylRest+Worksheet!DaysColdCrash+Worksheet!DaysConditioning,"Secondary Conditioning",IF(F3<=Worksheet!BrewDate+Worksheet!DaysFermentation+Worksheet!DaysDiacetylRest+Worksheet!DaysColdCrash+Worksheet!DaysConditioning+Worksheet!DaysAging,"Aging (including carbing)",IF(F3=Worksheet!DrinkDate,"Tap Date",""))))))))) ->  | G4: =IF(G3="","",IF(G3<Worksheet!BrewDate,"",IF(G3=Worksheet!BrewDate,"Brew Day",IF(G3<=Worksheet!BrewDate+Worksheet!DaysFermentation,"Primary Fermentation",IF(G3<=Worksheet!BrewDate+Worksheet!DaysFermentation+Worksheet!DaysDiacetylRest,"Diacetyl Rest",IF(G3<=Worksheet!BrewDate+Worksheet!DaysFermentation+Worksheet!DaysDiacetylRest+Worksheet!DaysColdCrash,"Cold Crash",IF(G3<=Worksheet!BrewDate+Worksheet!DaysFermentation+Worksheet!DaysDiacetylRest+Worksheet!DaysColdCrash+Worksheet!DaysConditioning,"Secondary Conditioning",IF(G3<=Worksheet!BrewDate+Worksheet!DaysFermentation+Worksheet!DaysDiacetylRest+Worksheet!DaysColdCrash+Worksheet!DaysConditioning+Worksheet!DaysAging,"Aging (including carbing)",IF(G3=Worksheet!DrinkDate,"Tap Date",""))))))))) ->  | H4: =IF(H3="","",IF(H3<Worksheet!BrewDate,"",IF(H3=Worksheet!BrewDate,"Brew Day",IF(H3<=Worksheet!BrewDate+Worksheet!DaysFermentation,"Primary Fermentation",IF(H3<=Worksheet!BrewDate+Worksheet!DaysFermentation+Worksheet!DaysDiacetylRest,"Diacetyl Rest",IF(H3<=Worksheet!BrewDate+Worksheet!DaysFermentation+Worksheet!DaysDiacetylRest+Worksheet!DaysColdCrash,"Cold Crash",IF(H3<=Worksheet!BrewDate+Worksheet!DaysFermentation+Worksheet!DaysDiacetylRest+Worksheet!DaysColdCrash+Worksheet!DaysConditioning,"Secondary Conditioning",IF(H3<=Worksheet!BrewDate+Worksheet!DaysFermentation+Worksheet!DaysDiacetylRest+Worksheet!DaysColdCrash+Worksheet!DaysConditioning+Worksheet!DaysAging,"Aging (including carbing)",IF(H3=Worksheet!DrinkDate,"Tap Date",""))))))))) ->  | J4: Use the month and year dropdowns to set the calendar view. Worksheet data is always represented live. Then use the dropdowns below the calendar to choose which recipes from the Recipes file are shown in the calendar. The Worksheet row is dedicated to the worksheet and cannot be changed. Click the Update button to refresh the list of recipes and the dates associated with them.
B5: =IF(B3="","",IF(B3<$J$47,"",IF(B3=$J$47,"Brew Day",IF(B3<=$J$47+$J$52,"Primary Fermentation",IF(B3<=$J$47+$J$52+$J$53,"Diacetyl Rest",IF(B3<=$J$47+$J$52+$J$53+$J$54,"Cold Crash",IF(B3<=$J$47+$J$52+$J$53+$J$54+$J$55,"Secondary Conditioning",IF(B3<=$J$47+$J$52+$J$53+$J$54+$J$55+$J$56,"Aging (including carbing)",IF(B3=$J$49,"Tap Date",""))))))))) -> Aging (including carbing) | C5: =IF(C3="","",IF(C3<$J$47,"",IF(C3=$J$47,"Brew Day",IF(C3<=$J$47+$J$52,"Primary Fermentation",IF(C3<=$J$47+$J$52+$J$53,"Diacetyl Rest",IF(C3<=$J$47+$J$52+$J$53+$J$54,"Cold Crash",IF(C3<=$J$47+$J$52+$J$53+$J$54+$J$55,"Secondary Conditioning",IF(C3<=$J$47+$J$52+$J$53+$J$54+$J$55+$J$56,"Aging (including carbing)",IF(C3=$J$49,"Tap Date",""))))))))) -> Aging (including carbing) | D5: Aging (including carbing) | E5: Aging (including carbing) | F5: Aging (including carbing) | G5: Aging (including carbing) | H5: Aging (including carbing)
B6: =IF(B3="","",IF(B3<$I$47,"",IF(B3=$I$47,"Brew Day",IF(B3<=$I$47+$I$52,"Primary Fermentation",IF(B3<=$I$47+$I$52+$I$53,"Diacetyl Rest",IF(B3<=$I$47+$I$52+$I$53+$I$54,"Cold Crash",IF(B3<=$I$47+$I$52+$I$53+$I$54+$I$55,"Secondary Conditioning",IF(B3<=$I$47+$I$52+$I$53+$I$54+$I$55+$I$56,"Aging (including carbing)",IF(B3=$I$49,"Tap Date",""))))))))) ->  | C6: =IF(C3="","",IF(C3<$I$47,"",IF(C3=$I$47,"Brew Day",IF(C3<=$I$47+$I$52,"Primary Fermentation",IF(C3<=$I$47+$I$52+$I$53,"Diacetyl Rest",IF(C3<=$I$47+$I$52+$I$53+$I$54,"Cold Crash",IF(C3<=$I$47+$I$52+$I$53+$I$54+$I$55,"Secondary Conditioning",IF(C3<=$I$47+$I$52+$I$53+$I$54+$I$55+$I$56,"Aging (including carbing)",IF(C3=$I$49,"Tap Date",""))))))))) -> 
B7: =IF(B3="","",IF(B3<$H$47,"",IF(B3=$H$47,"Brew Day",IF(B3<=$H$47+$H$52,"Primary Fermentation",IF(B3<=$H$47+$H$52+$H$53,"Diacetyl Rest",IF(B3<=$H$47+$H$52+$H$53+$H$54,"Cold Crash",IF(B3<=$H$47+$H$52+$H$53+$H$54+$H$55,"Secondary Conditioning",IF(B3<=$H$47+$H$52+$H$53+$H$54+$H$55+$H$56,"Aging (including carbing)",IF(B3=$H$49,"Tap Date",""))))))))) ->  | C7: =IF(C3="","",IF(C3<$H$47,"",IF(C3=$H$47,"Brew Day",IF(C3<=$H$47+$H$52,"Primary Fermentation",IF(C3<=$H$47+$H$52+$H$53,"Diacetyl Rest",IF(C3<=$H$47+$H$52+$H$53+$H$54,"Cold Crash",IF(C3<=$H$47+$H$52+$H$53+$H$54+$H$55,"Secondary Conditioning",IF(C3<=$H$47+$H$52+$H$53+$H$54+$H$55+$H$56,"Aging (including carbing)",IF(C3=$H$49,"Tap Date",""))))))))) -> 
B8: =IF(B3="","",IF(B3<$G$47,"",IF(B3=$G$47,"Brew Day",IF(B3<=$G$47+$G$52,"Primary Fermentation",IF(B3<=$G$47+$G$52+$G$53,"Diacetyl Rest",IF(B3<=$G$47+$G$52+$G$53+$G$54,"Cold Crash",IF(B3<=$G$47+$G$52+$G$53+$G$54+$G$55,"Secondary Conditioning",IF(B3<=$G$47+$G$52+$G$53+$G$54+$G$55+$G$56,"Aging (including carbing)",IF(B3=$G$49,"Tap Date",""))))))))) ->  | C8: =IF(C3="","",IF(C3<$G$47,"",IF(C3=$G$47,"Brew Day",IF(C3<=$G$47+$G$52,"Primary Fermentation",IF(C3<=$G$47+$G$52+$G$53,"Diacetyl Rest",IF(C3<=$G$47+$G$52+$G$53+$G$54,"Cold Crash",IF(C3<=$G$47+$G$52+$G$53+$G$54+$G$55,"Secondary Conditioning",IF(C3<=$G$47+$G$52+$G$53+$G$54+$G$55+$G$56,"Aging (including carbing)",IF(C3=$G$49,"Tap Date",""))))))))) -> 
B9: =IF(B3="","",IF(B3<$F$47,"",IF(B3=$F$47,"Brew Day",IF(B3<=$F$47+$F$52,"Primary Fermentation",IF(B3<=$F$47+$F$52+$F$53,"Diacetyl Rest",IF(B3<=$F$47+$F$52+$F$53+$F$54,"Cold Crash",IF(B3<=$F$47+$F$52+$F$53+$F$54+$F$55,"Secondary Conditioning",IF(B3<=$F$47+$F$52+$F$53+$F$54+$F$55+$F$56,"Aging (including carbing)",IF(B3=$F$49,"Tap Date",""))))))))) ->  | C9: =IF(C3="","",IF(C3<$F$47,"",IF(C3=$F$47,"Brew Day",IF(C3<=$F$47+$F$52,"Primary Fermentation",IF(C3<=$F$47+$F$52+$F$53,"Diacetyl Rest",IF(C3<=$F$47+$F$52+$F$53+$F$54,"Cold Crash",IF(C3<=$F$47+$F$52+$F$53+$F$54+$F$55,"Secondary Conditioning",IF(C3<=$F$47+$F$52+$F$53+$F$54+$F$55+$F$56,"Aging (including carbing)",IF(C3=$F$49,"Tap Date",""))))))))) -> 
B10: =IF(B3="","",IF(B3<$E$47,"",IF(B3=$E$47,"Brew Day",IF(B3<=$E$47+$E$52,"Primary Fermentation",IF(B3<=$E$47+$E$52+$E$53,"Diacetyl Rest",IF(B3<=$E$47+$E$52+$E$53+$E$54,"Cold Crash",IF(B3<=$E$47+$E$52+$E$53+$E$54+$E$55,"Secondary Conditioning",IF(B3<=$E$47+$E$52+$E$53+$E$54+$E$55+$E$56,"Aging (including carbing)",IF(B3=$E$49,"Tap Date",""))))))))) ->  | C10: =IF(C3="","",IF(C3<$E$47,"",IF(C3=$E$47,"Brew Day",IF(C3<=$E$47+$E$52,"Primary Fermentation",IF(C3<=$E$47+$E$52+$E$53,"Diacetyl Rest",IF(C3<=$E$47+$E$52+$E$53+$E$54,"Cold Crash",IF(C3<=$E$47+$E$52+$E$53+$E$54+$E$55,"Secondary Conditioning",IF(C3<=$E$47+$E$52+$E$53+$E$54+$E$55+$E$56,"Aging (including carbing)",IF(C3=$E$49,"Tap Date",""))))))))) -> 
B11: =IF($D$1="","",IF($F$1="","",DATEVALUE(CONCATENATE($D$1," ",9-(WEEKDAY(DATEVALUE(CONCATENATE($D$1, " 1, ",$F$1)))),", ",$F$1)))) -> 2009-03-08 | C11: =IF($D$1="","",IF($F$1="","",DATEVALUE(CONCATENATE($D$1," ",10-(WEEKDAY(DATEVALUE(CONCATENATE($D$1, " 1, ",$F$1)))),", ",$F$1)))) -> 2009-03-09 | D11: =IF($D$1="","",IF($F$1="","",DATEVALUE(CONCATENATE($D$1," ",11-(WEEKDAY(DATEVALUE(CONCATENATE($D$1, " 1, ",$F$1)))),", ",$F$1)))) -> 2009-03-10 | E11: =IF($D$1="","",IF($F$1="","",DATEVALUE(CONCATENATE($D$1," ",12-(WEEKDAY(DATEVALUE(CONCATENATE($D$1, " 1, ",$F$1)))),", ",$F$1)))) -> 2009-03-11 | F11: =IF($D$1="","",IF($F$1="","",DATEVALUE(CONCATENATE($D$1," ",13-(WEEKDAY(DATEVALUE(CONCATENATE($D$1, " 1, ",$F$1)))),", ",$F$1)))) -> 2009-03-12 | G11: =IF($D$1="","",IF($F$1="","",DATEVALUE(CONCATENATE($D$1," ",14-(WEEKDAY(DATEVALUE(CONCATENATE($D$1, " 1, ",$F$1)))),", ",$F$1)))) -> 2009-03-13 | H11: =IF($D$1="","",IF($F$1="","",DATEVALUE(CONCATENATE($D$1," ",15-(WEEKDAY(DATEVALUE(CONCATENATE($D$1, " 1, ",$F$1)))),", ",$F$1)))) -> 2009-03-14
B12: =IF(B11="","",IF(B11<Worksheet!BrewDate,"",IF(B11=Worksheet!BrewDate,"Brew Day",IF(B11<=Worksheet!BrewDate+Worksheet!DaysFermentation,"Primary Fermentation",IF(B11<=Worksheet!BrewDate+Worksheet!DaysFermentation+Worksheet!DaysDiacetylRest,"Diacetyl Rest",IF(B11<=Worksheet!BrewDate+Worksheet!DaysFermentation+Worksheet!DaysDiacetylRest+Worksheet!DaysColdCrash,"Cold Crash",IF(B11<=Worksheet!BrewDate+Worksheet!DaysFermentation+Worksheet!DaysDiacetylRest+Worksheet!DaysColdCrash+Worksheet!DaysConditioning,"Secondary Conditioning",IF(B11<=Worksheet!BrewDate+Worksheet!DaysFermentation+Worksheet!DaysDiacetylRest+Worksheet!DaysColdCrash+Worksheet!DaysConditioning+Worksheet!DaysAging,"Aging (including carbing)",IF(B11=Worksheet!DrinkDate,"Tap Date",""))))))))) ->  | C12: =IF(C11="","",IF(C11<Worksheet!BrewDate,"",IF(C11=Worksheet!BrewDate,"Brew Day",IF(C11<=Worksheet!BrewDate+Worksheet!DaysFermentation,"Primary Fermentation",IF(C11<=Worksheet!BrewDate+Worksheet!DaysFermentation+Worksheet!DaysDiacetylRest,"Diacetyl Rest",IF(C11<=Worksheet!BrewDate+Worksheet!DaysFermentation+Worksheet!DaysDiacetylRest+Worksheet!DaysColdCrash,"Cold Crash",IF(C11<=Worksheet!BrewDate+Worksheet!DaysFermentation+Worksheet!DaysDiacetylRest+Worksheet!DaysColdCrash+Worksheet!DaysConditioning,"Secondary Conditioning",IF(C11<=Worksheet!BrewDate+Worksheet!DaysFermentation+Worksheet!DaysDiacetylRest+Worksheet!DaysColdCrash+Worksheet!DaysConditioning+Worksheet!DaysAging,"Aging (including carbing)",IF(C11=Worksheet!DrinkDate,"Tap Date",""))))))))) ->  | D12: =IF(D11="","",IF(D11<Worksheet!BrewDate,"",IF(D11=Worksheet!BrewDate,"Brew Day",IF(D11<=Worksheet!BrewDate+Worksheet!DaysFermentation,"Primary Fermentation",IF(D11<=Worksheet!BrewDate+Worksheet!DaysFermentation+Worksheet!DaysDiacetylRest,"Diacetyl Rest",IF(D11<=Worksheet!BrewDate+Worksheet!DaysFermentation+Worksheet!DaysDiacetylRest+Worksheet!DaysColdCrash,"Cold Crash",IF(D11<=Worksheet!BrewDate+Worksheet!DaysFermentation+Worksheet!DaysDiacetylRest+Worksheet!DaysColdCrash+Worksheet!DaysConditioning,"Secondary Conditioning",IF(D11<=Worksheet!BrewDate+Worksheet!DaysFermentation+Worksheet!DaysDiacetylRest+Worksheet!DaysColdCrash+Worksheet!DaysConditioning+Worksheet!DaysAging,"Aging (including carbing)",IF(D11=Worksheet!DrinkDate,"Tap Date",""))))))))) ->  | E12: =IF(E11="","",IF(E11<Worksheet!BrewDate,"",IF(E11=Worksheet!BrewDate,"Brew Day",IF(E11<=Worksheet!BrewDate+Worksheet!DaysFermentation,"Primary Fermentation",IF(E11<=Worksheet!BrewDate+Worksheet!DaysFermentation+Worksheet!DaysDiacetylRest,"Diacetyl Rest",IF(E11<=Worksheet!BrewDate+Worksheet!DaysFermentation+Worksheet!DaysDiacetylRest+Worksheet!DaysColdCrash,"Cold Crash",IF(E11<=Worksheet!BrewDate+Worksheet!DaysFermentation+Worksheet!DaysDiacetylRest+Worksheet!DaysColdCrash+Worksheet!DaysConditioning,"Secondary Conditioning",IF(E11<=Worksheet!BrewDate+Worksheet!DaysFermentation+Worksheet!DaysDiacetylRest+Worksheet!DaysColdCrash+Worksheet!DaysConditioning+Worksheet!DaysAging,"Aging (including carbing)",IF(E11=Worksheet!DrinkDate,"Tap Date",""))))))))) ->  | F12: =IF(F11="","",IF(F11<Worksheet!BrewDate,"",IF(F11=Worksheet!BrewDate,"Brew Day",IF(F11<=Worksheet!BrewDate+Worksheet!DaysFermentation,"Primary Fermentation",IF(F11<=Worksheet!BrewDate+Worksheet!DaysFermentation+Worksheet!DaysDiacetylRest,"Diacetyl Rest",IF(F11<=Worksheet!BrewDate+Worksheet!DaysFermentation+Worksheet!DaysDiacetylRest+Worksheet!DaysColdCrash,"Cold Crash",IF(F11<=Worksheet!BrewDate+Worksheet!DaysFermentation+Worksheet!DaysDiacetylRest+Worksheet!DaysColdCrash+Worksheet!DaysConditioning,"Secondary Conditioning",IF(F11<=Worksheet!BrewDate+Worksheet!DaysFermentation+Worksheet!DaysDiacetylRest+Worksheet!DaysColdCrash+Worksheet!DaysConditioning+Worksheet!DaysAging,"Aging (including carbing)",IF(F11=Worksheet!DrinkDate,"Tap Date",""))))))))) ->  | G12: =IF(G11="","",IF(G11<Worksheet!BrewDate,"",IF(G11=Worksheet!BrewDate,"Brew Day",IF(G11<=Worksheet!BrewDate+Worksheet!DaysFermentation,"Primary Fermentation",IF(G11<=Worksheet!BrewDate+Worksheet!DaysFermentation+Worksheet!DaysDiacetylRest,"Diacetyl Rest",IF(G11<=Worksheet!BrewDate+Worksheet!DaysFermentation+Worksheet!DaysDiacetylRest+Worksheet!DaysColdCrash,"Cold Crash",IF(G11<=Worksheet!BrewDate+Worksheet!DaysFermentation+Worksheet!DaysDiacetylRest+Worksheet!DaysColdCrash+Worksheet!DaysConditioning,"Secondary Conditioning",IF(G11<=Worksheet!BrewDate+Worksheet!DaysFermentation+Worksheet!DaysDiacetylRest+Worksheet!DaysColdCrash+Worksheet!DaysConditioning+Worksheet!DaysAging,"Aging (including carbing)",IF(G11=Worksheet!DrinkDate,"Tap Date",""))))))))) ->  | H12: =IF(H11="","",IF(H11<Worksheet!BrewDate,"",IF(H11=Worksheet!BrewDate,"Brew Day",IF(H11<=Worksheet!BrewDate+Worksheet!DaysFermentation,"Primary Fermentation",IF(H11<=Worksheet!BrewDate+Worksheet!DaysFermentation+Worksheet!DaysDiacetylRest,"Diacetyl Rest",IF(H11<=Worksheet!BrewDate+Worksheet!DaysFermentation+Worksheet!DaysDiacetylRest+Worksheet!DaysColdCrash,"Cold Crash",IF(H11<=Worksheet!BrewDate+Worksheet!DaysFermentation+Worksheet!DaysDiacetylRest+Worksheet!DaysColdCrash+Worksheet!DaysConditioning,"Secondary Conditioning",IF(H11<=Worksheet!BrewDate+Worksheet!DaysFermentation+Worksheet!DaysDiacetylRest+Worksheet!DaysColdCrash+Worksheet!DaysConditioning+Worksheet!DaysAging,"Aging (including carbing)",IF(H11=Worksheet!DrinkDate,"Tap Date",""))))))))) -> 
B13: =IF(B11="","",IF(B11<$J$47,"",IF(B11=$J$47,"Brew Day",IF(B11<=$J$47+$J$52,"Primary Fermentation",IF(B11<=$J$47+$J$52+$J$53,"Diacetyl Rest",IF(B11<=$J$47+$J$52+$J$53+$J$54,"Cold Crash",IF(B11<=$J$47+$J$52+$J$53+$J$54+$J$55,"Secondary Conditioning",IF(B11<=$J$47+$J$52+$J$53+$J$54+$J$55+$J$56,"Aging (including carbing)",IF(B11=$J$49,"Tap Date",""))))))))) -> Aging (including carbing) | C13: Aging (including carbing) | D13: Aging (including carbing) | E13: Aging (including carbing) | F13: Aging (including carbing) | G13: Aging (including carbing) | H13: Aging (including carbing)
B14: =IF(B11="","",IF(B11<$I$47,"",IF(B11=$I$47,"Brew Day",IF(B11<=$I$47+$I$52,"Primary Fermentation",IF(B11<=$I$47+$I$52+$I$53,"Diacetyl Rest",IF(B11<=$I$47+$I$52+$I$53+$I$54,"Cold Crash",IF(B11<=$I$47+$I$52+$I$53+$I$54+$I$55,"Secondary Conditioning",IF(B11<=$I$47+$I$52+$I$53+$I$54+$I$55+$I$56,"Aging (including carbing)",IF(B11=$I$49,"Tap Date",""))))))))) -> 
B15: =IF(B11="","",IF(B11<$H$47,"",IF(B11=$H$47,"Brew Day",IF(B11<=$H$47+$H$52,"Primary Fermentation",IF(B11<=$H$47+$H$52+$H$53,"Diacetyl Rest",IF(B11<=$H$47+$H$52+$H$53+$H$54,"Cold Crash",IF(B11<=$H$47+$H$52+$H$53+$H$54+$H$55,"Secondary Conditioning",IF(B11<=$H$47+$H$52+$H$53+$H$54+$H$55+$H$56,"Aging (including carbing)",IF(B11=$H$49,"Tap Date",""))))))))) -> 
B16: =IF(B11="","",IF(B11<$G$47,"",IF(B11=$G$47,"Brew Day",IF(B11<=$G$47+$G$52,"Primary Fermentation",IF(B11<=$G$47+$G$52+$G$53,"Diacetyl Rest",IF(B11<=$G$47+$G$52+$G$53+$G$54,"Cold Crash",IF(B11<=$G$47+$G$52+$G$53+$G$54+$G$55,"Secondary Conditioning",IF(B11<=$G$47+$G$52+$G$53+$G$54+$G$55+$G$56,"Aging (including carbing)",IF(B11=$G$49,"Tap Date",""))))))))) -> 
B17: =IF(B11="","",IF(B11<$F$47,"",IF(B11=$F$47,"Brew Day",IF(B11<=$F$47+$F$52,"Primary Fermentation",IF(B11<=$F$47+$F$52+$F$53,"Diacetyl Rest",IF(B11<=$F$47+$F$52+$F$53+$F$54,"Cold Crash",IF(B11<=$F$47+$F$52+$F$53+$F$54+$F$55,"Secondary Conditioning",IF(B11<=$F$47+$F$52+$F$53+$F$54+$F$55+$F$56,"Aging (including carbing)",IF(B11=$F$49,"Tap Date",""))))))))) -> 
B18: =IF(B11="","",IF(B11<$E$47,"",IF(B11=$E$47,"Brew Day",IF(B11<=$E$47+$E$52,"Primary Fermentation",IF(B11<=$E$47+$E$52+$E$53,"Diacetyl Rest",IF(B11<=$E$47+$E$52+$E$53+$E$54,"Cold Crash",IF(B11<=$E$47+$E$52+$E$53+$E$54+$E$55,"Secondary Conditioning",IF(B11<=$E$47+$E$52+$E$53+$E$54+$E$55+$E$56,"Aging (including carbing)",IF(B11=$E$49,"Tap Date",""))))))))) -> 
B19: =IF($D$1="","",IF($F$1="","",DATEVALUE(CONCATENATE($D$1," ",16-(WEEKDAY(DATEVALUE(CONCATENATE($D$1, " 1, ",$F$1)))),", ",$F$1)))) -> 2009-03-15 | C19: =IF($D$1="","",IF($F$1="","",DATEVALUE(CONCATENATE($D$1," ",17-(WEEKDAY(DATEVALUE(CONCATENATE($D$1, " 1, ",$F$1)))),", ",$F$1)))) -> 2009-03-16 | D19: =IF($D$1="","",IF($F$1="","",DATEVALUE(CONCATENATE($D$1," ",18-(WEEKDAY(DATEVALUE(CONCATENATE($D$1, " 1, ",$F$1)))),", ",$F$1)))) -> 2009-03-17 | E19: =IF($D$1="","",IF($F$1="","",DATEVALUE(CONCATENATE($D$1," ",19-(WEEKDAY(DATEVALUE(CONCATENATE($D$1, " 1, ",$F$1)))),", ",$F$1)))) -> 2009-03-18 | F19: =IF($D$1="","",IF($F$1="","",DATEVALUE(CONCATENATE($D$1," ",20-(WEEKDAY(DATEVALUE(CONCATENATE($D$1, " 1, ",$F$1)))),", ",$F$1)))) -> 2009-03-19 | G19: =IF($D$1="","",IF($F$1="","",DATEVALUE(CONCATENATE($D$1," ",21-(WEEKDAY(DATEVALUE(CONCATENATE($D$1, " 1, ",$F$1)))),", ",$F$1)))) -> 2009-03-20 | H19: =IF($D$1="","",IF($F$1="","",DATEVALUE(CONCATENATE($D$1," ",22-(WEEKDAY(DATEVALUE(CONCATENATE($D$1, " 1, ",$F$1)))),", ",$F$1)))) -> 2009-03-21
B20: =IF(B19="","",IF(B19<Worksheet!BrewDate,"",IF(B19=Worksheet!BrewDate,"Brew Day",IF(B19<=Worksheet!BrewDate+Worksheet!DaysFermentation,"Primary Fermentation",IF(B19<=Worksheet!BrewDate+Worksheet!DaysFermentation+Worksheet!DaysDiacetylRest,"Diacetyl Rest",IF(B19<=Worksheet!BrewDate+Worksheet!DaysFermentation+Worksheet!DaysDiacetylRest+Worksheet!DaysColdCrash,"Cold Crash",IF(B19<=Worksheet!BrewDate+Worksheet!DaysFermentation+Worksheet!DaysDiacetylRest+Worksheet!DaysColdCrash+Worksheet!DaysConditioning,"Secondary Conditioning",IF(B19<=Worksheet!BrewDate+Worksheet!DaysFermentation+Worksheet!DaysDiacetylRest+Worksheet!DaysColdCrash+Worksheet!DaysConditioning+Worksheet!DaysAging,"Aging (including carbing)",IF(B19=Worksheet!DrinkDate,"Tap Date",""))))))))) ->  | C20: =IF(C19="","",IF(C19<Worksheet!BrewDate,"",IF(C19=Worksheet!BrewDate,"Brew Day",IF(C19<=Worksheet!BrewDate+Worksheet!DaysFermentation,"Primary Fermentation",IF(C19<=Worksheet!BrewDate+Worksheet!DaysFermentation+Worksheet!DaysDiacetylRest,"Diacetyl Rest",IF(C19<=Worksheet!BrewDate+Worksheet!DaysFermentation+Worksheet!DaysDiacetylRest+Worksheet!DaysColdCrash,"Cold Crash",IF(C19<=Worksheet!BrewDate+Worksheet!DaysFermentation+Worksheet!DaysDiacetylRest+Worksheet!DaysColdCrash+Worksheet!DaysConditioning,"Secondary Conditioning",IF(C19<=Worksheet!BrewDate+Worksheet!DaysFermentation+Worksheet!DaysDiacetylRest+Worksheet!DaysColdCrash+Worksheet!DaysConditioning+Worksheet!DaysAging,"Aging (including carbing)",IF(C19=Worksheet!DrinkDate,"Tap Date",""))))))))) ->  | D20: =IF(D19="","",IF(D19<Worksheet!BrewDate,"",IF(D19=Worksheet!BrewDate,"Brew Day",IF(D19<=Worksheet!BrewDate+Worksheet!DaysFermentation,"Primary Fermentation",IF(D19<=Worksheet!BrewDate+Worksheet!DaysFermentation+Worksheet!DaysDiacetylRest,"Diacetyl Rest",IF(D19<=Worksheet!BrewDate+Worksheet!DaysFermentation+Worksheet!DaysDiacetylRest+Worksheet!DaysColdCrash,"Cold Crash",IF(D19<=Worksheet!BrewDate+Worksheet!DaysFermentation+Worksheet!DaysDiacetylRest+Worksheet!DaysColdCrash+Worksheet!DaysConditioning,"Secondary Conditioning",IF(D19<=Worksheet!BrewDate+Worksheet!DaysFermentation+Worksheet!DaysDiacetylRest+Worksheet!DaysColdCrash+Worksheet!DaysConditioning+Worksheet!DaysAging,"Aging (including carbing)",IF(D19=Worksheet!DrinkDate,"Tap Date",""))))))))) ->  | E20: =IF(E19="","",IF(E19<Worksheet!BrewDate,"",IF(E19=Worksheet!BrewDate,"Brew Day",IF(E19<=Worksheet!BrewDate+Worksheet!DaysFermentation,"Primary Fermentation",IF(E19<=Worksheet!BrewDate+Worksheet!DaysFermentation+Worksheet!DaysDiacetylRest,"Diacetyl Rest",IF(E19<=Worksheet!BrewDate+Worksheet!DaysFermentation+Worksheet!DaysDiacetylRest+Worksheet!DaysColdCrash,"Cold Crash",IF(E19<=Worksheet!BrewDate+Worksheet!DaysFermentation+Worksheet!DaysDiacetylRest+Worksheet!DaysColdCrash+Worksheet!DaysConditioning,"Secondary Conditioning",IF(E19<=Worksheet!BrewDate+Worksheet!DaysFermentation+Worksheet!DaysDiacetylRest+Worksheet!DaysColdCrash+Worksheet!DaysConditioning+Worksheet!DaysAging,"Aging (including carbing)",IF(E19=Worksheet!DrinkDate,"Tap Date",""))))))))) ->  | F20: =IF(F19="","",IF(F19<Worksheet!BrewDate,"",IF(F19=Worksheet!BrewDate,"Brew Day",IF(F19<=Worksheet!BrewDate+Worksheet!DaysFermentation,"Primary Fermentation",IF(F19<=Worksheet!BrewDate+Worksheet!DaysFermentation+Worksheet!DaysDiacetylRest,"Diacetyl Rest",IF(F19<=Worksheet!BrewDate+Worksheet!DaysFermentation+Worksheet!DaysDiacetylRest+Worksheet!DaysColdCrash,"Cold Crash",IF(F19<=Worksheet!BrewDate+Worksheet!DaysFermentation+Worksheet!DaysDiacetylRest+Worksheet!DaysColdCrash+Worksheet!DaysConditioning,"Secondary Conditioning",IF(F19<=Worksheet!BrewDate+Worksheet!DaysFermentation+Worksheet!DaysDiacetylRest+Worksheet!DaysColdCrash+Worksheet!DaysConditioning+Worksheet!DaysAging,"Aging (including carbing)",IF(F19=Worksheet!DrinkDate,"Tap Date",""))))))))) ->  | G20: =IF(G19="","",IF(G19<Worksheet!BrewDate,"",IF(G19=Worksheet!BrewDate,"Brew Day",IF(G19<=Worksheet!BrewDate+Worksheet!DaysFermentation,"Primary Fermentation",IF(G19<=Worksheet!BrewDate+Worksheet!DaysFermentation+Worksheet!DaysDiacetylRest,"Diacetyl Rest",IF(G19<=Worksheet!BrewDate+Worksheet!DaysFermentation+Worksheet!DaysDiacetylRest+Worksheet!DaysColdCrash,"Cold Crash",IF(G19<=Worksheet!BrewDate+Worksheet!DaysFermentation+Worksheet!DaysDiacetylRest+Worksheet!DaysColdCrash+Worksheet!DaysConditioning,"Secondary Conditioning",IF(G19<=Worksheet!BrewDate+Worksheet!DaysFermentation+Worksheet!DaysDiacetylRest+Worksheet!DaysColdCrash+Worksheet!DaysConditioning+Worksheet!DaysAging,"Aging (including carbing)",IF(G19=Worksheet!DrinkDate,"Tap Date",""))))))))) ->  | H20: =IF(H19="","",IF(H19<Worksheet!BrewDate,"",IF(H19=Worksheet!BrewDate,"Brew Day",IF(H19<=Worksheet!BrewDate+Worksheet!DaysFermentation,"Primary Fermentation",IF(H19<=Worksheet!BrewDate+Worksheet!DaysFermentation+Worksheet!DaysDiacetylRest,"Diacetyl Rest",IF(H19<=Worksheet!BrewDate+Worksheet!DaysFermentation+Worksheet!DaysDiacetylRest+Worksheet!DaysColdCrash,"Cold Crash",IF(H19<=Worksheet!BrewDate+Worksheet!DaysFermentation+Worksheet!DaysDiacetylRest+Worksheet!DaysColdCrash+Worksheet!DaysConditioning,"Secondary Conditioning",IF(H19<=Worksheet!BrewDate+Worksheet!DaysFermentation+Worksheet!DaysDiacetylRest+Worksheet!DaysColdCrash+Worksheet!DaysConditioning+Worksheet!DaysAging,"Aging (including carbing)",IF(H19=Worksheet!DrinkDate,"Tap Date",""))))))))) -> 
B21: =IF(B19="","",IF(B19<$J$47,"",IF(B19=$J$47,"Brew Day",IF(B19<=$J$47+$J$52,"Primary Fermentation",IF(B19<=$J$47+$J$52+$J$53,"Diacetyl Rest",IF(B19<=$J$47+$J$52+$J$53+$J$54,"Cold Crash",IF(B19<=$J$47+$J$52+$J$53+$J$54+$J$55,"Secondary Conditioning",IF(B19<=$J$47+$J$52+$J$53+$J$54+$J$55+$J$56,"Aging (including carbing)",IF(B19=$J$49,"Tap Date",""))))))))) -> Aging (including carbing) | C21: Aging (including carbing) | D21: Aging (including carbing) | E21: Aging (including carbing) | F21: Aging (including carbing) | G21: Aging (including carbing) | H21: Aging (including carbing)
B22: =IF(B19="","",IF(B19<$I$47,"",IF(B19=$I$47,"Brew Day",IF(B19<=$I$47+$I$52,"Primary Fermentation",IF(B19<=$I$47+$I$52+$I$53,"Diacetyl Rest",IF(B19<=$I$47+$I$52+$I$53+$I$54,"Cold Crash",IF(B19<=$I$47+$I$52+$I$53+$I$54+$I$55,"Secondary Conditioning",IF(B19<=$I$47+$I$52+$I$53+$I$54+$I$55+$I$56,"Aging (including carbing)",IF(B19=$I$49,"Tap Date",""))))))))) -> 
B23: =IF(B19="","",IF(B19<$H$47,"",IF(B19=$H$47,"Brew Day",IF(B19<=$H$47+$H$52,"Primary Fermentation",IF(B19<=$H$47+$H$52+$H$53,"Diacetyl Rest",IF(B19<=$H$47+$H$52+$H$53+$H$54,"Cold Crash",IF(B19<=$H$47+$H$52+$H$53+$H$54+$H$55,"Secondary Conditioning",IF(B19<=$H$47+$H$52+$H$53+$H$54+$H$55+$H$56,"Aging (including carbing)",IF(B19=$H$49,"Tap Date",""))))))))) -> 
B24: =IF(B19="","",IF(B19<$G$47,"",IF(B19=$G$47,"Brew Day",IF(B19<=$G$47+$G$52,"Primary Fermentation",IF(B19<=$G$47+$G$52+$G$53,"Diacetyl Rest",IF(B19<=$G$47+$G$52+$G$53+$G$54,"Cold Crash",IF(B19<=$G$47+$G$52+$G$53+$G$54+$G$55,"Secondary Conditioning",IF(B19<=$G$47+$G$52+$G$53+$G$54+$G$55+$G$56,"Aging (including carbing)",IF(B19=$G$49,"Tap Date",""))))))))) -> 
B25: =IF(B19="","",IF(B19<$F$47,"",IF(B19=$F$47,"Brew Day",IF(B19<=$F$47+$F$52,"Primary Fermentation",IF(B19<=$F$47+$F$52+$F$53,"Diacetyl Rest",IF(B19<=$F$47+$F$52+$F$53+$F$54,"Cold Crash",IF(B19<=$F$47+$F$52+$F$53+$F$54+$F$55,"Secondary Conditioning",IF(B19<=$F$47+$F$52+$F$53+$F$54+$F$55+$F$56,"Aging (including carbing)",IF(B19=$F$49,"Tap Date",""))))))))) -> 
B26: =IF(B19="","",IF(B19<$E$47,"",IF(B19=$E$47,"Brew Day",IF(B19<=$E$47+$E$52,"Primary Fermentation",IF(B19<=$E$47+$E$52+$E$53,"Diacetyl Rest",IF(B19<=$E$47+$E$52+$E$53+$E$54,"Cold Crash",IF(B19<=$E$47+$E$52+$E$53+$E$54+$E$55,"Secondary Conditioning",IF(B19<=$E$47+$E$52+$E$53+$E$54+$E$55+$E$56,"Aging (including carbing)",IF(B19=$E$49,"Tap Date",""))))))))) -> 
B27: =IF($D$1="","",IF($F$1="","",DATEVALUE(CONCATENATE($D$1," ",23-(WEEKDAY(DATEVALUE(CONCATENATE($D$1, " 1, ",$F$1)))),", ",$F$1)))) -> 2009-03-22 | C27: =IF($D$1="","",IF($F$1="","",DATEVALUE(CONCATENATE($D$1," ",24-(WEEKDAY(DATEVALUE(CONCATENATE($D$1, " 1, ",$F$1)))),", ",$F$1)))) -> 2009-03-23 | D27: =IF($D$1="","",IF($F$1="","",DATEVALUE(CONCATENATE($D$1," ",25-(WEEKDAY(DATEVALUE(CONCATENATE($D$1, " 1, ",$F$1)))),", ",$F$1)))) -> 2009-03-24 | E27: =IF($D$1="","",IF($F$1="","",DATEVALUE(CONCATENATE($D$1," ",26-(WEEKDAY(DATEVALUE(CONCATENATE($D$1, " 1, ",$F$1)))),", ",$F$1)))) -> 2009-03-25 | F27: =IF($D$1="","",IF($F$1="","",DATEVALUE(CONCATENATE($D$1," ",27-(WEEKDAY(DATEVALUE(CONCATENATE($D$1, " 1, ",$F$1)))),", ",$F$1)))) -> 2009-03-26 | G27: =IF($D$1="","",IF($F$1="","",DATEVALUE(CONCATENATE($D$1," ",28-(WEEKDAY(DATEVALUE(CONCATENATE($D$1, " 1, ",$F$1)))),", ",$F$1)))) -> 2009-03-27 | H27: =IF($D$1="","",IF($F$1="","",DATEVALUE(CONCATENATE($D$1," ",29-(WEEKDAY(DATEVALUE(CONCATENATE($D$1, " 1, ",$F$1)))),", ",$F$1)))) -> 2009-03-28
B28: =IF(B27="","",IF(B27<Worksheet!BrewDate,"",IF(B27=Worksheet!BrewDate,"Brew Day",IF(B27<=Worksheet!BrewDate+Worksheet!DaysFermentation,"Primary Fermentation",IF(B27<=Worksheet!BrewDate+Worksheet!DaysFermentation+Worksheet!DaysDiacetylRest,"Diacetyl Rest",IF(B27<=Worksheet!BrewDate+Worksheet!DaysFermentation+Worksheet!DaysDiacetylRest+Worksheet!DaysColdCrash,"Cold Crash",IF(B27<=Worksheet!BrewDate+Worksheet!DaysFermentation+Worksheet!DaysDiacetylRest+Worksheet!DaysColdCrash+Worksheet!DaysConditioning,"Secondary Conditioning",IF(B27<=Worksheet!BrewDate+Worksheet!DaysFermentation+Worksheet!DaysDiacetylRest+Worksheet!DaysColdCrash+Worksheet!DaysConditioning+Worksheet!DaysAging,"Aging (including carbing)",IF(B27=Worksheet!DrinkDate,"Tap Date",""))))))))) ->  | C28: =IF(C27="","",IF(C27<Worksheet!BrewDate,"",IF(C27=Worksheet!BrewDate,"Brew Day",IF(C27<=Worksheet!BrewDate+Worksheet!DaysFermentation,"Primary Fermentation",IF(C27<=Worksheet!BrewDate+Worksheet!DaysFermentation+Worksheet!DaysDiacetylRest,"Diacetyl Rest",IF(C27<=Worksheet!BrewDate+Worksheet!DaysFermentation+Worksheet!DaysDiacetylRest+Worksheet!DaysColdCrash,"Cold Crash",IF(C27<=Worksheet!BrewDate+Worksheet!DaysFermentation+Worksheet!DaysDiacetylRest+Worksheet!DaysColdCrash+Worksheet!DaysConditioning,"Secondary Conditioning",IF(C27<=Worksheet!BrewDate+Worksheet!DaysFermentation+Worksheet!DaysDiacetylRest+Worksheet!DaysColdCrash+Worksheet!DaysConditioning+Worksheet!DaysAging,"Aging (including carbing)",IF(C27=Worksheet!DrinkDate,"Tap Date",""))))))))) ->  | D28: =IF(D27="","",IF(D27<Worksheet!BrewDate,"",IF(D27=Worksheet!BrewDate,"Brew Day",IF(D27<=Worksheet!BrewDate+Worksheet!DaysFermentation,"Primary Fermentation",IF(D27<=Worksheet!BrewDate+Worksheet!DaysFermentation+Worksheet!DaysDiacetylRest,"Diacetyl Rest",IF(D27<=Worksheet!BrewDate+Worksheet!DaysFermentation+Worksheet!DaysDiacetylRest+Worksheet!DaysColdCrash,"Cold Crash",IF(D27<=Worksheet!BrewDate+Worksheet!DaysFermentation+Worksheet!DaysDiacetylRest+Worksheet!DaysColdCrash+Worksheet!DaysConditioning,"Secondary Conditioning",IF(D27<=Worksheet!BrewDate+Worksheet!DaysFermentation+Worksheet!DaysDiacetylRest+Worksheet!DaysColdCrash+Worksheet!DaysConditioning+Worksheet!DaysAging,"Aging (including carbing)",IF(D27=Worksheet!DrinkDate,"Tap Date",""))))))))) ->  | E28: =IF(E27="","",IF(E27<Worksheet!BrewDate,"",IF(E27=Worksheet!BrewDate,"Brew Day",IF(E27<=Worksheet!BrewDate+Worksheet!DaysFermentation,"Primary Fermentation",IF(E27<=Worksheet!BrewDate+Worksheet!DaysFermentation+Worksheet!DaysDiacetylRest,"Diacetyl Rest",IF(E27<=Worksheet!BrewDate+Worksheet!DaysFermentation+Worksheet!DaysDiacetylRest+Worksheet!DaysColdCrash,"Cold Crash",IF(E27<=Worksheet!BrewDate+Worksheet!DaysFermentation+Worksheet!DaysDiacetylRest+Worksheet!DaysColdCrash+Worksheet!DaysConditioning,"Secondary Conditioning",IF(E27<=Worksheet!BrewDate+Worksheet!DaysFermentation+Worksheet!DaysDiacetylRest+Worksheet!DaysColdCrash+Worksheet!DaysConditioning+Worksheet!DaysAging,"Aging (including carbing)",IF(E27=Worksheet!DrinkDate,"Tap Date",""))))))))) ->  | F28: =IF(F27="","",IF(F27<Worksheet!BrewDate,"",IF(F27=Worksheet!BrewDate,"Brew Day",IF(F27<=Worksheet!BrewDate+Worksheet!DaysFermentation,"Primary Fermentation",IF(F27<=Worksheet!BrewDate+Worksheet!DaysFermentation+Worksheet!DaysDiacetylRest,"Diacetyl Rest",IF(F27<=Worksheet!BrewDate+Worksheet!DaysFermentation+Worksheet!DaysDiacetylRest+Worksheet!DaysColdCrash,"Cold Crash",IF(F27<=Worksheet!BrewDate+Worksheet!DaysFermentation+Worksheet!DaysDiacetylRest+Worksheet!DaysColdCrash+Worksheet!DaysConditioning,"Secondary Conditioning",IF(F27<=Worksheet!BrewDate+Worksheet!DaysFermentation+Worksheet!DaysDiacetylRest+Worksheet!DaysColdCrash+Worksheet!DaysConditioning+Worksheet!DaysAging,"Aging (including carbing)",IF(F27=Worksheet!DrinkDate,"Tap Date",""))))))))) ->  | G28: =IF(G27="","",IF(G27<Worksheet!BrewDate,"",IF(G27=Worksheet!BrewDate,"Brew Day",IF(G27<=Worksheet!BrewDate+Worksheet!DaysFermentation,"Primary Fermentation",IF(G27<=Worksheet!BrewDate+Worksheet!DaysFermentation+Worksheet!DaysDiacetylRest,"Diacetyl Rest",IF(G27<=Worksheet!BrewDate+Worksheet!DaysFermentation+Worksheet!DaysDiacetylRest+Worksheet!DaysColdCrash,"Cold Crash",IF(G27<=Worksheet!BrewDate+Worksheet!DaysFermentation+Worksheet!DaysDiacetylRest+Worksheet!DaysColdCrash+Worksheet!DaysConditioning,"Secondary Conditioning",IF(G27<=Worksheet!BrewDate+Worksheet!DaysFermentation+Worksheet!DaysDiacetylRest+Worksheet!DaysColdCrash+Worksheet!DaysConditioning+Worksheet!DaysAging,"Aging (including carbing)",IF(G27=Worksheet!DrinkDate,"Tap Date",""))))))))) ->  | H28: =IF(H27="","",IF(H27<Worksheet!BrewDate,"",IF(H27=Worksheet!BrewDate,"Brew Day",IF(H27<=Worksheet!BrewDate+Worksheet!DaysFermentation,"Primary Fermentation",IF(H27<=Worksheet!BrewDate+Worksheet!DaysFermentation+Worksheet!DaysDiacetylRest,"Diacetyl Rest",IF(H27<=Worksheet!BrewDate+Worksheet!DaysFermentation+Worksheet!DaysDiacetylRest+Worksheet!DaysColdCrash,"Cold Crash",IF(H27<=Worksheet!BrewDate+Worksheet!DaysFermentation+Worksheet!DaysDiacetylRest+Worksheet!DaysColdCrash+Worksheet!DaysConditioning,"Secondary Conditioning",IF(H27<=Worksheet!BrewDate+Worksheet!DaysFermentation+Worksheet!DaysDiacetylRest+Worksheet!DaysColdCrash+Worksheet!DaysConditioning+Worksheet!DaysAging,"Aging (including carbing)",IF(H27=Worksheet!DrinkDate,"Tap Date",""))))))))) -> 
B29: =IF(B27="","",IF(B27<$J$47,"",IF(B27=$J$47,"Brew Day",IF(B27<=$J$47+$J$52,"Primary Fermentation",IF(B27<=$J$47+$J$52+$J$53,"Diacetyl Rest",IF(B27<=$J$47+$J$52+$J$53+$J$54,"Cold Crash",IF(B27<=$J$47+$J$52+$J$53+$J$54+$J$55,"Secondary Conditioning",IF(B27<=$J$47+$J$52+$J$53+$J$54+$J$55+$J$56,"Aging (including carbing)",IF(B27=$J$49,"Tap Date",""))))))))) -> Aging (including carbing) | C29: Aging (including carbing) | D29: Aging (including carbing) | E29: Tap Date
B30: =IF(B27="","",IF(B27<$I$47,"",IF(B27=$I$47,"Brew Day",IF(B27<=$I$47+$I$52,"Primary Fermentation",IF(B27<=$I$47+$I$52+$I$53,"Diacetyl Rest",IF(B27<=$I$47+$I$52+$I$53+$I$54,"Cold Crash",IF(B27<=$I$47+$I$52+$I$53+$I$54+$I$55,"Secondary Conditioning",IF(B27<=$I$47+$I$52+$I$53+$I$54+$I$55+$I$56,"Aging (including carbing)",IF(B27=$I$49,"Tap Date",""))))))))) ->  | E30: Brew Day | F30: Primary Fermentation | G30: Primary Fermentation | H30: Primary Fermentation
B31: =IF(B27="","",IF(B27<$H$47,"",IF(B27=$H$47,"Brew Day",IF(B27<=$H$47+$H$52,"Primary Fermentation",IF(B27<=$H$47+$H$52+$H$53,"Diacetyl Rest",IF(B27<=$H$47+$H$52+$H$53+$H$54,"Cold Crash",IF(B27<=$H$47+$H$52+$H$53+$H$54+$H$55,"Secondary Conditioning",IF(B27<=$H$47+$H$52+$H$53+$H$54+$H$55+$H$56,"Aging (including carbing)",IF(B27=$H$49,"Tap Date",""))))))))) -> 
B32: =IF(B27="","",IF(B27<$G$47,"",IF(B27=$G$47,"Brew Day",IF(B27<=$G$47+$G$52,"Primary Fermentation",IF(B27<=$G$47+$G$52+$G$53,"Diacetyl Rest",IF(B27<=$G$47+$G$52+$G$53+$G$54,"Cold Crash",IF(B27<=$G$47+$G$52+$G$53+$G$54+$G$55,"Secondary Conditioning",IF(B27<=$G$47+$G$52+$G$53+$G$54+$G$55+$G$56,"Aging (including carbing)",IF(B27=$G$49,"Tap Date",""))))))))) -> 
B33: =IF(B27="","",IF(B27<$F$47,"",IF(B27=$F$47,"Brew Day",IF(B27<=$F$47+$F$52,"Primary Fermentation",IF(B27<=$F$47+$F$52+$F$53,"Diacetyl Rest",IF(B27<=$F$47+$F$52+$F$53+$F$54,"Cold Crash",IF(B27<=$F$47+$F$52+$F$53+$F$54+$F$55,"Secondary Conditioning",IF(B27<=$F$47+$F$52+$F$53+$F$54+$F$55+$F$56,"Aging (including carbing)",IF(B27=$F$49,"Tap Date",""))))))))) -> 
B34: =IF(B27="","",IF(B27<$E$47,"",IF(B27=$E$47,"Brew Day",IF(B27<=$E$47+$E$52,"Primary Fermentation",IF(B27<=$E$47+$E$52+$E$53,"Diacetyl Rest",IF(B27<=$E$47+$E$52+$E$53+$E$54,"Cold Crash",IF(B27<=$E$47+$E$52+$E$53+$E$54+$E$55,"Secondary Conditioning",IF(B27<=$E$47+$E$52+$E$53+$E$54+$E$55+$E$56,"Aging (including carbing)",IF(B27=$E$49,"Tap Date",""))))))))) -> 
B35: =IF(30-(WEEKDAY(DATEVALUE(CONCATENATE($D$1, " 1, ",$F$1))))-((EDATE(DATEVALUE(CONCATENATE($D$1," 1, ",$F$1)),1))-(DATEVALUE(CONCATENATE($D$1, " 1, ",$F$1))))<=0,DATEVALUE(CONCATENATE($D$1," ",30-(WEEKDAY(DATEVALUE(CONCATENATE($D$1, " 1, ",$F$1)))),", ",$F$1)),"") -> 2009-03-29 | C35: =IF(31-(WEEKDAY(DATEVALUE(CONCATENATE($D$1, " 1, ",$F$1))))-((EDATE(DATEVALUE(CONCATENATE($D$1," 1, ",$F$1)),1))-(DATEVALUE(CONCATENATE($D$1, " 1, ",$F$1))))<=0,DATEVALUE(CONCATENATE($D$1," ",31-(WEEKDAY(DATEVALUE(CONCATENATE($D$1, " 1, ",$F$1)))),", ",$F$1)),"") -> 2009-03-30 | D35: =IF(32-(WEEKDAY(DATEVALUE(CONCATENATE($D$1, " 1, ",$F$1))))-((EDATE(DATEVALUE(CONCATENATE($D$1," 1, ",$F$1)),1))-(DATEVALUE(CONCATENATE($D$1, " 1, ",$F$1))))<=0,DATEVALUE(CONCATENATE($D$1," ",32-(WEEKDAY(DATEVALUE(CONCATENATE($D$1, " 1, ",$F$1)))),", ",$F$1)),"") -> 2009-03-31 | E35: =IF(33-(WEEKDAY(DATEVALUE(CONCATENATE($D$1, " 1, ",$F$1))))-((EDATE(DATEVALUE(CONCATENATE($D$1," 1, ",$F$1)),1))-(DATEVALUE(CONCATENATE($D$1, " 1, ",$F$1))))<=0,DATEVALUE(CONCATENATE($D$1," ",33-(WEEKDAY(DATEVALUE(CONCATENATE($D$1, " 1, ",$F$1)))),", ",$F$1)),"") ->  | F35: =IF(34-(WEEKDAY(DATEVALUE(CONCATENATE($D$1, " 1, ",$F$1))))-((EDATE(DATEVALUE(CONCATENATE($D$1," 1, ",$F$1)),1))-(DATEVALUE(CONCATENATE($D$1, " 1, ",$F$1))))<=0,DATEVALUE(CONCATENATE($D$1," ",34-(WEEKDAY(DATEVALUE(CONCATENATE($D$1, " 1, ",$F$1)))),", ",$F$1)),"") ->  | G35: =IF(35-(WEEKDAY(DATEVALUE(CONCATENATE($D$1, " 1, ",$F$1))))-((EDATE(DATEVALUE(CONCATENATE($D$1," 1, ",$F$1)),1))-(DATEVALUE(CONCATENATE($D$1, " 1, ",$F$1))))<=0,DATEVALUE(CONCATENATE($D$1," ",35-(WEEKDAY(DATEVALUE(CONCATENATE($D$1, " 1, ",$F$1)))),", ",$F$1)),"") ->  | H35: =IF(36-(WEEKDAY(DATEVALUE(CONCATENATE($D$1, " 1, ",$F$1))))-((EDATE(DATEVALUE(CONCATENATE($D$1," 1, ",$F$1)),1))-(DATEVALUE(CONCATENATE($D$1, " 1, ",$F$1))))<=0,DATEVALUE(CONCATENATE($D$1," ",36-(WEEKDAY(DATEVALUE(CONCATENATE($D$1, " 1, ",$F$1)))),", ",$F$1)),"") -> 
B36: =IF(B35="","",IF(B35<Worksheet!BrewDate,"",IF(B35=Worksheet!BrewDate,"Brew Day",IF(B35<=Worksheet!BrewDate+Worksheet!DaysFermentation,"Primary Fermentation",IF(B35<=Worksheet!BrewDate+Worksheet!DaysFermentation+Worksheet!DaysDiacetylRest,"Diacetyl Rest",IF(B35<=Worksheet!BrewDate+Worksheet!DaysFermentation+Worksheet!DaysDiacetylRest+Worksheet!DaysColdCrash,"Cold Crash",IF(B35<=Worksheet!BrewDate+Worksheet!DaysFermentation+Worksheet!DaysDiacetylRest+Worksheet!DaysColdCrash+Worksheet!DaysConditioning,"Secondary Conditioning",IF(B35<=Worksheet!BrewDate+Worksheet!DaysFermentation+Worksheet!DaysDiacetylRest+Worksheet!DaysColdCrash+Worksheet!DaysConditioning+Worksheet!DaysAging,"Aging (including carbing)",IF(B35=Worksheet!DrinkDate,"Tap Date",""))))))))) ->  | C36: =IF(C35="","",IF(C35<Worksheet!BrewDate,"",IF(C35=Worksheet!BrewDate,"Brew Day",IF(C35<=Worksheet!BrewDate+Worksheet!DaysFermentation,"Primary Fermentation",IF(C35<=Worksheet!BrewDate+Worksheet!DaysFermentation+Worksheet!DaysDiacetylRest,"Diacetyl Rest",IF(C35<=Worksheet!BrewDate+Worksheet!DaysFermentation+Worksheet!DaysDiacetylRest+Worksheet!DaysColdCrash,"Cold Crash",IF(C35<=Worksheet!BrewDate+Worksheet!DaysFermentation+Worksheet!DaysDiacetylRest+Worksheet!DaysColdCrash+Worksheet!DaysConditioning,"Secondary Conditioning",IF(C35<=Worksheet!BrewDate+Worksheet!DaysFermentation+Worksheet!DaysDiacetylRest+Worksheet!DaysColdCrash+Worksheet!DaysConditioning+Worksheet!DaysAging,"Aging (including carbing)",IF(C35=Worksheet!DrinkDate,"Tap Date",""))))))))) ->  | D36: =IF(D35="","",IF(D35<Worksheet!BrewDate,"",IF(D35=Worksheet!BrewDate,"Brew Day",IF(D35<=Worksheet!BrewDate+Worksheet!DaysFermentation,"Primary Fermentation",IF(D35<=Worksheet!BrewDate+Worksheet!DaysFermentation+Worksheet!DaysDiacetylRest,"Diacetyl Rest",IF(D35<=Worksheet!BrewDate+Worksheet!DaysFermentation+Worksheet!DaysDiacetylRest+Worksheet!DaysColdCrash,"Cold Crash",IF(D35<=Worksheet!BrewDate+Worksheet!DaysFermentation+Worksheet!DaysDiacetylRest+Worksheet!DaysColdCrash+Worksheet!DaysConditioning,"Secondary Conditioning",IF(D35<=Worksheet!BrewDate+Worksheet!DaysFermentation+Worksheet!DaysDiacetylRest+Worksheet!DaysColdCrash+Worksheet!DaysConditioning+Worksheet!DaysAging,"Aging (including carbing)",IF(D35=Worksheet!DrinkDate,"Tap Date",""))))))))) ->  | E36: =IF(E35="","",IF(E35<Worksheet!BrewDate,"",IF(E35=Worksheet!BrewDate,"Brew Day",IF(E35<=Worksheet!BrewDate+Worksheet!DaysFermentation,"Primary Fermentation",IF(E35<=Worksheet!BrewDate+Worksheet!DaysFermentation+Worksheet!DaysDiacetylRest,"Diacetyl Rest",IF(E35<=Worksheet!BrewDate+Worksheet!DaysFermentation+Worksheet!DaysDiacetylRest+Worksheet!DaysColdCrash,"Cold Crash",IF(E35<=Worksheet!BrewDate+Worksheet!DaysFermentation+Worksheet!DaysDiacetylRest+Worksheet!DaysColdCrash+Worksheet!DaysConditioning,"Secondary Conditioning",IF(E35<=Worksheet!BrewDate+Worksheet!DaysFermentation+Worksheet!DaysDiacetylRest+Worksheet!DaysColdCrash+Worksheet!DaysConditioning+Worksheet!DaysAging,"Aging (including carbing)",IF(E35=Worksheet!DrinkDate,"Tap Date",""))))))))) ->  | F36: =IF(F35="","",IF(F35<Worksheet!BrewDate,"",IF(F35=Worksheet!BrewDate,"Brew Day",IF(F35<=Worksheet!BrewDate+Worksheet!DaysFermentation,"Primary Fermentation",IF(F35<=Worksheet!BrewDate+Worksheet!DaysFermentation+Worksheet!DaysDiacetylRest,"Diacetyl Rest",IF(F35<=Worksheet!BrewDate+Worksheet!DaysFermentation+Worksheet!DaysDiacetylRest+Worksheet!DaysColdCrash,"Cold Crash",IF(F35<=Worksheet!BrewDate+Worksheet!DaysFermentation+Worksheet!DaysDiacetylRest+Worksheet!DaysColdCrash+Worksheet!DaysConditioning,"Secondary Conditioning",IF(F35<=Worksheet!BrewDate+Worksheet!DaysFermentation+Worksheet!DaysDiacetylRest+Worksheet!DaysColdCrash+Worksheet!DaysConditioning+Worksheet!DaysAging,"Aging (including carbing)",IF(F35=Worksheet!DrinkDate,"Tap Date",""))))))))) ->  | G36: =IF(G35="","",IF(G35<Worksheet!BrewDate,"",IF(G35=Worksheet!BrewDate,"Brew Day",IF(G35<=Worksheet!BrewDate+Worksheet!DaysFermentation,"Primary Fermentation",IF(G35<=Worksheet!BrewDate+Worksheet!DaysFermentation+Worksheet!DaysDiacetylRest,"Diacetyl Rest",IF(G35<=Worksheet!BrewDate+Worksheet!DaysFermentation+Worksheet!DaysDiacetylRest+Worksheet!DaysColdCrash,"Cold Crash",IF(G35<=Worksheet!BrewDate+Worksheet!DaysFermentation+Worksheet!DaysDiacetylRest+Worksheet!DaysColdCrash+Worksheet!DaysConditioning,"Secondary Conditioning",IF(G35<=Worksheet!BrewDate+Worksheet!DaysFermentation+Worksheet!DaysDiacetylRest+Worksheet!DaysColdCrash+Worksheet!DaysConditioning+Worksheet!DaysAging,"Aging (including carbing)",IF(G35=Worksheet!DrinkDate,"Tap Date",""))))))))) ->  | H36: =IF(H35="","",IF(H35<Worksheet!BrewDate,"",IF(H35=Worksheet!BrewDate,"Brew Day",IF(H35<=Worksheet!BrewDate+Worksheet!DaysFermentation,"Primary Fermentation",IF(H35<=Worksheet!BrewDate+Worksheet!DaysFermentation+Worksheet!DaysDiacetylRest,"Diacetyl Rest",IF(H35<=Worksheet!BrewDate+Worksheet!DaysFermentation+Worksheet!DaysDiacetylRest+Worksheet!DaysColdCrash,"Cold Crash",IF(H35<=Worksheet!BrewDate+Worksheet!DaysFermentation+Worksheet!DaysDiacetylRest+Worksheet!DaysColdCrash+Worksheet!DaysConditioning,"Secondary Conditioning",IF(H35<=Worksheet!BrewDate+Worksheet!DaysFermentation+Worksheet!DaysDiacetylRest+Worksheet!DaysColdCrash+Worksheet!DaysConditioning+Worksheet!DaysAging,"Aging (including carbing)",IF(H35=Worksheet!DrinkDate,"Tap Date",""))))))))) -> 
B37: =IF(B35="","",IF(B35<$J$47,"",IF(B35=$J$47,"Brew Day",IF(B35<=$J$47+$J$52,"Primary Fermentation",IF(B35<=$J$47+$J$52+$J$53,"Diacetyl Rest",IF(B35<=$J$47+$J$52+$J$53+$J$54,"Cold Crash",IF(B35<=$J$47+$J$52+$J$53+$J$54+$J$55,"Secondary Conditioning",IF(B35<=$J$47+$J$52+$J$53+$J$54+$J$55+$J$56,"Aging (including carbing)",IF(B35=$J$49,"Tap Date",""))))))))) -> 
B38: =IF(B35="","",IF(B35<$I$47,"",IF(B35=$I$47,"Brew Day",IF(B35<=$I$47+$I$52,"Primary Fermentation",IF(B35<=$I$47+$I$52+$I$53,"Diacetyl Rest",IF(B35<=$I$47+$I$52+$I$53+$I$54,"Cold Crash",IF(B35<=$I$47+$I$52+$I$53+$I$54+$I$55,"Secondary Conditioning",IF(B35<=$I$47+$I$52+$I$53+$I$54+$I$55+$I$56,"Aging (including carbing)",IF(B35=$I$49,"Tap Date",""))))))))) -> Primary Fermentation | C38: Primary Fermentation | D38: Primary Fermentation
B39: =IF(B35="","",IF(B35<$H$47,"",IF(B35=$H$47,"Brew Day",IF(B35<=$H$47+$H$52,"Primary Fermentation",IF(B35<=$H$47+$H$52+$H$53,"Diacetyl Rest",IF(B35<=$H$47+$H$52+$H$53+$H$54,"Cold Crash",IF(B35<=$H$47+$H$52+$H$53+$H$54+$H$55,"Secondary Conditioning",IF(B35<=$H$47+$H$52+$H$53+$H$54+$H$55+$H$56,"Aging (including carbing)",IF(B35=$H$49,"Tap Date",""))))))))) -> 
B40: =IF(B35="","",IF(B35<$G$47,"",IF(B35=$G$47,"Brew Day",IF(B35<=$G$47+$G$52,"Primary Fermentation",IF(B35<=$G$47+$G$52+$G$53,"Diacetyl Rest",IF(B35<=$G$47+$G$52+$G$53+$G$54,"Cold Crash",IF(B35<=$G$47+$G$52+$G$53+$G$54+$G$55,"Secondary Conditioning",IF(B35<=$G$47+$G$52+$G$53+$G$54+$G$55+$G$56,"Aging (including carbing)",IF(B35=$G$49,"Tap Date",""))))))))) -> 
B41: =IF(B35="","",IF(B35<$F$47,"",IF(B35=$F$47,"Brew Day",IF(B35<=$F$47+$F$52,"Primary Fermentation",IF(B35<=$F$47+$F$52+$F$53,"Diacetyl Rest",IF(B35<=$F$47+$F$52+$F$53+$F$54,"Cold Crash",IF(B35<=$F$47+$F$52+$F$53+$F$54+$F$55,"Secondary Conditioning",IF(B35<=$F$47+$F$52+$F$53+$F$54+$F$55+$F$56,"Aging (including carbing)",IF(B35=$F$49,"Tap Date",""))))))))) -> 
B42: =IF(B35="","",IF(B35<$E$47,"",IF(B35=$E$47,"Brew Day",IF(B35<=$E$47+$E$52,"Primary Fermentation",IF(B35<=$E$47+$E$52+$E$53,"Diacetyl Rest",IF(B35<=$E$47+$E$52+$E$53+$E$54,"Cold Crash",IF(B35<=$E$47+$E$52+$E$53+$E$54+$E$55,"Secondary Conditioning",IF(B35<=$E$47+$E$52+$E$53+$E$54+$E$55+$E$56,"Aging (including carbing)",IF(B35=$E$49,"Tap Date",""))))))))) -> 
B43: =IF(37-(WEEKDAY(DATEVALUE(CONCATENATE($D$1, " 1, ",$F$1))))-((EDATE(DATEVALUE(CONCATENATE($D$1," 1, ",$F$1)),1))-(DATEVALUE(CONCATENATE($D$1, " 1, ",$F$1))))<=0,DATEVALUE(CONCATENATE($D$1," ",37-(WEEKDAY(DATEVALUE(CONCATENATE($D$1, " 1, ",$F$1)))),", ",$F$1)),"") ->  | C43: =IF(38-(WEEKDAY(DATEVALUE(CONCATENATE($D$1, " 1, ",$F$1))))-((EDATE(DATEVALUE(CONCATENATE($D$1," 1, ",$F$1)),1))-(DATEVALUE(CONCATENATE($D$1, " 1, ",$F$1))))<=0,DATEVALUE(CONCATENATE($D$1," ",38-(WEEKDAY(DATEVALUE(CONCATENATE($D$1, " 1, ",$F$1)))),", ",$F$1)),"") -> 
B44: =IF(B43="","",IF(B43<Worksheet!BrewDate,"",IF(B43=Worksheet!BrewDate,"Brew Day",IF(B43<=Worksheet!BrewDate+Worksheet!DaysFermentation,"Primary Fermentation",IF(B43<=Worksheet!BrewDate+Worksheet!DaysFermentation+Worksheet!DaysDiacetylRest,"Diacetyl Rest",IF(B43<=Worksheet!BrewDate+Worksheet!DaysFermentation+Worksheet!DaysDiacetylRest+Worksheet!DaysColdCrash,"Cold Crash",IF(B43<=Worksheet!BrewDate+Worksheet!DaysFermentation+Worksheet!DaysDiacetylRest+Worksheet!DaysColdCrash+Worksheet!DaysConditioning,"Secondary Conditioning",IF(B43<=Worksheet!BrewDate+Worksheet!DaysFermentation+Worksheet!DaysDiacetylRest+Worksheet!DaysColdCrash+Worksheet!DaysConditioning+Worksheet!DaysAging,"Aging (including carbing)",IF(B43=Worksheet!DrinkDate,"Tap Date",""))))))))) ->  | C44: =IF(C43="","",IF(C43<Worksheet!BrewDate,"",IF(C43=Worksheet!BrewDate,"Brew Day",IF(C43<=Worksheet!BrewDate+Worksheet!DaysFermentation,"Primary Fermentation",IF(C43<=Worksheet!BrewDate+Worksheet!DaysFermentation+Worksheet!DaysDiacetylRest,"Diacetyl Rest",IF(C43<=Worksheet!BrewDate+Worksheet!DaysFermentation+Worksheet!DaysDiacetylRest+Worksheet!DaysColdCrash,"Cold Crash",IF(C43<=Worksheet!BrewDate+Worksheet!DaysFermentation+Worksheet!DaysDiacetylRest+Worksheet!DaysColdCrash+Worksheet!DaysConditioning,"Secondary Conditioning",IF(C43<=Worksheet!BrewDate+Worksheet!DaysFermentation+Worksheet!DaysDiacetylRest+Worksheet!DaysColdCrash+Worksheet!DaysConditioning+Worksheet!DaysAging,"Aging (including carbing)",IF(C43=Worksheet!DrinkDate,"Tap Date",""))))))))) ->  | G44: Parti-gyle Second Beer | H44: Example Parti-gyle | I44: Example Ale | J44: Example Lager | K44: Worksheet
B45: =IF(B43="","",IF(B43<$J$47,"",IF(B43=$J$47,"Brew Day",IF(B43<=$J$47+$J$52,"Primary Fermentation",IF(B43<=$J$47+$J$52+$J$53,"Diacetyl Rest",IF(B43<=$J$47+$J$52+$J$53+$J$54,"Cold Crash",IF(B43<=$J$47+$J$52+$J$53+$J$54+$J$55,"Secondary Conditioning",IF(B43<=$J$47+$J$52+$J$53+$J$54+$J$55+$J$56,"Aging (including carbing)",IF(B43=$J$49,"Tap Date",""))))))))) ->  | C45: =IF(C43="","",IF(C43<$J$47,"",IF(C43=$J$47,"Brew Day",IF(C43<=$J$47+$J$52,"Primary Fermentation",IF(C43<=$J$47+$J$52+$J$53,"Diacetyl Rest",IF(C43<=$J$47+$J$52+$J$53+$J$54,"Cold Crash",IF(C43<=$J$47+$J$52+$J$53+$J$54+$J$55,"Secondary Conditioning",IF(C43<=$J$47+$J$52+$J$53+$J$54+$J$55+$J$56,"Aging (including carbing)",IF(C43=$J$49,"Tap Date",""))))))))) -> 
B46: =IF(B43="","",IF(B43<$I$47,"",IF(B43=$I$47,"Brew Day",IF(B43<=$I$47+$I$52,"Primary Fermentation",IF(B43<=$I$47+$I$52+$I$53,"Diacetyl Rest",IF(B43<=$I$47+$I$52+$I$53+$I$54,"Cold Crash",IF(B43<=$I$47+$I$52+$I$53+$I$54+$I$55,"Secondary Conditioning",IF(B43<=$I$47+$I$52+$I$53+$I$54+$I$55+$I$56,"Aging (including carbing)",IF(B43=$I$49,"Tap Date",""))))))))) ->  | C46: =IF(C43="","",IF(C43<$I$47,"",IF(C43=$I$47,"Brew Day",IF(C43<=$I$47+$I$52,"Primary Fermentation",IF(C43<=$I$47+$I$52+$I$53,"Diacetyl Rest",IF(C43<=$I$47+$I$52+$I$53+$I$54,"Cold Crash",IF(C43<=$I$47+$I$52+$I$53+$I$54+$I$55,"Secondary Conditioning",IF(C43<=$I$47+$I$52+$I$53+$I$54+$I$55+$I$56,"Aging (including carbing)",IF(C43=$I$49,"Tap Date",""))))))))) -> 
B47: =IF(B43="","",IF(B43<$H$47,"",IF(B43=$H$47,"Brew Day",IF(B43<=$H$47+$H$52,"Primary Fermentation",IF(B43<=$H$47+$H$52+$H$53,"Diacetyl Rest",IF(B43<=$H$47+$H$52+$H$53+$H$54,"Cold Crash",IF(B43<=$H$47+$H$52+$H$53+$H$54+$H$55,"Secondary Conditioning",IF(B43<=$H$47+$H$52+$H$53+$H$54+$H$55+$H$56,"Aging (including carbing)",IF(B43=$H$49,"Tap Date",""))))))))) ->  | C47: =IF(C43="","",IF(C43<$H$47,"",IF(C43=$H$47,"Brew Day",IF(C43<=$H$47+$H$52,"Primary Fermentation",IF(C43<=$H$47+$H$52+$H$53,"Diacetyl Rest",IF(C43<=$H$47+$H$52+$H$53+$H$54,"Cold Crash",IF(C43<=$H$47+$H$52+$H$53+$H$54+$H$55,"Secondary Conditioning",IF(C43<=$H$47+$H$52+$H$53+$H$54+$H$55+$H$56,"Aging (including carbing)",IF(C43=$H$49,"Tap Date",""))))))))) ->  | E47: =IF(Recipe1TabName="","",IF(Recipe1TabName="Recipe Name","",VLOOKUP(Recipe1TabName,RECIPE_SCHEDULE,2,0))) ->  | F47: =IF(Recipe2TabName="","",IF(Recipe2TabName="Recipe Name","",VLOOKUP(Recipe2TabName,RECIPE_SCHEDULE,2,0))) ->  | G47: =IF(Recipe3TabName="","",IF(Recipe3TabName="Recipe Name","",VLOOKUP(Recipe3TabName,RECIPE_SCHEDULE,2,0))) -> 2007-10-25 | H47: =IF(Recipe4TabName="","",IF(Recipe4TabName="Recipe Name","",VLOOKUP(Recipe4TabName,RECIPE_SCHEDULE,2,0))) -> 2007-10-25 | I47: =IF(Recipe5TabName="","",IF(Recipe5TabName="Recipe Name","",VLOOKUP(Recipe5TabName,RECIPE_SCHEDULE,2,0))) -> 2009-03-25 | J47: =IF(Recipe6TabName="","",IF(Recipe6TabName="Recipe Name","",VLOOKUP(Recipe6TabName,RECIPE_SCHEDULE,2,0))) -> 2009-01-15 | K47: =IF(Worksheet!BrewDate="","",Worksheet!BrewDate) -> 
B48: =IF(B43="","",IF(B43<$G$47,"",IF(B43=$G$47,"Brew Day",IF(B43<=$G$47+$G$52,"Primary Fermentation",IF(B43<=$G$47+$G$52+$G$53,"Diacetyl Rest",IF(B43<=$G$47+$G$52+$G$53+$G$54,"Cold Crash",IF(B43<=$G$47+$G$52+$G$53+$G$54+$G$55,"Secondary Conditioning",IF(B43<=$G$47+$G$52+$G$53+$G$54+$G$55+$G$56,"Aging (including carbing)",IF(B43=$G$49,"Tap Date",""))))))))) ->  | C48: =IF(C43="","",IF(C43<$G$47,"",IF(C43=$G$47,"Brew Day",IF(C43<=$G$47+$G$52,"Primary Fermentation",IF(C43<=$G$47+$G$52+$G$53,"Diacetyl Rest",IF(C43<=$G$47+$G$52+$G$53+$G$54,"Cold Crash",IF(C43<=$G$47+$G$52+$G$53+$G$54+$G$55,"Secondary Conditioning",IF(C43<=$G$47+$G$52+$G$53+$G$54+$G$55+$G$56,"Aging (including carbing)",IF(C43=$G$49,"Tap Date",""))))))))) -> 
B49: =IF(B43="","",IF(B43<$F$47,"",IF(B43=$F$47,"Brew Day",IF(B43<=$F$47+$F$52,"Primary Fermentation",IF(B43<=$F$47+$F$52+$F$53,"Diacetyl Rest",IF(B43<=$F$47+$F$52+$F$53+$F$54,"Cold Crash",IF(B43<=$F$47+$F$52+$F$53+$F$54+$F$55,"Secondary Conditioning",IF(B43<=$F$47+$F$52+$F$53+$F$54+$F$55+$F$56,"Aging (including carbing)",IF(B43=$F$49,"Tap Date",""))))))))) ->  | C49: =IF(C43="","",IF(C43<$F$47,"",IF(C43=$F$47,"Brew Day",IF(C43<=$F$47+$F$52,"Primary Fermentation",IF(C43<=$F$47+$F$52+$F$53,"Diacetyl Rest",IF(C43<=$F$47+$F$52+$F$53+$F$54,"Cold Crash",IF(C43<=$F$47+$F$52+$F$53+$F$54+$F$55,"Secondary Conditioning",IF(C43<=$F$47+$F$52+$F$53+$F$54+$F$55+$F$56,"Aging (including carbing)",IF(C43=$F$49,"Tap Date",""))))))))) ->  | E49: =IF(Recipe1TabName="","",IF(Recipe1TabName="Recipe Name","",1+E47+SUM(E52:E56))) ->  | F49: =IF(Recipe2TabName="","",IF(Recipe2TabName="Recipe Name","",1+F47+SUM(F52:F56))) ->  | G49: =IF(Recipe3TabName="","",IF(Recipe3TabName="Recipe Name","",1+G47+SUM(G52:G56))) -> 2008-05-06 | H49: =IF(Recipe4TabName="","",IF(Recipe4TabName="Recipe Name","",1+H47+SUM(H52:H56))) -> 2008-02-09 | I49: =IF(Recipe5TabName="","",IF(Recipe5TabName="Recipe Name","",1+I47+SUM(I52:I56))) -> 2009-04-20 | J49: =IF(Recipe6TabName="","",IF(Recipe6TabName="Recipe Name","",1+J47+SUM(J52:J56))) -> 2009-03-25 | K49: =Worksheet!DrinkDate -> 
B50: =IF(B43="","",IF(B43<$E$47,"",IF(B43=$E$47,"Brew Day",IF(B43<=$E$47+$E$52,"Primary Fermentation",IF(B43<=$E$47+$E$52+$E$53,"Diacetyl Rest",IF(B43<=$E$47+$E$52+$E$53+$E$54,"Cold Crash",IF(B43<=$E$47+$E$52+$E$53+$E$54+$E$55,"Secondary Conditioning",IF(B43<=$E$47+$E$52+$E$53+$E$54+$E$55+$E$56,"Aging (including carbing)",IF(B43=$E$49,"Tap Date",""))))))))) ->  | C50: =IF(C43="","",IF(C43<$E$47,"",IF(C43=$E$47,"Brew Day",IF(C43<=$E$47+$E$52,"Primary Fermentation",IF(C43<=$E$47+$E$52+$E$53,"Diacetyl Rest",IF(C43<=$E$47+$E$52+$E$53+$E$54,"Cold Crash",IF(C43<=$E$47+$E$52+$E$53+$E$54+$E$55,"Secondary Conditioning",IF(C43<=$E$47+$E$52+$E$53+$E$54+$E$55+$E$56,"Aging (including carbing)",IF(C43=$E$49,"Tap Date",""))))))))) -> 
D52: Primary | E52: =IF(Recipe1TabName="","",VLOOKUP(Recipe1TabName,RECIPE_SCHEDULE,3,0)) ->  | F52: =IF(Recipe2TabName="","",VLOOKUP(Recipe2TabName,RECIPE_SCHEDULE,3,0)) ->  | G52: =IF(Recipe3TabName="","",VLOOKUP(Recipe3TabName,RECIPE_SCHEDULE,3,0)) -> 10 | H52: =IF(Recipe4TabName="","",VLOOKUP(Recipe4TabName,RECIPE_SCHEDULE,3,0)) -> 14 | I52: =IF(Recipe5TabName="","",VLOOKUP(Recipe5TabName,RECIPE_SCHEDULE,3,0)) -> 10 | J52: =IF(Recipe6TabName="","",VLOOKUP(Recipe6TabName,RECIPE_SCHEDULE,3,0)) -> 16 | K52: =Worksheet!DaysFermentation -> 0
D53: Diacetyl Rest | E53: =IF(Recipe1TabName="","",VLOOKUP(Recipe1TabName,RECIPE_SCHEDULE,4,0)) ->  | F53: =IF(Recipe2TabName="","",VLOOKUP(Recipe2TabName,RECIPE_SCHEDULE,4,0)) ->  | G53: =IF(Recipe3TabName="","",VLOOKUP(Recipe3TabName,RECIPE_SCHEDULE,4,0)) -> 0 | H53: =IF(Recipe4TabName="","",VLOOKUP(Recipe4TabName,RECIPE_SCHEDULE,4,0)) -> 0 | I53: =IF(Recipe5TabName="","",VLOOKUP(Recipe5TabName,RECIPE_SCHEDULE,4,0)) -> 0 | J53: =IF(Recipe6TabName="","",VLOOKUP(Recipe6TabName,RECIPE_SCHEDULE,4,0)) -> 3 | K53: =Worksheet!DaysDiacetylRest -> 0
D54: Cold Crash | E54: =IF(Recipe1TabName="","",VLOOKUP(Recipe1TabName,RECIPE_SCHEDULE,5,0)) ->  | F54: =IF(Recipe2TabName="","",VLOOKUP(Recipe2TabName,RECIPE_SCHEDULE,5,0)) ->  | G54: =IF(Recipe3TabName="","",VLOOKUP(Recipe3TabName,RECIPE_SCHEDULE,5,0)) -> 3 | H54: =IF(Recipe4TabName="","",VLOOKUP(Recipe4TabName,RECIPE_SCHEDULE,5,0)) -> 2 | I54: =IF(Recipe5TabName="","",VLOOKUP(Recipe5TabName,RECIPE_SCHEDULE,5,0)) -> 2 | J54: =IF(Recipe6TabName="","",VLOOKUP(Recipe6TabName,RECIPE_SCHEDULE,5,0)) -> 2 | K54: =Worksheet!DaysColdCrash -> 0
D55: Secondary | E55: =IF(Recipe1TabName="","",VLOOKUP(Recipe1TabName,RECIPE_SCHEDULE,6,0)) ->  | F55: =IF(Recipe2TabName="","",VLOOKUP(Recipe2TabName,RECIPE_SCHEDULE,6,0)) ->  | G55: =IF(Recipe3TabName="","",VLOOKUP(Recipe3TabName,RECIPE_SCHEDULE,6,0)) -> 0 | H55: =IF(Recipe4TabName="","",VLOOKUP(Recipe4TabName,RECIPE_SCHEDULE,6,0)) -> 0 | I55: =IF(Recipe5TabName="","",VLOOKUP(Recipe5TabName,RECIPE_SCHEDULE,6,0)) -> 0 | J55: =IF(Recipe6TabName="","",VLOOKUP(Recipe6TabName,RECIPE_SCHEDULE,6,0)) -> 0 | K55: =Worksheet!DaysConditioning -> 0
D56: Aging | E56: =IF(Recipe1TabName="","",VLOOKUP(Recipe1TabName,RECIPE_SCHEDULE,7,0)) ->  | F56: =IF(Recipe2TabName="","",VLOOKUP(Recipe2TabName,RECIPE_SCHEDULE,7,0)) ->  | G56: =IF(Recipe3TabName="","",VLOOKUP(Recipe3TabName,RECIPE_SCHEDULE,7,0)) -> 180 | H56: =IF(Recipe4TabName="","",VLOOKUP(Recipe4TabName,RECIPE_SCHEDULE,7,0)) -> 90 | I56: =IF(Recipe5TabName="","",VLOOKUP(Recipe5TabName,RECIPE_SCHEDULE,7,0)) -> 13 | J56: =IF(Recipe6TabName="","",VLOOKUP(Recipe6TabName,RECIPE_SCHEDULE,7,0)) -> 47 | K56: =Worksheet!DaysAging -> 0
E60: Recipe Name | F60: Brew Date | G60: Primary Days | H60: Diacetyl Rest Days | I60: Cold Crash Days | J60: Secondary Days | K60: Aging
E61: Example Lager | F61: 2009-01-15 | G61: 16 | H61: 3 | I61: 2 | K61: 47
E62: Example Ale | F62: 2009-03-25 | G62: 10 | I62: 2 | K62: 13
E63: Example Parti-gyle | F63: 2007-10-25 | G63: 14 | I63: 2 | K63: 90
E64: Parti-gyle Second Beer | F64: 2007-10-25 | G64: 10 | I64: 3 | K64: 180

Sheet Grains
A1: Malt Name | B1: Malster | C1: Origin | D1: Color | E1: Dry Yield | F1: Potential | G1: Stock | H1: Price | I1: Notes | J1: Priming Factor | K1: Link
A2: BASE MALTS:
A3: American 2 Row | B3: Rahr | C3: USA | D3: 1.8 | E3: 0.8 | F3: =((46.31*E3)+1000)/1000 -> 1.037048 | I3: 2-Row domestic blend of North American grown Harrington and Metcalfe barley varieties. Lovibond rating: 1.7-2.0; Usage: up to 100%.
A4: American 2 Row (Briess) | B4: Briess | C4: USA | D4: 1.7 | E4: 0.81 | F4: 1.0375111 | I4: Probably the most commonly used base malt in all-grain or partial-mash brewing. Yields a slightly higher extraction rate than 6-Row. 2-Row is well modified, smooth, and high in enzymes. A single step infusion mash will easily convert 2-Row, but a protein rest is recommended to improve clarity. Lovibond rating: 1.15-2.0; Usage: up to 100%.
A5: Organic 2 Row (Pesticide Free) | B5: Briess | C5: USA | D5: 1.8 | E5: 0.805 | F5: 1.03727955 | I5: The Briess Malting company is producing malts made from organically grown barley. This barley is certified organic by the OCIA (Organic Crop Improvement Association). The quality of these grains should be identical to the non-organic versions.
A6: American 2 Row Pale Ale | B6: CMC | C6: Canada | D6: 1.8 | E6: 0.8 | F6: 1.037048 | I6: A variety of malt that forms two seed rows along the stem on the grain head. Well modified with a high diastatic power allows mashing with up to 35% grain adjuncts. Because it is high in diastatic power, well modified and fairly neutral, 2-Row makes an excellent base malt and is known as the "workhorse" of many recipes. The basic malt for brewing all grain beers from scratch. Greater starch per weight ratio than 6-Row. Produces virtually no sulphur flavors associated with Pilsner malts.
A7: American 2 Row Pilsen | B7: CMC | C7: Canada | D7: 1.8 | E7: 0.8 | F7: 1.037048 | I7: See above.
A8: American 6 Row Pilsen | B8: CMC | C8: Canada | D8: 1.8 | E8: 0.75 | F8: 1.0347325 | I8: This malt variety forms six distinct seed rows on the grain head. Very high diastatic power allows mashing with up to 60% grain adjuncts, great if added diastatic strength is needed in a recipe. 6-Row also has greater husks per weight ratio than 2-Row, so could be better for mashing with huskless grain (like wheat). Higher in enzymes than 2-row, making it useful with low-enzyme adjuncts; intended for high-adjunct American beers. Grainy flavor, rather than malty. Many brewers feel 2-row is mellower.
A9: American 6 Row (Rahr) | B9: Rahr | C9: USA | D9: 2.3 | E9: 0.79 | F9: 1.0365849 | I9: Optimized for adjunct brewing—its high enzyme content easily converts corn, rice, oats, etc. Six-row is also useful in lautering wheat beers due to it high husk content. However, six-row is high in protein, and can result in increased break and haze. A protein rest may be required.
A10: Golden Promise (Simpsons) | B10: Simpsons | C10: UK | D10: 1.8 | E10: 0.81 | F10: 1.0375111 | I10: Simpson’s bring you this barley traditionally grown in Scotland. Golden Promise is very versatile, and may be used in many ales and lagers as it produces a sweet and clean wort. An integral ingredient in Scottish ales and lagers. Great base malt for UK and American IPAs.
A11: Golden Promise Pale Ale | B11: Fawcett | C11: UK | D11: 3 | E11: 0.78 | F11: 1.0361218 | I11: Scottish pale malt. A superior base malt for all Scottish beers, as well as most English style ales. Use as up to 100% of grist. Superior, rounded malty flavor makes this malt an excellent choice for Bitters and other English-style ales.
A12: Halcyon Pale Ale | B12: Fawcett | C12: UK | D12: 3 | E12: 0.78 | F12: 1.0361218 | I12: Floor malted strain specific pale ale. Well modified producing consistent extract within the standard ale color range producing sweet and flavorful worts.
A13: Kölsch Malt | B13: Global | C13: Germany | D13: 4.5 | E13: 0.81 | F13: 1.0375111 | I13: From a maltster co-op based in Osthofen, near Köln, this malt is used by some of the brewpubs in that city to make their trademark ale. Kölsch malt has a light, sweet and extremely "German" flavor and aroma with a little bit of biscuit character. We've had good results using a multi-temp step mash with Kölsch malt, but a single infusion — although not traditional — should work as well. Style nerds please take note: the maltster rates the color of this malt at 9 EBC. If you use 100% Kölsch malt for the grist of a Kölsch, you will be within spec according to Eric Warner's Kölsch (7-14 EBC, or 3.5-7 SRM — p. 51), but definitely on the dark end of the BJCP guidelines. If you are brewing for a competition, you may want to incorporate some pils or wheat malt into the grain bill to dilute the color.
A14: Marris Otter (Crisp) | B14: Crisp | C14: UK | D14: 3.5 | E14: 0.825 | F14: 1.03820575 | I14: This variety of barley has long been the favorite of the English brewers for its rich flavor and very forgiving brewing performance. In the field, it is lower yielding than the more modern varieties, so it is grown under contract to Crisp each year by selected Norfolk farmers. In the brew house, excellent yields and efficient run-off make it the malt of choice for producing English style beers. This malt is produced in traditional floor malting or Saladin boxes. Since this malt is fully modified, a protein rest is not necessary. This is a very popular base malt used in pale ales, bitters, porters, IPAs, stouts, barleywines and Scottish ales. Excellent yields and efficient run off make it the malt of choice for producing English style beers.
A15: Marris Otter Pale Ale | B15: Fawcett | C15: UK | D15: 3 | E15: 0.78 | F15: 1.0361218 | I15: Floor malted strain specific pale ale. Well modified producing consistent extract within the standard ale color range producing sweet and flavorful worts.
A16: Munich | B16: Weissheimer | C16: Germany | D16: 8 | E16: 0.8 | F16: 1.037048 | I16: The most significant property is a marked malty to nutty aroma. The endosperm is friable and slightly yellowish to light brown. Colouring power is not strong. To reach dark colours a high share of these malts needs to be added. The high withering temperatures result in lower amyloltic activities as compared to pale malts. Saccharification time is longer, final attenuation will decrease.
A17: Light Munich | B17: Weyermann | C17: Germany | D17: 6 | E17: 0.82 | F17: 1.0379742 | I17: Munich malt lends a more flavorful background to any beer. This German style Munich malt is great in any German style beer. Use up to 50% in any bock for a greater malt flavor.
A18: Munich Malt I | B18: Best | C18: Germany | D18: 6 | E18: 0.8 | F18: 1.037048 | I18: Can be used up to 80% for Marzen, fest beers and bocks Full malt flavour and aroma with copper tones.
A19: Munich Standard | B19: MFB | C19: France | D19: 6.5 | E19: 0.815 | F19: 1.03774265 | I19: This malt is obtained from carefully selected barley, processed with a proprietary germination and kilned with specialized return system. It reinforces the light color of the beer and brings out a pleasant taste with excellent mouthfeel.
A20: Munich Malt - Organic | B20: Gambrinus | C20: Canada | D20: 10 | E20: 0.75 | F20: =((46.31*E20)+1000)/1000 -> 1.0347325 | I20: just used standard numbers for the dry yield since info not found
A21: Munich - Bonlander | B21: Briess | C21: USA | D21: 10 | E21: 0.79 | F21: 1.0365849 | I21: 2 row Harrington malt gives this Munich malt a superior flavor.
A22: Munich 10 | B22: Briess | C22: USA | D22: 11.5 | E22: 0.76 | F22: 1.0351956 | I22: Used in European style lagers. Imparts a very smooth flavor with subtle tones of maltiness.
A23: Munich Dark | B23: MFB | C23: France | D23: 10.5 | E23: 0.815 | F23: 1.03774265 | I23: A slightly darker version of Munich. This malt is obtained from carefully selected barley, processed with a proprietary germination and kilned with specialized return system. It brings out a pleasant taste with excellent mouthfeel.
A24: Munich Malt II | B24: Best | C24: Germany | D24: 12 | E24: 0.8 | F24: 1.037048 | I24: A slightly darker version of Munich. Provides a full malt flavour and aroma with copper tones.
A25: Optic Pale Ale | B25: Fawcett | C25: UK | D25: 3 | E25: 0.78 | F25: 1.0361218 | I25: Floor malted strain specific pale ale. Well modified producing consistent extract within the standard ale color range producing sweet and flavorful worts.
A26: Pale Ale Malt | B26: MFB | C26: France | D26: 2 | E26: 0.84 | F26: 1.0389004 | I26: This malt is obtained from carefully selected barley, processed with a proprietary germination and kilned with specialized return system. It reinforces the light color of the beer and brings out an excellent taste. It has low protein, very high extract and light flavor characteristics. It is a great base malt for any beer style, especially British ales.
A27: Pale Malt - Organic | B27: Gambrinus | C27: Canada | D27: 2.3 | E27: 0.8 | F27: =((46.31*E27)+1000)/1000 -> 1.037048 | I27: just used standard numbers for the dry yield since info not found
A28: Pale Ale (Briess) | B28: Briess | C28: USA | D28: 3.4 | E28: 0.79 | F28: 1.0365849 | I28: This malt is a less expensive alternative to British or Belgian pale ale malt. Slightly darker version of the Briess 2-row, comparable performance suited for any ale.
A29: Pale Ale (Castle) | B29: Castle | C29: Belgium | D29: 3.3 | E29: 0.8 | F29: 1.037048
A30: Pale Ale (Crisp) | B30: Crisp | C30: UK | D30: 3 | E30: 0.825 | F30: 1.03820575 | I30: Crafted from well-modified Maris Otter malt. Works well in single-infusion mashes, and lends a drier character as it is slightly more kilned than domestic 2-Row or Pilsner malts.
A31: Pale Malt (Weyermann) | B31: Weyermann | C31: Germany | D31: 1.8 | E31: 0.85 | F31: 1.0393635 | I31: Use up to 80% for wheat beers, or in smaller proprtions to add body and head retention to Kolsch, altbier, and other ales. Include a protein rest in your mash schedule when using this grain.
A32: Pearl Pale Ale | B32: Fawcett | C32: UK | D32: 3 | E32: 0.78 | F32: 1.0361218 | I32: Strain specific pale ale. Well modified producing consistent extract within the standard ale color range producing sweet and flavorful worts.
A33: Pilsen | B33: Weissheimer | C33: Germany | D33: 1.3 | E33: 0.81 | F33: 1.0375111 | I33: color & dry yield not found on maltsters site
A34: Pilsen (MFB) | B34: MFB | C34: France | D34: 1.6 | E34: 0.84 | F34: 1.0389004 | I34: This premium Pilsen malt is made from the choicest 2-row barley varieties. It has low protein with very high extract and light flavor characteristics. It is a great base malt for all styles of beer.
A35: Pilsen (Best) | B35: Best | C35: Germany | D35: 1.3 | E35: 0.81 | F35: 1.0375111 | I35: Traditional pilsner, lagers, wheat beer and pale ales. Fully modified and suitable for single infusion mashing.
A36: Pilsner (Rahr) | B36: Rahr | C36: USA | D36: 1.7 | E36: 0.8 | F36: 1.037048 | I36: A high-quality, economical base malt from Rahr Malting in Shakopee, MN. Can make up to 100% of the grist for a very pale beer.
A37: Pilsner (Weyermann) | B37: Weyermann | C37: Germany | D37: 1.2 | E37: 0.81 | F37: 1.0375111 | I37: A good German pilsner malt.
A38: Pilsen Malt - Organic | B38: Gambrinus | C38: Canada | D38: 1.5 | E38: 0.81 | F38: =((46.31*E38)+1000)/1000 -> 1.0375111 | I38: just used standard numbers for the dry yield since info not found
A39: Pilsner Bohemian | B39: Weyermann | C39: Germany | D39: 1.9 | E39: 0.8 | F39: 1.037048 | I39: Produced from barley variety "Hanka". A region specific Pilsner malt similar to the famed Moravian Pilsner malt. Well suited for a base to any beer, but especially suited to the Bohemian-style Pilsner. Processed specifically for “Bohemian” characteristics to impart a full body, golden-blond color, and complex maltiness to the finished brew.
A40: Pils (Castle) | B40: Castle | C40: Belgium | D40: 1.6 | E40: 0.81 | F40: 1.0375111
A41: Pilsner (Durst) | B41: Durst | C41: Germany | D41: 2 | E41: 0.825 | F41: 1.03820575
A42: Vienna | B42: Weissheimer | C42: Germany | D42: 4 | E42: 0.81 | F42: 1.0375111 | I42: The most significant property is a marked malty to nutty aroma. The endosperm is friable and slightly yellowish to light brown. Colouring power is not strong. To reach dark colours a high share of these malts needs to be added. The high withering temperatures result in lower amyloltic activities as compared to pale malts. Saccharification time is longer, final attenuation will decrease.
A43: Vienna (Weyermann) | B43: Weyermann | C43: Germany | D43: 3 | E43: 0.81 | F43: 1.0375111 | I43: Slightly darker than pilsner malt, but not toasted as much as Munich malt, this grain will impart a dry, slightly toasted flavor. Use in small quantities in pale ales, up to a pound in Marzenbiers. Vienna style lagers derive most of their color and flavor from this malt.
A44: Turbo Vienna | B44: Durst | C44: Germany | D44: 3.5 | E44: 0.8 | F44: 1.037048 | I44: A more highly modified Vienna malt for use in any German style ale or lager in a single infusion mash. * Turbo malts are more highly modified than standard base malts and are best suited in a single infusion mash system.
A45: Vienna (MFB) | B45: MFB | C45: France | D45: 3 | E45: 0.825 | F45: 1.03820575 | I45: This malt is obtained from carefully selected barley, processed with a proprietary germination and kilned with specialized return system. It reinforces the light color of the beer and brings out a pleasant taste with excellent mouthfeel.
A46: Vienna (Best) | B46: Best | C46: Germany | D46: 3 | E46: 0.8 | F46: 1.037048 | I46: Use up to 100% for Marzen, Fest beers and strong lagers. Well modified and can be single infusion mashed.
A47: COLOR, FLAVOR, SMOKED & ROASTED MALTS:
A48: Acidulated Malt | B48: Weissheimer | C48: Germany | D48: 3 | E48: 0.83 | F48: =((46.31*E48)+1000)/1000 -> 1.0384373 | I48: Sour malt does not look much different from Pilsen malt. The lactic acids on the outside of the grains give the malt a slightly sour taste. In the mash the sour malt reduces the pH value and thereby raises the extract yield and the release of protein substances and the concomitant low-molecular polyphenols. The lowering of the mash pH value also increases the activity of the sour phosphatases. In this way the stronger-swelling substances make their way into the wort and the pH reduction during fermentation is reduced. Sour malt is used to reduce the mash pH value and to enhance the head on the beer.
A49: Acidulated Malt (Weyermann) | B49: Weyermann | C49: Germany | D49: 1.7 | E49: 0.8 | F49: 1.037048 | I49: This malt is acidulated with lactic acid and can be used to lower mash pH. Use up to 3% in dry stouts to add a tang to the finish. May use up to 1-10% acidulated malt in your grain bill.
A50: Special Aromatic Malt | B50: MFB | C50: France | D50: 5 | E50: 0.825 | F50: 1.03820575 | I50: This malt is obtained from carefully selected barley, processed with a proprietary germination and kilned with specialized return system. It reinforces the light color of the beer and brings out a pleasant taste with excellent mouthfeel.
A51: Ashburne Mild | B51: Briess | C51: USA | D51: 5.2 | E51: 0.79 | F51: 1.0365849 | I51: Lightly kilned 2 row Harrington malt, ideal for mild or pale ales as a base or color malt.
A52: Aromatic | B52: Castle | C52: Belgium | D52: 19 | E52: 0.8 | F52: 1.037048 | I52: This mildly kilned malt is like a more intense Munich. Considerably increases the malty aroma and darkens the color of your brews.
A53: Biscuit | B53: Castle | C53: Belgium | D53: 22.5 | E53: 0.7 | F53: 1.032417 | I53: This toasted malt gets its name from the warm bread or biscuit flavor and aroma it imparts in beers. Imparts a garnet-brown color.
A54: Honey Malt | B54: Gambrinus | C54: Canada | D54: 23 | E54: 0.8 | F54: =((46.31*E54)+1000)/1000 -> 1.037048 | I54: Gambrinus Honey Malt. 20-30° L. Honey malt is Gambrinus Malting's best description for the unique European malt known as brumalt. Its intense malt sweetness makes it perfect for any specialty beer. It is devoid of any astringent roast flavors.
A55: Melanoidin (Best) | B55: Best | C55: Germany | D55: 24 | E55: 0.81 | F55: 1.0375111 | I55: Use up to 20% for deep ruby red colours, malt flavour Aromatic and malty flavour combined with deep ruby red hue. Use in amber and dark lagers, Scottish ales, bock and doppelbock.
A56: Melanoidin (Weyermann) | B56: Weyermann | C56: Germany | D56: 33 | E56: 0.81 | F56: 1.0375111 | I56: This malt will add red coloring and intensify the malt character of your beer. Used in a wide range of styles: Amber and Dark lagers, Scottish Ales, amber ales, bocks and doppelbocks.
A57: Victory | B57: Briess | C57: USA | D57: 27 | E57: 0.73 | F57: 1.0338063 | I57: A unique malt from a great American maltster. Gives gold to light brown color and a dry, toasty, bread-like malt flavor. Excellent for English ales. Usage: 1 - 15%
A58: Amber (Crisp) | B58: Crisp | C58: UK | D58: 30 | E58: 0.8 | F58: 1.037048 | I58: Biscuit like, very rounded malt note that would find itself in amber or red and some Belgian styles.
A59: Amber Malt | B59: Fawcett | C59: UK | D59: 50 | E59: 0.69 | F59: 1.0319539 | I59: Adjunct for bitters. Provides a dry mild coffee flavor.
A60: Brown Malt | B60: Fawcett | C60: UK | D60: 60 | E60: 0.69 | F60: 1.0319539 | I60: Adjunct for bitters. Provides a dry mild coffee flavor.
A61: Brown Malt (Crisp) | B61: Crisp | C61: UK | D61: 75 | E61: 0.765 | F61: 1.03542715 | I61: Adds a dark roasted flavor and bitterness to brown ales, porters, and mild stouts.
A62: Coffee (Brown) Malt | B62: Simpsons | C62: UK | D62: 150 | E62: 0.73 | F62: 1.0338063 | I62: As the name suggests the first smell of this grain brings out a rich coffee flavor that will add complexity to any dark ale. Lovibond Rating: 130-170°. Usage: 1 - 20%
A63: Pale Chocolate | B63: Fawcett | C63: UK | D63: 280 | E63: 0.69 | F63: 1.0319539 | I63: Adjunct for bitters, milds, and stoudts 3% - 5% of grist. Provides a smooth coffee flavor.
A64: Chocolate Malt | B64: MFB | C64: France | D64: 325 | E64: 0.69 | F64: 1.0319539 | I64: This malt is obtained from selected barleys taht undergo a heavy torrification process. Using this malt improves the head retention and stability of the beer. It reinforces the color of the beer but does not color the foam. Dry yield made up.
A65: Chocolate (Briess) | B65: Briess | C65: USA | D65: 350 | E65: 0.6 | F65: 1.027786 | I65: Chocolate malt will give your beer a warm, nutty, chocolate-like flavor. Just a few ounces in a batch will impart a slight brown color. Use up to a pound in porters and stouts and dark lagers. Usage: 1 - 10%
A66: Organic Chocolate | B66: Briess | C66: USA | D66: 350 | E66: 0.69 | F66: 1.0319539 | I66: The Briess Malting company is producing malts made from organically grown barley. This barley is certified organic by the OCIA (Organic Crop Improvement Association). The quality of these grains should be identical to the non-organic versions.
A67: Chocolate (Simpsons) | B67: Simpsons | C67: UK | D67: 400 | E67: 0.6 | F67: 1.027786 | I67: A classic malt for stout, porter, and brown ale. Provides color for a wide variety of darker beer styles. Use just a few ounces for a brown color and mild flavor, or up to a full pound for a very strong chocolate flavor and near black color.
A68: Chocolate | B68: Fawcett | C68: UK | D68: 500 | E68: 0.69 | F68: 1.0319539 | I68: Adjunct for bitters, milds, and stoudts 3% - 5% of grist. Provides a strong coffee flavor.
A69: Black Malt 500 | B69: Briess | C69: USA | D69: 500 | E69: 0.7 | F69: 1.032417 | I69: As implied by the name, this malt will give a sharp roasted flavor and deep red to black color. Used in porters, stouts, and dark ales and lagers. Midwest suggests using this malt in moderation. Usage: 1 - 5%
A70: De-Bittered Black Malt | B70: Castle | C70: Belgium | D70: 550 | E70: 0.65 | F70: 1.0301015 | I70: This malt allows you to add the deep black color of Black Patent without the bitter, dark coffee-chocolate flavors. Use sparingly, just a couple of ounces will give your brew a deep red to black coloring. Use as you would black malt. Usage: 1 - 10%
A71: Black Malt 600 | B71: Fawcett | C71: UK | D71: 600 | E71: 0.69 | F71: 1.0319539 | I71: For bitters, milds, and stouts 3% - 5% of grist. Provides a very strong burnt coffee flavor. Made by roasting white malt at a higher temperature than that used to produce Chocolate Malts. Gives a sharp flavor and black color. Used in sweet stout and many dark beers. This malt adds a lot of color and should be used in moderation.
A72: Light Roasted Barley | B72: Briess | C72: USA | D72: 300 | E72: 0.67 | F72: 1.0310277 | I72: Use this grain when you want a sweet, coffee-like, grainy flavor and red to deep brown color. A little goes a long way. Roasted barley imparts the flavors associated with Irish Stout. Usage: 1 - 5%
A73: Roasted Barley (Simpsons) | B73: Simpsons | C73: UK | D73: 550 | E73: 0.6 | F73: 1.027786 | I73: Use this grain when you want a sweet, coffee-like, grainy flavor and red to deep brown color. A little goes a long way. Roasted barley imparts the flavors associated with Irish Stout. Usage: 1 - 10%
A74: Roasted Barley | B74: Fawcett | C74: UK | D74: 600 | E74: 0.67 | F74: 1.0310277 | I74: Adjunct for bitters, milds, and stoudts. Provides a dry bitter flavor.
A75: Smoked Malt | B75: Weyermann | C75: Germany | D75: 2 | E75: 0.81 | F75: 1.0375111 | I75: Also known as rauchmalt, Weyermann's famous beechwood-smoked malt can make up to 100% of the grist for classic German Rauchbier.
A76: Smoked Malt (Briess) | B76: Briess | C76: USA | D76: 5 | E76: 0.8 | F76: 1.037048 | I76: Produced using cherry wood and a proprietary smoking process, resulting in a unique, enzyme-active specialty malt that contributes a smooth, sweet, smoky flavor. Try this malt in Scottish Ales, Smoked Beers, Porters, Bamberger Beers, and Rauch Bocks. Lovibond Rating: 5°L Usage: up to 70% for big smoke! Try around 20% for more subtle smoke character.
A77: Peated Malt | B77: Fawcett | C77: UK | D77: 3 | E77: 0.7 | F77: 1.032417 | I77: Used to primarily to product Scotch Ales. Provides a smoked flavor to the beer. Color & Dry Yield made up.
A78: Peated Malt | B78: Simpsons | C78: UK | D78: 2.5 | E78: 0.7 | F78: 1.032417 | I78: This malt is lightly peated and used to enhance flavor in Scottish type ales. While the malt is in the kiln, peat moss outside the kiln is gently smoked over slow burning coals allowing its vapors to drift above the malt. Peated malt is also used in the making of some of Scotland's finest Scotch. Phenol level 12-24.
A79: CARA - MALTS:
A80: Carapils (dextrine) | B80: Briess | C80: USA | D80: 1.4 | E80: 0.73 | F80: =((46.31*E80)+1000)/1000 -> 1.0338063 | I80: Carapils is a dextrin malt. Its main function is to add foam stability, body, and palate fullness to otherwise thin worts. Dextrin malt also significantly enhances head retention. Although it appears darker than pale malt, it has a clear, glassy endosperm and does not contribute significantly to beer color or flavor. Must be mashed with other diastatic grains.
A81: Organic Carapils | B81: Briess | C81: USA | D81: 1.5 | E81: 0.73 | F81: 1.0338063 | I81: The Briess Malting company is producing malts made from organically grown barley. This barley is certified organic by the OCIA (Organic Crop Improvement Association). The quality of these grains should be identical to the non-organic versions.
A82: Caramel Pils | B82: Best | C82: Germany | D82: 1.6 | E82: 0.78 | F82: 1.0361218 | I82: Use 5% to 10% for improved body, head retention Also known as dextrin malt.
A83: Cara Foam | B83: Weyermann | C83: Germany | D83: 1.8 | E83: 0.73 | F83: 1.0338063 | I83: Dextrin malt used as a European substitute to Carapils. This malt lends body, mouthfeel and foam stability without lending color. Recommended for pilsners and lagers.
A84: Cara Gold | B84: Crisp | C84: UK | D84: 5.5 | E84: 0.73 | F84: 1.0338063 | I84: Very light British crystal malt with malty fruity and toffee notes that carry through into the beer. It produces a golden orange lager with increased body and fullness. It is slightly undermodified and is less friable than other crystals.
A85: Caramel Malt Light | B85: Best | C85: Germany | D85: 8 | E85: 0.74 | F85: 1.0342694 | I85: Will impart a golden hue. Use 3-7% for Pilsener-style beers for balance or use 5-15% to provide color and sweetness to light amber style beers.
A86: Caramel Pilsner | B86: MFB | C86: France | D86: 10 | E86: 0.77 | F86: 1.0356587 | I86: This malt is obtained by adapted malting, saccharification and smooth torrification of selected barleys in order to develop the aroma and color. This malt adds a fine and pleasant caramel aroma. It lightly reinforces the color and improves the mellowness and stability of the beer.
A87: Cara Hell | B87: Weyermann | C87: Germany | D87: 11 | E87: 0.74 | F87: =((46.31*E87)+1000)/1000 -> 1.0342694 | I87: Imparts a fuller, rounder flavor and deep color to pale ale, Oktoberfest, Maibock, and hefeweizen.
A88: Caramel 10 (Briess) | B88: Briess | C88: USA | D88: 12 | E88: 0.75 | F88: 1.0347325 | I88: This crystal malt lends a slight color, unique flavor and body. Also aids in head retention and foam stability. Imparts a sweet, mild caramel flavor and light golden color. Briess Caramel Malts are available in colors ranging from very light (10°L) to very dark (120°L). Lighter caramel malts will contribute slight color and and a candy-like sweetness. The darker caramel malts have a more pronounced caramel flavor, with burt sugar, raisin, and prune notes. Use up to 15% in an all-grain batch, or steep up to a pound and a half in a five-gallon extract batch.
A89: Cara Malt | B89: Fawcett | C89: UK | D89: 14 | E89: 0.66 | F89: 1.0305646 | I89: Adjunct 5% - 10% of grist. Primarily for Lagers. Provides a light and sweet malt flavor with little color addition.
A90: Cara Malt | B90: Crisp | C90: UK | D90: 17.5 | E90: 0.76 | F90: 1.0351956 | I90: Light British crystal malt. Adds both color and body with a subtle caramel note.
A91: Caramel Vienna | B91: MFB | C91: France | D91: 20 | E91: 0.77 | F91: 1.0356587 | I91: This malt is obtained by adapted malting, saccharification and smooth torrification of selected barleys in order to develop the aroma and color. This malt adds a fine and pleasant caramel aroma. It lightly reinforces the color and improves the mellowness and stability of the beer.
A92: Cara Red | B92: Weyermann | C92: Germany | D92: 20 | E92: 0.74 | F92: 1.0342694 | I92: Provides fuller body and imparts a deep, saturated red color, particularly to red ales and lagers, Scottish ales, bocks and altbiers.
A93: Caramel 20 (Briess) | B93: Briess | C93: USA | D93: 22 | E93: 0.76 | F93: 1.0351956 | I93: This crystal malt lends color, unique flavor and body. Also aids in head retention and foam stability. Has a sweet, mild caramel flavor and golden color. Used in small quantites in Pilsners to balance the maltiness and high hopping of the style. The main specialty grain responsible for the coloring and flavor of amber ales and lagers.
A94: Organic Caramel 20 | B94: Briess | C94: USA | D94: 22 | E94: 0.75 | F94: 1.0347325 | I94: The Briess Malting company is producing malts made from organically grown barley. This barley is certified organic by the OCIA (Organic Crop Improvement Association). The quality of these grains should be identical to the non-organic versions.
A95: CaraVienne 20 | B95: Castle | C95: Belgium | D95: 23 | E95: 0.7 | F95: 1.032417 | I95: Light crystal malt used by Belgian brewers in producing Abbey or Trappist style ales and can be used for any recipe calling for caramel/crystal malt. Usage: Up to 25%
A96: Cara Amber | B96: Weyermann | C96: Germany | D96: 27 | E96: 0.74 | F96: 1.0342694 | I96: Intesifies the aroma and color of dark beers, particularly German altbiers, stouts, bocks and porters.
A97: Caramel Malt | B97: Best | C97: Germany | D97: 30 | E97: 0.74 | F97: 1.0342694 | I97: Will impart a dark golden color. Use 3-7% for Pilsener-style beers for balance or use 5-15% to provide color and sweetness to Amber style beers.
A98: Caramel Amber Malt | B98: MFB | C98: France | D98: 30 | E98: 0.77 | F98: 1.0356587 | I98: This malt is obtained by adapted malting, saccharification and smooth torrification of selected barleys in order to develop the aroma and color. This malt strengthens the color and increases the mellowness of the beer while also providing a fine aroma and taste.
A99: Pale Crystal Malt (30) | B99: Fawcett | C99: UK | D99: 30 | E99: 0.67 | F99: 1.0310277 | I99: Adjunct 5% - 10% of grist, primarily for lagers. Provides a sweet malty flavor.
A100: Caramel 40 (Briess) | B100: Briess | C100: USA | D100: 40 | E100: 0.75 | F100: 1.0347325 | I100: Provides color, unique flavor and body. Also aids in head retention and foam stability. Used in pale ales and most amber ales, may also be used in darker beers. Imparts a sweet, medium caramel flavor and golden to slightly red color.
A101: Caramel Munich 40 | B101: MFB | C101: France | D101: 40 | E101: 0.75 | F101: =((46.31*E101)+1000)/1000 -> 1.0347325 | I101: This malt is obtained by adapted malting, saccharification and smooth torrification of selected barleys in order to develop the aroma and color. This malt strengthens the color of the beer and enhances its mellowness and head consistency. It also adds to the aroma and flavor of the beer.
A102: Crystal Malt I | B102: Fawcett | C102: UK | D102: 42 | E102: 0.69 | F102: 1.0319539 | I102: Adjunct 5% - 10% of grist. Provides a toffee caramel flavor.
A103: Caramunich I (43) | B103: Weyermann | C103: Germany | D103: 43 | E103: 0.73 | F103: 1.0338063 | I103: Available in three different color ranges, 43°L, 46°L and 57°L. Recommended for Oktoberfest, bocks, porters, stout, red and brown ales. use 5-10% for dark beers, 1-5% in lighter styles.
A104: Caramunich 45 (Castle) | B104: Castle | C104: Belgium | D104: 45 | E104: 0.7 | F104: 1.032417 | I104: This medium amber crystal malt will give your brew a rich, caramelly-sweet flavor and aroma, and intense color. Not interchangeable with Munich malt.
A105: Caramunich II (47) | B105: Weyermann | C105: Germany | D105: 47 | E105: 0.73 | F105: 1.0338063 | I105: Available in three different color ranges, 43°L, 46°L and 57°L. Recommended for Oktoberfest, bocks, porters, stout, red and brown ales. use 5-10% for dark beers, 1-5% in lighter styles.
A106: Special Roast | B106: Briess | C106: USA | D106: 50 | E106: 0.73 | F106: 1.0338063 | I106: Designed to contribute "biscuit" (pronounced English) flavor to beer. This malt is particularly suited to English Ales. The malt provides a deep golden to brown color. For nut brown ales, use 5-10% of total grist. For dark amber and other dark beers, use 2-5%. For porter, use 5-10%.
A107: Crystal 50-60 | B107: Simpsons | C107: UK | D107: 55 | E107: 0.73 | F107: 1.0338063 | I107: A good all-purpose caramel/crystal malt. This grain will provide a medium color and caramel, sweet malt flavor to your beer. Will also increase foam stability and give a gold to red color to ale or lager. Use in ESBs, Irish Red Ale, or Pale Ales. Usage: up to 20%
A108: Caramunich III (58) | B108: Weyermann | C108: Germany | D108: 58 | E108: 0.73 | F108: 1.0338063 | I108: Available in three different color ranges, 43°L, 46°L and 57°L. Recommended for Oktoberfest, bocks, porters, stout, red and brown ales. use 5-10% for dark beers, 1-5% in lighter styles.
A109: Caramel 60 (Briess) | B109: Briess | C109: USA | D109: 60 | E109: 0.75 | F109: 1.0347325 | I109: Used in darker pale ales, brown ales, porters, amber ales and stouts. Imparts a mellow but distinct caramel flavor and red color.
A110: Organic Caramel 60 | B110: Briess | C110: USA | D110: 60 | E110: 0.73 | F110: 1.0338063 | I110: The Briess Malting company is producing malts made from organically grown barley. This barley is certified organic by the OCIA (Organic Crop Improvement Association). The quality of these grains should be identical to the non-organic versions.
A111: Caramel Munich 60 | B111: MFB | C111: France | D111: 60 | E111: 0.75 | F111: 1.0347325 | I111: This malt is obtained by adapted malting, saccharification and smooth torrification of selected barleys in order to develop the aroma and color. This malt strengthens the color of the beer and enhances its mellowness and head consistency. It also adds to the aroma and flavor of the beer.
A112: Crystal Malt II | B112: Fawcett | C112: UK | D112: 63 | E112: 0.69 | F112: 1.0319539 | I112: Adjunct 5% - 10% of grist. Provides a slightly burnt toffee caramel flavor.
A113: Dark Crystal 75-85 | B113: Simpsons | C113: UK | D113: 80 | E113: 0.73 | F113: 1.0338063
A114: Caramel 80 (Briess) | B114: Briess | C114: USA | D114: 80 | E114: 0.73 | F114: 1.0338063 | I114: Provides color, unique flavor and body. Also aids in head retention and foam stability. Provides a sweet pronounced caramel flavor and red to deep red color. Used in red and brown ales, holiday beers, porters and stouts.
A115: Caramel Munich 80 | B115: MFB | C115: France | D115: 80 | E115: 0.75 | F115: 1.0347325 | I115: This malt is obtained by adapted malting, saccharification and smooth torrification of selected barleys in order to develop the aroma and color. This malt strengthens the color of the beer (slightlyl moreso than Caramel Munich 40 or 60) and enhances its mellowness and head consistency. It also adds to the aroma and flavor of the beer.
A116: Dark Crystal Malt I | B116: Fawcett | C116: UK | D116: 90 | E116: 0.69 | F116: 1.0319539 | I116: Adjunct up to 10% of grist. Provides a burnt toffee flavor and adds a ruby red hue to the beer.
A117: Caramel 90 (Briess) | B117: Briess | C117: USA | D117: 90 | E117: 0.72 | F117: =((46.31*E117)+1000)/1000 -> 1.0333432 | I117: Briess Caramel Malts are available in colors ranging from very light (10°L) to very dark (120°L). Lighter caramel malts will contribute slight color and and a candy-like sweetness. The darker caramel malts have a more pronounced caramel flavor, with burt sugar, raisin, and prune notes. Use up to 15% in an all-grain batch, or steep up to a pound and a half in a five-gallon extract batch.
A118: Caramel 120 (Briess) | B118: Briess | C118: USA | D118: 120 | E118: 0.73 | F118: =((46.31*E118)+1000)/1000 -> 1.0338063 | I118: Provides color, unique flavor and body. Also aids in head retention and foam stability. Imparts a very pronounced sharp caramel flavor and deep red color. Used in small quantities in red ales and lagers. Commonly used in porters and stouts.
A119: Organic Caramel 120 | B119: Briess | C119: USA | D119: 110 | E119: 0.7 | F119: 1.032417 | I119: The Briess Malting company is producing malts made from organically grown barley. This barley is certified organic by the OCIA (Organic Crop Improvement Association). The quality of these grains should be identical to the non-organic versions.
A120: Caramel Munich 120 | B120: MFB | C120: France | D120: 120 | E120: 0.75 | F120: 1.0347325 | I120: This malt is obtained by adapted malting, saccharification and smooth torrification of selected barleys in order to develop the aroma and color. This malt is MFB's darkest caramel and thus it significantly darkens the beer, while enhancing its mellowness and head consistency.
A121: Cara Aroma | B121: Weyermann | C121: Germany | D121: 130 | E121: 0.72 | F121: 1.0333432 | I121: Imparts fuller body and improved malt aroma to dark beers, particularly German altbiers, stouts, bocks and porters.
A122: Extra Special Malt | B122: Briess | C122: USA | D122: 130 | E122: 0.73 | F122: 1.0338063 | I122: Flavor: Burnt Sugar, Woody, Prunes Color: Deep red to copper
A123: Dark Crystal Malt II | B123: Fawcett | C123: UK | D123: 150 | E123: 0.69 | F123: 1.0319539 | I123: Adjunct up to 10% of grist. Provides a strong burnt toffee flavor and adds a dark red hue to the beer.
A124: Special B | B124: Castle | C124: Belgium | D124: 150 | E124: 0.65 | F124: 1.0301015 | I124: This extremely dark caramel malt combines characteristics of dark caramel and light roasted malts. The sharp, toffee-like flavor found in Belgian Abbey ales is often credited to Special B. Usage: Up to 15%
A125: Extra Dark Crystal | B125: Simpsons | C125: UK | D125: 160 | E125: 0.73 | F125: 1.0338063 | I125: Extra Dark Crystal malt is about as dark as you will find in a Crystal malt. This extremely dark crystal malt from Simpson's fine line of completely sacchrafied malts are great for use in dark beers to add dark fruit flavors and aromas as well as color.
A126: Carafa I | B126: Weyermann | C126: Germany | D126: 320 | E126: 0.7 | F126: 1.032417 | I126: German roasted malt, comparable to Chocolate malt. Gives a deeper aroma and color for dark beers. Recommended malt for any dark beer including, Bock, Altbier, Stout, Porter, and Schwartzbier. Lovibond Rating: 300-400°. Usage: up to 5%.
A127: Carafa I (de husked) | B127: Weyermann | C127: Germany | D127: 337.5 | E127: 0.7 | F127: 1.032417 | I127: De-husked version of Carafa I contributes color without the astringency that can result from roasting the husk, resulting in a smoother flavor. Recommended malt for any dark beer including, Bock, Altbier, Stout, Porter, and Schwartzbier. Lovibond Rating: 300-375°L. Usage: up to 5% of the grist.
A128: Carafa II | B128: Weyermann | C128: Germany | D128: 522.5 | E128: 0.7 | F128: 1.032417 | I128: German roasted malt, comparable to roasted barley. Gives a deeper aroma and color for dark beers. Recommended malt for any dark beer including, Bock, Altbier, Stout, Porter, and Schwartzbier. Lovibond Rating: 480-565°. Usage: up to 5%.
A129: Carafa II (de-husked) | B129: Weyermann | C129: Germany | D129: 425 | E129: 0.7 | F129: 1.032417 | I129: De-husked version contributes color without the astringency that can result from roasting the husk. This is a medium black de-husked roast malt. Recommended malt for any dark beer including, Bock, Altbier, Stout, Porter, and Schwartzbier. Lovibond Rating: 400-450°L. Usage: up to 5% of the grist.
A130: Carafa III | B130: Weyermann | C130: Germany | D130: 550 | E130: 0.7 | F130: 1.032417 | I130: German roasted malt, comparable to Black malt. Gives a deeper aroma and color for dark beers. Recommended malt for any dark beer including, Bock, Altbier, Stout, Porter, and Schwartzbier. Lovibond Rating: 500-600°L. Usage: up to 5%.
A131: Carafa III (de-husked) | B131: Weyermann | C131: Germany | D131: 470 | E131: 0.7 | F131: 1.032417 | I131: De-husked version contributes color without the astringency that can result from roasting the husk. This is the darkest de-husked roast malt. Recommended malt for any dark beer including, Bock, Altbier, Stout, Porter, and Schwartzbier. Lovibond Rating: 450-490°L. Usage: up to 5% of the grist.
A132: Caramel Wheat | B132: MFB | C132: France | D132: 35 | E132: 0.78 | F132: 1.0361218 | I132: This is obtained by a particular process of saccharification and light torrification in order to develop the particular aroma and specific color. Using this malt reinforces the color and head retention of beer while imparting a nice flavor.
A133: Carawheat | B133: Weyermann | C133: Germany | D133: 45 | E133: 0.77 | F133: 1.0356587 | I133: Malted wheat that has been steeped and kilned to create a caramel malt. Emphasizes wheat aroma and flavor and adds color; use up to 15% for dunkelweizen and hefeweizen. This wheat malt underwent the same process as a caramel/crystal malt and will add a unique caramel character to any Weisse style beer, or substitute for your favorite crystal malt.
A134: Crystal Wheat Malt | B134: Fawcett | C134: UK | D134: 50 | E134: 0.69 | F134: 1.0319539 | I134: Adjunct up to 10% of grist. Provides a dry biscuity flavor.
A135: Crystal Rye (Simpsons) | B135: Simpsons | C135: UK | D135: 90 | E135: 0.69 | F135: 1.0319539 | I135: The rye undergoes the same procedure as any other Crystal malt. Lends a unique caramel / bready dryness to pale ales , IPAs and stouts. Usage: up to 15%
A136: Crystal Rye Malt | B136: Fawcett | C136: UK | D136: 70 | E136: 0.69 | F136: =((46.31*E136)+1000)/1000 -> 1.0319539 | I136: Adjunct up to 10% of grist. Provides a dry liquorice toffee flavor.
A137: WHEAT, RYE, FLAKED, TORREFIED & RAW GRAINS
A138: Flaked Barley | B138: OIO | C138: Canada | D138: 1 | E138: 0.75 | F138: =((46.31*E138)+1000)/1000 -> 1.0347325 | I138: Mash Ready Barley Flakes will lend a rich, grainy taste and will increase head retention, creaminess, and body. Can be used in amounts of up to 40% of grist total.
A139: Flaked Corn | B139: OIO | C139: Canada | D139: 0.7 | E139: 0.9 | F139: 1.041679 | I139: Mash Ready Corn Flakes will provide depth of character to lighter beers when used in moderate quantities. Can be used in amounts of up to 40% of grist total.
A140: Flaked Oats | B140: OIO | C140: Canada | D140: 1.5 | E140: 0.75 | F140: 1.0347325 | I140: Steamed, not roasted, Mash Ready Oat Flakes will add a distinct full-bodied flavor and creamy texture. Can be used in amounts of up to 30% of grist total.
A141: Flaked Rice | B141: OIO | C141: Canada | D141: 0.7 | E141: 0.86 | F141: 1.0398266 | I141: Mash Ready Rice Flakes will provide a light, crisp finish to your beer. Can be used in amounts of up to 25% of grist total.
A142: Flaked Rye | B142: OIO | C142: Canada | D142: 2 | E142: 0.78 | F142: 1.0361218 | I142: Mash Ready Rye Flakes will lend a dry, crisp character and a strong rye flavor. Can be used in amounts of up to 20% of grist total, but 5 - 10% is preferred.
A143: Flaked Wheat | B143: OIO | C143: Canada | D143: 1 | E143: 0.8 | F143: 1.037048 | I143: Mash Ready Wheat Flakes will greatly increase head retention and body when used in an amount as low as 8% of your total grist. Can be used in amounts of up to 40% of grist total.
A144: Torrefied Barley | B144: OIO | C144: Canada | D144: 2 | E144: 0.78 | F144: 1.0361218 | I144: Gives a higher yield and a more trouble-free brew than raw barley. Produces a lower color in the final beer without lowering the original gravity. It produces an all-grain beer with a milder, less grainy-malty flavor.
A145: Torrefied Wheat (Briess) | B145: Briess | C145: USA | D145: 1 | E145: 0.8 | F145: 1.037048 | I145: Torrified Wheat has been heat treated to break the cellular structure, allowing more rapid hydration and malt enzymes to more completely attack the starches and protein. Torrified Wheat can be used in place of raw wheat when making Belgian-style White and Wit beers. Advantages over raw wheat include normal conversion time and higher yield.
A146: Torrefied Wheat | B146: OIO | C146: Canada | D146: 1 | E146: 0.8 | F146: 1.037048 | I146: A whole kernel version of our popular wheat flakes. This is a whole kernel grain and will require milling.
A147: Oat Malt | B147: Fawcett | C147: UK | D147: 2 | E147: 0.66 | F147: 1.0305646 | I147: Adjunct 5% - 10% of grist. Enhances body and flavor of dark beers - sweet kernels. Primarily used in place of flaked oats but can be added to pales and porters as well.
A148: Golden Naked Oats | B148: Simpsons | C148: UK | D148: 10 | E148: 0.75 | F148: 1.0347325 | I148: This unique product from Simpsons has a special, sweet berry-nut flavor. Used at a rate of 4-15% of total grist by weight, Golden Naked Oats will deliver a deep golden hue with light caramel flavors to the finished beer as well as a creamy, satin finish.
A149: Rye Ale Malt | B149: Fawcett | C149: UK | D149: 3 | E149: 0.8 | F149: =((46.31*E149)+1000)/1000 -> 1.037048 | I149: Adjunct for 5% - 20% of grist. Provides a very sweet flavor.
A150: Rye Malt | B150: Weyermann | C150: Germany | D150: 3 | E150: 0.81 | F150: 1.0375111 | I150: Rye lends a dry bread, spicy rye character to any beer, especially appropriate for use in Roggenbier (rye beer), and makes an interesting addition to smoked and wheat beers. High glucan levels and lack of husk make this malt susceptible to slow run-off. Multi-step mashing and rice hulls recommended to avoid stuck sparges.
A151: Wheat Malt | B151: MFB | C151: France | D151: 1.4 | E151: 0.86 | F151: 1.0398266 | I151: This is MFB's lightest wheat malt. It reinfirces the light color of the beer and improves head retention. This is a great base malt for any Weizen style beer.
A152: Wheat Malt (TF&S) | B152: Fawcett | C152: UK | D152: 2 | E152: 0.79 | F152: =((46.31*E152)+1000)/1000 -> 1.0365849 | I152: Wheat beers and adjunct for ales up to 40% of grist. Used for head retention and lacing and provides a dry biscuity flavor.
A153: Wheat Malt (Weyermann) | B153: Weyermann | C153: Germany | D153: 1.5 | E153: 0.85 | F153: =((46.31*E153)+1000)/1000 -> 1.0393635 | I153: Light German Wheat malt adds foam stability and is flavorful in Weisse beers.
A154: Wheat Malt (Best) | B154: Best | C154: Germany | D154: 1.6 | E154: 0.82 | F154: =((46.31*E154)+1000)/1000 -> 1.0379742 | I154: Wheat beers (up to 100%) Adjunct for ales, altbiers. Dry, slight nutty flavour.
A155: White Wheat Malt (Rahr) | B155: Rahr | C155: USA | D155: 2.4 | E155: 0.85 | F155: 1.0393635 | I155: A domestic wheat malt; can be used for up to 50% of a grain bill. Malted wheat is most often used in Weizenbier, Hefeweizen, and Belgian Witbier. Malted wheat also aids in head retention
A156: Red Wheat Malt (Rahr) | B156: Rahr | C156: USA | D156: 3.2 | E156: 0.85 | F156: 1.0393635 | I156: Produced from North American grown wheat. Red wheat is a smaller, harder kernel that some brewers prefer in their wheat beers.
A157: Wheat Malt - 6L (Best) | B157: Best | C157: Germany | D157: 6 | E157: 0.82 | F157: =((46.31*E157)+1000)/1000 -> 1.0379742 | I157: Though called dark, this is still a rather light wheat malt, but it will add some extra color.
A158: Wheat Malt - Dark | B158: Weyermann | C158: Germany | D158: 7.5 | E158: 0.85 | F158: =((46.31*E158)+1000)/1000 -> 1.0393635 | I158: Use up to 50% for dark wheat beers, weizenbocks, or in smaller proportions to add body and head retention to other dark ales. Include a protein rest in your mash schedule when using this grain. Used in dark wheat beers and weizenbocks. Use smaller quantities in other dark ales to aid in head retention and to add body.
A159: Wheat Malt - Dark (MFB) | B159: MFB | C159: France | D159: 40 | E159: 0.86 | F159: =((46.31*E159)+1000)/1000 -> 1.0398266 | I159: This is a sliglty darker version of the MFB Standard Wheat. It is a good malt for adding a hint of color without the sweetness of a caramel.
A160: Chocolate Rye | B160: Weyermann | C160: Germany | D160: 245 | E160: 0.2 | F160: =((46.31*E160)+1000)/1000 -> 1.009262 | I160: Highly kilned rye malt enhances the aroma and contributes a distinct roasted flavor to any dark beer. Try using it in a Dunkel Rye Wheat or Dunkel Rye Ale, or even substitute for chocolate malt in your next stout or porter for a unique and distinct rye flavor.
A161: Roasted Wheat Malt | B161: Fawcett | C161: UK | D161: 400 | E161: 0.67 | F161: =((46.31*E161)+1000)/1000 -> 1.0310277 | I161: Adjunct for bitters, milds, and stoudts 3% - 5% of grist. Provides a mellow bitter flavor, softer than barley malt. Dry Yield made up.
A162: Wheat Malt - Chocolate | B162: Weyermann | C162: Germany | D162: 425 | E162: 0.74 | F162: 1.0342694 | I162: Malted wheat that has been steeped and roasted to create a very dark color. Adds deep color and roasted character. Use 1 to 5% for altbier, dunkelweizen, stout and porter. Kilned wheat malt lends a unique flavor dimension, processed in the same manner as Chocolate barley malt. Use to lend color and a gentle roasted edge.
A163: Wheat - Raw Unmalted | B163: OIO | C163: Canada | D163: 1 | E163: 0.8 | F163: 1.037048
A164: Wheat - Unmalted | B164: Rahr | C164: USA | D164: 1 | E164: 0.8 | F164: 1.037048
A165: OTHER BOIL & MASH INGREDIENTS:
A166: Campden Tablet | B166: -- | C166: -- | D166: 0 | E166: 0 | F166: 1 | I166: Potassium metabisulfite, used to remove chlorine and chloramine from water. 1 tablet can treat 20 gallons.
A167: Rice Hulls | B167: OIO | C167: Canada | D167: 0 | E167: 0 | F167: 1 | I167: Used to aid filtration in the mash.
A168: Whirlfloc Tablet | B168: -- | C168: -- | D168: 0 | E168: 0 | F168: 1 | I168: A blend of Irish moss and purified carrageenan that help precipitate haze-causing proteins and beta glucans.
A169: Fresh Citrus Zest | B169: -- | C169: -- | D169: 0 | E169: 0 | F169: 1
A170: Bitter Orange Peel | B170: -- | C170: -- | D170: 0 | E170: 0 | F170: 1 | I170: unit is ounces
A171: Corriander Seed | B171: -- | C171: -- | D171: 0 | E171: 0 | F171: 1 | I171: unit is ounces
A172: Dry Chamomile Flowers | B172: -- | C172: -- | D172: 0 | E172: 0 | F172: 1
A173: Yeast Nutrient | B173: -- | C173: -- | D173: 0 | E173: 0 | F173: 1
A174: EXTRACTS AND OTHER NON-MASH FERMENTABLES:
A175: Amber liquid malt extract | B175: Briess | C175: USA | E175: 0.8 | F175: 1.037048 | I175: SUGARS
A176: Orange Blossom Honey | B176: -- | C176: USA | F176: 1.035 | I176: SUGARS
A177: Dark liquid malt extract | B177: Briess | C177: USA | E177: 0.8 | F177: 1.037048 | I177: SUGARS
A178: Extra Light dry extract | B178: Briess | C178: USA | D178: 3 | E178: 0.98 | F178: 1.0453838 | I178: SUGARS
A179: Light dry extract | B179: Munton & Fison | E179: 0.98 | F179: 1.0453838 | I179: SUGARS
A180: Light liquid malt extract | B180: Briess | C180: USA | D180: 4.5 | E180: 0.8 | F180: 1.037048 | I180: SUGARS
A181: Apple Cider | B181: -- | C181: USA | I181: SUGARS
A182: Wheat liquid extract | B182: Briess | C182: USA | E182: 0.8 | F182: 1.037048 | I182: SUGARS
A183: Alexanders Pale extract | B183: Alexanders | E183: 0.8 | F183: 1.037048 | I183: SUGARS
A184: Lyle's Golden Syrup | B184: Lyle | C184: UK | D184: 0 | E184: 0.783 | F184: 1.03626073 | I184: SUGARS
A185: Corn Sugar (dextrose) | B185: -- | C185: USA | E185: 0.9 | F185: 1.041679 | I185: SUGARS | J185: glucose
A186: Cane Sugar (sucrose) | B186: -- | C186: USA | E186: 0.98 | F186: 1.0453838 | I186: SUGARS | J186: sucrose
A187: Brown Sugar | B187: -- | C187: USA | E187: 0.8 | F187: 1.037048 | I187: SUGARS | J187: sucrose
A188: Priming Sugar | B188: used for worksheet display when no choice has been made | I188: Sugars

Sheet Hops
A1: Hop Type | B1: Alpha Acid | C1: Description | D1: Used In | E1: Substitutions | F1: Usage | G1: Stock | H1: Form | I1: Price | J1: % Lost | K1: Date | L1: Link
A2: Admiral (UK) | B2: 0.1475 | C2: Known for its bittering potential. | D2: Ale | E2: Target, Northdown, Challenger | F2: Bittering | H2: Leaf | J2: 0.15
A3: Ahtanum | B3: 0.055 | C3: Used for its aromatic properties and moderate bittering. Floral, citrus, sharp and piney. | D3: Lagers, American ales | E3: Amarillo, Centennial, Simcoe | F3: Finishing | H3: Pellet | J3: 0.3
A4: Amarillo | B4: 0.098 | C4: A new US variety with a citrus-like aroma similar to Cascade, but with a higher alpha acid content. Citrusy, flowery. | D4: Ale, IPA | E4: Cascade, Centennial, Summit, Ahtanum | F4: Dual Purpose | H4: Leaf | J4: 0.15
A5: Argentina Cascade | B5: 0.07 | C5: Said to be not at all like American Cascades. | D5: ? | E5: ? | F5: ? | H5: Pellet
A6: Boadicea | B6: 0.087 | C6: Floral, grassy, faint lime-like aroma. | D6: Ales | E6: ? | F6: Dual Purpose | H6: Pellet
A7: Bramling Cross (UK) | B7: 0.06 | C7: Quite mild, fruity currant aroma. | D7: ESB, bitter, pale ale | E7: UK Kent Goldings, UK Progress, Whitbread Goldings Variety | F7: Dual Purpose | J7: 0.35
A8: Bravo | B8: 0.15 | C8: ? | D8: American IPA? | E8: ? | F8: ?
A9: Brewer's Gold | B9: 0.09 | C9: Bittering hop with neutral aroma character. | D9: English ale | E9: Bullion, Chinook, Galena, Nugget | F9: Dual Purpose | H9: Pellet | J9: 0.5
A10: Brewer's Gold (German) | B10: 0.065 | C10: Black currant, fruity, spicy. | D10: Ale, heavier German-style lagers | E10: Northdown, Northern Brewer, Galena, Bullion | F10: Dual Purpose | J10: 0.5
A11: Bullion | B11: 0.0775 | C11: Common bittering hop from the UK. Intense black currant aroma. Primarily used for bittering. | D11: IPA, ESB, stout | E11: Columbus, Northern Brewer, German Brewer's Gold | F11: Dual Purpose | H11: Leaf | J11: 0.5
A12: Cascade 2006 | B12: 0.055 | C12: Pleasant, flowery, spicy, and citrus-like. Can have a grapefruit flavor. | D12: Pale ale, IPA, porter, barley wine | E12: Centennial, Amarillo, possibly Columbus, Summit | F12: Aroma/Bitterning | H12: Leaf | J12: 0.5
A13: Cascade 2007 | B13: 0.068 | C13: Pleasant, flowery, spicy, and citrus-like. Can have a grapefruit flavor. | D13: Pale ale, IPA, porter, barley wine | E13: Centennial, Amarillo, possibly Columbus, Summit | F13: Aroma/Bitterning | H13: Leaf | J13: 0.5
A14: Centennial, NB | B14: 0.097 | C14: Centennial is an extremely popular new bittering variety. Widely known as a "supercharged" Cascade, it has a quite pleasant aroma. | D14: All ale styles, has been used with wheat beer | E14: Cascade, Columbus, Chinook, Amarillo, Summit, Nugget | F14: Aroma/Bitterning | H14: Leaf | J14: 0.4
A15: Centennial | B15: 0.086 | C15: Centennial is an extremely popular new bittering variety. Widely known as a "supercharged" Cascade, it has a quite pleasant aroma. | D15: All ale styles, has been used with wheat beer | E15: Cascade, Columbus, Chinook, Amarillo, Summit, Nugget | F15: Aroma/Bitterning | H15: Leaf | J15: 0.4
A16: Challenger (UK) | B16: 0.0825 | C16: Mild to moderate, quite spicy. | D16: English-style ales, porter, stout, ESB, bitter | E16: US or German Perle, Northern Brewer, Admiral, Target, Northdown | F16: Dual Purpose | H16: Pellet | J16: 0.25
A17: Chinook | B17: 0.12 | C17: Mild to medium-heavy, spicy, piney, and grapefruity. | D17: Pale ale, IPA, stout, porter, lager | E17: Nugget, Columbus, Northern Brewer, UK Target, Brewers Gold, Galena, Eroica | F17: Bittering | H17: Leaf | J17: 0.2
A18: Cluster | B18: 0.07 | C18: Medium and quite spicy. American hop, used for bittering and aroma. | D18: Ale and lager (good aroma for ale, good bittering for lager) | E18: Galena, Eroica | F18: Dual Purpose | H18: Leaf | J18: 0.1
A19: Columbus | B19: 0.122 | C19: Pleasant, with pungent aroma. Clean bittering properties. | D19: IPA, pale ale, stout | E19: Tomahawk, Nugget, Chinook, UK Target, Northern Brewer, Zeus, Magnum, Warrior, Millenium, Bullion | F19: Bittering | H19: Pellet | J19: 0.35
A20: Crystal | B20: 0.0325 | C20: Mild, spicy and flowery. | D20: Lager, pilsner, ESB | E20: Mt. Hood, Hersbrucker, French Strisslespalt, Liberty, Hallertauer, Tettnanger | F20: Finishing | H20: Leaf | J20: 0.5
A21: Eroica | B21: 0.105 | C21: Strong but pleasant aroma. | D21: Wheat | E21: Galena, Nugget, Chinook | F21: Bittering | J21: 0.35
A22: First Gold (UK) | B22: 0.075 | C22: A little like Goldings family; spicy. | D22: Ale, ESB | E22: UK Kent Goldings, maybe Crystal | F22: Dual Purpose | J22: 0.12
A23: Fuggle (US) | B23: 0.055 | C23: Classic aroma hop. Use in pale ale, brown ale, porter, stout. Spicier and stronger aroma than East Kent Goldings. Mild, woody and fruity | D23: Any English-style beer or American ale | E23: UK Fuggle, Willamette, Styrian Goldings, US Tettnanger, Willamette, Newport | F23: Aroma/Bitterning | H23: Leaf | J23: 0.35
A24: Fuggle (UK) | B24: 0.055 | C24: Classic English aroma hop. Use in all English beers: pale ale, brown ale, porter, stout. Spicier and stronger aroma than East Kent Goldings. Mild, pleasant and hoppy. | D24: All English-style ales, ESB, bitter, lager | E24: US Fuggle, Willamette, Styrian Goldings, Tettnanger | F24: Aroma/Bitterning | J24: 0.35
A25: Galena | B25: 0.12 | C25: Medium but pleasant hoppy flavor, citrusy. | D25: Ale, porter, stout, ESB, bitter | E25: Nugget, Pride of Ringwood, Chinook, Brewers Gold, Cluster, Eroica, Newport | F25: Bittering | H25: Leaf | J25: 0.15
A26: Glacier (Leaf) | B26: 0.053 | C26: Genetic mix of at least 8 hops including Elsasser, Brewers Gold, N Brewer, Bullion, Early Green, and others...released in 2000. Mild flavor, earthy aroma. | D26: lagers | E26: Willamette, US Fuggles, Tettnanger, Styrian Goldings | F26: Bittering, Flavoring, Aroma | H26: Leaf | J26: 0.29
A27: Glacier (Pellet) | B27: 0.06 | C27: Genetic mix of at least 8 hops including Elsasser, Brewers Gold, N Brewer, Bullion, Early Green, and others...released in 2000. Mild flavor, earthy aroma. | D27: lagers | E27: Willamette, US Fuggles, Tettnanger, Styrian Goldings | F27: Bittering, Flavoring, Aroma | H27: Pellet | J27: 0.285
A28: Goldings (US) | B28: 0.05 | C28: Mild, extremely pleasant, and gently hoppy. | D28: Pale ale, ESB, all English-style beer | E28: UK Goldings, Whitbread Goldings Variety, UK Progress, and possibly the Fuggle family | F28: Finishing | H28: Leaf | J28: 0.4
A29: Green Bullet (NZ) | B29: 0.125 | C29: New hop, dual purpose. | E29: Liberty, Ultra, Hallertauer Tradition, Crystal, Mt. Hood | F29: Dual Purpose
A30: Hallertauer (US) | B30: 0.045 | C30: Classic German hop with a mild, noble aroma, slightly fruity and spicy, flowery and hay-like. Ideal for aroma and flavor in any German beer, and is also suitable for use in other Continental styles, Belgian ales and lagers. | D30: Lager, pilsner, bock, wheat | E30: Liberty, Ultra, Hallertauer Tradition, Vanguard, Mt. Hood | F30: Finishing | H30: Leaf | J30: 0.5
A31: Hallertauer (NZ Organic) | B31: 0.045 | H31: Leaf
A32: Hallertauer Gold | B32: 0.0625 | C32: Known for its aromatic properties similar to Hallertauer. | D32: Lager, pilsner, bock, wheat | E32: Crystal, Mt. Hood, US Hallertauer, Vanguard | F32: Finishing
A33: Hallertauer Mittelfrüh | B33: 0.031 | C33: An early-ripening Hallertau, regarded as the most important of the "noble" European hops. Very mellow, sweet aroma with mild herbal spiciness. Appropriate in any German lager or ale. | D33: Lager, bock, wheat, pilsner | E33: Liberty, German Tradition, Ultra, Vanguard | F33: Finishing | H33: Pellet | J33: 0.45
A34: Hallertauer Tradition (German) | B34: 0.045 | C34: Known for its aromatic properties. A replacement for Hallertauer Mittelfrüh. | D34: Mild-flavored beers | E34: Crystal, Liberty, Vanguard | F34: Finishing | H34: Leaf
A35: Hersbrucker (German) | B35: 0.0425 | C35: Appropriate in any lager, regardless of color or gravity. Mild to semi-strong, a very pleasant, spicy, earthy aroma. | D35: Lager, pilsner, bock, wheat | E35: Mt. Hood, French Strisslespalt | F35: Finishing | H35: Leaf
A36: Hallertauer Select (German) | B36: 0.015 | C36: Spicy, mild, and earthy. | D36: Lager, bock, wheat, pilsner | E36: Hallertauer Tradition, Hallertauer, Mt. Hood, Tettnanger, Crystal, Ultra | F36: Finishing | H36: Pellet
A37: Horizon | B37: 0.125 | C37: Pleasantly hoppy. Floral and spicey | D37: Ale, lager | E37: Magnum or a high-alpha hop | F37: Bittering | J37: 0.3
A38: Kent Goldings (UK), P | B38: 0.045 | C38: Gentle, fragrant, and pleasant. | D38: All English-style ales, ESB, bitter | E38: US Goldings, Whitbread Goldings Variety, UK Progress, Fuggle, Progress, First Gold | F38: Finishing | H38: Pellet | J38: 0.35
A39: Kent Goldings (UK) | B39: 0.063 | C39: Gentle, fragrant, and pleasant. | D39: All English-style ales, ESB, bitter | E39: US Goldings, Whitbread Goldings Variety, UK Progress, Fuggle, Progress, First Gold | F39: Finishing | H39: Leaf | J39: 0.35
A40: Liberty | B40: 0.04 | C40: Mild and clean aroma, slightly spicy character, especially if substituting for Hallertauer | D40: Lager, pilsner, bock, wheat | E40: Hallertauer Tradition, Hallertauer, Mt. Hood, Tettnanger, Crystal, Ultra | F40: Finishing | H40: Pellet | J40: 0.5
A41: Magnum | B41: 0.14 | C41: Spicy, citrusy, super-high alpha bittering hop from the Pacific Northwest. Good bitter quality. | D41: All beers, particularly lager, pilsner, stout | E41: Northern Brewer, Horizon, Newport | F41: Bittering | H41: Leaf | J41: 0.15
A42: Marynka | B42: 3.75 | C42: Good bitterness and a powerful bouquet. The Polish hops overall character is cedary, rooty, almost licoricelike, and very aromatic. | D42: ? | E42: Northern Brewer? | F42: ? | H42: Pellet
A43: Millennium | B43: 0.155 | C43: Very new hop. Primarily used for alpha potential. | D43: Ales, Stout, Barley Wine | E43: Nugget, Columbus | F43: Bittering
A44: Mt. Hood | B44: 0.058 | C44: American substitute for Hallertau Mittelfrüh. Suitable for all lagers. Mild, pleasant and clean, somewhat pungent and resiny. | D44: Lager, pilsner, bock, wheat | E44: Crystal, French Strisslespalt, Hersbrucker, Hallertauer, Liberty | F44: Finishing | H44: Leaf | J44: 0.4
A45: Newport | B45: 0.13 | C45: Fairly pungent. | D45: Any English-style beer or American ale | E45: Galena, Nugget, Fuggle, Magnum, Brewer’s Gold | F45: Bittering | H45: Pellet
A46: Nelson Sauvin (NZ) | B46: 0.13 | C46: Unique hop with grape-like character. | D46: ? | E46: ? | F46: ?
A47: Northdown (UK) | B47: 0.085 | C47: Fruity with some spiciness. Mild, pleasant, delicate aroma. | D47: All ales, porter | E47: Admiral, Challenger | F47: Bittering | J47: 0.15
A48: Northern Brewer (US) | B48: 0.08 | C48: High alpha acid Hallertau variety. Good aroma. | D48: ESB, bitter, English pale ale, porter, California (steam) beer | E48: Nugget, Chinook, Columbus, Bullion, Perle, Styrian Aurora | F48: Bittering/Aroma | J48: 0.35
A49: Northern Brewer (German) 2006 | B49: 0.08 | C49: High alpha acid Hallertau variety. Good aroma. | D49: ESB, bitter, English pale ale, porter | E49: Chinook, US Northern Brewer, Columbus, Bullion, Perle, Styrian Aurora | F49: Dual Purpose | H49: Leaf | J49: 0.35
A50: Northwest Goldings | B50: 0.045 | C50: Known for aromatic properties. | D50: Ale, porter, stout, ESB, bitter | E50: ? | F50: Finishing
A51: Nugget | B51: 0.115 | C51: High-alpha American bittering hop with a delicate, pleasant aroma. | D51: Light lager | E51: Columbus, Chinook, UK Target, Galena, Cluster, Brewers Gold, Warrior, Eroica, Target, Millenium | F51: Bittering | H51: Leaf | J51: 0.15
A52: Olympic | B52: 0.12 | C52: Mild-medium, citrusy aroma, spicy. | E52: Chinook | F52: Bittering
A53: Pacific Gem (Organic) | B53: 0.15 | C53: Does not carry the punchy aromas usually associated with higher Alpha hops. Pacific Gem contains a good balance of oils which constantly contributes to its aroma score. A very pleasing hop with useful bittering potential. Described as producing oaken flavours with a distinct blackberry aroma. Typically used as a first hop addition and makes its presence felt through an excellent tempered bitterness and flavour. | D53: European Lagers | E53: ? | F53: Bittering | H53: Leaf
A54: Palisade | B54: 0.075 | C54: Some "American" characteristics. An aroma type cultivar bred by Yakima Chief Ranches | E54: perhaps Cascade | F54: Aroma/Bitterning | H54: Leaf
A55: Perle (US) | B55: 0.0775 | C55: Bittering hop of German origin. Crisp, minty bitterness. Floral, slightly spicy. | D55: Pale ale, Porter, Stout, Lager, Weizen, Alt, Barley Wine, Kölsch | E55: Northern Brewer, Cluster, Galena, Chinook, Challenger | F55: Dual Purpose | H55: Leaf | J55: 0.15
A56: Perle (German) | B56: 0.0725 | C56: Moderately intense, good and hoppy, fruity and a little spicy. Crisp minty bitterness. | D56: Pale ale, Porter, Stout, Lager, Weizen, Alt, Barley Wine, Kölsch | E56: US Perle, Northern Brewer, Challenger | F56: Dual Purpose | H56: Leaf | J56: 0.15
A57: Phoenix (UK) | B57: 0.0485 | C57: Similar to Wye Challenger. | D57: All ales | E57: UK Northdown, UK Kent Goldings, UK Challenger | F57: Dual Purpose | J57: 0.1
A58: Pioneer (UK) | B58: 0.09 | C58: A mild, typical English aroma. Similar to Wye Challenger. | D58: Ale, ESB | E58: UK Kent Goldings | F58: Dual Purpose | J58: 0.17
A59: Polish Lublin | B59: 0.0375 | C59: Mild and typical of noble aroma types, spicy, herbal. | D59: Pilsner | E59: US Saaz, Czech Saaz, US Tettnanger, Sterling | F59: Finishing | J59: 0.4
A60: Premiant | B60: 0.08 | C60: A dual-purpose cross between Czech aroma and high-alpha varieties, Premiant has a low cohumulone content and yields a clean, neutral bitterness. | D60: Pilsner, lager, wheat | E60: Saaz | F60: Dual Purpose | H60: Pellet
A61: Pride of Ringwood (Australia) | B61: 0.085 | C61: Quite pronounced, woody, earthy, herbal. | D61: Australian lager | E61: Galena, Cluster, Pride of Kent | F61: Dual Purpose | J61: 0.45
A62: Progress (UK) | B62: 0.0625 | C62: Moderately strong, good aroma. | D62: Ale, bitter, ESB, porter | E62: UK Kent Goldings, Fuggle | F62: Dual Purpose | J62: 0.15
A63: Saaz (Czech) | B63: 0.0375 | C63: Very distinctive, floral aroma. Required aroma hop for Bohemian Pilsners. Appropriate for most other lagers. Widely used in Belgian Ales. | D63: Pilsner | E63: Polish Lublin, US Saaz | F63: Finishing | H63: Leaf | J63: 0.42
A64: Saaz (US) | B64: 0.058 | C64: Very distinctive, floral aroma. Required aroma hop for Bohemian Pilsners. Appropriate for most other lagers. Widely used in Belgian Ales. | D64: Pilsner, lager, wheat | E64: Czech Saaz, Polish Lublin | F64: Finishing | H64: Pellet | J64: 0.42
A65: Santiam | B65: 0.0645 | C65: Noble characteristics. Floral, slightly spicy. | D65: Lager, American ale, Pilsner | E65: German Tettnanger, German Spalt, German Spalt Select, Liberty, Hallertau | F65: Dual Purpose | J65: 0.35
A66: Saphir | B66: 0.04 | C66: very sweet and light citrus character with herbal overtones. | D66: Great finishing hop for European lagers and ales, but suitable for a variety of beers. Recently used in Rogue's Batch 10,000. | E66: any noble hop | F66: Finishing | H66: Pellet
A67: Satus | B67: 0.1325 | C67: Known for its bittering and aromatic properties. | E67: Galena | F67: Dual Purpose
A68: Simcoe | B68: 0.13 | C68: A bittering and aromatic hop. Piney aroma. | D68: Hoppy American Ales | E68: Northern Brewer? | F68: Dual Purpose | H68: Leaf | J68: 0.18
A69: Sorachi Ace | B69: 0.145 | C69: Lemon flavor/aroma | D69: Specialty Ales | E69: ? | F69: Flavor/Aroma | H69: Leaf
A70: Spalt (German) | B70: 0.0475 | C70: Pleasant, slightly spicy aroma. It is widely used in German Alt. | D70: Lager | E70: US Saaz, US Tettnanger, German Spalt Select, Santiam, Liberty, Hallertau | F70: Finishing | H70: Pellet | J70: 0.5
A71: Spalt Select (German) | B71: 0.05 | C71: Very fine Spalter-type aroma. | D71: Lager, and any beer in which noble aroma is appropriate | E71: US Saaz, US Tettnanger, German Spalt | F71: Aroma | H71: Leaf
A72: Spalt Select (US) | B72: 0.026 | C72: Medium intensity and pleasant hoppy qualities. Medium-strong aroma with wild American tones. | D72: German lagers | E72: Tettnanger, Saaz, Santiam, Liberty, Hallertau | F72: Aroma | H72: Pellet
A73: Sterling | B73: 0.075 | C73: Herbal, spicy, pleasant aroma, hint of floral and citrus. | D73: Lager, ale, pilsner | E73: Saaz, Polish Lublin | F73: Dual Purpose | H73: Leaf | J73: 0.15
A74: Strisslespalt (France) | B74: 0.0275 | C74: Medium intensity, pleasant, hoppy. Very mild, with aromas of black currant. | D74: Pilsner, lager, wheat | E74: Mt. Hood, Crystal, Hersbrucker | F74: Finishing | H74: Pellet | J74: 0.35
A75: Styrian Aurora (Slovenia) | B75: 0.08 | C75: Mellow, fruity. | D75: All English-style ales, ESB, bitter, lager | E75: Northern Brewer | F75: Dual Purpose | H75: Pellet
A76: Styrian Goldings (Slovenia) | B76: 0.0525 | C76: Delicate, slightly spicy. Appropriate in all English beers: pale ale, brown ale, porter, stout. Widely used in Belgian Ales. | D76: All English-style ales, ESB, bitter, lager | E76: US Fuggle, UK Fuggle, Willamette | F76: Dual Purpose | H76: Pellet | J76: 0.3
A77: Summit (USA) | B77: 0.185 | C77: Citrus orange, tangerine, grapefruit | D77: APA, IPA | E77: Cascade, Amarillo | F77: Bittering/Aroma | H77: Pellet
A78: Target (UK) | B78: 0.11 | C78: Pleasant English hop aroma, quite intense. It is an all-purpose English hop useful for both bittering and aroma. | D78: All ale and lager | E78: Fuggle, Willamette, Nugget, Admiral | F78: Bittering | H78: Leaf | J78: 0.5
A79: Tettnanger (US) | B79: 0.043 | C79: An aromatic hop, mild and slightly spicy. Appropriate for all German lagers. Mild aroma is suitable for US "premium" lagers. | D79: German ales and lagers, American lagers, wheat | E79: German Spalt, Czech Saaz Santiam, Hallertau, Liberty, Fuggle | F79: Finishing | H79: Leaf | J79: 0.4
A80: Tettnanger (German) | B80: 0.027 | C80: Mild and pleasant, slightly spicy, herbal. Appropriate for all German lagers. Mild aroma is suitable for US "premium" lagers. | D80: Lager, ale | E80: German Spalt, German Spalt Select, US Tettnanger, Saaz, Hallertau, Liberty, Fuggle | F80: Finishing | H80: Leaf | J80: 0.4
A81: Tomahawk | B81: 0.16 | C81: Primarily a bittering hop. | D81: Ale | E81: Columbus | F81: Bittering
A82: Tradition (German) | B82: 0.06 | C82: Very fine and similar to Hallertauer Mittelfrüh. | D82: Lager, pilsner | E82: Hersbrucker, Hallertauer Mittelfrüh | F82: Finishing | H82: Pellet | J82: 0.1
A83: Ultra | B83: 0.0305 | C83: Very good-outstanding, some Saaz-like qualities. Aromatic properties similar to Hallertauer. | D83: Lager, pilsner, wheat, finish hop in ales | E83: Liberty, Hallertauer Tradition, Saaz | F83: Finishing | J83: 0.275
A84: Vanguard | B84: 0.046 | C84: Aroma similar to continental European types. | D84: European Lagers | E84: Saaz, Hallertauer Mittelfrüh | F84: Finishing | H84: Leaf | J84: 0.18
A85: Warrior | B85: 0.154 | C85: A bittering and aromatic hop. | D85: Ale, stout | E85: Nugget, Columbus | F85: Bittering | H85: Pellet | J85: 0.2
A86: Whitbread Goldings (UK) | B86: 0.06 | C86: Quite pleasant and hoppy, moderately intense. | D86: Ale | E86: UK Kent Goldings, UK Progress | F86: Dual Purpose | J86: 0.35
A87: Willamette | B87: 0.05 | C87: Mild and pleasant, slightly spicy, fruity, floral, a little earthy. Its aroma is mild, but slightly more spicy that Fuggle. | D87: Pale ale, ESB, bitter, English-style ale, porter, stout | E87: US Fuggle, US Tettnanger, Styrian Goldings, Target, Glacier | F87: Dual Purpose | H87: Leaf | J87: 0.4
A88: Yakima Cluster | B88: 0.0725 | C88: Used as a kettle hop for bittering. | D88: ? | E88: ? | F88: Bittering
A89: Zeus | B89: 0.15 | C89: Aromatic and pleasant. | D89: ? | E89: Columbus, Tomahawk | F89: Bittering | H89: Leaf | J89: 0.45

Sheet Yeast
A1: Yeast | B1: Name | C1: Low Temp | D1: High Temp | E1: Low Attenuation | F1: High Attenuation | G1: Flocculation | H1: Alc. Tolerance | I1: Notes | J1: Brewery | K1: Counterpart | L1: Price | M1: Link
A2: White Labs WLP001 | B2: California Ale | C2: 68 | D2: 73 | E2: 0.73 | F2: 0.8 | G2: Medium | H2: High | I2: This yeast is famous for its clean flavors, balance and ability to be used in almost any style ale. It accentuates the hop flavors and is extremely versatile. | J2: Sierra Nevada | K2: Wyeast 1056
A3: White Labs WLP002 | B3: English Ale | C3: 65 | D3: 68 | E3: 0.63 | F3: 0.7 | G3: Very High | H3: Medium | I3: A classic ESB strain from one of England's largest independent breweries. This yeast is best suited for English style ales including milds, bitters, porters, and English style stouts. This yeast will leave a beer very clear, and will leave some residual sweetness. | J3: Fullers | K3: Wyeast 1968
A4: White Labs WLP003 | B4: German Ale II | C4: 65 | D4: 70 | E4: 0.73 | F4: 0.8 | G4: Medium | I4: Good for Kölsch, Alt, and German style Pale Ales. Strong sulfur component will reduce with aging. Clean, but with more ester production than WLP029. | K4: Wyeast 2575
A5: White Labs WLP004 | B5: Irish Ale | C5: 65 | D5: 68 | E5: 0.69 | F5: 0.74 | G5: Medium-High | H5: Medium-High | I5: This is the yeast from one of the oldest stout producing breweries in the world. It produces a slight hint of diacetyl, balanced by a light fruitiness and slight dry crispness. Great for Irish ales, stouts, porters, browns, reds and a very interesting pale ale. | J5: Guinness | K5: Wyeast 1084
A6: White Labs WLP005 | B6: British Ale | C6: 65 | D6: 70 | E6: 0.67 | F6: 0.74 | G6: Medium | H6: Medium | I6: This yeast is a little more attenuative than WLP002. Like most English strains, this yeast produces malty beers. Excellent for all English style ales including bitter, pale ale, porter, and brown ale. | J6: Ringwood | K6: Wyeast 1187
A7: White Labs WLP006 | B7: Bedford British | C7: 65 | D7: 70 | E7: 0.72 | F7: 0.8 | G7: High | H7: Medium | I7: Ferments dry and flocculates very well. Produces a distinctive ester profile. Good choice for most English style ales including bitter, pale ale, porter, and brown ale. Platinum Strain. | J7: Charles Wells
A8: White Labs WLP007 | B8: Dry English Ale | C8: 65 | D8: 70 | E8: 0.7 | F8: 0.8 | G8: Medium-High | H8: Medium-High | I8: Clean, highly flocculent, and highly attenuative yeast. This yeast is similar to WLP002 in flavor profile, but is 10% more attenuative. This eliminates the residual sweetness, and makes the yeast well suited for high gravity ales. It is also reaches terminal gravity quickly. 80% attenuation will be reached even with 10% ABV beers. | J8: Whitbred - dry | K8: Wyeast 1098
A9: White Labs WLP008 | B9: East Coast Ale | C9: 68 | D9: 73 | E9: 0.7 | F9: 0.75 | G9: Low-Medium | H9: Medium | I9: Our "Brewer Patriot" strain can be used to reproduce many of the American versions of classic beer styles. Similar neutral character of WLP001, but less attenuation, less accentuation of hop bitterness, increased flocculation, and a little tartness. Very clean and low esters. Great yeast for golden, blonde, honey, pales and German alt style ales. | J9: Sam Adam's
A10: White Labs WLP009 | B10: Australian Ale | C10: 65 | D10: 70 | E10: 0.7 | F10: 0.75 | G10: High | H10: Medium | I10: Produces a clean, malty beer. Pleasant ester character, can be described as "bready." Can ferment successfully, and clean, at higher temperatures. This yeast combines good flocculation with good attenuation. Platinum Strain | J10: Coopers
A11: White Labs WLP011 | B11: European Ale | C11: 65 | D11: 70 | E11: 0.65 | F11: 0.7 | G11: Medium | H11: Medium | I11: Malty, Northern European-origin ale yeast. Low ester production, giving a clean profile. Little to no sulfur production. Low attenuation helps to contribute to the malty character. Good for Alt, Kolsch, malty English ales, and fruit beers. | J11: Wisenschaftliche Station #338 (Munich) | K11: Wyeast 1338
A12: White Labs WLP013 | B12: London Ale | C12: 66 | D12: 71 | E12: 0.65 | F12: 0.75 | G12: Medium | H12: Medium | I12: Dry, malty ale yeast. Provides a complex, oakey ester character to your beer. Hop bitterness comes through well. This yeast is well suited for classic British pale ales, bitters, and stouts. Does not flocculate as much as WLP002 and WLP005. | J12: Worthington White Shield | K12: Wyeast 1028
A13: White Labs WLP022 | B13: Essex Ale | C13: 66 | D13: 70 | E13: 0.71 | F13: 0.76 | G13: Medium-High | H13: Medium | I13: Flavorful British style yeast. Drier finish than many British ale yeast. Produces slightly fruity and bready character. Good top fermenting yeast strain, is well suited for top cropping (collecting). This yeast is well suited for classic British milds, pale ales, bitters, and stouts. Does not flocculate as much as WLP002 and WLP005. Platinum Strain | J13: Ridley's Ale near Chelmsford, UK
A14: White Labs WLP023 | B14: Burton Ale | C14: 68 | D14: 73 | E14: 0.69 | F14: 0.75 | G14: Medium | H14: Medium | I14: From the famous brewing town of Burton upon Trent, England, this yeast is packed with character. It provides delicious subtle fruity flavors like apple, clover honey and pear. Great for all English styles, IPA's, bitters, and pales. Excellent in porters and stouts. | J14: Henley of Thames (Brakspear Bitter) | K14: Wyeast 1275
A15: White Labs WLP026 | B15: Premium Bitter Ale | C15: 67 | D15: 70 | E15: 0.7 | F15: 0.75 | G15: Medium | H15: Medium | I15: From Staffordshire, England. Fermentation gives a mild, but complex, estery character. Ferments strong and dry. Good for high gravity beers. Best for all English style ales, including bitters, milds, ESBs, porters, stouts, and barley wines. Platinum Strain | J15: Marstons
A16: White Labs WLP028 | B16: Edinburgh Scottish Ale | C16: 65 | D16: 70 | E16: 0.7 | F16: 0.75 | G16: Medium-High | H16: Medium-High | I16: Scotland is famous for its malty, strong ales. This yeast can reproduce complex, flavorful Scottish style ales. This yeast can be an everyday strain, similar to WLP001. Hop character is not muted with this strain, as it is with WLP002. | J16: McEwan's | K16: Wyeast 1728
A17: White Labs WLP029 | B17: German/Kölsch Ale | C17: 65 | D17: 69 | E17: 0.72 | F17: 0.78 | G17: Medium | H17: Medium | I17: From a small brewpub in Cologne, Germany, this yeast works great in Kölsch and Alt style beers. Good for light beers like blond and honey. Accentuates hop flavors, similar to WLP001. The slight sulfur produced during fermentation will disappear with age and leave a super clean, lager like ale. | J17: PJ Früh, Köln
A18: White Labs WLP036 | B18: Düsseldorf Ale | C18: 65 | D18: 69 | E18: 0.65 | F18: 0.72 | G18: Medium | H18: Medium | I18: Traditional Alt yeast from Dusseldorf, Germany. Produces clean, slightly sweet alt beers. Does not accentuate hop flavor as WLP029 does. | J18: Düsseldorf (Zum Uerige) | K18: Wyeast 1007
A19: White Labs WLP037 | B19: Yorkshire Square Ale | C19: 65 | D19: 70 | E19: 0.68 | F19: 0.72 | G19: High | H19: Medium-High | I19: This yeast produces a beer that is malty, but well-balanced. Expect flavors that are toasty with malt-driven esters. Highly flocculent and good choice for English pale ales, English brown ales, and mild ales. Platinum Strain
A20: White Labs WLP038 | B20: Manchester Ale | C20: 65 | D20: 70 | E20: 0.7 | F20: 0.74 | G20: Medium-High | H20: Medium-High | I20: Top-fermenting strain that is traditionally good for top-cropping. Moderately flocculent with a clean, dry finish. Low ester profile, producing a highly balanced English-style beer. Platinum Strain
A21: White Labs WLP039 | B21: Nottingham Ale | C21: 66 | D21: 70 | E21: 0.73 | F21: 0.82 | G21: Medium-High | H21: Medium | I21: British style ale yeast with a very dry finish. Medium to low fruit and fusel alcohol production. Good top fermenting yeast strain, is well suited for top cropping (collecting). This yeast is well suited for pale ales, ambers, porters, and stouts. Platinum Strain | J21: UK, chosen from multistrain - same as Danstar Nottingham
A22: White Labs WLP041 | B22: Pacific Ale | C22: 65 | D22: 68 | E22: 0.65 | F22: 0.7 | G22: High | H22: Medium | I22: A popular ale yeast from the Pacific Northwest. The yeast will clear from the beer well, and leave a malty profile. More fruity than WLP002, English Ale Yeast. Good yeast for English style ales including milds, bitters, IPA, porters, and English style stouts. | J22: (Red Hook?)
A23: White Labs WLP051 | B23: California Ale V | C23: 66 | D23: 70 | E23: 0.7 | F23: 0.75 | G23: Medium-High | H23: Medium-High | I23: From Northern California. This strain is more fruity than WLP001, and slightly more flocculent. Attenuation is lower, resulting in a fuller bodied beer than with WLP001. | J23: Anchor Liberty | K23: Wyeast 1272
A24: White Labs WLP060 | B24: American Ale Blend | C24: 68 | D24: 72 | E24: 0.72 | F24: 0.8 | G24: Medium | H24: Medium-High | I24: Our most popular yeast strain is WLP001, California Ale Yeast. This blend celebrates the strengths of California- clean, neutral fermentation, versatile usage, and adds two other strains that belong to the same 'clean/neutral' flavor category. The additional strains create complexity to the finished beer. This blend tastes more lager like than WLP001. Hop flavors and bitterness are accentuated, but not to the extreme of California. Slight sulfur will be produced during fermentation. | J24: (WLP001, WLP051, WLP810?)
A25: White Labs WLP072 | B25: French Ale | C25: 63 | D25: 73 | E25: 0.68 | F25: 0.75 | G25: Medium-High | I25: Clean strain that complements malt flavor. Low to moderate esters, when fermentation temperature is below 70F. Moderate plus ester character over 70F. Low diacetyl production. Good yeast strain for Biere de Garde, blond, amber, brown ales, and specialty beers. Platinum Strain
A26: White Labs WLP080 | B26: Cream Ale Blend | C26: 65 | D26: 70 | E26: 0.75 | F26: 0.8 | G26: Medium | H26: Medium-High | I26: This is a blend of ale and lager yeast strains. The strains work together to create a clean, crisp, light American lager style ale. A pleasing estery aroma may be perceived from the ale yeast contribution. Hop flavors and bitterness are slightly subdued. Slight sulfur will be produced during fermentation, from the lager yeast.
A27: White Labs WLP085 | B27: English Ale Blend | C27: 68 | D27: 72 | E27: 0.69 | F27: 0.76 | G27: Medium-High | I27: A blend of British ale yeast strains, designed to add complexity to your ale. Moderate fruitiness and mineral-like, with little to no sulfur. Drier than WLP002 and WLP005, but with similar flocculation properties. Good yeast blend for English Pale Ale, Bitter, Porter, Stout, and India Pale Ale.
A28: White Labs WLP099 | B28: Super High Gravity Ale | C28: 65 | D28: 69 | E28: 0.82 | F28: 0.82 | G28: Medium | H28: Very High | I28: Can ferment up to 25% alcohol. From England. Produces ester character that increases with increasing gravity. Malt character dominates at lower gravities. Attenuation is greater that 80% | J28: Thomas Hardy
A29: White Labs WLP300 | B29: Hefeweizen Ale | C29: 68 | D29: 72 | E29: 0.72 | F29: 0.76 | G29: Low | H29: Medium | I29: This famous German yeast is a strain used in the production of traditional, authentic wheat beers. It produces the banana and clove nose traditionally associated with German wheat beers and leaves the desired cloudy look of traditional German wheat beers. | J29: Weihenstephan 68 | K29: Wyeast 3068
A30: White Labs WLP320 | B30: American Hefeweizen | C30: 65 | D30: 69 | E30: 0.7 | F30: 0.75 | G30: Low | H30: Medium | I30: This yeast is used to produce the Oregon style American Hefeweizen. Unlike WLP300, this yeast produces a very slight amount of the banana and clove notes. It produces some sulfur, but is otherwise a clean fermenting yeast, which does not flocculate well, producing a cloudy beer. | J30: Zum Uerige (through Widmer)
A31: White Labs WLP351 | B31: Bavarian Weizen | C31: 66 | D31: 70 | E31: 0.73 | F31: 0.77 | G31: Low | H31: Medium | I31: Former Yeast Lab W51 yeast strain, acquired from Dan McConnell. The description originally used by Yeast Lab still fits: "This strain produces a classic German-style wheat beer, with moderately high, spicy, phenolic overtones reminiscent of cloves." Platinum Strain | J31: Weihenstephan 175 | K31: Wyeast 3868
A32: White Labs WLP380 | B32: Hefeweizen IV Ale | C32: 66 | D32: 70 | E32: 0.73 | F32: 0.8 | G32: Low | H32: Medium | I32: Large clove and phenolic aroma and flavor, with minimal banana. Refreshing citrus and apricot notes. Crisp, drinkable hefeweizen. Less flocculent than WLP300, and sulfur production is higher. | J32: Weihenstephan 66? | K32: Wyeast 3333
A33: White Labs WLP400 | B33: Belgian Wit Ale | C33: 67 | D33: 74 | E33: 0.74 | F33: 0.78 | G33: Low-Medium | H33: Medium | I33: Slightly phenolic and tart, this is the original yeast used to produce Wit in Belgium. | J33: Hoegaarden Celis | K33: Wyeast 3944
A34: White Labs WLP410 | B34: Belgian Wit II | C34: 67 | D34: 74 | E34: 0.7 | F34: 0.75 | G34: Medium | H34: Medium | I34: Less phenolic than WLP400, and more spicy. Will leave a bit more sweetness, and flocculation is higher than WLP400. Use to produce Belgian Wit, spiced Ales, wheat Ales, and specialty Beers. Platinum Strain | J34: Moortgat Brouwerij (via Ommegang?)
A35: White Labs WLP500 | B35: Trappist Ale | C35: 65 | D35: 72 | E35: 0.75 | F35: 0.8 | G35: Low-Medium | H35: High | I35: From one of the few remaining Trappist breweries remaining in the world, this yeast produces the distinctive fruitiness and plum characteristics. Excellent yeast for high gravity beers, Belgian ales, dubbels and trippels. Lower temperatures (under 65) will result in less fruity and more earthy beers. | J35: Chimay | K35: Wyeast 1214
A36: White Labs WLP510 | B36: Belgian Bastogne Ale | C36: 66 | D36: 72 | E36: 0.74 | F36: 0.8 | G36: Medium | H36: High | I36: A high gravity, Trappist style ale yeast. Produces dry beer with slight acidic finish. More ‘clean’ fermentation character than WLP500 or WLP530. Not as spicy as WLP530 or WLP550. Excellent yeast for high gravity beers, Belgian ales, dubbels and trippels. Platinum Strain | J36: Orval
A37: White Labs WLP515 | B37: Antwerp Ale | C37: 67 | D37: 70 | E37: 0.73 | F37: 0.8 | G37: Medium | I37: Clean, almost lager like Belgian type ale yeast. Good for Belgian type pales ales and amber ales, or with blends to combine with other Belgian type yeast strains. Biscuity, ale like aroma present. Hop flavors and bitterness are accentuated. Slight sulfur will be produced during fermentation, which can give the yeast a lager like flavor profile. Platinum Strain | J37: De Koninck
A38: White Labs WLP530 | B38: Abbey Ale | C38: 66 | D38: 72 | E38: 0.75 | F38: 0.8 | G38: Medium-High | H38: High | I38: Used to produce Trappist style beers. Similar to WLP500, but is less fruity and more alcohol tolerant (up to 15% ABV). Excellent yeast for high gravity beers, Belgian ales, dubbels and trippels. | J38: Westmalle | K38: Wyeast 3787
A39: White Labs WLP540 | B39: Abbey IV Ale | C39: 66 | D39: 72 | E39: 0.74 | F39: 0.82 | G39: Medium | H39: High | I39: An authentic Trappist style yeast. Use for Belgian style ales, dubbels, tripples, and specialty beers. Fruit character is medium, in between WLP500 (high) and WLP530 (low). Platinum Strain | J39: Rochefort | K39: Wyeast 1762
A40: White Labs WLP545 | B40: Belgian Strong Ale | C40: 66 | D40: 72 | E40: 0.78 | F40: 0.85 | G40: Medium | H40: High | I40: From the Ardennes region of Belgium, this classic yeast strain produces moderate levels of ester and spicy phenolic character. Typically results in a dry, but balanced finish. This yeast is well suited for Belgian dark strongs, Abbey Ales, and Christmas beers. Platinum Strain
A41: White Labs WLP550 | B41: Belgian Ale | C41: 68 | D41: 78 | E41: 0.78 | F41: 0.85 | G41: Medium | I41: Saisons, Belgian Ales, Belgian Reds, Belgian Browns, and White beers are just a few of the classic Belgian beer styles that can be created with this yeast strain. Phenolic and spicy flavors dominate the profile, with less fruitiness then WLP500.
A42: White Labs WLP565 | B42: Belgian Saison I | C42: 68 | D42: 75 | E42: 0.65 | F42: 0.75 | G42: Medium | H42: Medium | I42: Classic Saison yeast from Wallonia. It produces earthy, peppery, and spicy notes. Slightly sweet. With high gravity saisons, brewers may wish to dry the beer with an alternate yeast added after 75% fermentation. | J42: Brasserie Dupont (Saison Dupont)
A43: White Labs WLP566 | B43: Belgian Saison II | C43: 68 | D43: 78 | E43: 0.78 | F43: 0.85 | G43: Medium | H43: Medium | I43: Saison strain with more fruity ester production than with WLP565. Moderately phenolic, with a clove-like characteristic in finished beer flavor and aroma. Ferments faster than WLP565. Platinum Strain | J43: Vieille Provision Saison Dupont
A44: White Labs WLP568 | B44: Belgian/Saison Blend | C44: 70 | D44: 80 | E44: 0.7 | F44: 0.8 | G44: Medium | H44: Medium | I44: This blend melds Belgian style ale and saison strains. The strains work in harmony to create complex, fruity aromas and flavors. The blend of yeast strains encourages complete fermentation in a timely manner. Phenolic, spicy, earthy, and clove like flavors are also created.
A45: White Labs WLP570 | B45: Belgian Golden Ale | C45: 68 | D45: 75 | E45: 0.73 | F45: 0.78 | G45: Low | H45: High | I45: From East Flanders, versatile yeast that can produce light Belgian ales to high gravity Belgian beers (12% ABV). A combination of fruitiness and phenolic characteristics dominate the flavor profile. Some sulfur is produced during fermentation, which will dissipate following the end of fermentation. | J45: Duvel (Moortgart) via McEwans | K45: Wyeast 1388
A46: White Labs WLP575 | B46: Belgian Style Blend | C46: 68 | D46: 75 | E46: 0.74 | F46: 0.8 | G46: Medium | H46: Medium-High | I46: A blend of Trappist type yeast (2) and one Belgian ale type yeast. This creates a versatile blend that can be used for Trappist type beer, or a myriad of beers that can be described as 'Belgian type'. | J46: WLP500, WLP530, WLP550
A47: White Labs WLP645 | B47: Brettanomyces claussenii | I47: Low intensity Brett character. Originally isolated from strong English stock beer, in the early 20th century. The Brett flavors produced are more subtle than WLP650 and WLP653. More aroma than flavor contribution. Fruity, pineapple like aroma. B. claussenii is closely related to B. anomalus.
A48: White Labs WLP650 | B48: Brettanomyces bruxellensis | I48: Medium intensity Brett character. Classic strain used in secondary fermentation for Belgian style beers and lambics. One Trappist brewery uses this strain in secondary fermentation and bottling to produce their characteristic flavor.
A49: White Labs WLP653 | B49: Brettanomyces lambicus | I49: High intensity Brett character. Defines the "Brett character": Horsey, smoky and spicy flavors. As the name suggests, this strain is found most often in Lambic style beers, which are spontaneously fermented beers. Also found in Flanders and sour brown style beers.
A50: White Labs WLP655 | B50: Belgian Sour Mix 1 | I50: A unique blend perfect for Belgian style beers. Includes Brettanomyces, Saccharomyces, and the bacterial strains Lactobacillus and Pediococcus.
A51: White Labs WLP675 | B51: Malolactic Bacteria | I51: Malolactic Fermentation is the conversion of malic acid to lactic acid by bacteria from the lactic acid bacteria family. Lactic acid is less acidic than malic acid, which in turn decreases acidity and helps to soften and/or round out some of the flavors in wine. http://www.whitelabs.com/wine/malolactic.html
A52: White Labs WLP677 | B52: Lactobacillus Bacteria | I52: This lactic acid bacteria produces moderate levels of acidity and sour flavors found in lambics, Berliner Weiss, sour brown ale and gueze.
A53: White Labs WLP715 | B53: Champange | C53: 70 | D53: 75 | E53: 0.7 | F53: 0.75 | G53: Low | H53: 0.17 | I53: Classic yeast, used to produce champagne, cider, dry meads, dry wines, or to fully attenuate barley wines/ strong ales.
A54: White Labs WLP720 | B54: Sweet Mead | C54: 70 | D54: 75 | E54: 0.75 | F54: 0.8 | G54: Low | H54: 0.15 | I54: A wine yeast strain that is less attenuative than WLP715, leaving some residual sweetness. Slightly fruity and will tolerate alcohol concentrations up to 15%. A good choice for sweet mead and cider, as well as Blush wines, Gewürztraminer, Sauternes, Riesling.
A55: White Labs WLP775 | B55: English Cider | C55: 68 | D55: 75 | E55: 0.8 | F55: 0.85 | G55: Medium | I55: Classic cider yeast. Ferments dry, but retains flavor from apples. Sulfur is produced during fermentation, but will disappear in first two weeks of aging. Can also be used for wine and high gravity beers.
A56: White Labs WLP800 | B56: Pilsner Lager | C56: 50 | D56: 55 | E56: 0.72 | F56: 0.77 | G56: Medium-High | H56: Medium | I56: Classic pilsner strain from the premier pilsner producer in the Czech Republic. Somewhat dry with a malty finish, this yeast is best suited for European pilsner production. | J56: Pilsner Urquell | K56: Wyeast 2001
A57: White Labs WLP802 | B57: Czech Budejovice Lager | C57: 50 | D57: 55 | E57: 0.75 | F57: 0.8 | G57: Medium | H57: Medium | I57: Pilsner lager yeast from Southern Czech Republic. Produces dry and crisp lagers, with low diacetyl production. | J57: Samsons via Budejovicky Mestansky Pivovar
A58: White Labs WLP810 | B58: San Francisco Lager | C58: 58 | D58: 65 | E58: 0.65 | F58: 0.7 | G58: High | H58: Medium-High | I58: This yeast is used to produce the "California Common" style beer. A unique lager strain which has the ability to ferment up to 65 degrees while retaining lager characteristics. Can also be fermented down to 50 degrees for production of marzens, pilsners and other style lagers. | J58: Anchor Steam | K58: Wyeast 2112
A59: White Labs WLP820 | B59: Oktoberfest/Märzen Lager | C59: 52 | D59: 58 | E59: 0.65 | F59: 0.73 | G59: Medium | H59: Medium-High | I59: This yeast produces a very malty, bock like style. It does not finish as dry as WLP830. This yeast is much slower in the first generation than WLP830, so we encourage a larger starter to be used the first generation or schedule a longer lagering time. | J59: Weihenstephan 206 | K59: Wyeast 2206
A60: White Labs WLP830 | B60: German Lager | C60: 50 | D60: 55 | E60: 0.74 | F60: 0.79 | G60: Medium | H60: Medium | I60: This yeast is one of the most widely used lager yeasts in the world. Very malty and clean, great for all German lagers, pilsner, oktoberfest, and marzen. | J60: Weihenstephan 34/70 | K60: Wyeast 2124
A61: White Labs WLP833 | B61: German Bock Lager | C61: 48 | D61: 55 | E61: 0.7 | F61: 0.76 | G61: Medium | H61: Medium-High | I61: From the Alps of southern Bavaria, this yeast produces a beer that is well balanced between malt and hop character. The excellent malt profile makes it well suited for Bocks, Dopplebocks, and Oktoberfest style beers. Very versatile lager yeast, it is so well balanced that it has gained tremendous popularity for use in Classic American style Pilsners. Also good for Helles style lager beer. | J61: Ayinger Brewery | K61: Wyeast 2487
A62: White Labs WLP838 | B62: Southern German Lager | C62: 50 | D62: 55 | E62: 0.68 | F62: 0.76 | G62: Medium-High | H62: Medium | I62: This yeast is characterized by a malty finish and balanced aroma. It is a strong fermentor, produces slight sulfur, and low diacetyl. | K62: Wyeast 2308
A63: White Labs WLP840 | B63: American Lager | C63: 50 | D63: 55 | E63: 0.75 | F63: 0.8 | G63: Medium | H63: Medium | I63: This yeast is used to produce American style lagers. Dry and clean with a very slight apple fruitiness. Sulfur and diacetyl production is minimal. | J63: Budweiser | K63: Wyeast 2007
A64: White Labs WLP862 | B64: Cry Havoc | C64: 68 | D64: 74 | E64: 0.66 | F64: 0.7 | G64: Low | I64: Licensed from Charlie Papazian, this strain can ferment at ale and lager temperatures, allowing brewers to produce diverse beer styles. The recipes in both Papazian's books, The Complete Joy of Homebrewing and The Homebrewers Companion, were originally developed and brewed with this yeast. For Ales: Attenuation: 66-70 Flocculation: M-L Optimum Fermentation Temperature: 68-74°F Optimum Cellaring Temperature: 50-55°F Alt beers can be cellared at lagering temperatures For Lagers: Attenuation: 66-70 Flocculation: L Optimum Fermentation Temperature: 55-58°F Optimum Lagering Temperature: 32-37°F
A65: White Labs WLP885 | B65: Zurich Lager | C65: 50 | D65: 55 | E65: 0.7 | F65: 0.8 | G65: Medium | H65: Very High | I65: Swiss style lager yeast. With proper care, this yeast can be used to produce lager beer over 11% ABV. Sulfur and diacetyl production is minimal. Original culture provided to White Labs by Marc Sedam. Platinum Strain | J65: Samichlaus
A66: White Labs 940 | B66: Mexican Lager | C66: 50 | D66: 55 | E66: 0.7 | F66: 0.78 | G66: Medium | H66: Medium | I66: From Mexico City, this yeast produces clean lager beer, with a crisp finish. Good for Mexican style light lagers, as well as dark lagers. | J66: Grupo Modelo
A67: Wyeast 1007 | B67: German Ale | C67: 55 | D67: 68 | E67: 0.73 | F67: 0.77 | G67: Low | H67: 0.11 | I67: True top cropping yeast, low ester formation, broad temperature range affects styles. Cold fermentation will produce lager characteristics including sulfur production. Fermentation at higher temperatures may produce some mild fruitiness. Generally, yeast remains significantly in suspension. Beers mature rapidly, even when cold fermentation is used. Low or no detectable diacetyl. Ferments dry and crisp, leaving a complex but mild flavor. Produces an extremely rocky head and ferments well down to 55°F | J67: Düsseldorf (Zum Uerige) | K67: WLP036
A68: Wyeast 1010 | B68: American Wheat | C68: 58 | D68: 74 | E68: 0.74 | F68: 0.78 | G68: Low | H68: 0.1 | I68: A dry fermenting, true top cropping yeast which produces a dry, slightly tart, crisp beer, in American hefeweisen style. Ideal for beers where a low ester profile is desirable. | J68: Päffgen, Köln
A69: Wyeast 1026 | B69: British Cask Ale | C69: 63 | D69: 72 | E69: 0.74 | F69: 0.77 | G69: Medium-High | I69: A great yeast choice for any cask conditioned British Ale and one that is especially well suited for IPA’s and Australian ales. Produces a nice malt profile and finishes crisp & slightly tart. Low to moderate fruit ester producer that clears well without filtration. | J69: Oranjeboom and then was adopted by a UK brewery
A70: Wyeast 1028 | B70: London Ale | C70: 60 | D70: 72 | E70: 0.73 | F70: 0.77 | G70: Low-Medium | H70: 0.1 | I70: Rich with a dry finish, minerally profile, bold and crisp, with some fruitiness. Often used for higher gravity ales and when a high level of attenuation is desired for the style. Some diacetyl. | J70: Worthington White Shield | K70: WLP013
A71: Wyeast 1056 | B71: American Ale | C71: 60 | D71: 72 | E71: 0.73 | F71: 0.77 | G71: Low-Medium | H71: 0.1 | I71: Very clean, crisp flavor characteristics. Low fruitiness and mild ester production. Slightly citrus like with cool (60-66F, 15-19C) fermentation temperatures. Versatile yeast, which produces many beer styles allowing malt and hop character to dominate the beer profile. Flocculation improves with dark malts in grain bill. Normally requires filtration for bright beers. DE or pad filtration recommended. | J71: Sierra Nevada (Seibel 96) | K71: WLP001
A72: Wyeast 1084 | B72: Irish Ale | C72: 62 | D72: 72 | E72: 0.71 | F72: 0.75 | G72: Medium | H72: 0.1 | I72: This yeast ferments well in dark roast worts. Beers fermented in the lower temperature range produce dry and crisp beers to fruity beers with nice complexity in the upper range. Ester production is enhanced with fermentation temperatures above 64 degrees F (18 C). Flocculation is low to moderate with filtration typically required. Slight residual diacetyl and fruitiness; great for stouts. Clean, smooth, soft and full bodied. | J72: Guinness | K72: WLP004
A73: Wyeast 1098 | B73: British Ale | C73: 64 | D73: 72 | E73: 0.73 | F73: 0.75 | G73: Medium | H73: 0.1 | I73: Produces beers with a clean neutral finish allowing malt and hop character to dominate. Ferments dry & crisp, slightly tart, fruity and well balanced. Ferments well down to 65°F (18°C). | J73: Whitbred - dry | K73: WLP007
A74: Wyeast 1099 | B74: Whitbread Ale | C74: 64 | D74: 75 | E74: 0.68 | F74: 0.72 | G74: High | H74: 0.1 | I74: A mildly malty and slightly fruity fermentation profile; not as tart and dry as 1098 and much more flocculent. Clears well without filtration. Low fermentation temperatures will produce a clean finish with a very low ester profile. | J74: Whitbred
A75: Wyeast 1187 | B75: Ringwood Ale | C75: 64 | D75: 74 | E75: 0.68 | F75: 0.72 | G75: High | H75: 0.1 | I75: Great yeast strain with unique fermentation and flavor characteristics. Distinct fruit ester and high flocculation provide a malty complex profile, also clears well. Thorough diacetyl rest is recommended after fermentation is complete. Extremely malty profile, finishes estery and fruity. Difficult yeast to manage due to high flocculating characteristics. High oxygen requirements and poor stability in storage. | J75: Pripps Brewery, Sweden (aka 1742 Swedish porter) | K75: WLP005
A76: Wyeast 1214 | B76: Belgian Ale | C76: 68 | D76: 78 | E76: 0.73 | F76: 0.77 | G76: Medium | H76: 0.09 | I76: Abbey-style top-fermenting yeast, suitable for high-gravity beers. Estery, great complexity with very good alcohol tolerance. This strain can be slow to start. | J76: Chimay | K76: WLP500
A77: Wyeast 1272 | B77: American Ale II | C77: 60 | D77: 72 | E77: 0.72 | F77: 0.76 | G77: High | H77: 0.1 | I77: With many of the best qualities that brewers look for when brewing American styles of beer, this strain’s performance is consistent and it makes great beer. Fruitier and more flocculent than Wyeast 1056 American Ale yeast, slightly nutty, soft, clean with a slightly tart finish. Ferment at warmer temperatures to accentuate hop character with intense fruitiness, or ferment cool for clean, light citrus character. Expect good attenuation, but this will vary with grist makeup, mashing protocol, or other wort characteristics. Reliably flocculent, producing bright beer without filtration. | J77: Anchor Liberty | K77: WLP051
A78: Wyeast 1275 | B78: Thames Valley Ale | C78: 62 | D78: 72 | E78: 0.77 | F78: 0.77 | G78: Low-Medium | H78: 0.1 | I78: Produces classic british bitters, rich complex flavor profile, clean, light malt character, low fruitiness, low esters, well balanced. | J78: Henley of Thames (Brakspear Bitter) | K78: WLP023
A79: Wyeast 1318 | B79: London Ale III | C79: 64 | D79: 74 | E79: 0.71 | F79: 0.75 | G79: High | H79: 0.1 | I79: From traditional London brewery with great malt and hop profile. True top cropping strain, fruity, very light, soft balanced palate, finishes slightly sweet. | J79: Boddingtons
A80: Wyeast 1332 | B80: Northwest Ale | C80: 65 | D80: 75 | E80: 0.67 | F80: 0.71 | G80: High | H80: 0.1 | I80: One of the classic ale strains from the Northwest U.S. Breweries. Produces a malty and mildly fruity ale with good depth and complexity. | J80: Hales Brewery in Seattle via Gales Brewery UK
A81: Wyeast 1335 | B81: British Ale II | C81: 63 | D81: 75 | E81: 0.73 | F81: 0.76 | G81: High | H81: 0.1 | I81: Typical of british ale fermentation profile with good flocculating and malty flavor characteristics, crisp finish, clean, fairly dry. | K81: WLP025
A82: Wyeast 1338 | B82: European Ale | C82: 62 | D82: 72 | E82: 0.67 | F82: 0.71 | G82: High | H82: 0.1 | I82: Full bodied complex strain finishing very malty. Produces a dense, rocky head during fermentation. | J82: Wisenschaftliche Station #338 (Munich) | K82: WLP011
A83: Wyeast 1388 | B83: Belgian Strong Ale | C83: 64 | D83: 80 | E83: 0.74 | F83: 0.78 | G83: Low | H83: 0.13 | I83: Classic yeast for this beer style. Robust flavor profile with moderate to high alcohol tolerance. Fruity nose and palate, dry, tart finish. May continue to produce CO2 for an extended period after packaging or collection, while in refrigerated storage. | J83: Duvel (Moortgart) via McEwans | K83: WLP570
A84: Wyeast 1728 | B84: Scottish Ale | C84: 55 | D84: 75 | E84: 0.69 | F84: 0.73 | G84: High | H84: 0.12 | I84: Ideally suited for Scottish-style ales, and high-gravity ales of all types. Can be estery with warm fermentation temperatures. | J84: McEwans | K84: WLP028
A85: Wyeast 1762 | B85: Belgian Abbey II | C85: 65 | D85: 75 | E85: 0.73 | F85: 0.77 | G85: Medium | H85: 0.12 | I85: High gravity yeast with a warming character and distinct solventy flavor profile from ethanol production, slightly fruity with dry finish, low ester production. | J85: Rochefort | K85: WLP540
A86: Wyeast 1968 | B86: London ESB | C86: 64 | D86: 72 | E86: 0.67 | F86: 0.71 | G86: Very High | H86: 0.1 | I86: This extremely flocculent yeast produces distinctly malty beers. Attenuation levels are typically less than most other yeast strains making for a slightly sweeter finish. Ales produced with this strain tend to be fairly fruity. Fruitiness will increase with higher fermentation temperatures (70-74F, 21-23C). Diacetyl production is noticeable and a thorough rest is necessary. Yeast traps trub easily and autolysis during storage is accelaerated. A very good cask conditioned ale strain due to rapid and complete flocculation. Brilliantly bright beers are easily achieved without any filtration. | J86: Fullers | K86: WLP002
A87: Wyeast 2000 | B87: Budvar Lager | C87: 48 | D87: 56 | E87: 0.71 | F87: 0.75 | G87: Medium-High | H87: 0.09 | I87: Nice malty nose, subtle fruit. Rich malt profile on palate. Finishes malty but dry, well balanced, crisp. Hop character comes through in finish. | J87: Budvar
A88: Wyeast 2001 | B88: Urquell Lager | C88: 48 | D88: 58 | E88: 0.72 | F88: 0.76 | G88: Medium-High | H88: 0.09 | I88: Mild fruit/floral aroma. Very dry and clean on palate with full mouth feel and nice subtle malt character. Very clean and neutral finish. | J88: Pilsner Urquell lager H-strain | K88: WLP800
A89: Wyeast 2007 | B89: Pilsen Lager | C89: 48 | D89: 56 | E89: 0.71 | F89: 0.75 | G89: Medium | H89: 0.09 | I89: A classic American Pilsner strain, smooth, malty palate. Ferments dry and crisp. | J89: Budweiser | K89: WLP840
A90: Wyeast 2035 | B90: American Lager | C90: 48 | D90: 58 | E90: 0.73 | F90: 0.77 | G90: Medium | H90: 0.09 | I90: Bold, complex and aromatic with a good depth of flavor characteristics for a variety of lager beers. | J90: August Schell
A91: Wyeast 2042 | B91: Danish Lager | C91: 46 | D91: 56 | E91: 0.73 | F91: 0.77 | G91: Low | H91: 0.09 | I91: Rich, Dortmund-style with a crisp, dry finish. Soft profile accentuates hop characteristics. | J91: Miller via Carlsberg
A92: Wyeast 2112 | B92: California Lager | C92: 58 | D92: 68 | E92: 0.67 | F92: 0.71 | G92: High | H92: 0.09 | I92: Particularly suited for producing 19th century-style West Coast beers. Retains lager characteristics at temperatures up to 65° F, (18° C) and produces malty, brilliantly clear beers. This strain is not recommended for cold temperature fermentation. | J92: Anchor | K92: WLP810
A93: Wyeast 2124 | B93: Bohemian Lager | C93: 48 | D93: 58 | E93: 0.73 | F93: 0.77 | G93: Medium | H93: 0.09 | I93: A Carlsberg type yeast and most widely used lager strain in the world. Produces a distinct malty profile with some ester character and a crisp finish. Will ferment in the 45-55°F range for various beer styles. Benefits from diacetyl rest at 58°F (14°C) for 24 hours after fermentation is complete. Also used for pseudo-ale production with fermentations at 75°F, (24°C) which eliminates sulfur production. | J93: Weihenstephan 34/70 | K93: WLP830
A94: Wyeast 2206 | B94: Bavarian Lager | C94: 46 | D94: 58 | E94: 0.73 | F94: 0.77 | G94: Medium-High | H94: 0.09 | I94: Used by many German breweries to produce rich, full-bodied malty beers. Good choce for Bocks and Dopplebocks. Benefits from diacetyl rest at 58°F(14°C) for 24 hours after fermentation is complete. | J94: Weihenstephan 206 | K94: WLP820
A95: Wyeast 2278 | B95: Czech Pils | C95: 50 | D95: 58 | E95: 0.7 | F95: 0.74 | G95: Medium-High | H95: 0.09 | I95: Classic pilsner strain from the home of pilsners for a dry, but malty finish. The perfect choice for pilsners and all malt beers. Sulfur produced during fermentation can be reduced with warmer fermentation temperatures (58°F) and will dissipate with conditioning. | J95: Pilsner Urquell-D
A96: Wyeast 2308 | B96: Munich Lager | C96: 48 | D96: 56 | E96: 0.7 | F96: 0.74 | G96: Medium | H96: 0.09 | I96: A unique strain, capable of producing fine lagers. Very smooth, well-rounded and full-bodied. Benefits from temperature rise for diacetyl rest at the end of primary fermentation. | J96: Wisenschaftliche Station #308 (Munich) | K96: WLP838
A97: Wyeast 2450 | B97: Denny's Favorite 50 | C97: 60 | D97: 70 | E97: 0.74 | F97: 0.76 | G97: Low | H97: 0.1 | I97: A mainstay of one of our local homebrewers, Mr. Denny Conn, this terrific all-round yeast can be used for almost any style beer. It is unique in that it produces a big mouthfeel and helps accentuate the malt, caramel, or fruit character of a beer without being sweet or under-attenuating. A great yeast for extract brewers and for fruit beers.
A98: Wyeast 2565 | B98: Kölsch | C98: 56 | D98: 70 | E98: 0.73 | F98: 0.77 | G98: Low | H98: 0.1 | I98: True top cropping yeast similar to Alt strains. Produces slightly more fruity/winey characteristics. Fruitiness increases with temperature increase. Low or no detectable diacetyl production. Also ferments well at cold 55° - 60° F range (13-16° C). Used to produce quick-conditioning pseudo-lager beers. Requires filtration or additional settling time to produce bright beers. | J98: Weihenstephan 165, Köln (Päffgen?) | K98: WLP003??
A99: Wyeast 2633 | B99: Octoberfest Lager Blend | C99: 48 | D99: 58 | E99: 0.73 | F99: 0.77 | G99: Low-Medium | H99: 0.09 | I99: A blend of lager strains designed to produce a rich, malty, complex and full bodied Octoberfest style beer. Attenuates well while still leaving plenty of malt character and mouthfeel. Low in sulfur production
A100: Wyeast 3056 | B100: Bavarian Wheat Blend | C100: 64 | D100: 74 | E100: 0.73 | F100: 0.77 | G100: Medium | H100: 0.1 | I100: Blend of top-fermenting ale and wheat strains producing mildly estery and phenolic wheat beers.
A101: Wyeast 3068 | B101: Weihenstephan Weizen | C101: 64 | D101: 75 | E101: 0.73 | F101: 0.77 | G101: Low | H101: 0.1 | I101: Classic German wheat beer yeast, used by more German brewers than any other strain. Dominated by banana ester production, phenols and clove-like characteristics. Extremely attenuative yeast, which produces a tart, refreshing finish. Yeast remains in suspension readily with proteinacous wheat malt. Sometimes used in conjunction with lager yeast and kraeusened to finish the beer and improve the overall dryness. High CO2 levels, typically at 2.7 - 3.2 volumes is desirable for best presentation. This strain is a true top cropping yeast requiring full fermenter headspace of 33%. Increasing pitch rates will reduce ester production. | J101: Weihenstephan 68 (S. delbrueckii single strain) | K101: WLP300
A102: Wyeast 3278 | B102: Belgian Lambic Blend | C102: 63 | D102: 75 | H102: 0.12 | I102: Contains a selection of Saccharomyces and non-Saccharomyces including Belgian-style wheat beer yeast, sherry yeast, two Brettanomyces strains and lactic acid bacteria. While this mixture does not include all possible cultures found in Belgian Lambics, it is representative of the organisms most important for the desirable flavor components of these beers as they are brewed in West Flanders.
A103: Wyeast 3333 | B103: German Wheat | C103: 63 | D103: 75 | E103: 0.7 | F103: 0.76 | G103: High | H103: 0.1 | I103: Subtle flavor profile for wheat yeast with unique sharp tart crispness, fruity, sherry-like palate. | K103: WLP380
A104: Wyeast 3463 | B104: Forbidden Fruit | C104: 63 | D104: 76 | E104: 0.72 | F104: 0.76 | G104: Low | H104: 0.12 | I104: For production of wits to classic grand cru. Phenolic profile with subdued fruitiness. Well balanced estery profile. | J104: Hoegaarden (assumed to be from Verboden Vrucht) | K104: WLP720
A105: Wyeast 3522 | B105: Belgian Ardennes | C105: 65 | D105: 85 | E105: 0.72 | F105: 0.76 | G105: High | H105: 0.12 | I105: One of many great beer yeast to produce classic Belgian ales. Phenolics develop with increased fermentation temperatures, mild fruitiness and complex spicy character. | J105: Achouffe | K105: WLP550
A106: Wyeast 3638 | B106: Bavarian Wheat | C106: 64 | D106: 75 | E106: 0.7 | F106: 0.76 | G106: Low | H106: 0.7 | I106: Top cropping hefeweizen yeast with complex flavor and aroma. Balance of banana and bubble gum esters with lichi and apple/plum esters and clove. | J106: Weihenstephan 175 | K106: WLP351
A107: Wyeast 3711 | B107: French Saison | C107: 65 | D107: 77 | E107: 0.77 | F107: 0.83 | G107: Low | I107: Produces saison or farmhouse style biers that are highly aromatic with clean, citrus-esters, peppery and spicy with no earthiness and low phenols. This strain enhances the use of spices and aroma hops, and is extremely attenuative but leaves an unexpected silky and rich mouthfeel in a very dry finished beer. 12% Alcohol Tolerance. VSS Strain | J107: Brasserie Thiriez
A108: Wyeast 3724 | B108: Belgian Saison | C108: 70 | D108: 95 | E108: 0.76 | F108: 0.8 | G108: Low | H108: 0.12 | I108: Classic farmhouse ale yeast. Spicy and complex aromatics including bubble gum. Very tart and dry on palate with mild fruit. Finishes crisp and mildly acidic. Benefits from elevated fermentation temperatures. This strain is notorious for a rapid and vigorous start to fermentation, only to stick around 1.035 sg. Fermentation will eventually finish, given time and warm temperatures. | J108: Saison du Pont | K108: WLP565
A109: Wyeast 3725 | B109: Bier de Garde | C109: 70 | D109: 95 | E109: 0.74 | F109: 0.79 | G109: Low | I109: Low to moderate ester production with subtle spiciness. Malty and full on the palate with initial sweetness. Finishes dry and slightly tart. Ferments well with no sluggishness. 12% Alcohol Tolerance. VSS Strain | J109: Soy-Erezée, Belgium
A110: Wyeast 3726 | B110: Farmhouse Ale | C110: 70 | D110: 95 | E110: 0.74 | F110: 0.79 | G110: Variable | I110: This strain produces complex esters balanced with earthy/spicy notes. Slightly tart and dry with a peppery finish. A perfect strain for farmhouse ales and saisons. 12% Alcohol Tolerance. VSS Strain | J110: Blaugies, Belgium
A111: Wyeast 3763 | B111: Roselare Blend | C111: 65 | D111: 85 | E111: 0.8 | F111: 0.8 | G111: Variable | I111: A blend of lambic cultures including lactic bacteria. Produces beers with a complex, earthy profile and distinct pie cherry sourness from a Brettanomyces culture. Aging for up to 18 months is required for full flavor profile and acidity to develop. Will produce a very dry profile due to super-attenuative nature of mixed cultures. 11% Alcohol Tolerance. VSS Strain | J111: Rodenbach
A112: Wyeast 3787 | B112: Trappist High Gravity | C112: 64 | D112: 78 | E112: 0.74 | F112: 0.78 | G112: Medium-High | H112: 0.12 | I112: Produces intense esters and phenolic characteristics with complex fruitiness. Does not produce significant amount of iso-amyl acetate (banana esters) or bubble gum esters typical of many yeast of this style. Phenol and ester production are influenced by fermentation temperatures. Phenols tend to dissipate as beer matures. This type of yeast benefits from incremental feeding of sugars during fermentation, making suitable conditions for doubles and triples, to ferment to dryness. True top cropping yeast with broad temperature range. | J112: Westmalle | K112: WLP530
A113: Wyeast 3864 | B113: Canadian/Belgian Ale | C113: 65 | D113: 80 | E113: 0.75 | F113: 0.79 | G113: Medium | H113: 0.12 | I113: Belgian Dubbel and Tripel, Belgian Specialty Ale, Belgian Golden Strong, Biere de Garde, Witbier Profile: This strain has a classic profile producing mild phenolics which increase with higher fermentation temperatures. It has a low ester profile with a dry, slightly tart finish. This strain is alcohol tolerant while producing complex and well balanced beers. Private Collection
A114: Wyeast 3942 | B114: Belgian Wheat | C114: 64 | D114: 74 | E114: 0.72 | F114: 0.76 | G114: Medium | H114: 0.12 | I114: Estery, low phenol producing yeast from small Belgian brewery. Apple-, bubblegum- and plum-like aromas with a dry but fruity finish. | J114: Esen, Belgium (De Dolle)
